Workbook

Sheet Contents
C2: Contents
F3: Colour Codes | K3: File Name: | M3: =IFERROR(File_name(),"") -> 
C4: Questions | G4: Inputs | I4: 1234567890
G5: Section Titles | I5: TITLE ROW | K5: Last Save Date | M5: =IFERROR(lastsaved(),"") -> 
C6: Summary | G6: Sum Column | I6: 1000000000
G7: True or 1 | I7: =1=1 -> TRUE | K7: Last Save By | M7: =IFERROR(last_save_by(),"") -> 
C8: Control Page | G8: False or 0 | I8: =1=2 -> FALSE
G9: Other Sheet Links | I9: |||||||||||||||||||
C10: Inputs
D11: Timing
D12: Production of Palm Oil and Efflent
D13: Production from Biogas Upgrading Unit
D14: Capacity and Production of Biogas Dispenser
D15: Truck Assumptions
D16: Revenues
D17: Operating Cost
D18: Capital Expenditures
D19: Generator
D20: Discount Rates
C22: Financial Model
D23: Truck Demand
D24: Production of CNG to Meet Demand
D25: Operating Expenses
D26: Capital Expenditure
D27: investor IRR Perspective
D28: Savings to Mill
D29: Replacement Capital Expenditure
D30: Tax
D31: Financing
D32: Mill Perspective
C34: Back Up Data
C36: Data
C38: Gannt

Sheet Questions
B3: Hours of Upgrader
B4: Dispenser Hours | E4: 1/2 as much for dispenser as for upgrader; hours should be different

Sheet Summary
E1: Mill Size Constraint | I1: Installation Size | R1: Demand Constraint | U1: Trucks | W1: =Inputs!F26 -> 50
U2: Distance km | W2: =Inputs!F18 -> 150
E3: Concession Period | G3: =Inputs!F6 -> 10 | U3: km/Litre | W3: =Inputs!F113/'Questions 1'!I13 -> 2.5
E4: Operating Period | G4: =Inputs!F8 -> 30 | U4: km per Year | W4: ='Operating Model'!AC20 -> 4320000
E5: Mill Production (Tons) | G5: =Inputs!F14 -> 60 | M5: Elec Price | N5: =Inputs!F195*1000 -> 70 | O5: USD/MWH
E6: Available Hours | G6: =Inputs!F51 -> 5200 | U6: Diesel Price Fixed | W6: =Inputs!F223 -> 0.564
U7: Assumed Maket Price | W7: =Inputs!F224 -> 0.6
E8: Min Biogas Flow/Month Nm3 | G8: =Inputs!F78 -> 507
U9: Discount | W9: =Inputs!F226 -> 0
E10: Lagoon Membrane --> Biogass | J10: Fruit Bunch
E11: Effluent % | G11: =Inputs!F55 -> 0.65 | U11: CNG Price/L | W11: ='Operating Cash Flow'!K136 -> 0.47
E12: Methane in Biogas | G12: =Inputs!F98 -> 0.58 | U12: CNG Price/kg | W12: ='Operating Cash Flow'!K137 -> 0.6266666667
U13: CNG Price/mmBTU | W13: ='Operating Cash Flow'!K138 -> 14.16789468
E14: Capital Expenditures
E15: Lagoon | F15: =G15/$G$20 -> 0.303030303 | G15: ='Operating Cash Flow'!H70 -> 1500000 | L15: Biogas | Q15: CNG | U15: Break-even Trucks w/o Elec | W15: ='Operating Model'!K51 -> 50.02051546
E16: Upgrader | F16: =G16/$G$20 -> 0.3636363636 | G16: ='Operating Cash Flow'!H77 -> 1800000 | U16: Break-even Trucks w/ Elec | W16: ='Operating Model'!K528 -> 39.26392004
E17: Dispenser | F17: 0.1111111111 | G17: ='Operating Cash Flow'!H83 -> 550000
E18: Trucks | F18: 0.1111111111 | G18: ='Operating Cash Flow'!H85 -> 550000 | L18: Upgrader to Produce CNG from Biogass | U18: Methane Dispenser Pumps
E19: Electricity Plant | F19: 0.1111111111 | G19: ='Operating Cash Flow'!H87 -> 550000 | L19: Capacity in Biogass Flow M3/Hour | O19: =Inputs!F88 -> 507 | U19: Number of Pumps | W19: =Inputs!F121 -> 6
E20: Total Cap Exp | G20: =SUM(G15:G19) -> 4950000 | L20: Potential Operating Days | O20: =Inputs!F94 -> 350 | U20: Flow Rate kg/Minute | W20: =Inputs!F459 -> 3200
U21: Minutes/Day/Truck | W21: ='Operating Cash Flow'!K19 -> 0
E22: Investor Perspective | L22: CNG Production M3/Hour | O22: ='Operating Cash Flow'!K225 -> 300.1230928
E23: Project IRR | G23: ='Operating Cash Flow'!H128 -> 0.039893803 | L23: CNG Production kg/Hour | O23: ='Operating Cash Flow'!K226 -> 225.5001774 | R23: Mill Perspective
E24: Debt/Capital | G24: ='Financial Model'!G67+'Financial Model'!G68 -> 0.7 | L24: CNG Production MMBTU/Hr | O24: ='Operating Cash Flow'!K227 -> 10.47493424 | R24: NPV of Fuel Savings During BOT Period | W24: ='Operating Cash Flow'!K183 -> 652264.8693
E25: NPV of Cash | G25: ='Operating Cash Flow'!K188 -> -612978.61 | R25: NPV of Savings After BOT Period | W25: ='Operating Cash Flow'!K186 -> 2429692.803
L26: Availability of Upgrader | O26: ='Control Page'!$H$26/100 -> 0.97 | R26: Total Value to Mill | W26: =SUM(W24:W25) -> 3081957.673
E27: Equity IRR | G27: ='Financial Model'!H143 -> 

Sheet Control Page
C2: Scenario Code | D2: 1
D5: Electricity Price | E5: Mill Availability | F5: Effluent Percent | G5: Percent CH4 in Effluent | H5: Availability of Upgrader | I5: Filling Flow Rate | J5: Truck Distance | K5: Number of Trucks | L5: Fuel Efficiency | M5: Real Diesel Price | N5: Discount to Diesel Price | O5: Diesel Price Inflation | P5: BOT Period | Q5: Operating Period | R5: Truck Volume
D6: USD Cents/kWh | E6: Hours per Year | H6: % p.a. | K6: Number | L6: km/M3
B7: 1 | C7: Base Case | D7: 0.1 | E7: 5200 | F7: 0.65 | G7: 0.58 | H7: 0.97 | I7: 3200 | J7: 150 | K7: 50 | L7: 2.083333333 | M7: 0.564 | N7: 0 | O7: 0 | P7: 10 | Q7: 30
B8: 2 | C8: Low Diesel Price | D8: 0.1 | E8: 5200 | F8: 0.65 | G8: 0.58 | H8: 0.97 | I8: 3200 | J8: 150 | K8: 50 | L8: 2.083333333 | M8: 0.55 | N8: 0.2 | O8: 0.02 | P8: 10 | Q8: 30
B9: 3 | C9: Low Mill Production | D9: 0.1 | E9: 5200 | F9: 0.65 | G9: 0.58 | H9: 0.97 | I9: 3200 | J9: 150 | K9: 50 | L9: 2.083333333 | M9: 0.6451612903 | N9: 0.2 | O9: 0.02 | P9: 10 | Q9: 30
B10: 4 | C10: Low Effluent % | D10: 0.1 | E10: 5200 | F10: 0.62 | G10: 0.58 | H10: 0.97 | I10: 3200 | J10: 150 | K10: 50 | L10: 2.083333333 | M10: 0.6451612903 | N10: 0.2 | O10: 0.02 | P10: 10 | Q10: 30
B11: 5 | C11: High Diesel Price | D11: 0.1 | E11: 5200 | F11: 0.65 | G11: 0.58 | H11: 0.97 | I11: 3200 | J11: 150 | K11: 50 | L11: 2.083333333 | M11: 0.8 | N11: 0.2 | O11: 0.02 | P11: 10 | Q11: 30
B12: 6 | C12: Low Truck Distance | D12: 0.1 | E12: 5200 | F12: 0.65 | G12: 0.58 | H12: 0.97 | I12: 3200 | J12: 100 | K12: 50 | L12: 2.083333333 | M12: 0.6451612903 | N12: 0.2 | O12: 0.02 | P12: 10 | Q12: 30
B13: 7 | C13: High Truck Distance | D13: 0.1 | E13: 5200 | F13: 0.65 | G13: 0.58 | H13: 0.97 | I13: 3200 | J13: 200 | K13: 50 | L13: 2.083333333 | M13: 0.6451612903 | N13: 0.2 | O13: 0.02 | P13: 10 | Q13: 30
B14: 8 | C14: Higher Discount | D14: 0.1 | E14: 5200 | F14: 0.65 | G14: 0.58 | H14: 0.97 | I14: 3200 | J14: 150 | K14: 50 | L14: 2.083333333 | M14: 0.6451612903 | N14: 0.25 | O14: 0.02 | P14: 10 | Q14: 30
B15: 9 | C15: Lower Discount | D15: 0.1 | E15: 5200 | F15: 0.65 | G15: 0.58 | H15: 0.97 | I15: 3200 | J15: 150 | K15: 50 | L15: 2.083333333 | M15: 0.6451612903 | N15: 0.15 | O15: 0.02 | P15: 10 | Q15: 30
B16: 10 | C16: Low Mill Availability | D16: 0.1 | E16: 5000 | F16: 0.65 | G16: 0.58 | H16: 0.97 | I16: 3200 | J16: 150 | K16: 50 | L16: 2.083333333 | M16: 0.6451612903 | N16: 0.2 | O16: 0.02 | P16: 10 | Q16: 30
B17: 11 | C17: Low Upgrader Availabilty | D17: 0.1 | E17: 5200 | F17: 0.65 | G17: 0.58 | H17: 0.94 | I17: 3200 | J17: 150 | K17: 50 | L17: 2.083333333 | M17: 0.6451612903 | N17: 0.2 | O17: 0.02 | P17: 10 | Q17: 30
B18: 12 | C18: Low Diesel Inflation | D18: 0.1 | E18: 5200 | F18: 0.65 | G18: 0.58 | H18: 0.97 | I18: 3200 | J18: 150 | K18: 50 | L18: 2.083333333 | M18: 0.6451612903 | N18: 0.2 | O18: 0 | P18: 10 | Q18: 30
B19: 13 | C19: High Diesel Inflation | D19: 0.1 | E19: 5200 | F19: 0.65 | G19: 0.58 | H19: 0.97 | I19: 3200 | J19: 150 | K19: 50 | L19: 2.083333333 | M19: 0.6451612903 | N19: 0.2 | O19: 0.04 | P19: 10 | Q19: 30
B20: 14 | C20: Longer BOT Period | D20: 0.1 | E20: 5200 | F20: 0.65 | G20: 0.58 | H20: 0.97 | I20: 3200 | J20: 150 | K20: 50 | L20: 2.083333333 | M20: 0.6451612903 | N20: 0.2 | O20: 0.02 | P20: 15 | Q20: 30
B21: 15 | C21: Shorter BOT Period | D21: 0.1 | E21: 5200 | F21: 0.65 | G21: 0.58 | H21: 0.97 | I21: 3200 | J21: 150 | K21: 50 | L21: 2.083333333 | M21: 0.6451612903 | N21: 0.2 | O21: 0.02 | P21: 8 | Q21: 30
B22: 16 | C22: Longer Operating | D22: 0.1 | E22: 5200 | F22: 0.65 | G22: 0.58 | H22: 0.97 | I22: 3200 | J22: 150 | K22: 50 | L22: 2.083333333 | M22: 0.6451612903 | N22: 0.2 | O22: 0.02 | P22: 10 | Q22: 40
C24: =INDEX(C7:C23,$D$2) -> Base Case | D24: =INDEX(D7:D23,$D$2) -> 0.1 | E24: =INDEX(E7:E23,$D$2) -> 5200 | F24: =INDEX(F7:F23,$D$2) -> 0.65 | G24: =INDEX(G7:G23,$D$2) -> 0.58 | H24: =INDEX(H7:H23,$D$2) -> 0.97 | I24: =INDEX(I7:I23,$D$2) -> 3200 | J24: =INDEX(J7:J23,$D$2) -> 150 | K24: =INDEX(K7:K23,$D$2) -> 50 | L24: =INDEX(L7:L23,$D$2) -> 2.083333333 | M24: =INDEX(M7:M23,$D$2) -> 0.564 | N24: =INDEX(N7:N23,$D$2) -> 0 | O24: =INDEX(O7:O23,$D$2) -> 0 | P24: =INDEX(P7:P23,$D$2) -> 10 | Q24: =INDEX(Q7:Q23,$D$2) -> 30
D25: 1 | E25: 2 | F25: 3 | G25: 4 | H25: 5 | I25: 6 | J25: 7 | K25: 8 | L25: 9 | M25: 10 | N25: 11 | O25: 12 | P25: 13 | Q25: 14
C26: Low Mill Production | D26: 0.1 | E26: 5200 | F26: 65 | G26: 58 | H26: 97 | I26: 3200 | J26: 150 | K26: 50 | L26: 208.3333333 | M26: 56.4 | N26: 0 | O26: 0 | P26: 10 | Q26: 30
L28: =L26/0.8/100 -> 2.604166667
C37: Diesel Price | D37: 2020 | E37: 2021 | F37: 2022 | G37: 2023 | H37: 2025 | I37: 2026 | J37: 2027
C38: Case 1
C39: Case 2
C40: Case 3
C42: Palm Oil Price

Sheet Inputs
B2: Timing
C3: Start of Construction (Financial Close) | E3: Date | F3: 2020-01-01
C4: Construction Period | E4: Months | F4: 12
C5: Commercial Operation | E5: Date | F5: =EDATE(F3,F4) -> 2021-01-01
C6: BOT Period | E6: Years | F6: ='Control Page'!P26 -> 10
C7: End of BOT Period | E7: Date | F7: =EDATE(F5,F6*12) -> 2031-01-01
C8: Period for Analysis | E8: Years | F8: ='Control Page'!Q26 -> 30
C9: End of Operating Life | E9: Date | F9: =EDATE(F5,F8*12) -> 2051-01-01
C11: Periods per Year - Construction | E11: Months | F11: 12
C12: Periods per Year - Operation | E12: Months | F12: 1
C14: Mill Capacity - Fresh Fruit Bunch (FFB) | E14: Tons/Hour | F14: ='Operating Expense and Cap Exp'!K18 -> 60
B16: Demand: Truck Assumptions
C18: km per Round Trip | E18: km | F18: ='Control Page'!J26 -> 150
C19: Trips per day | E19: Trips | F19: 2
C20: Total Distrance Travelled | E20: km | F20: =F18*F19 -> 300
C22: Daily Operation of Trucks | E22: Days | F22: 6
C23: Weekly Operation of Trucks | E23: Weeks | F23: 48
C24: Operating Days | E24: Days | F24: =F22*F23 -> 288
C25: Annual km per Truck | E25: km | F25: =F20*F22*F23 -> 86400
C26: Total Number of Trucks | E26: Number | F26: ='Control Page'!$K$26 -> 50
C27: Total Annual km | E27: km | F27: =F25*F26 -> 4320000
C29: Truck fuel tank volume (liters) | E29: Litres | F29: 400
C30: 1 M3 =1000 Litre
C31: Truck diesel consumption (km/L of diesel) | E31: km/Litre | F31: 2.5
C32: Fuel Efficiency of Trucks | E32: Litre/100 km | F32: =1/F31*100 -> 40
C33: Added Consumption of CNG vs Diesel | E33: Factor | F33: 1.2
C34: Liters for Working Day | E34: Litres | F34: =F20/F31 -> 120
C36: km per Litre | E36: Bio CNG/km | F36: =F33/F31 -> 0.48
C37: Efficiency with Added Consumption | E37: km/Bio CNG | F37: =1/F36 -> 2.083333333
C38: Litres to M3 | E38: M3/Litre | F38: 1000
C40: Conversion of km/Litre to km/M3 of Methane | E40: km/M3/km/CH4 | F40: ='Questions 1'!I13 -> 0.8333333333
C41: Fuel Efficiency in km/M3 of Methane | E41: km/M3 Methane | F41: =F40*F31 -> 2.083333333
C43: Maintenance per Truck | E43: USD/km | F43: ='Questions 1'!I50 -> 0.02364864865
C44: Increase in Maintenance Cost | E44: % | F44: 0.15
C46: Additional Truck Maintenance | E46: USD/km/yr | F46: 0.0057
B48: Production of Palm Oil and Biogas Efflent from Lagoon
C50: Production of Palm Oil
D51: Mill Availability | E51: Hours per Year | F51: ='Control Page'!$E$26 -> 5200
D52: Fresh Fruit Bunch Production (FFB) | E52: FFB per Year | F52: =F51*F14 -> 312000
C54: Production of Methane
D55: Palm Oil Mill Efflent as Percent of FFB | E55: % | F55: ='Control Page'!F26/100 -> 0.65
D56: Palm Oil Mill Effeluent | E56: Ton/year | F56: =F55*F52 -> 202800
D57: Biogas Available M3/ton | E57: M3/Ton | F57: 30
D58: Annual Production of Biogas | E58: M3/Year | F58: =F56*F57 -> 6084000
C60: Monthly Production | G60: Driver/Total | H60: January | I60: February | J60: March | K60: April | L60: May | M60: June | N60: July | O60: August | P60: September | Q60: October | R60: November | S60: December
D61: FFB seasonality | E61: % of Total | G61: =SUM(H61:S61) -> 1 | H61: 0.07 | I61: 0.06 | J61: 0.065 | K61: 0.06 | L61: 0.07 | M61: 0.085 | N61: 0.1 | O61: 0.12 | P61: 0.11 | Q61: 0.1 | R61: 0.085 | S61: 0.075
D62: Mill Availability - Annual Amount | E62: FFB Tons | G62: =F52 -> 312000 | H62: =$G$62*H61 -> 21840 | I62: 18720 | J62: 20280 | K62: 18720 | L62: 21840 | M62: 26520 | N62: 31200 | O62: 37440 | P62: 34320 | Q62: 31200 | R62: 26520 | S62: 23400
D63: Mill Availability - Annual Amount at Min Month | E63: FFB Tons | G63: =MIN(H62:S62)*12 -> 224640
D64: Effluent Percet of FFB | E64: Percent | G64: =F55 -> 0.65 | H64: =$G$64 -> 0.65 | I64: =$G$64 -> 0.65 | J64: 0.65 | K64: 0.65 | L64: 0.65 | M64: 0.65 | N64: 0.65 | O64: 0.65 | P64: 0.65 | Q64: 0.65 | R64: 0.65 | S64: 0.65
D65: Monthly Effluent Production | E65: Tons | G65: =G62*G64 -> 202800 | H65: =H62*H64 -> 14196 | I65: 12168 | J65: 13182 | K65: 12168 | L65: 14196 | M65: 17238 | N65: 20280 | O65: 24336 | P65: 22308 | Q65: 20280 | R65: 17238 | S65: 15210
D66: Conversion to Biogas Effluent M3/Ton | E66: M3/Ton | G66: =$F$57 -> 30 | H66: =$G$66 -> 30 | I66: =$G$66 -> 30 | J66: 30 | K66: 30 | L66: 30 | M66: 30 | N66: 30 | O66: 30 | P66: 30 | Q66: 30 | R66: 30 | S66: 30
D67: Monthly Biogass Effluent Production | E67: M3 | G67: =G65*G66 -> 6084000 | H67: =H65*H66 -> 425880 | I67: 365040 | J67: 395460 | K67: 365040 | L67: 425880 | M67: 517140 | N67: 608400 | O67: 730080 | P67: 669240 | Q67: 608400 | R67: 517140 | S67: 456300
D68: Hours in Month | E68: Hours | G68: =SUM(H68:S68) -> 8760 | H68: =31*24 -> 744 | I68: =28*24 -> 672 | J68: =31*24 -> 744 | K68: =30*24 -> 720 | L68: =31*24 -> 744 | M68: =30*24 -> 720 | N68: =31*24 -> 744 | O68: =31*24 -> 744 | P68: =30*24 -> 720 | Q68: =31*24 -> 744 | R68: =30*24 -> 720 | S68: =31*24 -> 744
D69: Hours of Month for Min Month | E69: Hours | G69: =INDEX(K68:S68,MATCH(F78,H75:S75,0)) -> 720
D70: Hourly Biogas Effluent Production | E70: M3/Hr | F70: =MIN(G70:S70) -> 507 | G70: =G67/G68 -> 694.5205479 | H70: =H67/H68 -> 572.4193548 | I70: 543.2142857 | J70: 531.5322581 | K70: 507 | L70: 572.4193548 | M70: 718.25 | N70: 817.7419355 | O70: 981.2903226 | P70: 929.5 | Q70: 817.7419355 | R70: 718.25 | S70: 613.3064516
D71: Maintenance Days | E71: Day | N71: 5 | O71: 5 | P71: 5
D72: Maintenance Hour | E72: Hours | H72: =H71*24 -> 0 | I72: =I71*24 -> 0 | J72: 0 | K72: 0 | L72: 0 | M72: 0 | N72: 120 | O72: =O71*24 -> 120 | P72: =P71*24 -> 120 | Q72: =Q71*24 -> 0 | R72: =R71*24 -> 0 | S72: =S71*24 -> 0
D73: Reduction in Effluent Production from Maint | E73: M3 | G73: =G70*G72 -> 0 | H73: =H70*H72 -> 0 | I73: 0 | J73: 0 | K73: 0 | L73: 0 | M73: 0 | N73: 98129.03226 | O73: 117754.8387 | P73: 111540 | Q73: 0 | R73: 0 | S73: 0
D74: Net Production Available to Upgrader | E74: M3 | G74: =G67-G73 -> 6084000 | H74: =(H67-H73)/H68 -> 572.4193548 | I74: =(I67-I73)/I68 -> 543.2142857 | J74: 531.5322581 | K74: 507 | L74: 572.4193548 | M74: 718.25 | N74: 685.8480749 | O74: 823.0176899 | P74: 774.5833333 | Q74: 817.7419355 | R74: 718.25 | S74: 613.3064516
D75: Minimum | E75: M3 | G75: =F78 -> 507 | H75: =$G$75 -> 507 | I75: =$G$75 -> 507 | J75: 507 | K75: 507 | L75: 507 | M75: 507 | N75: 507 | O75: 507 | P75: 507 | Q75: 507 | R75: 507 | S75: 507
D76: Surplus Effluent - Used for Electricity | E76: M3 | G76: =SUM(H76:S76) -> 2238.665899 | H76: =H70-H75 -> 65.41935484 | I76: 36.21428571 | J76: 24.53225806 | K76: 0 | L76: 65.41935484 | M76: 211.25 | N76: 310.7419355 | O76: 474.2903226 | P76: 422.5 | Q76: 310.7419355 | R76: 211.25 | S76: 106.3064516
D78: Minimum Monthly Biogass Production | E78: M3/Hr | F78: =MIN(H74:S74) -> 507
D79: Percent of Production of Lagoon | E79: % | F79: 0.92
D80: Lagoon Production Hours | E80: Hours | F80: =8760*F79 -> 8059.2
B82: Production of Methane from Biogas Upgrading Unit
C84: Capacity in Terms of Biogass and Methane
D85: Mill Size | E85: Tons/Hour | F85: 0 | G85: 45 | H85: 60 | I85: 90
D86: Biogass Flow | E86: M3/Hour | F86: 380 | G86: 380 | H86: 507 | I86: 761
D88: Hourly Biogas Effluent Production Capacity | E88: M3/Hour | F88: =LOOKUP(F14,85:85,86:86) -> 507
D89: Operating Hours of Plant | E89: Hours | F89: =F143*24 -> 8400
D90: Hours and Weeks for Truck Demand | E90: Hours | F90: =F22*F23*24 -> 6912
D91: Apply Truck Working Days | E91: Flag | F91: TRUE
D92: Hours Applied | E92: Hours | F92: =IF(F91,F90,F89) -> 6912
D94: Annual Operating Days of Upgrader | E94: Days | F94: 350 | G94: =365-F94 -> 15
D95: Annual Operating Days for Fueling Trucks | E95: Days | F95: =F22*F23 -> 288
D96: Days Applied | E96: Days | F96: =IF(F91,F95,F94) -> 288
D98: Methane as Percent of Biogass Production | E98: % | F98: ='Control Page'!G26/100 -> 0.58
D99: Upgrading Efficiency | E99: % | F99: 0.99
D100: Methane Volume in Bio CNG | E100: % | F100: ='Control Page'!H26/100 -> 0.97
D101: Factor for Converting Biogass to Methane | E101: Biogass/Methane | F101: =F98*F99/F100 -> 0.5919587629
D102: Factor for Converting to Methane to Biogass | E102: Methane/Biogass | F102: =1/F101 -> 1.689306862
D104: Hourly Production CNG | E104: M3/Hour | F104: =F88*F98*F99/F100 -> 300.1230928
D105: Conversion of kg/M3 | E105: kg/M3 | F105: =E499 -> 0.7513589683
D106: Hourly Production Bio CNG | E106: kg/Hour | F106: =F104*F105 -> 225.5001774
D108: Daily Production of CNG | E108: kg/Day | F108: =F106*24 -> 5412.004257
D109: Annual Production in kg | E109: kg/Year | F109: =F108*F94 -> 1894201.49
D110: Converstion to M3 | E110: M3/kg | F110: =E501 -> 1.330921759
D111: Annual Production in CNG | E111: M3 | F111: =F109*F110 -> 2521033.979
D113: Conversion km to M3 | E113: km/M3 | F113: =E536/100 -> 2.083333333
D114: Total Production in Equivelant km | E114: km | F114: =F111*F113 -> 5252154.124
D116: Conversion MJ/kg | E116: MJ/kg | F116: =E509 -> 51.45424841
D117: Annual Production in MJ | E117: MJ/Year | F117: =F108*F116*F94 -> 97464713.99
B119: Capacity and Production of Biogas Dispenser (Pumps)
C121: Derived Number of Nozzels | E121: Number | F121: ='Operating Model'!K105 -> 6
C122: Override Number of Nozzels | E122: Number | F122: 6
C123: Flow Rate in Terms of M3 per Hour | E123: M3/Hour | F123: 2400
C125: Converstion of M3 to kg | E125: kg/M3 | F125: =(F145*0.016+(1-F145)*0.044)/((8.314*273.15/101325)) -> 0.7513589683
C126: Flow Rate in Terms of kg per Hour | E126: kg/Hour | F126: =F125*F123 -> 1803.261524
C127: Flow Rate in Terms of kg per Minute | E127: kg/Minute | F127: =F126/60 -> 30.05435873
C128: Manuevering Time | E128: Minutes | F128: 1.5
C130: Maximum Visits per Day | E130: Visits | F130: 2
C131: Target Filling | E131: Minutes | F131: 60
C133: Truck Tank Volume | E133: kg/Truck | F133: =((F138/1000)*(200+1.01325)*100000/(0.9*8.314*298.15))*(0.016*F145+0.044*(1-F145)) -> 60.693114
C134: Ratio of kg/Litres | E134: kg/Litre | F134: =F133/F138 -> 0.151732785
C135: Complete Filling Time for One Truck in Minutes | E135: Minutes | F135: =F133/F127 -> 2.019444652
C136: Time to Completely Fill Including Manuvevering | E136: Minutes | F136: =F135+F128 -> 3.519444652
C138: Truck Tank Volume | E138: Litres/Truck | F138: =F29 -> 400
C139: Truck Tank Volume | E139: kg/Truck | F139: =F138*F125 -> 300.5435873
C141: Hours in Day | E141: Hours | F141: 24
C142: Minutes per Filling-up Truck | F142: 3.019444652
C143: Operating Days of Plant | E143: Days | F143: =F94 -> 350
C144: Conversion MJ/kg | E144: MJ/kg | F144: =PCS_méthane_pur_mass -> 55.83051181
C145: Percent Volume CH4 in bio GNC | E145: % | F145: 0.97
C146: Converstion to BTU | E146: BTU/kg | F146: 46452
C147: Converstion to MMBTU | E147: MMBTU | F147: =F146/1000000 -> 0.046452
B149: Operating Cost
C151: Inflation In O&M Cost | E151: % p.a. | F151: 0
C153: Mill Size Benchmark | E153: Tons | G153: 45 | H153: 60 | I153: 90
C154: Lagoon Maintenance | E154: USD/Year | G154: ='Operating Expense and Cap Exp'!D28 -> 16016 | H154: ='Operating Expense and Cap Exp'!E28 -> 18298.8 | I154: ='Operating Expense and Cap Exp'!F28 -> 22867
C155: Brownfield Flag | E155: Flag | F155: =NOT(F247) -> TRUE
C156: Lagoon Maintenance Applied | E156: USD/Year | F156: =LOOKUP(F14,153:153,154:154)*F155 -> 18298.8
C158: Mill Size Benchmark | E158: Tons | F158: 45 | G158: 60 | H158: 90
C159: Upgrading Cost | E159: USD/Year | F159: 55328 | G159: 65910 | H159: 87058.4
C160: Upgrader Cost Applied | E160: USD/Year | F160: =LOOKUP(F14,158:158,159:159) -> 65910
C162: Mill Size Benchmark | E162: Tons | F162: 45 | G162: 60 | H162: 90
C163: Cost per Hour of Filling | E163: USD/hour | F163: 4.5 | G163: 5 | H163: 5.5
C164: Cost per Hour Applied | E164: USD/hour | F164: =LOOKUP(F14,162:162,163:163) -> 5
C165: Total Cost | G165: 42000
C167: Extra Maintenance on Trucks | E167: Cost/km | F167: 0.0057 | G167: 0.0057 | H167: 0.0057
C168: Investor Resposable | E168: Flag | F168: TRUE
C171: Mill Size Benchmark | E171: Tons | F171: 45 | G171: 60 | H171: 90
C172: Overhead | E172: USD/Year | F172: 35000 | G172: 35000 | H172: 35000
C173: Overhead Applied | E173: USD/Year | F173: =LOOKUP(F14,171:171,172:172) -> 35000
B175: Electricity Cost
C176: Purchase Generator Flag | E176: Flag | F176: TRUE
C178: Electricity Requirements (Not Used)
D179: Flow of Biogas per Hour | E179: M3/Hour | F179: 200 | G179: 500 | H179: 800
D180: Electricity consumption upgrading unit | E180: kWh/M3 | F180: 0.38 | G180: 0.32 | H180: 0.3 | I180: Not Used
D182: Biogas kW per M3 of Biogass for Electricity | E182: kWh/M3 | F182: =LOOKUP(F88,179:179,180:180) -> 0.32
D183: Biogas kW per M3 of Methane | E183: kWh/M3 | F183: =F182*F98 -> 0.1856 | G183: Question for different
L184: =0.3*500*8400 -> 1260000 | M184: energy kWh
D185: Energy Conversion of Methane | E185: kWh/M3 | F185: 9.97 | L185: =0.6*500 -> 300 | M185: power installed kW
D186: Methane Fraction | E186: % | F186: =F98 -> 0.58
D187: Energy Conversion of Biogas | E187: kWh/M3 | F187: =F185*F186 -> 5.7826
D188: Generator Efficiency | E188: % | F188: 0.4
D190: Percent of Potential Capacity Used for Lagoon | E190: % | F190: 0.03 | J190: specific energy lagoon | L190: 3% of the kWh that it would be generated if it was all electricity
D191: Electricity for Dispensors kW/M3 | E191: kWh/M3 | F191: 0.3 | G191: check if not used | J191: specific energy upgrader | L191: equalto 167 x m3 of biogas treated
J192: specific energy engine | L192: check where is it equal to the lagoon
C193: Cost of Electricity when Purchase | J193: specific energy filling station | L193: equal to 176 x m3 of biocng pumped in one year
D194: Inflation Rate for Electricity | E194: % | F194: 0
D195: Electricity Purchase Price/kWh | E195: USD/kWh | F195: =G195/1000 -> 0.07 | G195: 70
C197: Maintenance Cost
D198: Mill Size Benchmark | E198: Tons | G198: 45 | H198: 60 | I198: 90
D199: kW Base | E199: kW | G199: 474.641959 | H199: 633.272298 | I199: 950.5329758
D200: Cost/kWh | E200: USD/kWh | G200: 0.011 | H200: 0.01 | I200: 0.009
D201: Mill Hours | E201: Hours | G201: =$F$51 -> 5200 | H201: =$F$51 -> 5200 | I201: 5200
D202: Total Maintenance | E202: USD/Year | G202: =G199*G200*G201 -> 27149.52006 | H202: =H199*H200*H201 -> 32930.15949 | I202: 44484.94327
D203: Applied | E203: USD/Year | G203: =LOOKUP(F14,198:198,202:202) -> 32930.15949
D205: Cost/kWh Applied | E205: USD/kWh | F205: =LOOKUP(F14,198:198,200:200) -> 0.01
D206: Maintenance Cost | E206: USD/kWh | F206: 0.01
D208: Major Maintenance Hours | E208: Hours | F208: 60000
D209: Major Maintenance Years | E209: Years
D210: Cost as Percent of Capital Expenditures | E210: % | F210: 0.2
B212: Macro-Economic
D213: Year | F213: 2019 | G213: 2020 | H213: 2021 | I213: 2022 | J213: 2023 | K213: 2024 | L213: 2025 | M213: 2026 | N213: 2027
D215: Indonesia Exchange Rate | F215: 14250 | G215: =F215*1.02 -> 14535 | H215: =G215*1.02 -> 14825.7 | I215: 15122.214 | J215: 15424.65828 | K215: 15733.15145 | L215: 16047.81447 | M215: 16368.77076 | N215: 16696.14618
D216: USD Inflation Rate | F216: 0.012 | G216: 0.012 | H216: 0.012 | I216: 0.012 | J216: 0.012 | K216: 0.012 | L216: 0.012 | M216: 0.012 | N216: 0.012
D217: Implied Local Inflation Rate | G217: =(1+G216)*G215/F215-1 -> 0.03224 | H217: =(1+H216)*H215/G215-1 -> 0.03224 | I217: 0.03224 | J217: 0.03224 | K217: 0.03224 | L217: 0.03224 | M217: 0.03224 | N217: 0.03224
B220: Revenues
C222: Fix Diesel | E222: Flag | F222: TRUE
C223: Real Diesel Price | E223: USD/L | F223: ='Control Page'!M26/100 -> 0.564
C224: Market Price of Diesel for Evaluation | E224: USD/L | F224: 0.6
C226: Discount to Diesel Price | E226: % | F226: ='Control Page'!N26/100 -> 0
C227: Diesel Price Inflation | E227: % p.a. | F227: ='Control Page'!O26/100 -> 0
C228: Fuel Efficiency | E228: km/L 100 | F228: 2.5
C229: Fuel Efficiency | E229: L/km | F229: =1/F228*100 -> 40
C231: Apply Percent Discount | E231: Flag | F231: FALSE
C233: Diesel Conversion to M3 | E233: Nm3/Litre | F233: 1.2
C234: Specific Weight Converstion to kg | E234: L/kg | F234: 0.75
C235: Calorific value of biomethane in MJ/Nm3 | E235: MJ/NM3 | F235: 35
C236: Conversion to MMBTU from MJ | E236: MJ/MMBTU | F236: =(947817/1000000000) -> 0.000947817
C237: BTU to MJ Conversion | E237: MBTU/MJ | F237: =F236*1000 -> 0.947817
C238: MJ/MMBTU Conversion | E238: MJ/MMBTU | F238: 1055.055853
C239: BTU/Litre Conversion | E239: MJ/Litre | F239: =1/F235/F236 -> 30.14445676
B244: Capital Expenditures
C246: Lagoon
D247: Brownfield | E247: Flag | F247: FALSE
D249: Mill Size Benchmark | E249: Tons | F249: 45 | G249: 60 | H249: 90
D250: Lagoon Capital Expenditure | F250: 1200000 | G250: 1500000 | H250: 2100000
D251: Lagoon for Greenfield | F251: =LOOKUP(F14,249:249,250:250) -> 1500000
D252: Factor for Components | F252: =F251/$G$250 -> 1
D254: Civil Works | E254: USD | F254: 200000 | G254: =F254*$F$252 -> 200000 | H254: =NOT($F$247) -> TRUE | I254: =G254*H254 -> 200000
D255: Gasometrical Cover | E255: USD | F255: 200000 | G255: =F255*$F$252 -> 200000 | H255: =NOT($F$247) -> TRUE | I255: =G255*H255 -> 200000
D256: Liner | E256: USD | F256: 200000 | G256: 200000 | H256: TRUE | I256: 200000
D257: Piping and Technology | E257: USD | F257: =G250-SUM(F254:F256) -> 900000 | G257: 900000 | H257: TRUE | I257: 900000
D258: Total | E258: USD | F258: =SUM(F254:F257) -> 1500000 | G258: 1500000 | H258: TRUE | I258: 1500000
C260: Upgrader
D261: Mill Size Benchmark | E261: Tons | F261: 45 | G261: 60 | H261: 90
D262: Upgrader Capacity | E262: Biogass M3/Day | F262: 380 | G262: 507 | H262: 761
D263: Upgrading Capital Expenditure | E263: USD | F263: 1600000 | G263: 1800000 | H263: 2600000
... 187 more rows

Sheet Operating Model
B1: Timeline | H1: Driver 1 | I1: Driver Units | J1: Driver 2 | K1: Sum/Max
C2: Period | N2: 1 | O2: 2 | P2: 3 | Q2: 4 | R2: 5 | S2: 6 | T2: 7 | U2: 8 | V2: 9 | W2: 10 | X2: 11 | Y2: 12 | Z2: 13 | AA2: 14 | AB2: 15 | AC2: 16 | AD2: 17 | AE2: 18 | AF2: 19 | AG2: 20 | AH2: 21 | AI2: 22 | AJ2: 23 | AK2: 24 | AL2: 25 | AM2: 26 | AN2: 27 | AO2: 28 | AP2: 29 | AQ2: 30 | AR2: 31 | AS2: 32 | AT2: 33 | AU2: 34 | AV2: 35 | AW2: 36 | AX2: 37 | AY2: 38 | AZ2: 39 | BA2: 40 | BB2: 41 | BC2: 42 | BD2: 43 | BE2: 44 | BF2: 45 | BG2: 46 | BH2: 47 | BI2: 48 | BJ2: 49 | BK2: 50 | BL2: 51 | BM2: 52 | BN2: 53 | BO2: 54 | BP2: 55 | BQ2: 56 | BR2: 57 | BS2: 58
C3: Construction | G3: Flag | H3: =Inputs!$F$4 -> 12 | N3: =N2<=$H$3 -> TRUE | O3: TRUE | P3: TRUE | Q3: TRUE | R3: TRUE | S3: TRUE | T3: TRUE | U3: TRUE | V3: TRUE | W3: TRUE | X3: TRUE | Y3: TRUE | Z3: FALSE | AA3: FALSE | AB3: FALSE | AC3: FALSE | AD3: FALSE | AE3: FALSE | AF3: FALSE | AG3: FALSE | AH3: FALSE | AI3: FALSE | AJ3: FALSE | AK3: FALSE | AL3: FALSE | AM3: FALSE | AN3: FALSE | AO3: FALSE | AP3: FALSE | AQ3: FALSE | AR3: FALSE | AS3: FALSE | AT3: =AT2<=$H$3 -> FALSE | AU3: FALSE | AV3: FALSE | AW3: FALSE | AX3: FALSE | AY3: FALSE | AZ3: FALSE | BA3: FALSE | BB3: FALSE | BC3: FALSE | BD3: FALSE | BE3: FALSE | BF3: FALSE | BG3: FALSE | BH3: FALSE | BI3: FALSE | BJ3: FALSE | BK3: FALSE | BL3: FALSE | BM3: FALSE | BN3: FALSE | BO3: FALSE | BP3: FALSE | BQ3: FALSE | BR3: FALSE | BS3: FALSE
C4: Periods per Year | G4: Months | H4: =Inputs!$F$12 -> 1 | J4: =Inputs!$F$11 -> 12 | N4: =IF(N$3,$H4,$J4) -> 1 | O4: 1 | P4: 1 | Q4: 1 | R4: 1 | S4: 1 | T4: 1 | U4: 1 | V4: 1 | W4: 1 | X4: 1 | Y4: 1 | Z4: 12 | AA4: 12 | AB4: 12 | AC4: 12 | AD4: 12 | AE4: 12 | AF4: 12 | AG4: 12 | AH4: 12 | AI4: 12 | AJ4: 12 | AK4: 12 | AL4: 12 | AM4: 12 | AN4: 12 | AO4: 12 | AP4: 12 | AQ4: 12 | AR4: 12 | AS4: 12 | AT4: =IF(AT$3,$H4,$J4) -> 12 | AU4: 12 | AV4: 12 | AW4: 12 | AX4: 12 | AY4: 12 | AZ4: 12 | BA4: 12 | BB4: 12 | BC4: 12 | BD4: 12 | BE4: 12 | BF4: 12 | BG4: 12 | BH4: 12 | BI4: 12 | BJ4: 12 | BK4: 12 | BL4: 12 | BM4: 12 | BN4: 12 | BO4: 12 | BP4: 12 | BQ4: 12 | BR4: 12 | BS4: 12
C5: Start of Period | G5: Date | N5: =M6+1 -> 2020-01-01 | O5: 2020-02-01 | P5: 2020-03-01 | Q5: 2020-04-01 | R5: 2020-05-01 | S5: 2020-06-01 | T5: 2020-07-01 | U5: 2020-08-01 | V5: 2020-09-01 | W5: 2020-10-01 | X5: 2020-11-01 | Y5: 2020-12-01 | Z5: 2021-01-01 | AA5: 2022-01-01 | AB5: 2023-01-01 | AC5: 2024-01-01 | AD5: 2025-01-01 | AE5: 2026-01-01 | AF5: 2027-01-01 | AG5: 2028-01-01 | AH5: 2029-01-01 | AI5: 2030-01-01 | AJ5: 2031-01-01 | AK5: 2032-01-01 | AL5: 2033-01-01 | AM5: 2034-01-01 | AN5: 2035-01-01 | AO5: 2036-01-01 | AP5: 2037-01-01 | AQ5: 2038-01-01 | AR5: 2039-01-01 | AS5: 2040-01-01 | AT5: =AS6+1 -> 2041-01-01 | AU5: 2042-01-01 | AV5: 2043-01-01 | AW5: 2044-01-01 | AX5: 2045-01-01 | AY5: 2046-01-01 | AZ5: 2047-01-01 | BA5: 2048-01-01 | BB5: 2049-01-01 | BC5: 2050-01-01 | BD5: 2051-01-01 | BE5: 2052-01-01 | BF5: 2053-01-01 | BG5: 2054-01-01 | BH5: 2055-01-01 | BI5: 2056-01-01 | BJ5: 2057-01-01 | BK5: 2058-01-01 | BL5: 2059-01-01 | BM5: 2060-01-01 | BN5: 2061-01-01 | BO5: 2062-01-01 | BP5: 2063-01-01 | BQ5: 2064-01-01 | BR5: 2065-01-01 | BS5: 2066-01-01
C6: End of Period | G6: Date | M6: =Inputs!$F$3-1 -> 2019-12-31 | N6: =EDATE(N5,N4)-1 -> 2020-01-31 | O6: 2020-02-29 | P6: 2020-03-31 | Q6: 2020-04-30 | R6: 2020-05-31 | S6: 2020-06-30 | T6: 2020-07-31 | U6: 2020-08-31 | V6: 2020-09-30 | W6: 2020-10-31 | X6: 2020-11-30 | Y6: 2020-12-31 | Z6: 2021-12-31 | AA6: 2022-12-31 | AB6: 2023-12-31 | AC6: 2024-12-31 | AD6: 2025-12-31 | AE6: 2026-12-31 | AF6: 2027-12-31 | AG6: 2028-12-31 | AH6: 2029-12-31 | AI6: 2030-12-31 | AJ6: 2031-12-31 | AK6: 2032-12-31 | AL6: 2033-12-31 | AM6: 2034-12-31 | AN6: 2035-12-31 | AO6: 2036-12-31 | AP6: 2037-12-31 | AQ6: 2038-12-31 | AR6: 2039-12-31 | AS6: 2040-12-31 | AT6: =EDATE(AT5,AT4)-1 -> 2041-12-31 | AU6: 2042-12-31 | AV6: 2043-12-31 | AW6: 2044-12-31 | AX6: 2045-12-31 | AY6: 2046-12-31 | AZ6: 2047-12-31 | BA6: 2048-12-31 | BB6: 2049-12-31 | BC6: 2050-12-31 | BD6: 2051-12-31 | BE6: 2052-12-31 | BF6: 2053-12-31 | BG6: 2054-12-31 | BH6: 2055-12-31 | BI6: 2056-12-31 | BJ6: 2057-12-31 | BK6: 2058-12-31 | BL6: 2059-12-31 | BM6: 2060-12-31 | BN6: 2061-12-31 | BO6: 2062-12-31 | BP6: 2063-12-31 | BQ6: 2064-12-31 | BR6: 2065-12-31 | BS6: 2066-12-31
C7: BOT Period | G7: Flag | H7: =Inputs!$F$5 -> 2021-01-01 | J7: =Inputs!$F$7 -> 2031-01-01 | N7: =AND(N$5>=$H7,N$5<$J7)*1 -> 0 | O7: =AND(O5>=$H$7,O5<$J$7)*1 -> 0 | P7: 0 | Q7: 0 | R7: 0 | S7: 0 | T7: 0 | U7: 0 | V7: 0 | W7: 0 | X7: 0 | Y7: 0 | Z7: 1 | AA7: 1 | AB7: 1 | AC7: 1 | AD7: 1 | AE7: 1 | AF7: 1 | AG7: 1 | AH7: 1 | AI7: 1 | AJ7: 0 | AK7: 0 | AL7: 0 | AM7: 0 | AN7: 0 | AO7: 0 | AP7: 0 | AQ7: 0 | AR7: 0 | AS7: 0 | AT7: 0 | AU7: =AND(AU5>=$H$7,AU5<$J$7)*1 -> 0 | AV7: 0 | AW7: 0 | AX7: 0 | AY7: 0 | AZ7: 0 | BA7: 0 | BB7: 0 | BC7: 0 | BD7: 0 | BE7: 0 | BF7: 0 | BG7: 0 | BH7: 0 | BI7: 0 | BJ7: 0 | BK7: 0 | BL7: 0 | BM7: 0 | BN7: 0 | BO7: 0 | BP7: 0 | BQ7: 0 | BR7: 0 | BS7: 0
C8: Evaluation Period | G8: Flag | H8: =Inputs!$F$5 -> 2021-01-01 | J8: =Inputs!$F$9 -> 2051-01-01 | N8: =AND(N$5>=$H8,N$5<$J8)*1 -> 0 | O8: =AND(O$5>=$H8,O$5<$J8)*1 -> 0 | P8: 0 | Q8: 0 | R8: 0 | S8: 0 | T8: 0 | U8: 0 | V8: 0 | W8: 0 | X8: 0 | Y8: 0 | Z8: 1 | AA8: 1 | AB8: 1 | AC8: 1 | AD8: 1 | AE8: 1 | AF8: 1 | AG8: 1 | AH8: 1 | AI8: 1 | AJ8: 1 | AK8: 1 | AL8: 1 | AM8: 1 | AN8: 1 | AO8: 1 | AP8: 1 | AQ8: 1 | AR8: 1 | AS8: 1 | AT8: 1 | AU8: =AND(AU$5>=$H8,AU$5<$J8)*1 -> 1 | AV8: 1 | AW8: 1 | AX8: 1 | AY8: 1 | AZ8: 1 | BA8: 1 | BB8: 1 | BC8: 1 | BD8: 0 | BE8: 0 | BF8: 0 | BG8: 0 | BH8: 0 | BI8: 0 | BJ8: 0 | BK8: 0 | BL8: 0 | BM8: 0 | BN8: 0 | BO8: 0 | BP8: 0 | BQ8: 0 | BR8: 0 | BS8: 0
C9: Post BOT Period | G9: Flag | N9: =AND(N8,NOT(N7))*1 -> 0 | O9: 0 | P9: 0 | Q9: 0 | R9: 0 | S9: 0 | T9: 0 | U9: 0 | V9: 0 | W9: 0 | X9: 0 | Y9: 0 | Z9: 0 | AA9: 0 | AB9: 0 | AC9: 0 | AD9: 0 | AE9: 0 | AF9: 0 | AG9: 0 | AH9: 0 | AI9: 0 | AJ9: 1 | AK9: 1 | AL9: 1 | AM9: 1 | AN9: 1 | AO9: 1 | AP9: 1 | AQ9: 1 | AR9: 1 | AS9: 1 | AT9: =AND(AT8,NOT(AT7))*1 -> 1 | AU9: 1 | AV9: 1 | AW9: 1 | AX9: 1 | AY9: 1 | AZ9: 1 | BA9: 1 | BB9: 1 | BC9: 1 | BD9: 0 | BE9: 0 | BF9: 0 | BG9: 0 | BH9: 0 | BI9: 0 | BJ9: 0 | BK9: 0 | BL9: 0 | BM9: 0 | BN9: 0 | BO9: 0 | BP9: 0 | BQ9: 0 | BR9: 0 | BS9: 0
B11: Truck Demand in km
C13: Truck CNG Usage - Demand
D14: km per Truck - One Trip | G14: km | H14: =Inputs!F18 -> 150 | I14: km | N14: =$H14 -> 150 | O14: 150 | P14: 150 | Q14: 150 | R14: 150 | S14: 150 | T14: 150 | U14: 150 | V14: 150 | W14: 150 | X14: =$H14 -> 150 | Y14: 150 | Z14: 150 | AA14: 150 | AB14: 150 | AC14: 150 | AD14: 150 | AE14: 150 | AF14: 150 | AG14: 150 | AH14: =$H14 -> 150 | AI14: 150 | AJ14: 150 | AK14: 150 | AL14: 150 | AM14: 150 | AN14: 150 | AO14: 150 | AP14: 150 | AQ14: 150 | AR14: =$H14 -> 150 | AS14: 150 | AT14: 150 | AU14: 150 | AV14: 150 | AW14: 150 | AX14: 150 | AY14: 150 | AZ14: 150 | BA14: 150 | BB14: =$H14 -> 150 | BC14: 150 | BD14: 150 | BE14: 150 | BF14: 150 | BG14: 150 | BH14: 150 | BI14: 150 | BJ14: 150 | BK14: 150 | BL14: =$H14 -> 150 | BM14: 150 | BN14: 150 | BO14: 150 | BP14: 150 | BQ14: 150 | BR14: 150 | BS14: 150
D15: Trips per day | G15: Trips | H15: =Inputs!F19 -> 2 | I15: trips | N15: 2 | O15: 2 | P15: 2 | Q15: 2 | R15: 2 | S15: 2 | T15: 2 | U15: 2 | V15: 2 | W15: 2 | X15: 2 | Y15: 2 | Z15: 2 | AA15: 2 | AB15: 2 | AC15: 2 | AD15: 2 | AE15: 2 | AF15: 2 | AG15: 2 | AH15: 2 | AI15: 2 | AJ15: 2 | AK15: 2 | AL15: 2 | AM15: 2 | AN15: 2 | AO15: 2 | AP15: 2 | AQ15: 2 | AR15: 2 | AS15: 2 | AT15: 2 | AU15: 2 | AV15: 2 | AW15: 2 | AX15: 2 | AY15: 2 | AZ15: 2 | BA15: 2 | BB15: 2 | BC15: 2 | BD15: 2 | BE15: 2 | BF15: 2 | BG15: 2 | BH15: 2 | BI15: 2 | BJ15: 2 | BK15: 2 | BL15: 2 | BM15: 2 | BN15: 2 | BO15: 2 | BP15: 2 | BQ15: 2 | BR15: 2 | BS15: 2
D16: Total Distrance Travelled per Day | G16: km/Day | H16: =Inputs!F20 -> 300 | I16: km | N16: 300 | O16: 300 | P16: 300 | Q16: 300 | R16: 300 | S16: 300 | T16: 300 | U16: 300 | V16: 300 | W16: 300 | X16: 300 | Y16: 300 | Z16: 300 | AA16: 300 | AB16: 300 | AC16: 300 | AD16: 300 | AE16: 300 | AF16: 300 | AG16: 300 | AH16: 300 | AI16: 300 | AJ16: 300 | AK16: 300 | AL16: 300 | AM16: 300 | AN16: 300 | AO16: 300 | AP16: 300 | AQ16: 300 | AR16: 300 | AS16: 300 | AT16: 300 | AU16: 300 | AV16: 300 | AW16: 300 | AX16: 300 | AY16: 300 | AZ16: 300 | BA16: 300 | BB16: 300 | BC16: 300 | BD16: 300 | BE16: 300 | BF16: 300 | BG16: 300 | BH16: 300 | BI16: 300 | BJ16: 300 | BK16: 300 | BL16: 300 | BM16: 300 | BN16: 300 | BO16: 300 | BP16: 300 | BQ16: 300 | BR16: 300 | BS16: 300
D18: Total km travelled per year per truck Days x Weeks | G18: km/Year | H18: =Inputs!$F$22 -> 6 | I18: km/truck | J18: =Inputs!$F$23 -> 48 | K18: =MAX(N18:BS18) -> 86400 | N18: =N16*$J$18*$H$18 -> 86400 | O18: 86400 | P18: 86400 | Q18: 86400 | R18: 86400 | S18: 86400 | T18: 86400 | U18: 86400 | V18: 86400 | W18: 86400 | X18: 86400 | Y18: 86400 | Z18: 86400 | AA18: 86400 | AB18: 86400 | AC18: 86400 | AD18: 86400 | AE18: 86400 | AF18: 86400 | AG18: 86400 | AH18: 86400 | AI18: 86400 | AJ18: 86400 | AK18: 86400 | AL18: 86400 | AM18: 86400 | AN18: 86400 | AO18: 86400 | AP18: 86400 | AQ18: 86400 | AR18: 86400 | AS18: 86400 | AT18: =AT16*$J$18*$H$18 -> 86400 | AU18: 86400 | AV18: 86400 | AW18: 86400 | AX18: 86400 | AY18: 86400 | AZ18: 86400 | BA18: 86400 | BB18: 86400 | BC18: 86400 | BD18: 86400 | BE18: 86400 | BF18: 86400 | BG18: 86400 | BH18: 86400 | BI18: 86400 | BJ18: 86400 | BK18: 86400 | BL18: 86400 | BM18: 86400 | BN18: 86400 | BO18: 86400 | BP18: 86400 | BQ18: 86400 | BR18: 86400 | BS18: 86400
D19: Number of Trucks | G19: Number | H19: =Inputs!F26 -> 50 | I19: weeks | K19: =MAX(N19:BS19) -> 50 | N19: =$H19*N8 -> 0 | O19: 0 | P19: 0 | Q19: 0 | R19: 0 | S19: 0 | T19: 0 | U19: 0 | V19: 0 | W19: 0 | X19: 0 | Y19: 0 | Z19: 50 | AA19: 50 | AB19: 50 | AC19: 50 | AD19: 50 | AE19: 50 | AF19: 50 | AG19: 50 | AH19: 50 | AI19: 50 | AJ19: 50 | AK19: 50 | AL19: 50 | AM19: 50 | AN19: 50 | AO19: 50 | AP19: 50 | AQ19: 50 | AR19: 50 | AS19: 50 | AT19: =$H19*AT8 -> 50 | AU19: 50 | AV19: 50 | AW19: 50 | AX19: 50 | AY19: 50 | AZ19: 50 | BA19: 50 | BB19: 50 | BC19: 50 | BD19: 0 | BE19: 0 | BF19: 0 | BG19: 0 | BH19: 0 | BI19: 0 | BJ19: 0 | BK19: 0 | BL19: 0 | BM19: 0 | BN19: 0 | BO19: 0 | BP19: 0 | BQ19: 0 | BR19: 0 | BS19: 0
D20: Total Annual km Demand | G20: km/Year | K20: =MAX(N20:BS20) -> 4320000 | N20: =N18*N19 -> 0 | O20: 0 | P20: 0 | Q20: 0 | R20: 0 | S20: 0 | T20: 0 | U20: 0 | V20: 0 | W20: 0 | X20: 0 | Y20: 0 | Z20: 4320000 | AA20: 4320000 | AB20: 4320000 | AC20: 4320000 | AD20: 4320000 | AE20: 4320000 | AF20: 4320000 | AG20: 4320000 | AH20: 4320000 | AI20: 4320000 | AJ20: 4320000 | AK20: 4320000 | AL20: 4320000 | AM20: 4320000 | AN20: 4320000 | AO20: 4320000 | AP20: 4320000 | AQ20: 4320000 | AR20: 4320000 | AS20: 4320000 | AT20: =AT18*AT19 -> 4320000 | AU20: 4320000 | AV20: 4320000 | AW20: 4320000 | AX20: 4320000 | AY20: 4320000 | AZ20: 4320000 | BA20: 4320000 | BB20: 4320000 | BC20: 4320000 | BD20: 0 | BE20: 0 | BF20: 0 | BG20: 0 | BH20: 0 | BI20: 0 | BJ20: 0 | BK20: 0 | BL20: 0 | BM20: 0 | BN20: 0 | BO20: 0 | BP20: 0 | BQ20: 0 | BR20: 0 | BS20: 0
C22: Conversion of Truck Demand to Required Biogass and Methane (CH3) Production
D23: Daily Demand in km | G23: km/day | H23: =H16 -> 300 | I23: km/day | N23: =$H$23 -> 300 | O23: 300 | P23: 300 | Q23: 300 | R23: 300 | S23: 300 | T23: 300 | U23: 300 | V23: 300 | W23: 300 | X23: 300 | Y23: 300 | Z23: 300 | AA23: 300 | AB23: 300 | AC23: 300 | AD23: 300 | AE23: 300 | AF23: 300 | AG23: 300 | AH23: 300 | AI23: 300 | AJ23: 300 | AK23: 300 | AL23: 300 | AM23: 300 | AN23: 300 | AO23: 300 | AP23: 300 | AQ23: 300 | AR23: 300 | AS23: 300 | AT23: =$H$23 -> 300 | AU23: 300 | AV23: 300 | AW23: 300 | AX23: 300 | AY23: 300 | AZ23: 300 | BA23: 300 | BB23: 300 | BC23: 300 | BD23: 300 | BE23: 300 | BF23: 300 | BG23: 300 | BH23: 300 | BI23: 300 | BJ23: 300 | BK23: 300 | BL23: 300 | BM23: 300 | BN23: 300 | BO23: 300 | BP23: 300 | BQ23: 300 | BR23: 300 | BS23: 300
D24: Total km per day for all trucks | G24: km/day | H24: =H19 -> 50 | I24: Trucks | N24: =$H$24*N23 -> 15000 | O24: 15000 | P24: 15000 | Q24: 15000 | R24: 15000 | S24: 15000 | T24: 15000 | U24: 15000 | V24: 15000 | W24: 15000 | X24: 15000 | Y24: 15000 | Z24: 15000 | AA24: 15000 | AB24: 15000 | AC24: 15000 | AD24: 15000 | AE24: 15000 | AF24: 15000 | AG24: 15000 | AH24: 15000 | AI24: 15000 | AJ24: 15000 | AK24: 15000 | AL24: 15000 | AM24: 15000 | AN24: 15000 | AO24: 15000 | AP24: 15000 | AQ24: 15000 | AR24: 15000 | AS24: 15000 | AT24: =$H$24*AT23 -> 15000 | AU24: 15000 | AV24: 15000 | AW24: 15000 | AX24: 15000 | AY24: 15000 | AZ24: 15000 | BA24: 15000 | BB24: 15000 | BC24: 15000 | BD24: 15000 | BE24: 15000 | BF24: 15000 | BG24: 15000 | BH24: 15000 | BI24: 15000 | BJ24: 15000 | BK24: 15000 | BL24: 15000 | BM24: 15000 | BN24: 15000 | BO24: 15000 | BP24: 15000 | BQ24: 15000 | BR24: 15000 | BS24: 15000
D25: Hourly Demand for Upgrader in km/Hour | G25: km/hour | H25: 24 | I25: Hours per Day | K25: =MAX(N25:BS25) -> 625 | N25: =N24/$H$25 -> 625 | O25: 625 | P25: 625 | Q25: 625 | R25: 625 | S25: 625 | T25: 625 | U25: 625 | V25: 625 | W25: 625 | X25: 625 | Y25: 625 | Z25: 625 | AA25: 625 | AB25: 625 | AC25: 625 | AD25: 625 | AE25: 625 | AF25: 625 | AG25: 625 | AH25: 625 | AI25: 625 | AJ25: 625 | AK25: 625 | AL25: 625 | AM25: 625 | AN25: 625 | AO25: 625 | AP25: 625 | AQ25: 625 | AR25: 625 | AS25: 625 | AT25: =AT24/$H$25 -> 625 | AU25: 625 | AV25: 625 | AW25: 625 | AX25: 625 | AY25: 625 | AZ25: 625 | BA25: 625 | BB25: 625 | BC25: 625 | BD25: 625 | BE25: 625 | BF25: 625 | BG25: 625 | BH25: 625 | BI25: 625 | BJ25: 625 | BK25: 625 | BL25: 625 | BM25: 625 | BN25: 625 | BO25: 625 | BP25: 625 | BQ25: 625 | BR25: 625 | BS25: 625
D26: Hourly Demand for Bio CNG | G26: CNG M3/Hour | H26: =Inputs!$F$113 -> 2.083333333 | I26: CNG M3/km Efficiency | K26: =MAX(N26:BS26) -> 300 | N26: =N25/$H$26 -> 300 | O26: 300 | P26: 300 | Q26: 300 | R26: 300 | S26: 300 | T26: 300 | U26: 300 | V26: 300 | W26: 300 | X26: 300 | Y26: 300 | Z26: 300 | AA26: 300 | AB26: 300 | AC26: 300 | AD26: 300 | AE26: 300 | AF26: 300 | AG26: 300 | AH26: 300 | AI26: 300 | AJ26: 300 | AK26: 300 | AL26: 300 | AM26: 300 | AN26: 300 | AO26: 300 | AP26: 300 | AQ26: 300 | AR26: 300 | AS26: 300 | AT26: =AT25/$H$26 -> 300 | AU26: 300 | AV26: 300 | AW26: 300 | AX26: 300 | AY26: 300 | AZ26: 300 | BA26: 300 | BB26: 300 | BC26: 300 | BD26: 300 | BE26: 300 | BF26: 300 | BG26: 300 | BH26: 300 | BI26: 300 | BJ26: 300 | BK26: 300 | BL26: 300 | BM26: 300 | BN26: 300 | BO26: 300 | BP26: 300 | BQ26: 300 | BR26: 300 | BS26: 300
D28: Hourly Demand for Biogas | G28: Biogas M3/Hour | H28: =Inputs!F101 -> 0.5919587629 | I28: Percent CH4/Biogass | K28: =MAX(N28:BS28) -> 506.7920585 | N28: =N26/$H$28 -> 506.7920585 | O28: 506.7920585 | P28: 506.7920585 | Q28: 506.7920585 | R28: 506.7920585 | S28: 506.7920585 | T28: 506.7920585 | U28: 506.7920585 | V28: 506.7920585 | W28: 506.7920585 | X28: 506.7920585 | Y28: 506.7920585 | Z28: 506.7920585 | AA28: 506.7920585 | AB28: 506.7920585 | AC28: 506.7920585 | AD28: 506.7920585 | AE28: 506.7920585 | AF28: 506.7920585 | AG28: 506.7920585 | AH28: 506.7920585 | AI28: 506.7920585 | AJ28: 506.7920585 | AK28: 506.7920585 | AL28: 506.7920585 | AM28: 506.7920585 | AN28: 506.7920585 | AO28: 506.7920585 | AP28: 506.7920585 | AQ28: 506.7920585 | AR28: 506.7920585 | AS28: 506.7920585 | AT28: =AT26/$H$28 -> 506.7920585 | AU28: 506.7920585 | AV28: 506.7920585 | AW28: 506.7920585 | AX28: 506.7920585 | AY28: 506.7920585 | AZ28: 506.7920585 | BA28: 506.7920585 | BB28: 506.7920585 | BC28: 506.7920585 | BD28: 506.7920585 | BE28: 506.7920585 | BF28: 506.7920585 | BG28: 506.7920585 | BH28: 506.7920585 | BI28: 506.7920585 | BJ28: 506.7920585 | BK28: 506.7920585 | BL28: 506.7920585 | BM28: 506.7920585 | BN28: 506.7920585 | BO28: 506.7920585 | BP28: 506.7920585 | BQ28: 506.7920585 | BR28: 506.7920585 | BS28: 506.7920585
D29: Hourly Demand for CNG in kg (All Trucks) | G29: kg/Hour | H29: =Inputs!$F$125 -> 0.7513589683 | I29: kg/M3 of CH4 | K29: =MAX(N29:BS29) -> 225.4076905 | N29: =N26*$H$29 -> 225.4076905 | O29: 225.4076905 | P29: 225.4076905 | Q29: 225.4076905 | R29: 225.4076905 | S29: 225.4076905 | T29: 225.4076905 | U29: 225.4076905 | V29: 225.4076905 | W29: 225.4076905 | X29: 225.4076905 | Y29: 225.4076905 | Z29: 225.4076905 | AA29: 225.4076905 | AB29: 225.4076905 | AC29: 225.4076905 | AD29: 225.4076905 | AE29: 225.4076905 | AF29: 225.4076905 | AG29: 225.4076905 | AH29: 225.4076905 | AI29: 225.4076905 | AJ29: 225.4076905 | AK29: 225.4076905 | AL29: 225.4076905 | AM29: 225.4076905 | AN29: 225.4076905 | AO29: 225.4076905 | AP29: 225.4076905 | AQ29: 225.4076905 | AR29: 225.4076905 | AS29: 225.4076905 | AT29: =AT26*$H$29 -> 225.4076905 | AU29: 225.4076905 | AV29: 225.4076905 | AW29: 225.4076905 | AX29: 225.4076905 | AY29: 225.4076905 | AZ29: 225.4076905 | BA29: 225.4076905 | BB29: 225.4076905 | BC29: 225.4076905 | BD29: 225.4076905 | BE29: 225.4076905 | BF29: 225.4076905 | BG29: 225.4076905 | BH29: 225.4076905 | BI29: 225.4076905 | BJ29: 225.4076905 | BK29: 225.4076905 | BL29: 225.4076905 | BM29: 225.4076905 | BN29: 225.4076905 | BO29: 225.4076905 | BP29: 225.4076905 | BQ29: 225.4076905 | BR29: 225.4076905 | BS29: 225.4076905
B31: Production of CNG from Biogas Flow to Meet Demand
C33: Production of Biogass from Mill Fuit Bunch
D34: Mill capacity in terms of Fruit Bunch | G34: Tons/Hour | H34: =Inputs!F14 -> 60 | I34: Tons/hour | K34: =MAX(N34:BS34) -> 60 | N34: =$H34 -> 60 | O34: 60 | P34: 60 | Q34: 60 | R34: 60 | S34: 60 | T34: 60 | U34: 60 | V34: 60 | W34: 60 | X34: =$H34 -> 60 | Y34: 60 | Z34: 60 | AA34: 60 | AB34: 60 | AC34: 60 | AD34: 60 | AE34: 60 | AF34: 60 | AG34: 60 | AH34: =$H34 -> 60 | AI34: 60 | AJ34: 60 | AK34: 60 | AL34: 60 | AM34: 60 | AN34: 60 | AO34: 60 | AP34: 60 | AQ34: 60 | AR34: =$H34 -> 60 | AS34: 60 | AT34: 60 | AU34: 60 | AV34: 60 | AW34: 60 | AX34: 60 | AY34: 60 | AZ34: 60 | BA34: 60 | BB34: =$H34 -> 60 | BC34: 60 | BD34: 60 | BE34: 60 | BF34: 60 | BG34: 60 | BH34: 60 | BI34: 60 | BJ34: 60 | BK34: 60 | BL34: =$H34 -> 60 | BM34: 60 | BN34: 60 | BO34: 60 | BP34: 60 | BQ34: 60 | BR34: 60 | BS34: 60
D35: Mill Availability in Hours | G35: Hours per Year | H35: =Inputs!F51 -> 5200 | I35: Mill Hours | K35: =MAX(N35:BS35) -> 5200 | N35: 5200 | O35: 5200 | P35: 5200 | Q35: 5200 | R35: 5200 | S35: 5200 | T35: 5200 | U35: 5200 | V35: 5200 | W35: 5200 | X35: 5200 | Y35: 5200 | Z35: 5200 | AA35: 5200 | AB35: 5200 | AC35: 5200 | AD35: 5200 | AE35: 5200 | AF35: 5200 | AG35: 5200 | AH35: 5200 | AI35: 5200 | AJ35: 5200 | AK35: 5200 | AL35: 5200 | AM35: 5200 | AN35: 5200 | AO35: 5200 | AP35: 5200 | AQ35: 5200 | AR35: 5200 | AS35: 5200 | AT35: 5200 | AU35: 5200 | AV35: 5200 | AW35: 5200 | AX35: 5200 | AY35: 5200 | AZ35: 5200 | BA35: 5200 | BB35: 5200 | BC35: 5200 | BD35: 5200 | BE35: 5200 | BF35: 5200 | BG35: 5200 | BH35: 5200 | BI35: 5200 | BJ35: 5200 | BK35: 5200 | BL35: 5200 | BM35: 5200 | BN35: 5200 | BO35: 5200 | BP35: 5200 | BQ35: 5200 | BR35: 5200 | BS35: 5200
D36: Fresh Fruit Bunch (FFB) Produced | G36: Tons/Year | H36: =Inputs!F52 -> 312000 | I36: Tons/year | K36: =MAX(N36:BS36) -> 312000 | N36: 312000 | O36: 312000 | P36: 312000 | Q36: 312000 | R36: 312000 | S36: 312000 | T36: 312000 | U36: 312000 | V36: 312000 | W36: 312000 | X36: 312000 | Y36: 312000 | Z36: 312000 | AA36: 312000 | AB36: 312000 | AC36: 312000 | AD36: 312000 | AE36: 312000 | AF36: 312000 | AG36: 312000 | AH36: 312000 | AI36: 312000 | AJ36: 312000 | AK36: 312000 | AL36: 312000 | AM36: 312000 | AN36: 312000 | AO36: 312000 | AP36: 312000 | AQ36: 312000 | AR36: 312000 | AS36: 312000 | AT36: 312000 | AU36: 312000 | AV36: 312000 | AW36: 312000 | AX36: 312000 | AY36: 312000 | AZ36: 312000 | BA36: 312000 | BB36: 312000 | BC36: 312000 | BD36: 312000 | BE36: 312000 | BF36: 312000 | BG36: 312000 | BH36: 312000 | BI36: 312000 | BJ36: 312000 | BK36: 312000 | BL36: 312000 | BM36: 312000 | BN36: 312000 | BO36: 312000 | BP36: 312000 | BQ36: 312000 | BR36: 312000 | BS36: 312000
D37: Fresh Fruit Bunch for Minimum Month (FFB) | G37: Tons/Year | H37: =Inputs!G63 -> 224640 | K37: =MAX(N37:BS37) -> 224640 | N37: =$H$37 -> 224640 | O37: 224640 | P37: 224640 | Q37: 224640 | R37: 224640 | S37: 224640 | T37: 224640 | U37: 224640 | V37: 224640 | W37: 224640 | X37: 224640 | Y37: 224640 | Z37: 224640 | AA37: 224640 | AB37: 224640 | AC37: 224640 | AD37: 224640 | AE37: 224640 | AF37: 224640 | AG37: 224640 | AH37: 224640 | AI37: 224640 | AJ37: 224640 | AK37: 224640 | AL37: 224640 | AM37: 224640 | AN37: 224640 | AO37: 224640 | AP37: 224640 | AQ37: 224640 | AR37: 224640 | AS37: 224640 | AT37: =$H$37 -> 224640 | AU37: 224640 | AV37: 224640 | AW37: 224640 | AX37: 224640 | AY37: 224640 | AZ37: 224640 | BA37: 224640 | BB37: 224640 | BC37: 224640 | BD37: 224640 | BE37: 224640 | BF37: 224640 | BG37: 224640 | BH37: 224640 | BI37: 224640 | BJ37: 224640 | BK37: 224640 | BL37: 224640 | BM37: 224640 | BN37: 224640 | BO37: 224640 | BP37: 224640 | BQ37: 224640 | BR37: 224640 | BS37: 224640
C39: Conversion of Fruitbunch to M3 of Biogas - Capacity Perspective
D40: Biogas Efflent as Percent of FFB | G40: % | H40: =Inputs!F55 -> 0.65 | I40: % | K40: =MAX(N40:BS40) -> 0.65 | N40: =$H40 -> 0.65 | O40: 0.65 | P40: 0.65 | Q40: 0.65 | R40: 0.65 | S40: 0.65 | T40: 0.65 | U40: 0.65 | V40: 0.65 | W40: 0.65 | X40: 0.65 | Y40: 0.65 | Z40: 0.65 | AA40: 0.65 | AB40: 0.65 | AC40: 0.65 | AD40: 0.65 | AE40: 0.65 | AF40: 0.65 | AG40: 0.65 | AH40: 0.65 | AI40: 0.65 | AJ40: 0.65 | AK40: 0.65 | AL40: 0.65 | AM40: 0.65 | AN40: 0.65 | AO40: 0.65 | AP40: 0.65 | AQ40: 0.65 | AR40: 0.65 | AS40: 0.65 | AT40: =$H40 -> 0.65 | AU40: 0.65 | AV40: 0.65 | AW40: 0.65 | AX40: 0.65 | AY40: 0.65 | AZ40: 0.65 | BA40: 0.65 | BB40: 0.65 | BC40: 0.65 | BD40: 0.65 | BE40: 0.65 | BF40: 0.65 | BG40: 0.65 | BH40: 0.65 | BI40: 0.65 | BJ40: 0.65 | BK40: 0.65 | BL40: 0.65 | BM40: 0.65 | BN40: 0.65 | BO40: 0.65 | BP40: 0.65 | BQ40: 0.65 | BR40: 0.65 | BS40: 0.65
D41: Biogas Mill Effeluent (Tons) | G41: Ton/year | H41: =Inputs!F56 -> 202800 | I41: Tons/year | K41: =MAX(N41:BS41) -> 146016 | N41: =N37*N40 -> 146016 | O41: 146016 | P41: 146016 | Q41: 146016 | R41: 146016 | S41: 146016 | T41: 146016 | U41: 146016 | V41: 146016 | W41: 146016 | X41: 146016 | Y41: 146016 | Z41: 146016 | AA41: 146016 | AB41: 146016 | AC41: 146016 | AD41: 146016 | AE41: 146016 | AF41: 146016 | AG41: 146016 | AH41: 146016 | AI41: 146016 | AJ41: 146016 | AK41: 146016 | AL41: 146016 | AM41: 146016 | AN41: 146016 | AO41: 146016 | AP41: 146016 | AQ41: 146016 | AR41: 146016 | AS41: 146016 | AT41: =AT37*AT40 -> 146016 | AU41: 146016 | AV41: 146016 | AW41: 146016 | AX41: 146016 | AY41: 146016 | AZ41: 146016 | BA41: 146016 | BB41: 146016 | BC41: 146016 | BD41: 146016 | BE41: 146016 | BF41: 146016 | BG41: 146016 | BH41: 146016 | BI41: 146016 | BJ41: 146016 | BK41: 146016 | BL41: 146016 | BM41: 146016 | BN41: 146016 | BO41: 146016 | BP41: 146016 | BQ41: 146016 | BR41: 146016 | BS41: 146016
D42: Conversion to M3 from Tons | G42: Biogas M3/Ton | H42: =Inputs!F57 -> 30 | I42: Biogas M3/Ton | K42: =MAX(N42:BS42) -> 30 | N42: =$H42 -> 30 | O42: 30 | P42: 30 | Q42: 30 | R42: 30 | S42: 30 | T42: 30 | U42: 30 | V42: 30 | W42: 30 | X42: 30 | Y42: 30 | Z42: 30 | AA42: 30 | AB42: 30 | AC42: 30 | AD42: 30 | AE42: 30 | AF42: 30 | AG42: 30 | AH42: 30 | AI42: 30 | AJ42: 30 | AK42: 30 | AL42: 30 | AM42: 30 | AN42: 30 | AO42: 30 | AP42: 30 | AQ42: 30 | AR42: 30 | AS42: 30 | AT42: =$H42 -> 30 | AU42: 30 | AV42: 30 | AW42: 30 | AX42: 30 | AY42: 30 | AZ42: 30 | BA42: 30 | BB42: 30 | BC42: 30 | BD42: 30 | BE42: 30 | BF42: 30 | BG42: 30 | BH42: 30 | BI42: 30 | BJ42: 30 | BK42: 30 | BL42: 30 | BM42: 30 | BN42: 30 | BO42: 30 | BP42: 30 | BQ42: 30 | BR42: 30 | BS42: 30
D43: Annual Production of Biogas Effluent | G43: Biogas M3/Year | H43: =Inputs!F58 -> 6084000 | K43: =MAX(N43:BS43) -> 4380480 | N43: =N41*N42 -> 4380480 | O43: 4380480 | P43: 4380480 | Q43: 4380480 | R43: 4380480 | S43: 4380480 | T43: 4380480 | U43: 4380480 | V43: 4380480 | W43: 4380480 | X43: 4380480 | Y43: 4380480 | Z43: 4380480 | AA43: 4380480 | AB43: 4380480 | AC43: 4380480 | AD43: 4380480 | AE43: 4380480 | AF43: 4380480 | AG43: 4380480 | AH43: 4380480 | AI43: 4380480 | AJ43: 4380480 | AK43: 4380480 | AL43: 4380480 | AM43: 4380480 | AN43: 4380480 | AO43: 4380480 | AP43: 4380480 | AQ43: 4380480 | AR43: 4380480 | AS43: 4380480 | AT43: =AT41*AT42 -> 4380480 | AU43: 4380480 | AV43: 4380480 | AW43: 4380480 | AX43: 4380480 | AY43: 4380480 | AZ43: 4380480 | BA43: 4380480 | BB43: 4380480 | BC43: 4380480 | BD43: 4380480 | BE43: 4380480 | BF43: 4380480 | BG43: 4380480 | BH43: 4380480 | BI43: 4380480 | BJ43: 4380480 | BK43: 4380480 | BL43: 4380480 | BM43: 4380480 | BN43: 4380480 | BO43: 4380480 | BP43: 4380480 | BQ43: 4380480 | BR43: 4380480 | BS43: 4380480
D44: Hourly Production of Biogas Effluent | G44: Biogas M3/Hour | H44: =Inputs!G69*12 -> 8640 | K44: =MAX(N44:BS44) -> 507 | N44: =N43/$H$44 -> 507 | O44: 507 | P44: 507 | Q44: 507 | R44: 507 | S44: 507 | T44: 507 | U44: 507 | V44: 507 | W44: 507 | X44: 507 | Y44: 507 | Z44: 507 | AA44: 507 | AB44: 507 | AC44: 507 | AD44: 507 | AE44: 507 | AF44: 507 | AG44: 507 | AH44: 507 | AI44: 507 | AJ44: 507 | AK44: 507 | AL44: 507 | AM44: 507 | AN44: 507 | AO44: 507 | AP44: 507 | AQ44: 507 | AR44: 507 | AS44: 507 | AT44: =AT43/$H$44 -> 507 | AU44: 507 | AV44: 507 | AW44: 507 | AX44: 507 | AY44: 507 | AZ44: 507 | BA44: 507 | BB44: 507 | BC44: 507 | BD44: 507 | BE44: 507 | BF44: 507 | BG44: 507 | BH44: 507 | BI44: 507 | BJ44: 507 | BK44: 507 | BL44: 507 | BM44: 507 | BN44: 507 | BO44: 507 | BP44: 507 | BQ44: 507 | BR44: 507 | BS44: 507
C46: Capacity of Upgrader in Biogass/Hour | G46: Biogas M3/hour | H46: =Inputs!F78 -> 507 | I46: M3 Biogass/Hour | K46: =MAX(N46:BS46) -> 507 | N46: =$H46*N8 -> 0 | O46: 0 | P46: 0 | Q46: 0 | R46: 0 | S46: 0 | T46: 0 | U46: 0 | V46: 0 | W46: 0 | X46: 0 | Y46: 0 | Z46: 507 | AA46: 507 | AB46: 507 | AC46: 507 | AD46: 507 | AE46: 507 | AF46: 507 | AG46: 507 | AH46: 507 | AI46: 507 | AJ46: 507 | AK46: 507 | AL46: 507 | AM46: 507 | AN46: 507 | AO46: 507 | AP46: 507 | AQ46: 507 | AR46: 507 | AS46: 507 | AT46: =$H46*AT8 -> 507 | AU46: 507 | AV46: 507 | AW46: 507 | AX46: 507 | AY46: 507 | AZ46: 507 | BA46: 507 | BB46: 507 | BC46: 507 | BD46: 0 | BE46: 0 | BF46: 0 | BG46: 0 | BH46: 0 | BI46: 0 | BJ46: 0 | BK46: 0 | BL46: 0 | BM46: 0 | BN46: 0 | BO46: 0 | BP46: 0 | BQ46: 0 | BR46: 0 | BS46: 0
D47: Maximum Flow of Biogass (Minimum Month) | G47: M3/Hour | H47: =Inputs!F101 -> 0.5919587629 | I47: % CNG/Biogass | K47: =MAX(N47:BS47) -> 300.1230928 | N47: =N46*$H$47 -> 0 | O47: 0 | P47: 0 | Q47: 0 | R47: 0 | S47: 0 | T47: 0 | U47: 0 | V47: 0 | W47: 0 | X47: 0 | Y47: 0 | Z47: 300.1230928 | AA47: 300.1230928 | AB47: 300.1230928 | AC47: 300.1230928 | AD47: 300.1230928 | AE47: 300.1230928 | AF47: 300.1230928 | AG47: 300.1230928 | AH47: 300.1230928 | AI47: 300.1230928 | AJ47: 300.1230928 | AK47: 300.1230928 | AL47: 300.1230928 | AM47: 300.1230928 | AN47: 300.1230928 | AO47: 300.1230928 | AP47: 300.1230928 | AQ47: 300.1230928 | AR47: 300.1230928 | AS47: 300.1230928 | AT47: =AT46*$H$47 -> 300.1230928 | AU47: 300.1230928 | AV47: 300.1230928 | AW47: 300.1230928 | AX47: 300.1230928 | AY47: 300.1230928 | AZ47: 300.1230928 | BA47: 300.1230928 | BB47: 300.1230928 | BC47: 300.1230928 | BD47: 0 | BE47: 0 | BF47: 0 | BG47: 0 | BH47: 0 | BI47: 0 | BJ47: 0 | BK47: 0 | BL47: 0 | BM47: 0 | BN47: 0 | BO47: 0 | BP47: 0 | BQ47: 0 | BR47: 0 | BS47: 0
D48: km Travelled per Truck per hour from Daily Analysis | G48: km/Hour - Truck | H48: 24 | I48: Hours/Day | K48: =MAX(N48:BS48) -> 12.5 | N48: =N16/$H$48 -> 12.5 | O48: 12.5 | P48: 12.5 | Q48: 12.5 | R48: 12.5 | S48: 12.5 | T48: 12.5 | U48: 12.5 | V48: 12.5 | W48: 12.5 | X48: 12.5 | Y48: 12.5 | Z48: 12.5 | AA48: 12.5 | AB48: 12.5 | AC48: 12.5 | AD48: 12.5 | AE48: 12.5 | AF48: 12.5 | AG48: 12.5 | AH48: 12.5 | AI48: 12.5 | AJ48: 12.5 | AK48: 12.5 | AL48: 12.5 | AM48: 12.5 | AN48: 12.5 | AO48: 12.5 | AP48: 12.5 | AQ48: 12.5 | AR48: 12.5 | AS48: 12.5 | AT48: =AT16/$H$48 -> 12.5 | AU48: 12.5 | AV48: 12.5 | AW48: 12.5 | AX48: 12.5 | AY48: 12.5 | AZ48: 12.5 | BA48: 12.5 | BB48: 12.5 | BC48: 12.5 | BD48: 12.5 | BE48: 12.5 | BF48: 12.5 | BG48: 12.5 | BH48: 12.5 | BI48: 12.5 | BJ48: 12.5 | BK48: 12.5 | BL48: 12.5 | BM48: 12.5 | BN48: 12.5 | BO48: 12.5 | BP48: 12.5 | BQ48: 12.5 | BR48: 12.5 | BS48: 12.5
D49: CNG Required per truck per hour | G49: CNG M3/Hour-Truck | H49: =H54 -> 2.083333333 | I49: CNG M3/km Efficiency | K49: =MAX(N49:BS49) -> 6 | N49: =N48/$H$49 -> 6 | O49: 6 | P49: 6 | Q49: 6 | R49: 6 | S49: 6 | T49: 6 | U49: 6 | V49: 6 | W49: 6 | X49: 6 | Y49: 6 | Z49: 6 | AA49: 6 | AB49: 6 | AC49: 6 | AD49: 6 | AE49: 6 | AF49: 6 | AG49: 6 | AH49: 6 | AI49: 6 | AJ49: 6 | AK49: 6 | AL49: 6 | AM49: 6 | AN49: 6 | AO49: 6 | AP49: 6 | AQ49: 6 | AR49: 6 | AS49: 6 | AT49: =AT48/$H$49 -> 6 | AU49: 6 | AV49: 6 | AW49: 6 | AX49: 6 | AY49: 6 | AZ49: 6 | BA49: 6 | BB49: 6 | BC49: 6 | BD49: 6 | BE49: 6 | BF49: 6 | BG49: 6 | BH49: 6 | BI49: 6 | BJ49: 6 | BK49: 6 | BL49: 6 | BM49: 6 | BN49: 6 | BO49: 6 | BP49: 6 | BQ49: 6 | BR49: 6 | BS49: 6
D51: Break-even Trucks B/4 Electricity Usage | G51: Trucks | K51: =MAX(N51:BS51) -> 50.02051546 | N51: =N47/N49 -> 0 | O51: 0 | P51: 0 | Q51: 0 | R51: 0 | S51: 0 | T51: 0 | U51: 0 | V51: 0 | W51: 0 | X51: 0 | Y51: 0 | Z51: 50.02051546 | AA51: 50.02051546 | AB51: 50.02051546 | AC51: 50.02051546 | AD51: 50.02051546 | AE51: 50.02051546 | AF51: 50.02051546 | AG51: 50.02051546 | AH51: 50.02051546 | AI51: 50.02051546 | AJ51: 50.02051546 | AK51: 50.02051546 | AL51: 50.02051546 | AM51: 50.02051546 | AN51: 50.02051546 | AO51: 50.02051546 | AP51: 50.02051546 | AQ51: 50.02051546 | AR51: 50.02051546 | AS51: 50.02051546 | AT51: =AT47/AT49 -> 50.02051546 | AU51: 50.02051546 | AV51: 50.02051546 | AW51: 50.02051546 | AX51: 50.02051546 | AY51: 50.02051546 | AZ51: 50.02051546 | BA51: 50.02051546 | BB51: 50.02051546 | BC51: 50.02051546 | BD51: 0 | BE51: 0 | BF51: 0 | BG51: 0 | BH51: 0 | BI51: 0 | BJ51: 0 | BK51: 0 | BL51: 0 | BM51: 0 | BN51: 0 | BO51: 0 | BP51: 0 | BQ51: 0 | BR51: 0 | BS51: 0
D53: Maximum Theoretical Production of CNG per Year | G53: CNG M3/Year | H53: =Inputs!F92 -> 6912 | K53: =MAX(N53:BS53) -> 2074450.817 | N53: =N47*$H$53 -> 0 | O53: 0 | P53: 0 | Q53: 0 | R53: 0 | S53: 0 | T53: 0 | U53: 0 | V53: 0 | W53: 0 | X53: 0 | Y53: 0 | Z53: 2074450.817 | AA53: 2074450.817 | AB53: 2074450.817 | AC53: 2074450.817 | AD53: 2074450.817 | AE53: 2074450.817 | AF53: 2074450.817 | AG53: 2074450.817 | AH53: 2074450.817 | AI53: 2074450.817 | AJ53: 2074450.817 | AK53: 2074450.817 | AL53: 2074450.817 | AM53: 2074450.817 | AN53: 2074450.817 | AO53: 2074450.817 | AP53: 2074450.817 | AQ53: 2074450.817 | AR53: 2074450.817 | AS53: 2074450.817 | AT53: =AT47*$H$53 -> 2074450.817 | AU53: 2074450.817 | AV53: 2074450.817 | AW53: 2074450.817 | AX53: 2074450.817 | AY53: 2074450.817 | AZ53: 2074450.817 | BA53: 2074450.817 | BB53: 2074450.817 | BC53: 2074450.817 | BD53: 0 | BE53: 0 | BF53: 0 | BG53: 0 | BH53: 0 | BI53: 0 | BJ53: 0 | BK53: 0 | BL53: 0 | BM53: 0 | BN53: 0 | BO53: 0 | BP53: 0 | BQ53: 0 | BR53: 0 | BS53: 0
D54: Maximum Annual km from Theoretical Production | G54: km/year | H54: =Inputs!F41 -> 2.083333333 | I54: CNG M3/km Efficiency | K54: =MAX(N54:BS54) -> 4321772.536 | N54: =N53*$H$54 -> 0 | O54: 0 | P54: 0 | Q54: 0 | R54: 0 | S54: 0 | T54: 0 | U54: 0 | V54: 0 | W54: 0 | X54: 0 | Y54: 0 | Z54: 4321772.536 | AA54: 4321772.536 | AB54: 4321772.536 | AC54: 4321772.536 | AD54: 4321772.536 | AE54: 4321772.536 | AF54: 4321772.536 | AG54: 4321772.536 | AH54: 4321772.536 | AI54: 4321772.536 | AJ54: 4321772.536 | AK54: 4321772.536 | AL54: 4321772.536 | AM54: 4321772.536 | AN54: 4321772.536 | AO54: 4321772.536 | AP54: 4321772.536 | AQ54: 4321772.536 | AR54: 4321772.536 | AS54: 4321772.536 | AT54: =AT53*$H$54 -> 4321772.536 | AU54: 4321772.536 | AV54: 4321772.536 | AW54: 4321772.536 | AX54: 4321772.536 | AY54: 4321772.536 | AZ54: 4321772.536 | BA54: 4321772.536 | BB54: 4321772.536 | BC54: 4321772.536 | BD54: 0 | BE54: 0 | BF54: 0 | BG54: 0 | BH54: 0 | BI54: 0 | BJ54: 0 | BK54: 0 | BL54: 0 | BM54: 0 | BN54: 0 | BO54: 0 | BP54: 0 | BQ54: 0 | BR54: 0 | BS54: 0
C56: CNG Production from Biogass Effeluent to Meet Annual Demand
D57: Required Production in terms of km from Demand (Above) | G57: km/year | I57: km/year | K57: =MAX(N57:BS57) -> 4320000 | N57: =N20 -> 0 | O57: 0 | P57: 0 | Q57: 0 | R57: 0 | S57: 0 | T57: 0 | U57: 0 | V57: 0 | W57: 0 | X57: 0 | Y57: 0 | Z57: 4320000 | AA57: 4320000 | AB57: 4320000 | AC57: 4320000 | AD57: 4320000 | AE57: 4320000 | AF57: 4320000 | AG57: 4320000 | AH57: 4320000 | AI57: 4320000 | AJ57: 4320000 | AK57: 4320000 | AL57: 4320000 | AM57: 4320000 | AN57: 4320000 | AO57: 4320000 | AP57: 4320000 | AQ57: 4320000 | AR57: 4320000 | AS57: 4320000 | AT57: =AT20 -> 4320000 | AU57: 4320000 | AV57: 4320000 | AW57: 4320000 | AX57: 4320000 | AY57: 4320000 | AZ57: 4320000 | BA57: 4320000 | BB57: 4320000 | BC57: 4320000 | BD57: 0 | BE57: 0 | BF57: 0 | BG57: 0 | BH57: 0 | BI57: 0 | BJ57: 0 | BK57: 0 | BL57: 0 | BM57: 0 | BN57: 0 | BO57: 0 | BP57: 0 | BQ57: 0 | BR57: 0 | BS57: 0
D59: Converstion Factor from Km to M3 of Biogass | G59: M3/km | H59: =1/Inputs!F113 -> 0.48 | I59: M3 Biogas/km | J59: =1/H59 -> 2.083333333 | K59: =MAX(N59:BS59) -> 0.48 | N59: =$H$59 -> 0.48 | O59: 0.48 | P59: 0.48 | Q59: 0.48 | R59: 0.48 | S59: 0.48 | T59: 0.48 | U59: 0.48 | V59: 0.48 | W59: 0.48 | X59: 0.48 | Y59: 0.48 | Z59: 0.48 | AA59: 0.48 | AB59: 0.48 | AC59: 0.48 | AD59: 0.48 | AE59: 0.48 | AF59: 0.48 | AG59: 0.48 | AH59: 0.48 | AI59: 0.48 | AJ59: 0.48 | AK59: 0.48 | AL59: 0.48 | AM59: 0.48 | AN59: 0.48 | AO59: 0.48 | AP59: 0.48 | AQ59: 0.48 | AR59: 0.48 | AS59: 0.48 | AT59: =$H$59 -> 0.48 | AU59: 0.48 | AV59: 0.48 | AW59: 0.48 | AX59: 0.48 | AY59: 0.48 | AZ59: 0.48 | BA59: 0.48 | BB59: 0.48 | BC59: 0.48 | BD59: 0.48 | BE59: 0.48 | BF59: 0.48 | BG59: 0.48 | BH59: 0.48 | BI59: 0.48 | BJ59: 0.48 | BK59: 0.48 | BL59: 0.48 | BM59: 0.48 | BN59: 0.48 | BO59: 0.48 | BP59: 0.48 | BQ59: 0.48 | BR59: 0.48 | BS59: 0.48
D60: Required Production of Biogass in M3 to Meet Demand | G60: M3/Year | K60: =MAX(N60:BS60) -> 2073600 | N60: =N57*N59 -> 0 | O60: 0 | P60: 0 | Q60: 0 | R60: 0 | S60: 0 | T60: 0 | U60: 0 | V60: 0 | W60: 0 | X60: 0 | Y60: 0 | Z60: 2073600 | AA60: 2073600 | AB60: 2073600 | AC60: 2073600 | AD60: 2073600 | AE60: 2073600 | AF60: 2073600 | AG60: 2073600 | AH60: 2073600 | AI60: 2073600 | AJ60: 2073600 | AK60: 2073600 | AL60: 2073600 | AM60: 2073600 | AN60: 2073600 | AO60: 2073600 | AP60: 2073600 | AQ60: 2073600 | AR60: 2073600 | AS60: 2073600 | AT60: =AT57*AT59 -> 2073600 | AU60: 2073600 | AV60: 2073600 | AW60: 2073600 | AX60: 2073600 | AY60: 2073600 | AZ60: 2073600 | BA60: 2073600 | BB60: 2073600 | BC60: 2073600 | BD60: 0 | BE60: 0 | BF60: 0 | BG60: 0 | BH60: 0 | BI60: 0 | BJ60: 0 | BK60: 0 | BL60: 0 | BM60: 0 | BN60: 0 | BO60: 0 | BP60: 0 | BQ60: 0 | BR60: 0 | BS60: 0
D61: Required Production of Biogass in M3/Hour to Meed Demand | G61: M3/Hour | H61: =Inputs!F92 -> 6912 | I61: Hours of Upgrader | J61: =Inputs!F98*Inputs!F99/Inputs!F100 -> 0.5919587629 | K61: =MAX(N61:BS61) -> 506.7920585 | N61: =N60/$H$61/$J$61 -> 0 | O61: 0 | P61: 0 | Q61: 0 | R61: 0 | S61: 0 | T61: 0 | U61: 0 | V61: 0 | W61: 0 | X61: 0 | Y61: 0 | Z61: 506.7920585 | AA61: 506.7920585 | AB61: 506.7920585 | AC61: 506.7920585 | AD61: 506.7920585 | AE61: 506.7920585 | AF61: 506.7920585 | AG61: 506.7920585 | AH61: 506.7920585 | AI61: 506.7920585 | AJ61: 506.7920585 | AK61: 506.7920585 | AL61: 506.7920585 | AM61: 506.7920585 | AN61: 506.7920585 | AO61: 506.7920585 | AP61: 506.7920585 | AQ61: 506.7920585 | AR61: 506.7920585 | AS61: 506.7920585 | AT61: =AT60/$H$61/$J$61 -> 506.7920585 | AU61: 506.7920585 | AV61: 506.7920585 | AW61: 506.7920585 | AX61: 506.7920585 | AY61: 506.7920585 | AZ61: 506.7920585 | BA61: 506.7920585 | BB61: 506.7920585 | BC61: 506.7920585 | BD61: 0 | BE61: 0 | BF61: 0 | BG61: 0 | BH61: 0 | BI61: 0 | BJ61: 0 | BK61: 0 | BL61: 0 | BM61: 0 | BN61: 0 | BO61: 0 | BP61: 0 | BQ61: 0 | BR61: 0 | BS61: 0
C63: CNG Production From Upgrader to Meet Truck Demand
D64: MIN -- Biogass Input (Min Demand, Capacity) | G64: M3/Hour | K64: =MAX(N64:BS64) -> 506.7920585 | N64: =MIN(N61,N46) -> 0 | O64: 0 | P64: 0 | Q64: 0 | R64: 0 | S64: 0 | T64: 0 | U64: 0 | V64: 0 | W64: 0 | X64: 0 | Y64: 0 | Z64: 506.7920585 | AA64: 506.7920585 | AB64: 506.7920585 | AC64: 506.7920585 | AD64: 506.7920585 | AE64: 506.7920585 | AF64: 506.7920585 | AG64: 506.7920585 | AH64: 506.7920585 | AI64: 506.7920585 | AJ64: 506.7920585 | AK64: 506.7920585 | AL64: 506.7920585 | AM64: 506.7920585 | AN64: 506.7920585 | AO64: 506.7920585 | AP64: 506.7920585 | AQ64: 506.7920585 | AR64: 506.7920585 | AS64: 506.7920585 | AT64: =MIN(AT61,AT46) -> 506.7920585 | AU64: 506.7920585 | AV64: 506.7920585 | AW64: 506.7920585 | AX64: 506.7920585 | AY64: 506.7920585 | AZ64: 506.7920585 | BA64: 506.7920585 | BB64: 506.7920585 | BC64: 506.7920585 | BD64: 0 | BE64: 0 | BF64: 0 | BG64: 0 | BH64: 0 | BI64: 0 | BJ64: 0 | BK64: 0 | BL64: 0 | BM64: 0 | BN64: 0 | BO64: 0 | BP64: 0 | BQ64: 0 | BR64: 0 | BS64: 0
D65: Methane Percent form Biogass (Multiply) | G65: % | H65: =Inputs!F98 -> 0.58 | I65: Methane % Biogass | N65: =N64*$H65 -> 0 | O65: 0 | P65: 0 | Q65: 0 | R65: 0 | S65: 0 | T65: 0 | U65: 0 | V65: 0 | W65: 0 | X65: =X64*$H65 -> 0 | Y65: 0 | Z65: 293.9393939 | AA65: 293.9393939 | AB65: 293.9393939 | AC65: 293.9393939 | AD65: 293.9393939 | AE65: 293.9393939 | AF65: 293.9393939 | AG65: 293.9393939 | AH65: =AH64*$H65 -> 293.9393939 | AI65: 293.9393939 | AJ65: 293.9393939 | AK65: 293.9393939 | AL65: 293.9393939 | AM65: 293.9393939 | AN65: 293.9393939 | AO65: 293.9393939 | AP65: 293.9393939 | AQ65: 293.9393939 | AR65: =AR64*$H65 -> 293.9393939 | AS65: 293.9393939 | AT65: 293.9393939 | AU65: 293.9393939 | AV65: 293.9393939 | AW65: 293.9393939 | AX65: 293.9393939 | AY65: 293.9393939 | AZ65: 293.9393939 | BA65: 293.9393939 | BB65: =BB64*$H65 -> 293.9393939 | BC65: 293.9393939 | BD65: 0 | BE65: 0 | BF65: 0 | BG65: 0 | BH65: 0 | BI65: 0 | BJ65: 0 | BK65: 0 | BL65: =BL64*$H65 -> 0 | BM65: 0 | BN65: 0 | BO65: 0 | BP65: 0 | BQ65: 0 | BR65: 0 | BS65: 0
D66: Upgading Efficiency adjustment (Multiply) | G66: M3/Hour | H66: =Inputs!F99 -> 0.99 | I66: % | K66: =MAX(N66:BS66) -> 291 | N66: 0 | O66: 0 | P66: 0 | Q66: 0 | R66: 0 | S66: 0 | T66: 0 | U66: 0 | V66: 0 | W66: 0 | X66: 0 | Y66: 0 | Z66: 291 | AA66: 291 | AB66: 291 | AC66: 291 | AD66: 291 | AE66: 291 | AF66: 291 | AG66: 291 | AH66: 291 | AI66: 291 | AJ66: 291 | AK66: 291 | AL66: 291 | AM66: 291 | AN66: 291 | AO66: 291 | AP66: 291 | AQ66: 291 | AR66: 291 | AS66: 291 | AT66: 291 | AU66: 291 | AV66: 291 | AW66: 291 | AX66: 291 | AY66: 291 | AZ66: 291 | BA66: 291 | BB66: 291 | BC66: 291 | BD66: 0 | BE66: 0 | BF66: 0 | BG66: 0 | BH66: 0 | BI66: 0 | BJ66: 0 | BK66: 0 | BL66: 0 | BM66: 0 | BN66: 0 | BO66: 0 | BP66: 0 | BQ66: 0 | BR66: 0 | BS66: 0
D67: CNG Production per Hour for Truck Demand | G67: M3/Hour | H67: =Inputs!F100 -> 0.97 | I67: % Volume | K67: =MAX(N67:BS67) -> 300 | N67: =N66/$H$67 -> 0 | O67: 0 | P67: 0 | Q67: 0 | R67: 0 | S67: 0 | T67: 0 | U67: 0 | V67: 0 | W67: 0 | X67: 0 | Y67: 0 | Z67: 300 | AA67: 300 | AB67: 300 | AC67: 300 | AD67: 300 | AE67: 300 | AF67: 300 | AG67: 300 | AH67: 300 | AI67: 300 | AJ67: 300 | AK67: 300 | AL67: 300 | AM67: 300 | AN67: 300 | AO67: 300 | AP67: 300 | AQ67: 300 | AR67: 300 | AS67: 300 | AT67: =AT66/$H$67 -> 300 | AU67: 300 | AV67: 300 | AW67: 300 | AX67: 300 | AY67: 300 | AZ67: 300 | BA67: 300 | BB67: 300 | BC67: 300 | BD67: 0 | BE67: 0 | BF67: 0 | BG67: 0 | BH67: 0 | BI67: 0 | BJ67: 0 | BK67: 0 | BL67: 0 | BM67: 0 | BN67: 0 | BO67: 0 | BP67: 0 | BQ67: 0 | BR67: 0 | BS67: 0
B69: Pumping Nozzel Capacity and Use
C70: Capacity in Minutes
D71: Filling Rate per Nozzel in M3/Hour | G71: CNG M3/Hour | H71: =Inputs!F123 -> 2400 | K71: =MAX(Z71:BS71) -> 2400 | N71: =$H$71*N8 -> 0 | O71: 0 | P71: 0 | Q71: 0 | R71: 0 | S71: 0 | T71: 0 | U71: 0 | V71: 0 | W71: 0 | X71: 0 | Y71: 0 | Z71: 2400 | AA71: 2400 | AB71: 2400 | AC71: 2400 | AD71: 2400 | AE71: 2400 | AF71: 2400 | AG71: 2400 | AH71: 2400 | AI71: 2400 | AJ71: 2400 | AK71: 2400 | AL71: 2400 | AM71: 2400 | AN71: 2400 | AO71: 2400 | AP71: 2400 | AQ71: 2400 | AR71: 2400 | AS71: 2400 | AT71: =$H$71*AT8 -> 2400 | AU71: 2400 | AV71: 2400 | AW71: 2400 | AX71: 2400 | AY71: 2400 | AZ71: 2400 | BA71: 2400 | BB71: 2400 | BC71: 2400 | BD71: 0 | BE71: 0 | BF71: 0 | BG71: 0 | BH71: 0 | BI71: 0 | BJ71: 0 | BK71: 0 | BL71: 0 | BM71: 0 | BN71: 0 | BO71: 0 | BP71: 0 | BQ71: 0 | BR71: 0 | BS71: 0
D72: Filling Rate per Nozzel in kg/Hour | G72: CNG kg/Hour | H72: =Inputs!F125 -> 0.7513589683 | K72: =MAX(Z72:BS72) -> 1803.261524 | N72: =N71*$H$72 -> 0 | O72: 0 | P72: 0 | Q72: 0 | R72: 0 | S72: 0 | T72: 0 | U72: 0 | V72: 0 | W72: 0 | X72: 0 | Y72: 0 | Z72: 1803.261524 | AA72: 1803.261524 | AB72: 1803.261524 | AC72: 1803.261524 | AD72: 1803.261524 | AE72: 1803.261524 | AF72: 1803.261524 | AG72: 1803.261524 | AH72: 1803.261524 | AI72: 1803.261524 | AJ72: 1803.261524 | AK72: 1803.261524 | AL72: 1803.261524 | AM72: 1803.261524 | AN72: 1803.261524 | AO72: 1803.261524 | AP72: 1803.261524 | AQ72: 1803.261524 | AR72: 1803.261524 | AS72: 1803.261524 | AT72: =AT71*$H$72 -> 1803.261524 | AU72: 1803.261524 | AV72: 1803.261524 | AW72: 1803.261524 | AX72: 1803.261524 | AY72: 1803.261524 | AZ72: 1803.261524 | BA72: 1803.261524 | BB72: 1803.261524 | BC72: 1803.261524 | BD72: 0 | BE72: 0 | BF72: 0 | BG72: 0 | BH72: 0 | BI72: 0 | BJ72: 0 | BK72: 0 | BL72: 0 | BM72: 0 | BN72: 0 | BO72: 0 | BP72: 0 | BQ72: 0 | BR72: 0 | BS72: 0
D73: Fillling Rate per Nozzel in kg/Minute | G73: CNG kg/Minute | H73: 60 | K73: =MAX(Z73:BS73) -> 30.05435873 | L73: ok | N73: =N72/$H$73 -> 0 | O73: 0 | P73: 0 | Q73: 0 | R73: 0 | S73: 0 | T73: 0 | U73: 0 | V73: 0 | W73: 0 | X73: 0 | Y73: 0 | Z73: 30.05435873 | AA73: 30.05435873 | AB73: 30.05435873 | AC73: 30.05435873 | AD73: 30.05435873 | AE73: 30.05435873 | AF73: 30.05435873 | AG73: 30.05435873 | AH73: 30.05435873 | AI73: 30.05435873 | AJ73: 30.05435873 | AK73: 30.05435873 | AL73: 30.05435873 | AM73: 30.05435873 | AN73: 30.05435873 | AO73: 30.05435873 | AP73: 30.05435873 | AQ73: 30.05435873 | AR73: 30.05435873 | AS73: 30.05435873 | AT73: =AT72/$H$73 -> 30.05435873 | AU73: 30.05435873 | AV73: 30.05435873 | AW73: 30.05435873 | AX73: 30.05435873 | AY73: 30.05435873 | AZ73: 30.05435873 | BA73: 30.05435873 | BB73: 30.05435873 | BC73: 30.05435873 | BD73: 0 | BE73: 0 | BF73: 0 | BG73: 0 | BH73: 0 | BI73: 0 | BJ73: 0 | BK73: 0 | BL73: 0 | BM73: 0 | BN73: 0 | BO73: 0 | BP73: 0 | BQ73: 0 | BR73: 0 | BS73: 0
D74: Inverse of Filling Rate in Minutes/kg | G74: Minute/kg | H74: =MAX(N74:BS74) -> 0.03327304398 | K74: =MAX(N74:BS74) -> 0.03327304398 | N74: =IF(N73,1/N73) -> FALSE | O74: FALSE | P74: FALSE | Q74: FALSE | R74: FALSE | S74: FALSE | T74: FALSE | U74: FALSE | V74: FALSE | W74: FALSE | X74: FALSE | Y74: FALSE | Z74: 0.03327304398 | AA74: 0.03327304398 | AB74: 0.03327304398 | AC74: 0.03327304398 | AD74: 0.03327304398 | AE74: 0.03327304398 | AF74: 0.03327304398 | AG74: 0.03327304398 | AH74: 0.03327304398 | AI74: 0.03327304398 | AJ74: 0.03327304398 | AK74: 0.03327304398 | AL74: 0.03327304398 | AM74: 0.03327304398 | AN74: 0.03327304398 | AO74: 0.03327304398 | AP74: 0.03327304398 | AQ74: 0.03327304398 | AR74: 0.03327304398 | AS74: 0.03327304398 | AT74: =IF(AT73,1/AT73) -> 0.03327304398 | AU74: 0.03327304398 | AV74: 0.03327304398 | AW74: 0.03327304398 | AX74: 0.03327304398 | AY74: 0.03327304398 | AZ74: 0.03327304398 | BA74: 0.03327304398 | BB74: 0.03327304398 | BC74: 0.03327304398 | BD74: FALSE | BE74: FALSE | BF74: FALSE | BG74: FALSE | BH74: FALSE | BI74: FALSE | BJ74: FALSE | BK74: FALSE | BL74: FALSE | BM74: FALSE | BN74: FALSE | BO74: FALSE | BP74: FALSE | BQ74: FALSE | BR74: FALSE | BS74: FALSE
C76: Time Required per Truck
D77: Dempand per Hour in kg for All Trucks | G77: CNG kg/Hour | K77: =MAX(N77:BS77) -> 225.4076905 | N77: =N29 -> 225.4076905 | O77: 225.4076905 | P77: 225.4076905 | Q77: 225.4076905 | R77: 225.4076905 | S77: 225.4076905 | T77: 225.4076905 | U77: 225.4076905 | V77: 225.4076905 | W77: 225.4076905 | X77: 225.4076905 | Y77: 225.4076905 | Z77: 225.4076905 | AA77: 225.4076905 | AB77: 225.4076905 | AC77: 225.4076905 | AD77: 225.4076905 | AE77: 225.4076905 | AF77: 225.4076905 | AG77: 225.4076905 | AH77: 225.4076905 | AI77: 225.4076905 | AJ77: 225.4076905 | AK77: 225.4076905 | AL77: 225.4076905 | AM77: 225.4076905 | AN77: 225.4076905 | AO77: 225.4076905 | AP77: 225.4076905 | AQ77: 225.4076905 | AR77: 225.4076905 | AS77: 225.4076905 | AT77: =AT29 -> 225.4076905 | AU77: 225.4076905 | AV77: 225.4076905 | AW77: 225.4076905 | AX77: 225.4076905 | AY77: 225.4076905 | AZ77: 225.4076905 | BA77: 225.4076905 | BB77: 225.4076905 | BC77: 225.4076905 | BD77: 225.4076905 | BE77: 225.4076905 | BF77: 225.4076905 | BG77: 225.4076905 | BH77: 225.4076905 | BI77: 225.4076905 | BJ77: 225.4076905 | BK77: 225.4076905 | BL77: 225.4076905 | BM77: 225.4076905 | BN77: 225.4076905 | BO77: 225.4076905 | BP77: 225.4076905 | BQ77: 225.4076905 | BR77: 225.4076905 | BS77: 225.4076905
D78: Total Required kg per Day for All Trucks | G78: CNG kg/Day | H78: 24 | K78: =MAX(Z78:BS78) -> 5409.784572 | L78: =L80*L79 -> 5400 | N78: =N29*$H$78 -> 5409.784572 | O78: 5409.784572 | P78: 5409.784572 | Q78: 5409.784572 | R78: 5409.784572 | S78: 5409.784572 | T78: 5409.784572 | U78: 5409.784572 | V78: 5409.784572 | W78: 5409.784572 | X78: 5409.784572 | Y78: 5409.784572 | Z78: 5409.784572 | AA78: 5409.784572 | AB78: 5409.784572 | AC78: 5409.784572 | AD78: 5409.784572 | AE78: 5409.784572 | AF78: 5409.784572 | AG78: 5409.784572 | AH78: 5409.784572 | AI78: 5409.784572 | AJ78: 5409.784572 | AK78: 5409.784572 | AL78: 5409.784572 | AM78: 5409.784572 | AN78: 5409.784572 | AO78: 5409.784572 | AP78: 5409.784572 | AQ78: 5409.784572 | AR78: 5409.784572 | AS78: 5409.784572 | AT78: =AT29*$H$78 -> 5409.784572 | AU78: 5409.784572 | AV78: 5409.784572 | AW78: 5409.784572 | AX78: 5409.784572 | AY78: 5409.784572 | AZ78: 5409.784572 | BA78: 5409.784572 | BB78: 5409.784572 | BC78: 5409.784572 | BD78: 5409.784572 | BE78: 5409.784572 | BF78: 5409.784572 | BG78: 5409.784572 | BH78: 5409.784572 | BI78: 5409.784572 | BJ78: 5409.784572 | BK78: 5409.784572 | BL78: 5409.784572 | BM78: 5409.784572 | BN78: 5409.784572 | BO78: 5409.784572 | BP78: 5409.784572 | BQ78: 5409.784572 | BR78: 5409.784572 | BS78: 5409.784572
D79: Total Trucks | G79: Number | K79: =MAX(Z79:BS79) -> 50 | L79: =K79 -> 50 | N79: =N19 -> 0 | O79: 0 | P79: 0 | Q79: 0 | R79: 0 | S79: 0 | T79: 0 | U79: 0 | V79: 0 | W79: 0 | X79: 0 | Y79: 0 | Z79: 50 | AA79: 50 | AB79: 50 | AC79: 50 | AD79: 50 | AE79: 50 | AF79: 50 | AG79: 50 | AH79: 50 | AI79: 50 | AJ79: 50 | AK79: 50 | AL79: 50 | AM79: 50 | AN79: 50 | AO79: 50 | AP79: 50 | AQ79: 50 | AR79: 50 | AS79: 50 | AT79: =AT19 -> 50 | AU79: 50 | AV79: 50 | AW79: 50 | AX79: 50 | AY79: 50 | AZ79: 50 | BA79: 50 | BB79: 50 | BC79: 50 | BD79: 0 | BE79: 0 | BF79: 0 | BG79: 0 | BH79: 0 | BI79: 0 | BJ79: 0 | BK79: 0 | BL79: 0 | BM79: 0 | BN79: 0 | BO79: 0 | BP79: 0 | BQ79: 0 | BR79: 0 | BS79: 0
D80: Required kg per Day per Truck | G80: kg/Truck/Day | K80: =MAX(Z80:BS80) -> 108.1956914 | L80: 108 | N80: =IF(N79,N78/N79)*1 -> 0 | O80: 0 | P80: 0 | Q80: 0 | R80: 0 | S80: 0 | T80: 0 | U80: 0 | V80: 0 | W80: 0 | X80: 0 | Y80: 0 | Z80: 108.1956914 | AA80: 108.1956914 | AB80: 108.1956914 | AC80: 108.1956914 | AD80: 108.1956914 | AE80: 108.1956914 | AF80: 108.1956914 | AG80: 108.1956914 | AH80: 108.1956914 | AI80: 108.1956914 | AJ80: 108.1956914 | AK80: 108.1956914 | AL80: 108.1956914 | AM80: 108.1956914 | AN80: 108.1956914 | AO80: 108.1956914 | AP80: 108.1956914 | AQ80: 108.1956914 | AR80: 108.1956914 | AS80: 108.1956914 | AT80: =IF(AT79,AT78/AT79)*1 -> 108.1956914 | AU80: 108.1956914 | AV80: 108.1956914 | AW80: 108.1956914 | AX80: 108.1956914 | AY80: 108.1956914 | AZ80: 108.1956914 | BA80: 108.1956914 | BB80: 108.1956914 | BC80: 108.1956914 | BD80: 0 | BE80: 0 | BF80: 0 | BG80: 0 | BH80: 0 | BI80: 0 | BJ80: 0 | BK80: 0 | BL80: 0 | BM80: 0 | BN80: 0 | BO80: 0 | BP80: 0 | BQ80: 0 | BR80: 0 | BS80: 0
D81: Minutes of Filling per Day/Truck | G81: Minutes/Day | K81: =MAX(N81:BS81) -> 3.6 | N81: =N80*N74 -> 0 | O81: 0 | P81: 0 | Q81: 0 | R81: 0 | S81: 0 | T81: 0 | U81: 0 | V81: 0 | W81: 0 | X81: 0 | Y81: 0 | Z81: 3.6 | AA81: 3.6 | AB81: 3.6 | AC81: 3.6 | AD81: 3.6 | AE81: 3.6 | AF81: 3.6 | AG81: 3.6 | AH81: 3.6 | AI81: 3.6 | AJ81: 3.6 | AK81: 3.6 | AL81: 3.6 | AM81: 3.6 | AN81: 3.6 | AO81: 3.6 | AP81: 3.6 | AQ81: 3.6 | AR81: 3.6 | AS81: 3.6 | AT81: =AT80*AT74 -> 3.6 | AU81: 3.6 | AV81: 3.6 | AW81: 3.6 | AX81: 3.6 | AY81: 3.6 | AZ81: 3.6 | BA81: 3.6 | BB81: 3.6 | BC81: 3.6 | BD81: 0 | BE81: 0 | BF81: 0 | BG81: 0 | BH81: 0 | BI81: 0 | BJ81: 0 | BK81: 0 | BL81: 0 | BM81: 0 | BN81: 0 | BO81: 0 | BP81: 0 | BQ81: 0 | BR81: 0 | BS81: 0
C83: Number of Fillings per Truck and Amount per Truck
D84: Tank Size in Litres | G84: Litres | K84: =MAX(N84:BS84) ->  | N84: =#REF! ->  | O84: =#REF! ->  | P84: =#REF! ->  | Q84: =#REF! ->  | R84: =#REF! ->  | S84: =#REF! ->  | T84: =#REF! ->  | U84: =#REF! ->  | V84: =#REF! ->  | W84: =#REF! ->  | X84: =#REF! ->  | Y84: =#REF! ->  | Z84: =#REF! ->  | AA84: =#REF! ->  | AB84: =#REF! ->  | AC84: =#REF! ->  | AD84: =#REF! ->  | AE84: =#REF! ->  | AF84: =#REF! ->  | AG84: =#REF! ->  | AH84: =#REF! ->  | AI84: =#REF! ->  | AJ84: =#REF! ->  | AK84: =#REF! ->  | AL84: =#REF! ->  | AM84: =#REF! ->  | AN84: =#REF! ->  | AO84: =#REF! ->  | AP84: =#REF! ->  | AQ84: =#REF! ->  | AR84: =#REF! ->  | AS84: =#REF! ->  | AT84: =#REF! ->  | AU84: =#REF! ->  | AV84: =#REF! ->  | AW84: =#REF! ->  | AX84: =#REF! ->  | AY84: =#REF! ->  | AZ84: =#REF! ->  | BA84: =#REF! ->  | BB84: =#REF! ->  | BC84: =#REF! ->  | BD84: =#REF! ->  | BE84: =#REF! ->  | BF84: =#REF! ->  | BG84: =#REF! ->  | BH84: =#REF! ->  | BI84: =#REF! ->  | BJ84: =#REF! ->  | BK84: =#REF! ->  | BL84: =#REF! ->  | BM84: =#REF! ->  | BN84: =#REF! ->  | BO84: =#REF! ->  | BP84: =#REF! ->  | BQ84: =#REF! ->  | BR84: =#REF! ->  | BS84: =#REF! -> 
D85: Converstion Litres to kG | G85: kg/Litre | K85: =K86/K84 ->  | N85: =$K$85 ->  | AT85: =$K$85 -> 
D86: Tank Size per Truck | G86: kg | H86: =Inputs!F133 -> 60.693114 | K86: =MAX(Z86:BS86) -> 60.693114 | N86: =$H$86 -> 60.693114 | O86: 60.693114 | P86: 60.693114 | Q86: 60.693114 | R86: 60.693114 | S86: 60.693114 | T86: 60.693114 | U86: 60.693114 | V86: 60.693114 | W86: 60.693114 | X86: 60.693114 | Y86: 60.693114 | Z86: 60.693114 | AA86: 60.693114 | AB86: 60.693114 | AC86: 60.693114 | AD86: 60.693114 | AE86: 60.693114 | AF86: 60.693114 | AG86: 60.693114 | AH86: 60.693114 | AI86: 60.693114 | AJ86: 60.693114 | AK86: 60.693114 | AL86: 60.693114 | AM86: 60.693114 | AN86: 60.693114 | AO86: 60.693114 | AP86: 60.693114 | AQ86: 60.693114 | AR86: 60.693114 | AS86: 60.693114 | AT86: =$H$86 -> 60.693114 | AU86: 60.693114 | AV86: 60.693114 | AW86: 60.693114 | AX86: 60.693114 | AY86: 60.693114 | AZ86: 60.693114 | BA86: 60.693114 | BB86: 60.693114 | BC86: 60.693114 | BD86: 60.693114 | BE86: 60.693114 | BF86: 60.693114 | BG86: 60.693114 | BH86: 60.693114 | BI86: 60.693114 | BJ86: 60.693114 | BK86: 60.693114 | BL86: 60.693114 | BM86: 60.693114 | BN86: 60.693114 | BO86: 60.693114 | BP86: 60.693114 | BQ86: 60.693114 | BR86: 60.693114 | BS86: 60.693114
D87: Required Two Fillings | G87: Flag | K87: =MAX(N87:BS87) -> 1 | N87: =(N80>N86)*1 -> 0 | O87: 0 | P87: 0 | Q87: 0 | R87: 0 | S87: 0 | T87: 0 | U87: 0 | V87: 0 | W87: 0 | X87: 0 | Y87: 0 | Z87: 1 | AA87: 1 | AB87: 1 | AC87: 1 | AD87: 1 | AE87: 1 | AF87: 1 | AG87: 1 | AH87: 1 | AI87: 1 | AJ87: 1 | AK87: 1 | AL87: 1 | AM87: 1 | AN87: 1 | AO87: 1 | AP87: 1 | AQ87: 1 | AR87: 1 | AS87: 1 | AT87: =(AT80>AT86)*1 -> 1 | AU87: 1 | AV87: 1 | AW87: 1 | AX87: 1 | AY87: 1 | AZ87: 1 | BA87: 1 | BB87: 1 | BC87: 1 | BD87: 0 | BE87: 0 | BF87: 0 | BG87: 0 | BH87: 0 | BI87: 0 | BJ87: 0 | BK87: 0 | BL87: 0 | BM87: 0 | BN87: 0 | BO87: 0 | BP87: 0 | BQ87: 0 | BR87: 0 | BS87: 0
D88: Required Fillings | G88: Number | K88: =MAX(Z88:BS88) -> 2 | N88: =IF(N87,2,1)*N8 -> 0 | O88: 0 | P88: 0 | Q88: 0 | R88: 0 | S88: 0 | T88: 0 | U88: 0 | V88: 0 | W88: 0 | X88: 0 | Y88: 0 | Z88: 2 | AA88: 2 | AB88: 2 | AC88: 2 | AD88: 2 | AE88: 2 | AF88: 2 | AG88: 2 | AH88: 2 | AI88: 2 | AJ88: 2 | AK88: 2 | AL88: 2 | AM88: 2 | AN88: 2 | AO88: 2 | AP88: 2 | AQ88: 2 | AR88: 2 | AS88: 2 | AT88: =IF(AT87,2,1)*AT8 -> 2 | AU88: 2 | AV88: 2 | AW88: 2 | AX88: 2 | AY88: 2 | AZ88: 2 | BA88: 2 | BB88: 2 | BC88: 2 | BD88: 0 | BE88: 0 | BF88: 0 | BG88: 0 | BH88: 0 | BI88: 0 | BJ88: 0 | BK88: 0 | BL88: 0 | BM88: 0 | BN88: 0 | BO88: 0 | BP88: 0 | BQ88: 0 | BR88: 0 | BS88: 0
D89: kg for each Filling for each Truck | G89: kg | K89: =MAX(N89:BS89) -> 54.09784572 | N89: =IF(N88,N80/N88) -> FALSE | O89: FALSE | P89: FALSE | Q89: FALSE | R89: FALSE | S89: FALSE | T89: FALSE | U89: FALSE | V89: FALSE | W89: FALSE | X89: FALSE | Y89: FALSE | Z89: 54.09784572 | AA89: 54.09784572 | AB89: 54.09784572 | AC89: 54.09784572 | AD89: 54.09784572 | AE89: 54.09784572 | AF89: 54.09784572 | AG89: 54.09784572 | AH89: 54.09784572 | AI89: 54.09784572 | AJ89: 54.09784572 | AK89: 54.09784572 | AL89: 54.09784572 | AM89: 54.09784572 | AN89: 54.09784572 | AO89: 54.09784572 | AP89: 54.09784572 | AQ89: 54.09784572 | AR89: 54.09784572 | AS89: 54.09784572 | AT89: =IF(AT88,AT80/AT88) -> 54.09784572 | AU89: 54.09784572 | AV89: 54.09784572 | AW89: 54.09784572 | AX89: 54.09784572 | AY89: 54.09784572 | AZ89: 54.09784572 | BA89: 54.09784572 | BB89: 54.09784572 | BC89: 54.09784572 | BD89: FALSE | BE89: FALSE | BF89: FALSE | BG89: FALSE | BH89: FALSE | BI89: FALSE | BJ89: FALSE | BK89: FALSE | BL89: FALSE | BM89: FALSE | BN89: FALSE | BO89: FALSE | BP89: FALSE | BQ89: FALSE | BR89: FALSE | BS89: FALSE
C91: Required Minutes for All Fillings
D92: Total Trucks - Repeated | G92: Number | K92: =MAX(N92:BS92) -> 50 | N92: =N79 -> 0 | O92: 0 | P92: 0 | Q92: 0 | R92: 0 | S92: 0 | T92: 0 | U92: 0 | V92: 0 | W92: 0 | X92: 0 | Y92: 0 | Z92: 50 | AA92: 50 | AB92: 50 | AC92: 50 | AD92: 50 | AE92: 50 | AF92: 50 | AG92: 50 | AH92: 50 | AI92: 50 | AJ92: 50 | AK92: 50 | AL92: 50 | AM92: 50 | AN92: 50 | AO92: 50 | AP92: 50 | AQ92: 50 | AR92: 50 | AS92: 50 | AT92: =AT79 -> 50 | AU92: 50 | AV92: 50 | AW92: 50 | AX92: 50 | AY92: 50 | AZ92: 50 | BA92: 50 | BB92: 50 | BC92: 50 | BD92: 0 | BE92: 0 | BF92: 0 | BG92: 0 | BH92: 0 | BI92: 0 | BJ92: 0 | BK92: 0 | BL92: 0 | BM92: 0 | BN92: 0 | BO92: 0 | BP92: 0 | BQ92: 0 | BR92: 0 | BS92: 0
D93: Minutes of Filling per Truck without Manovering for All Trucks | G93: Minutes | K93: =MAX(Z93:BS93) -> 180 | N93: =N92*N81 -> 0 | O93: 0 | P93: 0 | Q93: 0 | R93: 0 | S93: 0 | T93: 0 | U93: 0 | V93: 0 | W93: 0 | X93: 0 | Y93: 0 | Z93: 180 | AA93: 180 | AB93: 180 | AC93: 180 | AD93: 180 | AE93: 180 | AF93: 180 | AG93: 180 | AH93: 180 | AI93: 180 | AJ93: 180 | AK93: 180 | AL93: 180 | AM93: 180 | AN93: 180 | AO93: 180 | AP93: 180 | AQ93: 180 | AR93: 180 | AS93: 180 | AT93: =AT92*AT81 -> 180 | AU93: 180 | AV93: 180 | AW93: 180 | AX93: 180 | AY93: 180 | AZ93: 180 | BA93: 180 | BB93: 180 | BC93: 180 | BD93: 0 | BE93: 0 | BF93: 0 | BG93: 0 | BH93: 0 | BI93: 0 | BJ93: 0 | BK93: 0 | BL93: 0 | BM93: 0 | BN93: 0 | BO93: 0 | BP93: 0 | BQ93: 0 | BR93: 0 | BS93: 0
D94: Minutes per Filling (Accounting for Multiple Fillings) | G94: Minutes/Fill | K94: =MAX(Z94:BS94) -> 1.8 | N94: =IFERROR(N93/(N88*N79),0) -> 0 | O94: 0 | P94: 0 | Q94: 0 | R94: 0 | S94: 0 | T94: 0 | U94: 0 | V94: 0 | W94: 0 | X94: 0 | Y94: 0 | Z94: 1.8 | AA94: 1.8 | AB94: 1.8 | AC94: 1.8 | AD94: 1.8 | AE94: 1.8 | AF94: 1.8 | AG94: 1.8 | AH94: 1.8 | AI94: 1.8 | AJ94: 1.8 | AK94: 1.8 | AL94: 1.8 | AM94: 1.8 | AN94: 1.8 | AO94: 1.8 | AP94: 1.8 | AQ94: 1.8 | AR94: 1.8 | AS94: 1.8 | AT94: =IFERROR(AT93/(AT88*AT79),0) -> 1.8 | AU94: 1.8 | AV94: 1.8 | AW94: 1.8 | AX94: 1.8 | AY94: 1.8 | AZ94: 1.8 | BA94: 1.8 | BB94: 1.8 | BC94: 1.8 | BD94: 0 | BE94: 0 | BF94: 0 | BG94: 0 | BH94: 0 | BI94: 0 | BJ94: 0 | BK94: 0 | BL94: 0 | BM94: 0 | BN94: 0 | BO94: 0 | BP94: 0 | BQ94: 0 | BR94: 0 | BS94: 0
D95: Manouvering Time per truck | G95: Minutes | H95: =Inputs!F128 -> 1.5 | K95: =MAX(Z95:BS95) -> 1.5 | N95: =$H$95 -> 1.5 | O95: 1.5 | P95: 1.5 | Q95: 1.5 | R95: 1.5 | S95: 1.5 | T95: 1.5 | U95: 1.5 | V95: 1.5 | W95: 1.5 | X95: 1.5 | Y95: 1.5 | Z95: 1.5 | AA95: 1.5 | AB95: 1.5 | AC95: 1.5 | AD95: 1.5 | AE95: 1.5 | AF95: 1.5 | AG95: 1.5 | AH95: 1.5 | AI95: 1.5 | AJ95: 1.5 | AK95: 1.5 | AL95: 1.5 | AM95: 1.5 | AN95: 1.5 | AO95: 1.5 | AP95: 1.5 | AQ95: 1.5 | AR95: 1.5 | AS95: 1.5 | AT95: =$H$95 -> 1.5 | AU95: 1.5 | AV95: 1.5 | AW95: 1.5 | AX95: 1.5 | AY95: 1.5 | AZ95: 1.5 | BA95: 1.5 | BB95: 1.5 | BC95: 1.5 | BD95: 1.5 | BE95: 1.5 | BF95: 1.5 | BG95: 1.5 | BH95: 1.5 | BI95: 1.5 | BJ95: 1.5 | BK95: 1.5 | BL95: 1.5 | BM95: 1.5 | BN95: 1.5 | BO95: 1.5 | BP95: 1.5 | BQ95: 1.5 | BR95: 1.5 | BS95: 1.5
D96: Total Required Minutes per Truck per Fill | G96: Minutes | K96: =MAX(Z96:BS96) -> 3.3 | N96: =N94+N95 -> 1.5 | O96: 1.5 | P96: 1.5 | Q96: 1.5 | R96: 1.5 | S96: 1.5 | T96: 1.5 | U96: 1.5 | V96: 1.5 | W96: 1.5 | X96: 1.5 | Y96: 1.5 | Z96: 3.3 | AA96: 3.3 | AB96: 3.3 | AC96: 3.3 | AD96: 3.3 | AE96: 3.3 | AF96: 3.3 | AG96: 3.3 | AH96: 3.3 | AI96: 3.3 | AJ96: 3.3 | AK96: 3.3 | AL96: 3.3 | AM96: 3.3 | AN96: 3.3 | AO96: 3.3 | AP96: 3.3 | AQ96: 3.3 | AR96: 3.3 | AS96: 3.3 | AT96: =AT94+AT95 -> 3.3 | AU96: 3.3 | AV96: 3.3 | AW96: 3.3 | AX96: 3.3 | AY96: 3.3 | AZ96: 3.3 | BA96: 3.3 | BB96: 3.3 | BC96: 3.3 | BD96: 1.5 | BE96: 1.5 | BF96: 1.5 | BG96: 1.5 | BH96: 1.5 | BI96: 1.5 | BJ96: 1.5 | BK96: 1.5 | BL96: 1.5 | BM96: 1.5 | BN96: 1.5 | BO96: 1.5 | BP96: 1.5 | BQ96: 1.5 | BR96: 1.5 | BS96: 1.5
D97: Total Required Time for all filings | G97: Minutes | K97: =MAX(Z97:BS97) -> 330 | N97: =N96*N79*N88 -> 0 | O97: 0 | P97: 0 | Q97: 0 | R97: 0 | S97: 0 | T97: 0 | U97: 0 | V97: 0 | W97: 0 | X97: 0 | Y97: 0 | Z97: 330 | AA97: 330 | AB97: 330 | AC97: 330 | AD97: 330 | AE97: 330 | AF97: 330 | AG97: 330 | AH97: 330 | AI97: 330 | AJ97: 330 | AK97: 330 | AL97: 330 | AM97: 330 | AN97: 330 | AO97: 330 | AP97: 330 | AQ97: 330 | AR97: 330 | AS97: 330 | AT97: =AT96*AT79*AT88 -> 330 | AU97: 330 | AV97: 330 | AW97: 330 | AX97: 330 | AY97: 330 | AZ97: 330 | BA97: 330 | BB97: 330 | BC97: 330 | BD97: 0 | BE97: 0 | BF97: 0 | BG97: 0 | BH97: 0 | BI97: 0 | BJ97: 0 | BK97: 0 | BL97: 0 | BM97: 0 | BN97: 0 | BO97: 0 | BP97: 0 | BQ97: 0 | BR97: 0 | BS97: 0
C99: Required Nozzels
D100: Target Time for Filling all trucks in a day | G100: Minutes | H100: =Inputs!F131 -> 60 | K100: =MAX(BS100) -> 60 | N100: =$H$100 -> 60 | O100: 60 | P100: 60 | Q100: 60 | R100: 60 | S100: 60 | T100: 60 | U100: 60 | V100: 60 | W100: 60 | X100: 60 | Y100: 60 | Z100: 60 | AA100: 60 | AB100: 60 | AC100: 60 | AD100: 60 | AE100: 60 | AF100: 60 | AG100: 60 | AH100: 60 | AI100: 60 | AJ100: 60 | AK100: 60 | AL100: 60 | AM100: 60 | AN100: 60 | AO100: 60 | AP100: 60 | AQ100: 60 | AR100: 60 | AS100: 60 | AT100: =$H$100 -> 60 | AU100: 60 | AV100: 60 | AW100: 60 | AX100: 60 | AY100: 60 | AZ100: 60 | BA100: 60 | BB100: 60 | BC100: 60 | BD100: 60 | BE100: 60 | BF100: 60 | BG100: 60 | BH100: 60 | BI100: 60 | BJ100: 60 | BK100: 60 | BL100: 60 | BM100: 60 | BN100: 60 | BO100: 60 | BP100: 60 | BQ100: 60 | BR100: 60 | BS100: 60
D101: Required Pumps for Filling before rounding | G101: Pumps | K101: =MAX(N101:BS101) -> 5.5 | N101: =N97/N100 -> 0 | O101: 0 | P101: 0 | Q101: 0 | R101: 0 | S101: 0 | T101: 0 | U101: 0 | V101: 0 | W101: 0 | X101: 0 | Y101: 0 | Z101: 5.5 | AA101: 5.5 | AB101: 5.5 | AC101: 5.5 | AD101: 5.5 | AE101: 5.5 | AF101: 5.5 | AG101: 5.5 | AH101: 5.5 | AI101: 5.5 | AJ101: 5.5 | AK101: 5.5 | AL101: 5.5 | AM101: 5.5 | AN101: 5.5 | AO101: 5.5 | AP101: 5.5 | AQ101: 5.5 | AR101: 5.5 | AS101: 5.5 | AT101: =AT97/AT100 -> 5.5 | AU101: 5.5 | AV101: 5.5 | AW101: 5.5 | AX101: 5.5 | AY101: 5.5 | AZ101: 5.5 | BA101: 5.5 | BB101: 5.5 | BC101: 5.5 | BD101: 0 | BE101: 0 | BF101: 0 | BG101: 0 | BH101: 0 | BI101: 0 | BJ101: 0 | BK101: 0 | BL101: 0 | BM101: 0 | BN101: 0 | BO101: 0 | BP101: 0 | BQ101: 0 | BR101: 0 | BS101: 0
D102: Rounded Pumps | G102: Pumps | K102: =MAX(N102:BS102) -> 6 | N102: =ROUNDUP(N101,0) -> 0 | O102: 0 | P102: 0 | Q102: 0 | R102: 0 | S102: 0 | T102: 0 | U102: 0 | V102: 0 | W102: 0 | X102: 0 | Y102: 0 | Z102: 6 | AA102: 6 | AB102: 6 | AC102: 6 | AD102: 6 | AE102: 6 | AF102: 6 | AG102: 6 | AH102: 6 | AI102: 6 | AJ102: 6 | AK102: 6 | AL102: 6 | AM102: 6 | AN102: 6 | AO102: 6 | AP102: 6 | AQ102: 6 | AR102: 6 | AS102: 6 | AT102: =ROUNDUP(AT101,0) -> 6 | AU102: 6 | AV102: 6 | AW102: 6 | AX102: 6 | AY102: 6 | AZ102: 6 | BA102: 6 | BB102: 6 | BC102: 6 | BD102: 0 | BE102: 0 | BF102: 0 | BG102: 0 | BH102: 0 | BI102: 0 | BJ102: 0 | BK102: 0 | BL102: 0 | BM102: 0 | BN102: 0 | BO102: 0 | BP102: 0 | BQ102: 0 | BR102: 0 | BS102: 0
D103: Minutes Used Per Pump Per Filling | G103: Minutes | K103: =MAX(N103:BS103) -> 55 | N103: =IF(N102,N97/N102) -> FALSE | O103: FALSE | P103: FALSE | Q103: FALSE | R103: FALSE | S103: FALSE | T103: FALSE | U103: FALSE | V103: FALSE | W103: FALSE | X103: FALSE | Y103: FALSE | Z103: 55 | AA103: 55 | AB103: 55 | AC103: 55 | AD103: 55 | AE103: 55 | AF103: 55 | AG103: 55 | AH103: 55 | AI103: 55 | AJ103: 55 | AK103: 55 | AL103: 55 | AM103: 55 | AN103: 55 | AO103: 55 | AP103: 55 | AQ103: 55 | AR103: 55 | AS103: 55 | AT103: =IF(AT102,AT97/AT102) -> 55 | AU103: 55 | AV103: 55 | AW103: 55 | AX103: 55 | AY103: 55 | AZ103: 55 | BA103: 55 | BB103: 55 | BC103: 55 | BD103: FALSE | BE103: FALSE | BF103: FALSE | BG103: FALSE | BH103: FALSE | BI103: FALSE | BJ103: FALSE | BK103: FALSE | BL103: FALSE | BM103: FALSE | BN103: FALSE | BO103: FALSE | BP103: FALSE | BQ103: FALSE | BR103: FALSE | BS103: FALSE
D105: Applied Number of Nozzels | G105: Nozzels | H105: =Inputs!F122 -> 6 | K105: =MAX(Z105:BS105) -> 6 | N105: =IF(N102<$H$105,$H$105,N102) -> 6 | O105: 6 | P105: 6 | Q105: 6 | R105: 6 | S105: 6 | T105: 6 | U105: 6 | V105: 6 | W105: 6 | X105: 6 | Y105: 6 | Z105: 6 | AA105: 6 | AB105: 6 | AC105: 6 | AD105: 6 | AE105: 6 | AF105: 6 | AG105: 6 | AH105: 6 | AI105: 6 | AJ105: 6 | AK105: 6 | AL105: 6 | AM105: 6 | AN105: 6 | AO105: 6 | AP105: 6 | AQ105: 6 | AR105: 6 | AS105: 6 | AT105: =IF(AT102<$H$105,$H$105,AT102) -> 6 | AU105: 6 | AV105: 6 | AW105: 6 | AX105: 6 | AY105: 6 | AZ105: 6 | BA105: 6 | BB105: 6 | BC105: 6 | BD105: 6 | BE105: 6 | BF105: 6 | BG105: 6 | BH105: 6 | BI105: 6 | BJ105: 6 | BK105: 6 | BL105: 6 | BM105: 6 | BN105: 6 | BO105: 6 | BP105: 6 | BQ105: 6 | BR105: 6 | BS105: 6
B107: Potential Electricity Generation from Biogas to Compute Size of Electricity Plant in kW
C108: Biogas Flow from Lagoon (Could be Used for Electricity) | G108: M3/Hour | H108: =Inputs!F88 -> 507 | N108: =$H$108*N8 -> 0 | O108: 0 | P108: 0 | Q108: 0 | R108: 0 | S108: 0 | T108: 0 | U108: 0 | V108: 0 | W108: 0 | X108: 0 | Y108: 0 | Z108: 507 | AA108: 507 | AB108: 507 | AC108: 507 | AD108: 507 | AE108: 507 | AF108: 507 | AG108: 507 | AH108: 507 | AI108: 507 | AJ108: 507 | AK108: 507 | AL108: 507 | AM108: 507 | AN108: 507 | AO108: 507 | AP108: 507 | AQ108: 507 | AR108: 507 | AS108: 507 | AT108: =$H$108*AT8 -> 507 | AU108: 507 | AV108: 507 | AW108: 507 | AX108: 507 | AY108: 507 | AZ108: 507 | BA108: 507 | BB108: 507 | BC108: 507 | BD108: 0 | BE108: 0 | BF108: 0 | BG108: 0 | BH108: 0 | BI108: 0 | BJ108: 0 | BK108: 0 | BL108: 0 | BM108: 0 | BN108: 0 | BO108: 0 | BP108: 0 | BQ108: 0 | BR108: 0 | BS108: 0
C109: Average production per hour from tons and biogas % | G109: M3/Hour | H109: =H34*H40*H42 -> 1170 | N109: =$H$109 -> 1170 | O109: 1170 | P109: 1170 | Q109: 1170 | R109: 1170 | S109: 1170 | T109: 1170 | U109: 1170 | V109: 1170 | W109: 1170 | X109: 1170 | Y109: 1170 | Z109: 1170 | AA109: 1170 | AB109: 1170 | AC109: 1170 | AD109: 1170 | AE109: 1170 | AF109: 1170 | AG109: 1170 | AH109: 1170 | AI109: 1170 | AJ109: 1170 | AK109: 1170 | AL109: 1170 | AM109: 1170 | AN109: 1170 | AO109: 1170 | AP109: 1170 | AQ109: 1170 | AR109: 1170 | AS109: 1170 | AT109: =$H$109 -> 1170 | AU109: 1170 | AV109: 1170 | AW109: 1170 | AX109: 1170 | AY109: 1170 | AZ109: 1170 | BA109: 1170 | BB109: 1170 | BC109: 1170 | BD109: 1170 | BE109: 1170 | BF109: 1170 | BG109: 1170 | BH109: 1170 | BI109: 1170 | BJ109: 1170 | BK109: 1170 | BL109: 1170 | BM109: 1170 | BN109: 1170 | BO109: 1170 | BP109: 1170 | BQ109: 1170 | BR109: 1170 | BS109: 1170
C111: Available Energy for Upgrader Production from Biogas
D112: Operating Hours of Mill per year (Above) | G112: Hours per Year | H112: =Inputs!F80 -> 8059.2 | K112: =SUM(N112:BS112) -> 467433.6 | N112: =$H$112 -> 8059.2 | O112: 8059.2 | P112: 8059.2 | Q112: 8059.2 | R112: 8059.2 | S112: 8059.2 | T112: 8059.2 | U112: 8059.2 | V112: 8059.2 | W112: 8059.2 | X112: 8059.2 | Y112: 8059.2 | Z112: 8059.2 | AA112: 8059.2 | AB112: 8059.2 | AC112: 8059.2 | AD112: 8059.2 | AE112: 8059.2 | AF112: 8059.2 | AG112: 8059.2 | AH112: 8059.2 | AI112: 8059.2 | AJ112: 8059.2 | AK112: 8059.2 | AL112: 8059.2 | AM112: 8059.2 | AN112: 8059.2 | AO112: 8059.2 | AP112: 8059.2 | AQ112: 8059.2 | AR112: 8059.2 | AS112: 8059.2 | AT112: =$H$112 -> 8059.2 | AU112: 8059.2 | AV112: 8059.2 | AW112: 8059.2 | AX112: 8059.2 | AY112: 8059.2 | AZ112: 8059.2 | BA112: 8059.2 | BB112: 8059.2 | BC112: 8059.2 | BD112: 8059.2 | BE112: 8059.2 | BF112: 8059.2 | BG112: 8059.2 | BH112: 8059.2 | BI112: 8059.2 | BJ112: 8059.2 | BK112: 8059.2 | BL112: 8059.2 | BM112: 8059.2 | BN112: 8059.2 | BO112: 8059.2 | BP112: 8059.2 | BQ112: 8059.2 | BR112: 8059.2 | BS112: 8059.2
D113: CNG Production as Fraction of Biogas Production | G113: % | H113: =Inputs!F101 -> 0.5919587629 | K113: =MAX(N113:BS113) -> 0.5919587629 | N113: =$H$113 -> 0.5919587629 | O113: 0.5919587629 | P113: 0.5919587629 | Q113: 0.5919587629 | R113: 0.5919587629 | S113: 0.5919587629 | T113: 0.5919587629 | U113: 0.5919587629 | V113: 0.5919587629 | W113: 0.5919587629 | X113: 0.5919587629 | Y113: 0.5919587629 | Z113: 0.5919587629 | AA113: 0.5919587629 | AB113: 0.5919587629 | AC113: 0.5919587629 | AD113: 0.5919587629 | AE113: 0.5919587629 | AF113: 0.5919587629 | AG113: 0.5919587629 | AH113: 0.5919587629 | AI113: 0.5919587629 | AJ113: 0.5919587629 | AK113: 0.5919587629 | AL113: 0.5919587629 | AM113: 0.5919587629 | AN113: 0.5919587629 | AO113: 0.5919587629 | AP113: 0.5919587629 | AQ113: 0.5919587629 | AR113: 0.5919587629 | AS113: 0.5919587629 | AT113: =$H$113 -> 0.5919587629 | AU113: 0.5919587629 | AV113: 0.5919587629 | AW113: 0.5919587629 | AX113: 0.5919587629 | AY113: 0.5919587629 | AZ113: 0.5919587629 | BA113: 0.5919587629 | BB113: 0.5919587629 | BC113: 0.5919587629 | BD113: 0.5919587629 | BE113: 0.5919587629 | BF113: 0.5919587629 | BG113: 0.5919587629 | BH113: 0.5919587629 | BI113: 0.5919587629 | BJ113: 0.5919587629 | BK113: 0.5919587629 | BL113: 0.5919587629 | BM113: 0.5919587629 | BN113: 0.5919587629 | BO113: 0.5919587629 | BP113: 0.5919587629 | BQ113: 0.5919587629 | BR113: 0.5919587629 | BS113: 0.5919587629
D114: Annual Total Available CNG Production for Electricity | G114: M3 per Year | K114: =MAX(N114:BS114) -> 2418752.029 | N114: =N108*N112*N113 -> 0 | O114: 0 | P114: 0 | Q114: 0 | R114: 0 | S114: 0 | T114: 0 | U114: 0 | V114: 0 | W114: 0 | X114: 0 | Y114: 0 | Z114: 2418752.029 | AA114: 2418752.029 | AB114: 2418752.029 | AC114: 2418752.029 | AD114: 2418752.029 | AE114: 2418752.029 | AF114: 2418752.029 | AG114: 2418752.029 | AH114: 2418752.029 | AI114: 2418752.029 | AJ114: 2418752.029 | AK114: 2418752.029 | AL114: 2418752.029 | AM114: 2418752.029 | AN114: 2418752.029 | AO114: 2418752.029 | AP114: 2418752.029 | AQ114: 2418752.029 | AR114: 2418752.029 | AS114: 2418752.029 | AT114: =AT108*AT112*AT113 -> 2418752.029 | AU114: 2418752.029 | AV114: 2418752.029 | AW114: 2418752.029 | AX114: 2418752.029 | AY114: 2418752.029 | AZ114: 2418752.029 | BA114: 2418752.029 | BB114: 2418752.029 | BC114: 2418752.029 | BD114: 0 | BE114: 0 | BF114: 0 | BG114: 0 | BH114: 0 | BI114: 0 | BJ114: 0 | BK114: 0 | BL114: 0 | BM114: 0 | BN114: 0 | BO114: 0 | BP114: 0 | BQ114: 0 | BR114: 0 | BS114: 0
D115: Are we not double counting the %
D116: Hourly Total Available CNG Production for During Upgrader | G116: M3 per Hour | H116: =H112 -> 8059.2 | K116: =MAX(N116:BS116) -> 300.1230928 | N116: =N114/$H$116 -> 0 | O116: 0 | P116: 0 | Q116: 0 | R116: 0 | S116: 0 | T116: 0 | U116: 0 | V116: 0 | W116: 0 | X116: 0 | Y116: 0 | Z116: 300.1230928 | AA116: 300.1230928 | AB116: 300.1230928 | AC116: 300.1230928 | AD116: 300.1230928 | AE116: 300.1230928 | AF116: 300.1230928 | AG116: 300.1230928 | AH116: 300.1230928 | AI116: 300.1230928 | AJ116: 300.1230928 | AK116: 300.1230928 | AL116: 300.1230928 | AM116: 300.1230928 | AN116: 300.1230928 | AO116: 300.1230928 | AP116: 300.1230928 | AQ116: 300.1230928 | AR116: 300.1230928 | AS116: 300.1230928 | AT116: =AT114/$H$116 -> 300.1230928 | AU116: 300.1230928 | AV116: 300.1230928 | AW116: 300.1230928 | AX116: 300.1230928 | AY116: 300.1230928 | AZ116: 300.1230928 | BA116: 300.1230928 | BB116: 300.1230928 | BC116: 300.1230928 | BD116: 0 | BE116: 0 | BF116: 0 | BG116: 0 | BH116: 0 | BI116: 0 | BJ116: 0 | BK116: 0 | BL116: 0 | BM116: 0 | BN116: 0 | BO116: 0 | BP116: 0 | BQ116: 0 | BR116: 0 | BS116: 0
C118: Amount of Electricity Potential from Lagoon Biogass and CNG
D119: Energy Value of Methane (Convert from M3/kWh) | G119: M3/kWh | H119: =Inputs!$F$185 -> 9.97 | K119: =MAX(N119:BS119) -> 9.97 | N119: =$H$119 -> 9.97 | O119: 9.97 | P119: 9.97 | Q119: 9.97 | R119: 9.97 | S119: 9.97 | T119: 9.97 | U119: 9.97 | V119: 9.97 | W119: 9.97 | X119: 9.97 | Y119: 9.97 | Z119: 9.97 | AA119: 9.97 | AB119: 9.97 | AC119: 9.97 | AD119: 9.97 | AE119: 9.97 | AF119: 9.97 | AG119: 9.97 | AH119: 9.97 | AI119: 9.97 | AJ119: 9.97 | AK119: 9.97 | AL119: 9.97 | AM119: 9.97 | AN119: 9.97 | AO119: 9.97 | AP119: 9.97 | AQ119: 9.97 | AR119: 9.97 | AS119: 9.97 | AT119: =$H$119 -> 9.97 | AU119: 9.97 | AV119: 9.97 | AW119: 9.97 | AX119: 9.97 | AY119: 9.97 | AZ119: 9.97 | BA119: 9.97 | BB119: 9.97 | BC119: 9.97 | BD119: 9.97 | BE119: 9.97 | BF119: 9.97 | BG119: 9.97 | BH119: 9.97 | BI119: 9.97 | BJ119: 9.97 | BK119: 9.97 | BL119: 9.97 | BM119: 9.97 | BN119: 9.97 | BO119: 9.97 | BP119: 9.97 | BQ119: 9.97 | BR119: 9.97 | BS119: 9.97
D120: Total Potential Energy Value of Methane | G120: kWh/Year | K120: =MAX(N120:BS120) -> 24114957.73 | N120: =N119*N114 -> 0 | O120: 0 | P120: 0 | Q120: 0 | R120: 0 | S120: 0 | T120: 0 | U120: 0 | V120: 0 | W120: 0 | X120: 0 | Y120: 0 | Z120: 24114957.73 | AA120: 24114957.73 | AB120: 24114957.73 | AC120: 24114957.73 | AD120: 24114957.73 | AE120: 24114957.73 | AF120: 24114957.73 | AG120: 24114957.73 | AH120: 24114957.73 | AI120: 24114957.73 | AJ120: 24114957.73 | AK120: 24114957.73 | AL120: 24114957.73 | AM120: 24114957.73 | AN120: 24114957.73 | AO120: 24114957.73 | AP120: 24114957.73 | AQ120: 24114957.73 | AR120: 24114957.73 | AS120: 24114957.73 | AT120: =AT119*AT114 -> 24114957.73 | AU120: 24114957.73 | AV120: 24114957.73 | AW120: 24114957.73 | AX120: 24114957.73 | AY120: 24114957.73 | AZ120: 24114957.73 | BA120: 24114957.73 | BB120: 24114957.73 | BC120: 24114957.73 | BD120: 0 | BE120: 0 | BF120: 0 | BG120: 0 | BH120: 0 | BI120: 0 | BJ120: 0 | BK120: 0 | BL120: 0 | BM120: 0 | BN120: 0 | BO120: 0 | BP120: 0 | BQ120: 0 | BR120: 0 | BS120: 0
D121: Energy Efficiency for Measuring Energy Generation | G121: % | H121: =Inputs!F188 -> 0.4 | K121: =MAX(N121:BS121) -> 0.4 | N121: =$H$121 -> 0.4 | O121: 0.4 | P121: 0.4 | Q121: 0.4 | R121: 0.4 | S121: 0.4 | T121: 0.4 | U121: 0.4 | V121: 0.4 | W121: 0.4 | X121: 0.4 | Y121: 0.4 | Z121: 0.4 | AA121: 0.4 | AB121: 0.4 | AC121: 0.4 | AD121: 0.4 | AE121: 0.4 | AF121: 0.4 | AG121: 0.4 | AH121: 0.4 | AI121: 0.4 | AJ121: 0.4 | AK121: 0.4 | AL121: 0.4 | AM121: 0.4 | AN121: 0.4 | AO121: 0.4 | AP121: 0.4 | AQ121: 0.4 | AR121: 0.4 | AS121: 0.4 | AT121: =$H$121 -> 0.4 | AU121: 0.4 | AV121: 0.4 | AW121: 0.4 | AX121: 0.4 | AY121: 0.4 | AZ121: 0.4 | BA121: 0.4 | BB121: 0.4 | BC121: 0.4 | BD121: 0.4 | BE121: 0.4 | BF121: 0.4 | BG121: 0.4 | BH121: 0.4 | BI121: 0.4 | BJ121: 0.4 | BK121: 0.4 | BL121: 0.4 | BM121: 0.4 | BN121: 0.4 | BO121: 0.4 | BP121: 0.4 | BQ121: 0.4 | BR121: 0.4 | BS121: 0.4
D122: Implied Heat Rate of Generator (BTU/kWh) | G122: BTU/kWh | H122: 3412.14245 | K122: =MAX(N122:BS122) -> 8530.356125 | N122: =1/N121*$H$122 -> 8530.356125 | O122: 8530.356125 | P122: 8530.356125 | Q122: 8530.356125 | R122: 8530.356125 | S122: 8530.356125 | T122: 8530.356125 | U122: 8530.356125 | V122: 8530.356125 | W122: 8530.356125 | X122: 8530.356125 | Y122: 8530.356125 | Z122: 8530.356125 | AA122: 8530.356125 | AB122: 8530.356125 | AC122: 8530.356125 | AD122: 8530.356125 | AE122: 8530.356125 | AF122: 8530.356125 | AG122: 8530.356125 | AH122: 8530.356125 | AI122: 8530.356125 | AJ122: 8530.356125 | AK122: 8530.356125 | AL122: 8530.356125 | AM122: 8530.356125 | AN122: 8530.356125 | AO122: 8530.356125 | AP122: 8530.356125 | AQ122: 8530.356125 | AR122: 8530.356125 | AS122: 8530.356125 | AT122: =1/AT121*$H$122 -> 8530.356125 | AU122: 8530.356125 | AV122: 8530.356125 | AW122: 8530.356125 | AX122: 8530.356125 | AY122: 8530.356125 | AZ122: 8530.356125 | BA122: 8530.356125 | BB122: 8530.356125 | BC122: 8530.356125 | BD122: 8530.356125 | BE122: 8530.356125 | BF122: 8530.356125 | BG122: 8530.356125 | BH122: 8530.356125 | BI122: 8530.356125 | BJ122: 8530.356125 | BK122: 8530.356125 | BL122: 8530.356125 | BM122: 8530.356125 | BN122: 8530.356125 | BO122: 8530.356125 | BP122: 8530.356125 | BQ122: 8530.356125 | BR122: 8530.356125 | BS122: 8530.356125
D123: Annual Potential Electric Energy Available | G123: kWh/Year | K123: =MAX(N123:BS123) -> 9645983.093 | N123: =N120*N121 -> 0 | O123: 0 | P123: 0 | Q123: 0 | R123: 0 | S123: 0 | T123: 0 | U123: 0 | V123: 0 | W123: 0 | X123: 0 | Y123: 0 | Z123: 9645983.093 | AA123: 9645983.093 | AB123: 9645983.093 | AC123: 9645983.093 | AD123: 9645983.093 | AE123: 9645983.093 | AF123: 9645983.093 | AG123: 9645983.093 | AH123: 9645983.093 | AI123: 9645983.093 | AJ123: 9645983.093 | AK123: 9645983.093 | AL123: 9645983.093 | AM123: 9645983.093 | AN123: 9645983.093 | AO123: 9645983.093 | AP123: 9645983.093 | AQ123: 9645983.093 | AR123: 9645983.093 | AS123: 9645983.093 | AT123: =AT120*AT121 -> 9645983.093 | AU123: 9645983.093 | AV123: 9645983.093 | AW123: 9645983.093 | AX123: 9645983.093 | AY123: 9645983.093 | AZ123: 9645983.093 | BA123: 9645983.093 | BB123: 9645983.093 | BC123: 9645983.093 | BD123: 0 | BE123: 0 | BF123: 0 | BG123: 0 | BH123: 0 | BI123: 0 | BJ123: 0 | BK123: 0 | BL123: 0 | BM123: 0 | BN123: 0 | BO123: 0 | BP123: 0 | BQ123: 0 | BR123: 0 | BS123: 0
D125: Potential Hourly Size of Electricity Plant from Biogas in Lagoon | G125: kW | K125: =MAX(N125:BS125) -> 1196.890894 | N125: =N123/N112 -> 0 | O125: 0 | P125: 0 | Q125: 0 | R125: 0 | S125: 0 | T125: 0 | U125: 0 | V125: 0 | W125: 0 | X125: 0 | Y125: 0 | Z125: 1196.890894 | AA125: 1196.890894 | AB125: 1196.890894 | AC125: 1196.890894 | AD125: 1196.890894 | AE125: 1196.890894 | AF125: 1196.890894 | AG125: 1196.890894 | AH125: 1196.890894 | AI125: 1196.890894 | AJ125: 1196.890894 | AK125: 1196.890894 | AL125: 1196.890894 | AM125: 1196.890894 | AN125: 1196.890894 | AO125: 1196.890894 | AP125: 1196.890894 | AQ125: 1196.890894 | AR125: 1196.890894 | AS125: 1196.890894 | AT125: =AT123/AT112 -> 1196.890894 | AU125: 1196.890894 | AV125: 1196.890894 | AW125: 1196.890894 | AX125: 1196.890894 | AY125: 1196.890894 | AZ125: 1196.890894 | BA125: 1196.890894 | BB125: 1196.890894 | BC125: 1196.890894 | BD125: 0 | BE125: 0 | BF125: 0 | BG125: 0 | BH125: 0 | BI125: 0 | BJ125: 0 | BK125: 0 | BL125: 0 | BM125: 0 | BN125: 0 | BO125: 0 | BP125: 0 | BQ125: 0 | BR125: 0 | BS125: 0
D126: Total Potential kWh (No Methane Production for Trucks) | G126: kWh/Year | H126: =Inputs!F80 -> 8059.2 | K126: =MAX(N126:BS126) -> 9645983.093 | N126: =$H$126*N125 -> 0 | O126: 0 | P126: 0 | Q126: 0 | R126: 0 | S126: 0 | T126: 0 | U126: 0 | V126: 0 | W126: 0 | X126: 0 | Y126: 0 | Z126: 9645983.093 | AA126: 9645983.093 | AB126: 9645983.093 | AC126: 9645983.093 | AD126: 9645983.093 | AE126: 9645983.093 | AF126: 9645983.093 | AG126: 9645983.093 | AH126: 9645983.093 | AI126: 9645983.093 | AJ126: 9645983.093 | AK126: 9645983.093 | AL126: 9645983.093 | AM126: 9645983.093 | AN126: 9645983.093 | AO126: 9645983.093 | AP126: 9645983.093 | AQ126: 9645983.093 | AR126: 9645983.093 | AS126: 9645983.093 | AT126: =$H$126*AT125 -> 9645983.093 | AU126: 9645983.093 | AV126: 9645983.093 | AW126: 9645983.093 | AX126: 9645983.093 | AY126: 9645983.093 | AZ126: 9645983.093 | BA126: 9645983.093 | BB126: 9645983.093 | BC126: 9645983.093 | BD126: 0 | BE126: 0 | BF126: 0 | BG126: 0 | BH126: 0 | BI126: 0 | BJ126: 0 | BK126: 0 | BL126: 0 | BM126: 0 | BN126: 0 | BO126: 0 | BP126: 0 | BQ126: 0 | BR126: 0 | BS126: 0
B128: Use of Mehane for Electricity Production if Self Generate (Paracitic Load)
C129: Electricity Production for Lagoon
D130: % of Potential Capacity Used for Lagoon if Lagoon only elec | G130: % of Elec Capacity | H130: =Inputs!F190 -> 0.03 | N130: =$H$130 -> 0.03 | O130: 0.03 | P130: 0.03 | Q130: 0.03 | R130: 0.03 | S130: 0.03 | T130: 0.03 | U130: 0.03 | V130: 0.03 | W130: 0.03 | X130: 0.03 | Y130: 0.03 | Z130: 0.03 | AA130: 0.03 | AB130: 0.03 | AC130: 0.03 | AD130: 0.03 | AE130: 0.03 | AF130: 0.03 | AG130: 0.03 | AH130: 0.03 | AI130: 0.03 | AJ130: 0.03 | AK130: 0.03 | AL130: 0.03 | AM130: 0.03 | AN130: 0.03 | AO130: 0.03 | AP130: 0.03 | AQ130: 0.03 | AR130: 0.03 | AS130: 0.03 | AT130: =$H$130 -> 0.03 | AU130: 0.03 | AV130: 0.03 | AW130: 0.03 | AX130: 0.03 | AY130: 0.03 | AZ130: 0.03 | BA130: 0.03 | BB130: 0.03 | BC130: 0.03 | BD130: 0.03 | BE130: 0.03 | BF130: 0.03 | BG130: 0.03 | BH130: 0.03 | BI130: 0.03 | BJ130: 0.03 | BK130: 0.03 | BL130: 0.03 | BM130: 0.03 | BN130: 0.03 | BO130: 0.03 | BP130: 0.03 | BQ130: 0.03 | BR130: 0.03 | BS130: 0.03
D131: kW for Lagoon | G131: kW | K131: =MAX(N131:BS131) -> 35.90672682 | N131: =N130*N125 -> 0 | O131: 0 | P131: 0 | Q131: 0 | R131: 0 | S131: 0 | T131: 0 | U131: 0 | V131: 0 | W131: 0 | X131: 0 | Y131: 0 | Z131: 35.90672682 | AA131: 35.90672682 | AB131: 35.90672682 | AC131: 35.90672682 | AD131: 35.90672682 | AE131: 35.90672682 | AF131: 35.90672682 | AG131: 35.90672682 | AH131: 35.90672682 | AI131: 35.90672682 | AJ131: 35.90672682 | AK131: 35.90672682 | AL131: 35.90672682 | AM131: 35.90672682 | AN131: 35.90672682 | AO131: 35.90672682 | AP131: 35.90672682 | AQ131: 35.90672682 | AR131: 35.90672682 | AS131: 35.90672682 | AT131: =AT130*AT125 -> 35.90672682 | AU131: 35.90672682 | AV131: 35.90672682 | AW131: 35.90672682 | AX131: 35.90672682 | AY131: 35.90672682 | AZ131: 35.90672682 | BA131: 35.90672682 | BB131: 35.90672682 | BC131: 35.90672682 | BD131: 0 | BE131: 0 | BF131: 0 | BG131: 0 | BH131: 0 | BI131: 0 | BJ131: 0 | BK131: 0 | BL131: 0 | BM131: 0 | BN131: 0 | BO131: 0 | BP131: 0 | BQ131: 0 | BR131: 0 | BS131: 0
D132: kWh per year for Lagoon | G132: kWh/Year | H132: =8760*Inputs!F79 -> 8059.2 | I132: Hours Available | K132: =MAX(N132:BS132) -> 289379.4928 | N132: =N131*$H$132 -> 0 | O132: 0 | P132: 0 | Q132: 0 | R132: 0 | S132: 0 | T132: 0 | U132: 0 | V132: 0 | W132: 0 | X132: 0 | Y132: 0 | Z132: 289379.4928 | AA132: 289379.4928 | AB132: 289379.4928 | AC132: 289379.4928 | AD132: 289379.4928 | AE132: 289379.4928 | AF132: 289379.4928 | AG132: 289379.4928 | AH132: 289379.4928 | AI132: 289379.4928 | AJ132: 289379.4928 | AK132: 289379.4928 | AL132: 289379.4928 | AM132: 289379.4928 | AN132: 289379.4928 | AO132: 289379.4928 | AP132: 289379.4928 | AQ132: 289379.4928 | AR132: 289379.4928 | AS132: 289379.4928 | AT132: =AT131*$H$132 -> 289379.4928 | AU132: 289379.4928 | AV132: 289379.4928 | AW132: 289379.4928 | AX132: 289379.4928 | AY132: 289379.4928 | AZ132: 289379.4928 | BA132: 289379.4928 | BB132: 289379.4928 | BC132: 289379.4928 | BD132: 0 | BE132: 0 | BF132: 0 | BG132: 0 | BH132: 0 | BI132: 0 | BJ132: 0 | BK132: 0 | BL132: 0 | BM132: 0 | BN132: 0 | BO132: 0 | BP132: 0 | BQ132: 0 | BR132: 0 | BS132: 0
D133: Hours of Electricity used for Upgrader | G133: Hours | H133: =Inputs!F92 -> 6912 | K133: =MAX(N133:BS133) -> 6912 | N133: =$H$133 -> 6912 | O133: 6912 | P133: 6912 | Q133: 6912 | R133: 6912 | S133: 6912 | T133: 6912 | U133: 6912 | V133: 6912 | W133: 6912 | X133: 6912 | Y133: 6912 | Z133: 6912 | AA133: 6912 | AB133: 6912 | AC133: 6912 | AD133: 6912 | AE133: 6912 | AF133: 6912 | AG133: 6912 | AH133: 6912 | AI133: 6912 | AJ133: 6912 | AK133: 6912 | AL133: 6912 | AM133: 6912 | AN133: 6912 | AO133: 6912 | AP133: 6912 | AQ133: 6912 | AR133: 6912 | AS133: 6912 | AT133: =$H$133 -> 6912 | AU133: 6912 | AV133: 6912 | AW133: 6912 | AX133: 6912 | AY133: 6912 | AZ133: 6912 | BA133: 6912 | BB133: 6912 | BC133: 6912 | BD133: 6912 | BE133: 6912 | BF133: 6912 | BG133: 6912 | BH133: 6912 | BI133: 6912 | BJ133: 6912 | BK133: 6912 | BL133: 6912 | BM133: 6912 | BN133: 6912 | BO133: 6912 | BP133: 6912 | BQ133: 6912 | BR133: 6912 | BS133: 6912
D134: Percent of Lagoon Electricity Overlap with Upgrader | G134: % | K134: =MAX(N134:BS134) -> 0.8576533651 | N134: =IF(N132,N133/$H$132) -> FALSE | O134: FALSE | P134: FALSE | Q134: FALSE | R134: FALSE | S134: FALSE | T134: FALSE | U134: FALSE | V134: FALSE | W134: FALSE | X134: FALSE | Y134: FALSE | Z134: 0.8576533651 | AA134: 0.8576533651 | AB134: 0.8576533651 | AC134: 0.8576533651 | AD134: 0.8576533651 | AE134: 0.8576533651 | AF134: 0.8576533651 | AG134: 0.8576533651 | AH134: 0.8576533651 | AI134: 0.8576533651 | AJ134: 0.8576533651 | AK134: 0.8576533651 | AL134: 0.8576533651 | AM134: 0.8576533651 | AN134: 0.8576533651 | AO134: 0.8576533651 | AP134: 0.8576533651 | AQ134: 0.8576533651 | AR134: 0.8576533651 | AS134: 0.8576533651 | AT134: =IF(AT132,AT133/$H$132) -> 0.8576533651 | AU134: 0.8576533651 | AV134: 0.8576533651 | AW134: 0.8576533651 | AX134: 0.8576533651 | AY134: 0.8576533651 | AZ134: 0.8576533651 | BA134: 0.8576533651 | BB134: 0.8576533651 | BC134: 0.8576533651 | BD134: FALSE | BE134: FALSE | BF134: FALSE | BG134: FALSE | BH134: FALSE | BI134: FALSE | BJ134: FALSE | BK134: FALSE | BL134: FALSE | BM134: FALSE | BN134: FALSE | BO134: FALSE | BP134: FALSE | BQ134: FALSE | BR134: FALSE | BS134: FALSE
D135: kWh for Lagoon Overlap with Upgrader | G135: kWh/Year | K135: =MAX(N135:BS135) -> 5928.10006 | N135: =N133*N134 -> 0 | O135: 0 | P135: 0 | Q135: 0 | R135: 0 | S135: 0 | T135: 0 | U135: 0 | V135: 0 | W135: 0 | X135: 0 | Y135: 0 | Z135: 5928.10006 | AA135: 5928.10006 | AB135: 5928.10006 | AC135: 5928.10006 | AD135: 5928.10006 | AE135: 5928.10006 | AF135: 5928.10006 | AG135: 5928.10006 | AH135: 5928.10006 | AI135: 5928.10006 | AJ135: 5928.10006 | AK135: 5928.10006 | AL135: 5928.10006 | AM135: 5928.10006 | AN135: 5928.10006 | AO135: 5928.10006 | AP135: 5928.10006 | AQ135: 5928.10006 | AR135: 5928.10006 | AS135: 5928.10006 | AT135: =AT133*AT134 -> 5928.10006 | AU135: 5928.10006 | AV135: 5928.10006 | AW135: 5928.10006 | AX135: 5928.10006 | AY135: 5928.10006 | AZ135: 5928.10006 | BA135: 5928.10006 | BB135: 5928.10006 | BC135: 5928.10006 | BD135: 0 | BE135: 0 | BF135: 0 | BG135: 0 | BH135: 0 | BI135: 0 | BJ135: 0 | BK135: 0 | BL135: 0 | BM135: 0 | BN135: 0 | BO135: 0 | BP135: 0 | BQ135: 0 | BR135: 0 | BS135: 0
D136: Conversion from kWh to CNG | G136: M3/kWh | H136: =1/H119/H121 -> 0.2507522568 | N136: =$H$136 -> 0.2507522568 | O136: 0.2507522568 | P136: 0.2507522568 | Q136: 0.2507522568 | R136: 0.2507522568 | S136: 0.2507522568 | T136: 0.2507522568 | U136: 0.2507522568 | V136: 0.2507522568 | W136: 0.2507522568 | X136: 0.2507522568 | Y136: 0.2507522568 | Z136: 0.2507522568 | AA136: 0.2507522568 | AB136: 0.2507522568 | AC136: 0.2507522568 | AD136: 0.2507522568 | AE136: 0.2507522568 | AF136: 0.2507522568 | AG136: 0.2507522568 | AH136: 0.2507522568 | AI136: 0.2507522568 | AJ136: 0.2507522568 | AK136: 0.2507522568 | AL136: 0.2507522568 | AM136: 0.2507522568 | AN136: 0.2507522568 | AO136: 0.2507522568 | AP136: 0.2507522568 | AQ136: 0.2507522568 | AR136: 0.2507522568 | AS136: 0.2507522568 | AT136: =$H$136 -> 0.2507522568 | AU136: 0.2507522568 | AV136: 0.2507522568 | AW136: 0.2507522568 | AX136: 0.2507522568 | AY136: 0.2507522568 | AZ136: 0.2507522568 | BA136: 0.2507522568 | BB136: 0.2507522568 | BC136: 0.2507522568 | BD136: 0.2507522568 | BE136: 0.2507522568 | BF136: 0.2507522568 | BG136: 0.2507522568 | BH136: 0.2507522568 | BI136: 0.2507522568 | BJ136: 0.2507522568 | BK136: 0.2507522568 | BL136: 0.2507522568 | BM136: 0.2507522568 | BN136: 0.2507522568 | BO136: 0.2507522568 | BP136: 0.2507522568 | BQ136: 0.2507522568 | BR136: 0.2507522568 | BS136: 0.2507522568
D137: CNG Not Available for Trucks from Lagoon Production | G137: M3/Year | N137: =N136*N135 -> 0 | O137: 0 | P137: 0 | Q137: 0 | R137: 0 | S137: 0 | T137: 0 | U137: 0 | V137: 0 | W137: 0 | X137: 0 | Y137: 0 | Z137: 1486.484468 | AA137: 1486.484468 | AB137: 1486.484468 | AC137: 1486.484468 | AD137: 1486.484468 | AE137: 1486.484468 | AF137: 1486.484468 | AG137: 1486.484468 | AH137: 1486.484468 | AI137: 1486.484468 | AJ137: 1486.484468 | AK137: 1486.484468 | AL137: 1486.484468 | AM137: 1486.484468 | AN137: 1486.484468 | AO137: 1486.484468 | AP137: 1486.484468 | AQ137: 1486.484468 | AR137: 1486.484468 | AS137: 1486.484468 | AT137: =AT136*AT135 -> 1486.484468 | AU137: 1486.484468 | AV137: 1486.484468 | AW137: 1486.484468 | AX137: 1486.484468 | AY137: 1486.484468 | AZ137: 1486.484468 | BA137: 1486.484468 | BB137: 1486.484468 | BC137: 1486.484468 | BD137: 0 | BE137: 0 | BF137: 0 | BG137: 0 | BH137: 0 | BI137: 0 | BJ137: 0 | BK137: 0 | BL137: 0 | BM137: 0 | BN137: 0 | BO137: 0 | BP137: 0 | BQ137: 0 | BR137: 0 | BS137: 0
D138: Hourly CNG per Hour Not Available | G138: M3/Hour | K138: =SUM(N138:BS138) -> 6.451755505 | N138: =N137/N133 -> 0 | O138: 0 | P138: 0 | Q138: 0 | R138: 0 | S138: 0 | T138: 0 | U138: 0 | V138: 0 | W138: 0 | X138: 0 | Y138: 0 | Z138: 0.2150585168 | AA138: 0.2150585168 | AB138: 0.2150585168 | AC138: 0.2150585168 | AD138: 0.2150585168 | AE138: 0.2150585168 | AF138: 0.2150585168 | AG138: 0.2150585168 | AH138: 0.2150585168 | AI138: 0.2150585168 | AJ138: 0.2150585168 | AK138: 0.2150585168 | AL138: 0.2150585168 | AM138: 0.2150585168 | AN138: 0.2150585168 | AO138: 0.2150585168 | AP138: 0.2150585168 | AQ138: 0.2150585168 | AR138: 0.2150585168 | AS138: 0.2150585168 | AT138: =AT137/AT133 -> 0.2150585168 | AU138: 0.2150585168 | AV138: 0.2150585168 | AW138: 0.2150585168 | AX138: 0.2150585168 | AY138: 0.2150585168 | AZ138: 0.2150585168 | BA138: 0.2150585168 | BB138: 0.2150585168 | BC138: 0.2150585168 | BD138: 0 | BE138: 0 | BF138: 0 | BG138: 0 | BH138: 0 | BI138: 0 | BJ138: 0 | BK138: 0 | BL138: 0 | BM138: 0 | BN138: 0 | BO138: 0 | BP138: 0 | BQ138: 0 | BR138: 0 | BS138: 0
C140: Electricity Production for Upgrader
D141: Biogas kW per M3 of Biogass for Upgrader | G141: kWh/Biogas M3 | H141: =Inputs!F182 -> 0.32 | N141: =$H$141 -> 0.32 | O141: 0.32 | P141: 0.32 | Q141: 0.32 | R141: 0.32 | S141: 0.32 | T141: 0.32 | U141: 0.32 | V141: 0.32 | W141: 0.32 | X141: 0.32 | Y141: 0.32 | Z141: 0.32 | AA141: 0.32 | AB141: 0.32 | AC141: 0.32 | AD141: 0.32 | AE141: 0.32 | AF141: 0.32 | AG141: 0.32 | AH141: 0.32 | AI141: 0.32 | AJ141: 0.32 | AK141: 0.32 | AL141: 0.32 | AM141: 0.32 | AN141: 0.32 | AO141: 0.32 | AP141: 0.32 | AQ141: 0.32 | AR141: 0.32 | AS141: 0.32 | AT141: =$H$141 -> 0.32 | AU141: 0.32 | AV141: 0.32 | AW141: 0.32 | AX141: 0.32 | AY141: 0.32 | AZ141: 0.32 | BA141: 0.32 | BB141: 0.32 | BC141: 0.32 | BD141: 0.32 | BE141: 0.32 | BF141: 0.32 | BG141: 0.32 | BH141: 0.32 | BI141: 0.32 | BJ141: 0.32 | BK141: 0.32 | BL141: 0.32 | BM141: 0.32 | BN141: 0.32 | BO141: 0.32 | BP141: 0.32 | BQ141: 0.32 | BR141: 0.32 | BS141: 0.32
D142: M3 of Biogass to Meet Demand | G142: Biogas M3/Hour | K142: =MAX(N142:BS142) -> 506.7920585 | N142: =N61 -> 0 | O142: 0 | P142: 0 | Q142: 0 | R142: 0 | S142: 0 | T142: 0 | U142: 0 | V142: 0 | W142: 0 | X142: 0 | Y142: 0 | Z142: 506.7920585 | AA142: 506.7920585 | AB142: 506.7920585 | AC142: 506.7920585 | AD142: 506.7920585 | AE142: 506.7920585 | AF142: 506.7920585 | AG142: 506.7920585 | AH142: 506.7920585 | AI142: 506.7920585 | AJ142: 506.7920585 | AK142: 506.7920585 | AL142: 506.7920585 | AM142: 506.7920585 | AN142: 506.7920585 | AO142: 506.7920585 | AP142: 506.7920585 | AQ142: 506.7920585 | AR142: 506.7920585 | AS142: 506.7920585 | AT142: =AT61 -> 506.7920585 | AU142: 506.7920585 | AV142: 506.7920585 | AW142: 506.7920585 | AX142: 506.7920585 | AY142: 506.7920585 | AZ142: 506.7920585 | BA142: 506.7920585 | BB142: 506.7920585 | BC142: 506.7920585 | BD142: 0 | BE142: 0 | BF142: 0 | BG142: 0 | BH142: 0 | BI142: 0 | BJ142: 0 | BK142: 0 | BL142: 0 | BM142: 0 | BN142: 0 | BO142: 0 | BP142: 0 | BQ142: 0 | BR142: 0 | BS142: 0
D143: kWh for Upgrader | G143: kWh/Year | H143: =Inputs!F92 -> 6912 | I143: non weekend hrs | K143: =MAX(N143:BS143) -> 1120942.947 | N143: =N141*N142*$H$143 -> 0 | O143: 0 | P143: 0 | Q143: 0 | R143: 0 | S143: 0 | T143: 0 | U143: 0 | V143: 0 | W143: 0 | X143: 0 | Y143: 0 | Z143: 1120942.947 | AA143: 1120942.947 | AB143: 1120942.947 | AC143: 1120942.947 | AD143: 1120942.947 | AE143: 1120942.947 | AF143: 1120942.947 | AG143: 1120942.947 | AH143: 1120942.947 | AI143: 1120942.947 | AJ143: 1120942.947 | AK143: 1120942.947 | AL143: 1120942.947 | AM143: 1120942.947 | AN143: 1120942.947 | AO143: 1120942.947 | AP143: 1120942.947 | AQ143: 1120942.947 | AR143: 1120942.947 | AS143: 1120942.947 | AT143: =AT141*AT142*$H$143 -> 1120942.947 | AU143: 1120942.947 | AV143: 1120942.947 | AW143: 1120942.947 | AX143: 1120942.947 | AY143: 1120942.947 | AZ143: 1120942.947 | BA143: 1120942.947 | BB143: 1120942.947 | BC143: 1120942.947 | BD143: 0 | BE143: 0 | BF143: 0 | BG143: 0 | BH143: 0 | BI143: 0 | BJ143: 0 | BK143: 0 | BL143: 0 | BM143: 0 | BN143: 0 | BO143: 0 | BP143: 0 | BQ143: 0 | BR143: 0 | BS143: 0
D144: Annual CNG Not Available for Trucks from Upgrader Production | G144: CNG M3/Year | K144: =MAX(N144:BS144) -> 281078.9736 | N144: =N143*N136 -> 0 | O144: 0 | P144: 0 | Q144: 0 | R144: 0 | S144: 0 | T144: 0 | U144: 0 | V144: 0 | W144: 0 | X144: 0 | Y144: 0 | Z144: 281078.9736 | AA144: 281078.9736 | AB144: 281078.9736 | AC144: 281078.9736 | AD144: 281078.9736 | AE144: 281078.9736 | AF144: 281078.9736 | AG144: 281078.9736 | AH144: 281078.9736 | AI144: 281078.9736 | AJ144: 281078.9736 | AK144: 281078.9736 | AL144: 281078.9736 | AM144: 281078.9736 | AN144: 281078.9736 | AO144: 281078.9736 | AP144: 281078.9736 | AQ144: 281078.9736 | AR144: 281078.9736 | AS144: 281078.9736 | AT144: =AT143*AT136 -> 281078.9736 | AU144: 281078.9736 | AV144: 281078.9736 | AW144: 281078.9736 | AX144: 281078.9736 | AY144: 281078.9736 | AZ144: 281078.9736 | BA144: 281078.9736 | BB144: 281078.9736 | BC144: 281078.9736 | BD144: 0 | BE144: 0 | BF144: 0 | BG144: 0 | BH144: 0 | BI144: 0 | BJ144: 0 | BK144: 0 | BL144: 0 | BM144: 0 | BN144: 0 | BO144: 0 | BP144: 0 | BQ144: 0 | BR144: 0 | BS144: 0
D145: Hourly CNG Not Available for Trucks from Upgrader Production | G145: CNG M3/Month | H145: =H143 -> 6912 | K145: =MAX(N145:BS145) -> 40.66536076 | N145: =N144/$H$145 -> 0 | O145: 0 | P145: 0 | Q145: 0 | R145: 0 | S145: 0 | T145: 0 | U145: 0 | V145: 0 | W145: 0 | X145: 0 | Y145: 0 | Z145: 40.66536076 | AA145: 40.66536076 | AB145: 40.66536076 | AC145: 40.66536076 | AD145: 40.66536076 | AE145: 40.66536076 | AF145: 40.66536076 | AG145: 40.66536076 | AH145: 40.66536076 | AI145: 40.66536076 | AJ145: 40.66536076 | AK145: 40.66536076 | AL145: 40.66536076 | AM145: 40.66536076 | AN145: 40.66536076 | AO145: 40.66536076 | AP145: 40.66536076 | AQ145: 40.66536076 | AR145: 40.66536076 | AS145: 40.66536076 | AT145: =AT144/$H$145 -> 40.66536076 | AU145: 40.66536076 | AV145: 40.66536076 | AW145: 40.66536076 | AX145: 40.66536076 | AY145: 40.66536076 | AZ145: 40.66536076 | BA145: 40.66536076 | BB145: 40.66536076 | BC145: 40.66536076 | BD145: 0 | BE145: 0 | BF145: 0 | BG145: 0 | BH145: 0 | BI145: 0 | BJ145: 0 | BK145: 0 | BL145: 0 | BM145: 0 | BN145: 0 | BO145: 0 | BP145: 0 | BQ145: 0 | BR145: 0 | BS145: 0
C147: Electricity Production for Filling
D148: CNG Used for Trucks | G148: CNG M3/Hour | K148: =MAX(N148:BS148) -> 300 | N148: =N67 -> 0 | O148: 0 | P148: 0 | Q148: 0 | R148: 0 | S148: 0 | T148: 0 | U148: 0 | V148: 0 | W148: 0 | X148: 0 | Y148: 0 | Z148: 300 | AA148: 300 | AB148: 300 | AC148: 300 | AD148: 300 | AE148: 300 | AF148: 300 | AG148: 300 | AH148: 300 | AI148: 300 | AJ148: 300 | AK148: 300 | AL148: 300 | AM148: 300 | AN148: 300 | AO148: 300 | AP148: 300 | AQ148: 300 | AR148: 300 | AS148: 300 | AT148: =AT67 -> 300 | AU148: 300 | AV148: 300 | AW148: 300 | AX148: 300 | AY148: 300 | AZ148: 300 | BA148: 300 | BB148: 300 | BC148: 300 | BD148: 0 | BE148: 0 | BF148: 0 | BG148: 0 | BH148: 0 | BI148: 0 | BJ148: 0 | BK148: 0 | BL148: 0 | BM148: 0 | BN148: 0 | BO148: 0 | BP148: 0 | BQ148: 0 | BR148: 0 | BS148: 0
D149: Pumping Electricity per M3 for Pumping | G149: kW/CNG M3 | H149: =Inputs!F191 -> 0.3 | K149: 0.3 | N149: =$H$149 -> 0.3 | O149: 0.3 | P149: 0.3 | Q149: 0.3 | R149: 0.3 | S149: 0.3 | T149: 0.3 | U149: 0.3 | V149: 0.3 | W149: 0.3 | X149: 0.3 | Y149: 0.3 | Z149: 0.3 | AA149: 0.3 | AB149: 0.3 | AC149: 0.3 | AD149: 0.3 | AE149: 0.3 | AF149: 0.3 | AG149: 0.3 | AH149: 0.3 | AI149: 0.3 | AJ149: 0.3 | AK149: 0.3 | AL149: 0.3 | AM149: 0.3 | AN149: 0.3 | AO149: 0.3 | AP149: 0.3 | AQ149: 0.3 | AR149: 0.3 | AS149: 0.3 | AT149: =$H$149 -> 0.3 | AU149: 0.3 | AV149: 0.3 | AW149: 0.3 | AX149: 0.3 | AY149: 0.3 | AZ149: 0.3 | BA149: 0.3 | BB149: 0.3 | BC149: 0.3 | BD149: 0.3 | BE149: 0.3 | BF149: 0.3 | BG149: 0.3 | BH149: 0.3 | BI149: 0.3 | BJ149: 0.3 | BK149: 0.3 | BL149: 0.3 | BM149: 0.3 | BN149: 0.3 | BO149: 0.3 | BP149: 0.3 | BQ149: 0.3 | BR149: 0.3 | BS149: 0.3
D150: Electricity for Pumping Use | G150: kWh/Hour | K150: 90 | N150: =N148*N149 -> 0 | O150: 0 | P150: 0 | Q150: 0 | R150: 0 | S150: 0 | T150: 0 | U150: 0 | V150: 0 | W150: 0 | X150: 0 | Y150: 0 | Z150: 90 | AA150: 90 | AB150: 90 | AC150: 90 | AD150: 90 | AE150: 90 | AF150: 90 | AG150: 90 | AH150: 90 | AI150: 90 | AJ150: 90 | AK150: 90 | AL150: 90 | AM150: 90 | AN150: 90 | AO150: 90 | AP150: 90 | AQ150: 90 | AR150: 90 | AS150: 90 | AT150: =AT148*AT149 -> 90 | AU150: 90 | AV150: 90 | AW150: 90 | AX150: 90 | AY150: 90 | AZ150: 90 | BA150: 90 | BB150: 90 | BC150: 90 | BD150: 0 | BE150: 0 | BF150: 0 | BG150: 0 | BH150: 0 | BI150: 0 | BJ150: 0 | BK150: 0 | BL150: 0 | BM150: 0 | BN150: 0 | BO150: 0 | BP150: 0 | BQ150: 0 | BR150: 0 | BS150: 0
D151: Total Electricity for Pumping | G151: kWh/Year | H151: =Inputs!F92 -> 6912 | I151: non weekend hrs | K151: 622080 | N151: =$H$151*N150 -> 0 | O151: 0 | P151: 0 | Q151: 0 | R151: 0 | S151: 0 | T151: 0 | U151: 0 | V151: 0 | W151: 0 | X151: 0 | Y151: 0 | Z151: 622080 | AA151: 622080 | AB151: 622080 | AC151: 622080 | AD151: 622080 | AE151: 622080 | AF151: 622080 | AG151: 622080 | AH151: 622080 | AI151: 622080 | AJ151: 622080 | AK151: 622080 | AL151: 622080 | AM151: 622080 | AN151: 622080 | AO151: 622080 | AP151: 622080 | AQ151: 622080 | AR151: 622080 | AS151: 622080 | AT151: =$H$151*AT150 -> 622080 | AU151: 622080 | AV151: 622080 | AW151: 622080 | AX151: 622080 | AY151: 622080 | AZ151: 622080 | BA151: 622080 | BB151: 622080 | BC151: 622080 | BD151: 0 | BE151: 0 | BF151: 0 | BG151: 0 | BH151: 0 | BI151: 0 | BJ151: 0 | BK151: 0 | BL151: 0 | BM151: 0 | BN151: 0 | BO151: 0 | BP151: 0 | BQ151: 0 | BR151: 0 | BS151: 0
D152: Conversion Back to CNG | G152: CNG M3/Year | H152: =H136 -> 0.2507522568 | K152: 0.2507522568 | N152: =$H$152 -> 0.2507522568 | O152: =$H$152 -> 0.2507522568 | P152: 0.2507522568 | Q152: 0.2507522568 | R152: 0.2507522568 | S152: 0.2507522568 | T152: 0.2507522568 | U152: 0.2507522568 | V152: 0.2507522568 | W152: 0.2507522568 | X152: 0.2507522568 | Y152: 0.2507522568 | Z152: 0.2507522568 | AA152: 0.2507522568 | AB152: 0.2507522568 | AC152: 0.2507522568 | AD152: 0.2507522568 | AE152: 0.2507522568 | AF152: 0.2507522568 | AG152: 0.2507522568 | AH152: 0.2507522568 | AI152: 0.2507522568 | AJ152: 0.2507522568 | AK152: 0.2507522568 | AL152: 0.2507522568 | AM152: 0.2507522568 | AN152: 0.2507522568 | AO152: 0.2507522568 | AP152: 0.2507522568 | AQ152: 0.2507522568 | AR152: 0.2507522568 | AS152: 0.2507522568 | AT152: 0.2507522568 | AU152: 0.2507522568 | AV152: 0.2507522568 | AW152: 0.2507522568 | AX152: 0.2507522568 | AY152: 0.2507522568 | AZ152: 0.2507522568 | BA152: 0.2507522568 | BB152: 0.2507522568 | BC152: 0.2507522568 | BD152: 0.2507522568 | BE152: 0.2507522568 | BF152: 0.2507522568 | BG152: 0.2507522568 | BH152: 0.2507522568 | BI152: 0.2507522568 | BJ152: 0.2507522568 | BK152: 0.2507522568 | BL152: 0.2507522568 | BM152: 0.2507522568 | BN152: 0.2507522568 | BO152: 0.2507522568 | BP152: 0.2507522568 | BQ152: 0.2507522568 | BR152: 0.2507522568 | BS152: 0.2507522568
D153: Annual CNG Non-Weekend | G153: CNG M3/Year | K153: 155987.9639 | N153: =N152*N151 -> 0 | O153: =O152*O151 -> 0 | P153: 0 | Q153: 0 | R153: 0 | S153: 0 | T153: 0 | U153: 0 | V153: 0 | W153: 0 | X153: 0 | Y153: 0 | Z153: 155987.9639 | AA153: 155987.9639 | AB153: 155987.9639 | AC153: 155987.9639 | AD153: 155987.9639 | AE153: 155987.9639 | AF153: 155987.9639 | AG153: 155987.9639 | AH153: 155987.9639 | AI153: 155987.9639 | AJ153: 155987.9639 | AK153: 155987.9639 | AL153: 155987.9639 | AM153: 155987.9639 | AN153: 155987.9639 | AO153: 155987.9639 | AP153: 155987.9639 | AQ153: 155987.9639 | AR153: 155987.9639 | AS153: 155987.9639 | AT153: 155987.9639 | AU153: 155987.9639 | AV153: 155987.9639 | AW153: 155987.9639 | AX153: 155987.9639 | AY153: 155987.9639 | AZ153: 155987.9639 | BA153: 155987.9639 | BB153: 155987.9639 | BC153: 155987.9639 | BD153: 0 | BE153: 0 | BF153: 0 | BG153: 0 | BH153: 0 | BI153: 0 | BJ153: 0 | BK153: 0 | BL153: 0 | BM153: 0 | BN153: 0 | BO153: 0 | BP153: 0 | BQ153: 0 | BR153: 0 | BS153: 0
D154: Hourly CNG per Non-Weekend Hr | G154: CNG M3/Hour | H154: =H151 -> 6912 | K154: 22.56770311 | N154: =N153/$H$154 -> 0 | O154: =O153/$H$154 -> 0 | P154: 0 | Q154: 0 | R154: 0 | S154: 0 | T154: 0 | U154: 0 | V154: 0 | W154: 0 | X154: 0 | Y154: 0 | Z154: 22.56770311 | AA154: 22.56770311 | AB154: 22.56770311 | AC154: 22.56770311 | AD154: 22.56770311 | AE154: 22.56770311 | AF154: 22.56770311 | AG154: 22.56770311 | AH154: 22.56770311 | AI154: 22.56770311 | AJ154: 22.56770311 | AK154: 22.56770311 | AL154: 22.56770311 | AM154: 22.56770311 | AN154: 22.56770311 | AO154: 22.56770311 | AP154: 22.56770311 | AQ154: 22.56770311 | AR154: 22.56770311 | AS154: 22.56770311 | AT154: 22.56770311 | AU154: 22.56770311 | AV154: 22.56770311 | AW154: 22.56770311 | AX154: 22.56770311 | AY154: 22.56770311 | AZ154: 22.56770311 | BA154: 22.56770311 | BB154: 22.56770311 | BC154: 22.56770311 | BD154: 0 | BE154: 0 | BF154: 0 | BG154: 0 | BH154: 0 | BI154: 0 | BJ154: 0 | BK154: 0 | BL154: 0 | BM154: 0 | BN154: 0 | BO154: 0 | BP154: 0 | BQ154: 0 | BR154: 0 | BS154: 0
D156: Total kWh for Lagoon, Upgrader and Pumping | G156: kWh/Year | K156: =MAX(N156:BS156) -> 2032402.44 | N156: =N151+N143+N132 -> 0 | O156: 0 | P156: 0 | Q156: 0 | R156: 0 | S156: 0 | T156: 0 | U156: 0 | V156: 0 | W156: 0 | X156: 0 | Y156: 0 | Z156: 2032402.44 | AA156: 2032402.44 | AB156: 2032402.44 | AC156: 2032402.44 | AD156: 2032402.44 | AE156: 2032402.44 | AF156: 2032402.44 | AG156: 2032402.44 | AH156: 2032402.44 | AI156: 2032402.44 | AJ156: 2032402.44 | AK156: 2032402.44 | AL156: 2032402.44 | AM156: 2032402.44 | AN156: 2032402.44 | AO156: 2032402.44 | AP156: 2032402.44 | AQ156: 2032402.44 | AR156: 2032402.44 | AS156: 2032402.44 | AT156: =AT151+AT143+AT132 -> 2032402.44 | AU156: 2032402.44 | AV156: 2032402.44 | AW156: 2032402.44 | AX156: 2032402.44 | AY156: 2032402.44 | AZ156: 2032402.44 | BA156: 2032402.44 | BB156: 2032402.44 | BC156: 2032402.44 | BD156: 0 | BE156: 0 | BF156: 0 | BG156: 0 | BH156: 0 | BI156: 0 | BJ156: 0 | BK156: 0 | BL156: 0 | BM156: 0 | BN156: 0 | BO156: 0 | BP156: 0 | BQ156: 0 | BR156: 0 | BS156: 0
D157: Hourly CNG Not Available for Trucks | G157: CNG M3/hour | K157: 63.44812239 | N157: =N154+N145+N138 -> 0 | O157: =O154+O145+O138 -> 0 | P157: 0 | Q157: 0 | R157: 0 | S157: 0 | T157: 0 | U157: 0 | V157: 0 | W157: 0 | X157: 0 | Y157: 0 | Z157: 63.44812239 | AA157: 63.44812239 | AB157: 63.44812239 | AC157: 63.44812239 | AD157: 63.44812239 | AE157: 63.44812239 | AF157: 63.44812239 | AG157: 63.44812239 | AH157: 63.44812239 | AI157: 63.44812239 | AJ157: 63.44812239 | AK157: 63.44812239 | AL157: 63.44812239 | AM157: 63.44812239 | AN157: 63.44812239 | AO157: 63.44812239 | AP157: 63.44812239 | AQ157: 63.44812239 | AR157: 63.44812239 | AS157: 63.44812239 | AT157: 63.44812239 | AU157: 63.44812239 | AV157: 63.44812239 | AW157: 63.44812239 | AX157: 63.44812239 | AY157: 63.44812239 | AZ157: 63.44812239 | BA157: 63.44812239 | BB157: 63.44812239 | BC157: 63.44812239 | BD157: 0 | BE157: 0 | BF157: 0 | BG157: 0 | BH157: 0 | BI157: 0 | BJ157: 0 | BK157: 0 | BL157: 0 | BM157: 0 | BN157: 0 | BO157: 0 | BP157: 0 | BQ157: 0 | BR157: 0 | BS157: 0
D158: CNG per Truck before Electricity Use | G158: CNG M3/hour | K158: 300 | N158: =N67 -> 0 | O158: 0 | P158: 0 | Q158: 0 | R158: 0 | S158: 0 | T158: 0 | U158: 0 | V158: 0 | W158: 0 | X158: 0 | Y158: 0 | Z158: 300 | AA158: 300 | AB158: 300 | AC158: 300 | AD158: 300 | AE158: 300 | AF158: 300 | AG158: 300 | AH158: 300 | AI158: 300 | AJ158: 300 | AK158: 300 | AL158: 300 | AM158: 300 | AN158: 300 | AO158: 300 | AP158: 300 | AQ158: 300 | AR158: 300 | AS158: 300 | AT158: =AT67 -> 300 | AU158: 300 | AV158: 300 | AW158: 300 | AX158: 300 | AY158: 300 | AZ158: 300 | BA158: 300 | BB158: 300 | BC158: 300 | BD158: 0 | BE158: 0 | BF158: 0 | BG158: 0 | BH158: 0 | BI158: 0 | BJ158: 0 | BK158: 0 | BL158: 0 | BM158: 0 | BN158: 0 | BO158: 0 | BP158: 0 | BQ158: 0 | BR158: 0 | BS158: 0
D159: CNG per Truck After Electricity Use | G159: CNG M3/hour | K159: 236.5518776 | N159: =N158-N157 -> 0 | O159: =O158-O157 -> 0 | P159: 0 | Q159: 0 | R159: 0 | S159: 0 | T159: 0 | U159: 0 | V159: 0 | W159: 0 | X159: 0 | Y159: 0 | Z159: 236.5518776 | AA159: 236.5518776 | AB159: 236.5518776 | AC159: 236.5518776 | AD159: 236.5518776 | AE159: 236.5518776 | AF159: 236.5518776 | AG159: 236.5518776 | AH159: 236.5518776 | AI159: 236.5518776 | AJ159: 236.5518776 | AK159: 236.5518776 | AL159: 236.5518776 | AM159: 236.5518776 | AN159: 236.5518776 | AO159: 236.5518776 | AP159: 236.5518776 | AQ159: 236.5518776 | AR159: 236.5518776 | AS159: 236.5518776 | AT159: 236.5518776 | AU159: 236.5518776 | AV159: 236.5518776 | AW159: 236.5518776 | AX159: 236.5518776 | AY159: 236.5518776 | AZ159: 236.5518776 | BA159: 236.5518776 | BB159: 236.5518776 | BC159: 236.5518776 | BD159: 0 | BE159: 0 | BF159: 0 | BG159: 0 | BH159: 0 | BI159: 0 | BJ159: 0 | BK159: 0 | BL159: 0 | BM159: 0 | BN159: 0 | BO159: 0 | BP159: 0 | BQ159: 0 | BR159: 0 | BS159: 0
D160: Conversion CNG MW to km | G160: km/CNG M3 | H160: =H49 -> 2.083333333 | I160: =I49 -> CNG M3/km Efficiency | K160: 2.083333333 | N160: =$H$160 -> 2.083333333 | O160: =$H$160 -> 2.083333333 | P160: 2.083333333 | Q160: 2.083333333 | R160: 2.083333333 | S160: 2.083333333 | T160: 2.083333333 | U160: 2.083333333 | V160: 2.083333333 | W160: 2.083333333 | X160: 2.083333333 | Y160: 2.083333333 | Z160: 2.083333333 | AA160: 2.083333333 | AB160: 2.083333333 | AC160: 2.083333333 | AD160: 2.083333333 | AE160: 2.083333333 | AF160: 2.083333333 | AG160: 2.083333333 | AH160: 2.083333333 | AI160: 2.083333333 | AJ160: 2.083333333 | AK160: 2.083333333 | AL160: 2.083333333 | AM160: 2.083333333 | AN160: 2.083333333 | AO160: 2.083333333 | AP160: 2.083333333 | AQ160: 2.083333333 | AR160: 2.083333333 | AS160: 2.083333333 | AT160: 2.083333333 | AU160: 2.083333333 | AV160: 2.083333333 | AW160: 2.083333333 | AX160: 2.083333333 | AY160: 2.083333333 | AZ160: 2.083333333 | BA160: 2.083333333 | BB160: 2.083333333 | BC160: 2.083333333 | BD160: 2.083333333 | BE160: 2.083333333 | BF160: 2.083333333 | BG160: 2.083333333 | BH160: 2.083333333 | BI160: 2.083333333 | BJ160: 2.083333333 | BK160: 2.083333333 | BL160: 2.083333333 | BM160: 2.083333333 | BN160: 2.083333333 | BO160: 2.083333333 | BP160: 2.083333333 | BQ160: 2.083333333 | BR160: 2.083333333 | BS160: 2.083333333
D161: Daily km Potential | G161: km/day | H161: 24 | K161: 11827.59388 | N161: =N159*N160*24 -> 0 | O161: =O159*O160*24 -> 0 | P161: 0 | Q161: 0 | R161: 0 | S161: 0 | T161: 0 | U161: 0 | V161: 0 | W161: 0 | X161: 0 | Y161: 0 | Z161: 11827.59388 | AA161: 11827.59388 | AB161: 11827.59388 | AC161: 11827.59388 | AD161: 11827.59388 | AE161: 11827.59388 | AF161: 11827.59388 | AG161: 11827.59388 | AH161: 11827.59388 | AI161: 11827.59388 | AJ161: 11827.59388 | AK161: 11827.59388 | AL161: 11827.59388 | AM161: 11827.59388 | AN161: 11827.59388 | AO161: 11827.59388 | AP161: 11827.59388 | AQ161: 11827.59388 | AR161: 11827.59388 | AS161: 11827.59388 | AT161: 11827.59388 | AU161: 11827.59388 | AV161: 11827.59388 | AW161: 11827.59388 | AX161: 11827.59388 | AY161: 11827.59388 | AZ161: 11827.59388 | BA161: 11827.59388 | BB161: 11827.59388 | BC161: 11827.59388 | BD161: 0 | BE161: 0 | BF161: 0 | BG161: 0 | BH161: 0 | BI161: 0 | BJ161: 0 | BK161: 0 | BL161: 0 | BM161: 0 | BN161: 0 | BO161: 0 | BP161: 0 | BQ161: 0 | BR161: 0 | BS161: 0
D162: Daily km/Truck | G162: km/Truck | K162: 300 | N162: =N16 -> 300 | O162: =O16 -> 300 | P162: 300 | Q162: 300 | R162: 300 | S162: 300 | T162: 300 | U162: 300 | V162: 300 | W162: 300 | X162: 300 | Y162: 300 | Z162: 300 | AA162: 300 | AB162: 300 | AC162: 300 | AD162: 300 | AE162: 300 | AF162: 300 | AG162: 300 | AH162: 300 | AI162: 300 | AJ162: 300 | AK162: 300 | AL162: 300 | AM162: 300 | AN162: 300 | AO162: 300 | AP162: 300 | AQ162: 300 | AR162: 300 | AS162: 300 | AT162: 300 | AU162: 300 | AV162: 300 | AW162: 300 | AX162: 300 | AY162: 300 | AZ162: 300 | BA162: 300 | BB162: 300 | BC162: 300 | BD162: 300 | BE162: 300 | BF162: 300 | BG162: 300 | BH162: 300 | BI162: 300 | BJ162: 300 | BK162: 300 | BL162: 300 | BM162: 300 | BN162: 300 | BO162: 300 | BP162: 300 | BQ162: 300 | BR162: 300 | BS162: 300
D164: Break-Even Trucks | G164: Trucks | K164: =MAX(N164:BS164) -> 39.42531294 | N164: =N161/N162 -> 0 | O164: =O161/O162 -> 0 | P164: 0 | Q164: 0 | R164: 0 | S164: 0 | T164: 0 | U164: 0 | V164: 0 | W164: 0 | X164: 0 | Y164: 0 | Z164: 39.42531294 | AA164: 39.42531294 | AB164: 39.42531294 | AC164: 39.42531294 | AD164: 39.42531294 | AE164: 39.42531294 | AF164: 39.42531294 | AG164: 39.42531294 | AH164: 39.42531294 | AI164: 39.42531294 | AJ164: 39.42531294 | AK164: 39.42531294 | AL164: 39.42531294 | AM164: 39.42531294 | AN164: 39.42531294 | AO164: 39.42531294 | AP164: 39.42531294 | AQ164: 39.42531294 | AR164: 39.42531294 | AS164: 39.42531294 | AT164: 39.42531294 | AU164: 39.42531294 | AV164: 39.42531294 | AW164: 39.42531294 | AX164: 39.42531294 | AY164: 39.42531294 | AZ164: 39.42531294 | BA164: 39.42531294 | BB164: 39.42531294 | BC164: 39.42531294 | BD164: 0 | BE164: 0 | BF164: 0 | BG164: 0 | BH164: 0 | BI164: 0 | BJ164: 0 | BK164: 0 | BL164: 0 | BM164: 0 | BN164: 0 | BO164: 0 | BP164: 0 | BQ164: 0 | BR164: 0 | BS164: 0
C506: Methane Requirements for Electricity
K507: =K518/Electricity!M31 -> 593738.3507
K508: =K507/H518 -> 102676.7113
D510: Total kWh/yr | K510: =K156 -> 2032402.44
D511: Thermic kWh | K511: =K510/H519 -> 5081006.099
D512: Calorific per year | K512: =K511/H518 -> 878671.5489
D513: Hrs | K513: =K512/H132 -> 109.0271428
D515: Convert to M3 | K515: =K510/H518*H519 -> 140587.4478
D518: Total Biogas per Year for Electricity at 100% Efficiency | G518: M3/Year | H518: =Inputs!F187 -> 5.7826 | I518: Energy Value kwh/M3 | K518: =MAX(N518:BS518) -> 351468.6196 | N518: =N156/$H$518 -> 0 | O518: 0 | P518: 0 | Q518: 0 | R518: 0 | S518: 0 | T518: 0 | U518: 0 | V518: 0 | W518: 0 | X518: 0 | Y518: 0 | Z518: 351468.6196 | AA518: 351468.6196 | AB518: 351468.6196 | AC518: 351468.6196 | AD518: 351468.6196 | AE518: 351468.6196 | AF518: 351468.6196 | AG518: 351468.6196 | AH518: 351468.6196 | AI518: 351468.6196 | AJ518: 351468.6196 | AK518: 351468.6196 | AL518: 351468.6196 | AM518: 351468.6196 | AN518: 351468.6196 | AO518: 351468.6196 | AP518: 351468.6196 | AQ518: 351468.6196 | AR518: 351468.6196 | AS518: 351468.6196 | AT518: =AT156/$H$518 -> 351468.6196 | AU518: 351468.6196 | AV518: 351468.6196 | AW518: 351468.6196 | AX518: 351468.6196 | AY518: 351468.6196 | AZ518: 351468.6196 | BA518: 351468.6196 | BB518: 351468.6196 | BC518: 351468.6196 | BD518: 0 | BE518: 0 | BF518: 0 | BG518: 0 | BH518: 0 | BI518: 0 | BJ518: 0 | BK518: 0 | BL518: 0 | BM518: 0 | BN518: 0 | BO518: 0 | BP518: 0 | BQ518: 0 | BR518: 0 | BS518: 0
D519: Total Biogas per Year for Electricity at Efficiency | G519: M3/Year | H519: =Inputs!F188 -> 0.4 | I519: Engine Efficiency | K519: =MAX(N519:BS519) -> 878671.5489 | N519: =N518/$H$519 -> 0 | O519: 0 | P519: 0 | Q519: 0 | R519: 0 | S519: 0 | T519: 0 | U519: 0 | V519: 0 | W519: 0 | X519: 0 | Y519: 0 | Z519: 878671.5489 | AA519: 878671.5489 | AB519: 878671.5489 | AC519: 878671.5489 | AD519: 878671.5489 | AE519: 878671.5489 | AF519: 878671.5489 | AG519: 878671.5489 | AH519: 878671.5489 | AI519: 878671.5489 | AJ519: 878671.5489 | AK519: 878671.5489 | AL519: 878671.5489 | AM519: 878671.5489 | AN519: 878671.5489 | AO519: 878671.5489 | AP519: 878671.5489 | AQ519: 878671.5489 | AR519: 878671.5489 | AS519: 878671.5489 | AT519: =AT518/$H$519 -> 878671.5489 | AU519: 878671.5489 | AV519: 878671.5489 | AW519: 878671.5489 | AX519: 878671.5489 | AY519: 878671.5489 | AZ519: 878671.5489 | BA519: 878671.5489 | BB519: 878671.5489 | BC519: 878671.5489 | BD519: 0 | BE519: 0 | BF519: 0 | BG519: 0 | BH519: 0 | BI519: 0 | BJ519: 0 | BK519: 0 | BL519: 0 | BM519: 0 | BN519: 0 | BO519: 0 | BP519: 0 | BQ519: 0 | BR519: 0 | BS519: 0
D520: Total per Hour for Electricity - Self Generation Biogass | G520: M3/Hour | H520: =H132 -> 8059.2 | K520: =MAX(N520:BS520) -> 109.0271428 | N520: =N519/$H$520 -> 0 | O520: 0 | P520: 0 | Q520: 0 | R520: 0 | S520: 0 | T520: 0 | U520: 0 | V520: 0 | W520: 0 | X520: 0 | Y520: 0 | Z520: 109.0271428 | AA520: 109.0271428 | AB520: 109.0271428 | AC520: 109.0271428 | AD520: 109.0271428 | AE520: 109.0271428 | AF520: 109.0271428 | AG520: 109.0271428 | AH520: 109.0271428 | AI520: 109.0271428 | AJ520: 109.0271428 | AK520: 109.0271428 | AL520: 109.0271428 | AM520: 109.0271428 | AN520: 109.0271428 | AO520: 109.0271428 | AP520: 109.0271428 | AQ520: 109.0271428 | AR520: 109.0271428 | AS520: 109.0271428 | AT520: =AT519/$H$520 -> 109.0271428 | AU520: 109.0271428 | AV520: 109.0271428 | AW520: 109.0271428 | AX520: 109.0271428 | AY520: 109.0271428 | AZ520: 109.0271428 | BA520: 109.0271428 | BB520: 109.0271428 | BC520: 109.0271428 | BD520: 0 | BE520: 0 | BF520: 0 | BG520: 0 | BH520: 0 | BI520: 0 | BJ520: 0 | BK520: 0 | BL520: 0 | BM520: 0 | BN520: 0 | BO520: 0 | BP520: 0 | BQ520: 0 | BR520: 0 | BS520: 0
D522: Biogass | K522: =Inputs!F70 -> 507
D523: After Electriicty | K523: =K522-K520 -> 397.9728572
D524: CNG per Hour | K524: =K523*Electricity!M31 -> 235.5835202
D525: km per day per truck | K525: 300
D526: CNG per day | K526: =K524*24 -> 5654.004486
D527: Max km per day | H527: =H54 -> 2.083333333 | I527: km/CNG | K527: =K526*H527 -> 11779.17601
K528: =K527/K525 -> 39.26392004
K531: 120
D532: Total Potential Methane from Minimum Month Mill Production | G532: M3/Hour
D533: Total Potential CNG Methane from Full Upgrader Capacity | G533: M3/Hour | K533: =MAX(N533:BS533) -> 300.1230928 | N533: ='Operating Cash Flow'!N$225 -> 0 | O533: ='Operating Cash Flow'!O$225 -> 0 | P533: ='Operating Cash Flow'!P$225 -> 0 | Q533: ='Operating Cash Flow'!Q$225 -> 0 | R533: ='Operating Cash Flow'!R$225 -> 0 | S533: ='Operating Cash Flow'!S$225 -> 0 | T533: ='Operating Cash Flow'!T$225 -> 0 | U533: ='Operating Cash Flow'!U$225 -> 0 | V533: ='Operating Cash Flow'!V$225 -> 0 | W533: ='Operating Cash Flow'!W$225 -> 0 | X533: ='Operating Cash Flow'!X$225 -> 0 | Y533: ='Operating Cash Flow'!Y$225 -> 0 | Z533: ='Operating Cash Flow'!Z$225 -> 300.1230928 | AA533: ='Operating Cash Flow'!AA$225 -> 300.1230928 | AB533: ='Operating Cash Flow'!AB$225 -> 300.1230928 | AC533: ='Operating Cash Flow'!AC$225 -> 300.1230928 | AD533: ='Operating Cash Flow'!AD$225 -> 300.1230928 | AE533: ='Operating Cash Flow'!AE$225 -> 300.1230928 | AF533: ='Operating Cash Flow'!AF$225 -> 300.1230928 | AG533: ='Operating Cash Flow'!AG$225 -> 300.1230928 | AH533: ='Operating Cash Flow'!AH$225 -> 300.1230928 | AI533: ='Operating Cash Flow'!AI$225 -> 300.1230928 | AJ533: ='Operating Cash Flow'!AJ$225 -> 300.1230928 | AK533: ='Operating Cash Flow'!AK$225 -> 300.1230928 | AL533: ='Operating Cash Flow'!AL$225 -> 300.1230928 | AM533: ='Operating Cash Flow'!AM$225 -> 300.1230928 | AN533: ='Operating Cash Flow'!AN$225 -> 300.1230928 | AO533: ='Operating Cash Flow'!AO$225 -> 300.1230928 | AP533: ='Operating Cash Flow'!AP$225 -> 300.1230928 | AQ533: ='Operating Cash Flow'!AQ$225 -> 300.1230928 | AR533: ='Operating Cash Flow'!AR$225 -> 300.1230928 | AS533: ='Operating Cash Flow'!AS$225 -> 300.1230928 | AT533: ='Operating Cash Flow'!AT$225 -> 300.1230928 | AU533: ='Operating Cash Flow'!AU$225 -> 300.1230928 | AV533: ='Operating Cash Flow'!AV$225 -> 300.1230928 | AW533: ='Operating Cash Flow'!AW$225 -> 300.1230928 | AX533: ='Operating Cash Flow'!AX$225 -> 300.1230928 | AY533: ='Operating Cash Flow'!AY$225 -> 300.1230928 | AZ533: ='Operating Cash Flow'!AZ$225 -> 300.1230928 | BA533: ='Operating Cash Flow'!BA$225 -> 300.1230928 | BB533: ='Operating Cash Flow'!BB$225 -> 300.1230928 | BC533: ='Operating Cash Flow'!BC$225 -> 300.1230928 | BD533: ='Operating Cash Flow'!BD$225 -> 0 | BE533: ='Operating Cash Flow'!BE$225 -> 0 | BF533: ='Operating Cash Flow'!BF$225 -> 0 | BG533: ='Operating Cash Flow'!BG$225 -> 0 | BH533: ='Operating Cash Flow'!BH$225 -> 0 | BI533: ='Operating Cash Flow'!BI$225 -> 0 | BJ533: ='Operating Cash Flow'!BJ$225 -> 0 | BK533: ='Operating Cash Flow'!BK$225 -> 0 | BL533: ='Operating Cash Flow'!BL$225 -> 0 | BM533: ='Operating Cash Flow'!BM$225 -> 0 | BN533: ='Operating Cash Flow'!BN$225 -> 0 | BO533: ='Operating Cash Flow'!BO$225 -> 0 | BP533: ='Operating Cash Flow'!BP$225 -> 0 | BQ533: ='Operating Cash Flow'!BQ$225 -> 0 | BR533: ='Operating Cash Flow'!BR$225 -> 0 | BS533: ='Operating Cash Flow'!BS$225 -> 0
D534: Remaining Methane for Trucks | G534: M3/Hour | K534: =MAX(N534:BS534) -> 191.09595 | N534: =N533-N520 -> 0 | O534: 0 | P534: 0 | Q534: 0 | R534: 0 | S534: 0 | T534: 0 | U534: 0 | V534: 0 | W534: 0 | X534: 0 | Y534: 0 | Z534: 191.09595 | AA534: 191.09595 | AB534: 191.09595 | AC534: 191.09595 | AD534: 191.09595 | AE534: 191.09595 | AF534: 191.09595 | AG534: 191.09595 | AH534: 191.09595 | AI534: 191.09595 | AJ534: 191.09595 | AK534: 191.09595 | AL534: 191.09595 | AM534: 191.09595 | AN534: 191.09595 | AO534: 191.09595 | AP534: 191.09595 | AQ534: 191.09595 | AR534: 191.09595 | AS534: 191.09595 | AT534: =AT533-AT520 -> 191.09595 | AU534: 191.09595 | AV534: 191.09595 | AW534: 191.09595 | AX534: 191.09595 | AY534: 191.09595 | AZ534: 191.09595 | BA534: 191.09595 | BB534: 191.09595 | BC534: 191.09595 | BD534: 0 | BE534: 0 | BF534: 0 | BG534: 0 | BH534: 0 | BI534: 0 | BJ534: 0 | BK534: 0 | BL534: 0 | BM534: 0 | BN534: 0 | BO534: 0 | BP534: 0 | BQ534: 0 | BR534: 0 | BS534: 0
D536: Per Day km | K536: =300/24 -> 12.5
D537: m3 per day | H537: =H54 -> 2.083333333 | I537: m3/km | K537: =K536*H537 -> 26.04166667
D540: Remaining Methane for Trucks per Year | G540: M3/Year | H540: =Inputs!$F$89 -> 8400 | I540: Hrs of Upgrader/yr | K540: =MAX(N540:BS540) -> 1605205.98 | N540: =N534*$H$540 -> 0 | O540: 0 | P540: 0 | Q540: 0 | R540: 0 | S540: 0 | T540: 0 | U540: 0 | V540: 0 | W540: 0 | X540: 0 | Y540: 0 | Z540: 1605205.98 | AA540: 1605205.98 | AB540: 1605205.98 | AC540: 1605205.98 | AD540: 1605205.98 | AE540: 1605205.98 | AF540: 1605205.98 | AG540: 1605205.98 | AH540: 1605205.98 | AI540: 1605205.98 | AJ540: 1605205.98 | AK540: 1605205.98 | AL540: 1605205.98 | AM540: 1605205.98 | AN540: 1605205.98 | AO540: 1605205.98 | AP540: 1605205.98 | AQ540: 1605205.98 | AR540: 1605205.98 | AS540: 1605205.98 | AT540: =AT534*$H$540 -> 1605205.98 | AU540: 1605205.98 | AV540: 1605205.98 | AW540: 1605205.98 | AX540: 1605205.98 | AY540: 1605205.98 | AZ540: 1605205.98 | BA540: 1605205.98 | BB540: 1605205.98 | BC540: 1605205.98 | BD540: 0 | BE540: 0 | BF540: 0 | BG540: 0 | BH540: 0 | BI540: 0 | BJ540: 0 | BK540: 0 | BL540: 0 | BM540: 0 | BN540: 0 | BO540: 0 | BP540: 0 | BQ540: 0 | BR540: 0 | BS540: 0
D541: Potential km from Remaining Use | G541: km/Year | H541: =(Inputs!$F$113) -> 2.083333333 | I541: M3/km Efficiency | K541: =MAX(N541:BS541) -> 3344179.125 | N541: =N540*$H$541 -> 0 | O541: 0 | P541: 0 | Q541: 0 | R541: 0 | S541: 0 | T541: 0 | U541: 0 | V541: 0 | W541: 0 | X541: 0 | Y541: 0 | Z541: 3344179.125 | AA541: 3344179.125 | AB541: 3344179.125 | AC541: 3344179.125 | AD541: 3344179.125 | AE541: 3344179.125 | AF541: 3344179.125 | AG541: 3344179.125 | AH541: 3344179.125 | AI541: 3344179.125 | AJ541: 3344179.125 | AK541: 3344179.125 | AL541: 3344179.125 | AM541: 3344179.125 | AN541: 3344179.125 | AO541: 3344179.125 | AP541: 3344179.125 | AQ541: 3344179.125 | AR541: 3344179.125 | AS541: 3344179.125 | AT541: =AT540*$H$541 -> 3344179.125 | AU541: 3344179.125 | AV541: 3344179.125 | AW541: 3344179.125 | AX541: 3344179.125 | AY541: 3344179.125 | AZ541: 3344179.125 | BA541: 3344179.125 | BB541: 3344179.125 | BC541: 3344179.125 | BD541: 0 | BE541: 0 | BF541: 0 | BG541: 0 | BH541: 0 | BI541: 0 | BJ541: 0 | BK541: 0 | BL541: 0 | BM541: 0 | BN541: 0 | BO541: 0 | BP541: 0 | BQ541: 0 | BR541: 0 | BS541: 0
D542: Annual km/ truck | G542: km/Truck | K542: =MAX(N542:BS542) -> 86400 | N542: =N18 -> 86400 | O542: 86400 | P542: 86400 | Q542: 86400 | R542: 86400 | S542: 86400 | T542: 86400 | U542: 86400 | V542: 86400 | W542: 86400 | X542: 86400 | Y542: 86400 | Z542: 86400 | AA542: 86400 | AB542: 86400 | AC542: 86400 | AD542: 86400 | AE542: 86400 | AF542: 86400 | AG542: 86400 | AH542: 86400 | AI542: 86400 | AJ542: 86400 | AK542: 86400 | AL542: 86400 | AM542: 86400 | AN542: 86400 | AO542: 86400 | AP542: 86400 | AQ542: 86400 | AR542: 86400 | AS542: 86400 | AT542: =AT18 -> 86400 | AU542: 86400 | AV542: 86400 | AW542: 86400 | AX542: 86400 | AY542: 86400 | AZ542: 86400 | BA542: 86400 | BB542: 86400 | BC542: 86400 | BD542: 86400 | BE542: 86400 | BF542: 86400 | BG542: 86400 | BH542: 86400 | BI542: 86400 | BJ542: 86400 | BK542: 86400 | BL542: 86400 | BM542: 86400 | BN542: 86400 | BO542: 86400 | BP542: 86400 | BQ542: 86400 | BR542: 86400 | BS542: 86400
D543: Break Even Trucks after Electricity Use | G543: Trucks | K543: =MAX(N543:BS543) -> 38.70577691 | N543: =N541/N542 -> 0 | O543: 0 | P543: 0 | Q543: 0 | R543: 0 | S543: 0 | T543: 0 | U543: 0 | V543: 0 | W543: 0 | X543: 0 | Y543: 0 | Z543: 38.70577691 | AA543: 38.70577691 | AB543: 38.70577691 | AC543: 38.70577691 | AD543: 38.70577691 | AE543: 38.70577691 | AF543: 38.70577691 | AG543: 38.70577691 | AH543: 38.70577691 | AI543: 38.70577691 | AJ543: 38.70577691 | AK543: 38.70577691 | AL543: 38.70577691 | AM543: 38.70577691 | AN543: 38.70577691 | AO543: 38.70577691 | AP543: 38.70577691 | AQ543: 38.70577691 | AR543: 38.70577691 | AS543: 38.70577691 | AT543: =AT541/AT542 -> 38.70577691 | AU543: 38.70577691 | AV543: 38.70577691 | AW543: 38.70577691 | AX543: 38.70577691 | AY543: 38.70577691 | AZ543: 38.70577691 | BA543: 38.70577691 | BB543: 38.70577691 | BC543: 38.70577691 | BD543: 0 | BE543: 0 | BF543: 0 | BG543: 0 | BH543: 0 | BI543: 0 | BJ543: 0 | BK543: 0 | BL543: 0 | BM543: 0 | BN543: 0 | BO543: 0 | BP543: 0 | BQ543: 0 | BR543: 0 | BS543: 0
C545: Required Electricity Purchases or Surplus Methane
D546: Total Potential Methane from Full Upgrader Capacity | G546: M3/Hour | K546: =MAX(N546:BS546) -> 300.1230928 | N546: ='Operating Cash Flow'!N$225 -> 0 | O546: ='Operating Cash Flow'!O225 -> 0 | P546: ='Operating Cash Flow'!P225 -> 0 | Q546: ='Operating Cash Flow'!Q225 -> 0 | R546: ='Operating Cash Flow'!R225 -> 0 | S546: ='Operating Cash Flow'!S225 -> 0 | T546: ='Operating Cash Flow'!T225 -> 0 | U546: ='Operating Cash Flow'!U225 -> 0 | V546: ='Operating Cash Flow'!V225 -> 0 | W546: ='Operating Cash Flow'!W225 -> 0 | X546: ='Operating Cash Flow'!X225 -> 0 | Y546: ='Operating Cash Flow'!Y225 -> 0 | Z546: ='Operating Cash Flow'!Z225 -> 300.1230928 | AA546: ='Operating Cash Flow'!AA225 -> 300.1230928 | AB546: ='Operating Cash Flow'!AB225 -> 300.1230928 | AC546: ='Operating Cash Flow'!AC225 -> 300.1230928 | AD546: ='Operating Cash Flow'!AD225 -> 300.1230928 | AE546: ='Operating Cash Flow'!AE225 -> 300.1230928 | AF546: ='Operating Cash Flow'!AF225 -> 300.1230928 | AG546: ='Operating Cash Flow'!AG225 -> 300.1230928 | AH546: ='Operating Cash Flow'!AH225 -> 300.1230928 | AI546: ='Operating Cash Flow'!AI225 -> 300.1230928 | AJ546: ='Operating Cash Flow'!AJ225 -> 300.1230928 | AK546: ='Operating Cash Flow'!AK225 -> 300.1230928 | AL546: ='Operating Cash Flow'!AL225 -> 300.1230928 | AM546: ='Operating Cash Flow'!AM225 -> 300.1230928 | AN546: ='Operating Cash Flow'!AN225 -> 300.1230928 | AO546: ='Operating Cash Flow'!AO225 -> 300.1230928 | AP546: ='Operating Cash Flow'!AP225 -> 300.1230928 | AQ546: ='Operating Cash Flow'!AQ225 -> 300.1230928 | AR546: ='Operating Cash Flow'!AR225 -> 300.1230928 | AS546: ='Operating Cash Flow'!AS225 -> 300.1230928 | AT546: ='Operating Cash Flow'!AT225 -> 300.1230928 | AU546: ='Operating Cash Flow'!AU225 -> 300.1230928 | AV546: ='Operating Cash Flow'!AV225 -> 300.1230928 | AW546: ='Operating Cash Flow'!AW225 -> 300.1230928 | AX546: ='Operating Cash Flow'!AX225 -> 300.1230928 | AY546: ='Operating Cash Flow'!AY225 -> 300.1230928 | AZ546: ='Operating Cash Flow'!AZ225 -> 300.1230928 | BA546: ='Operating Cash Flow'!BA225 -> 300.1230928 | BB546: ='Operating Cash Flow'!BB225 -> 300.1230928 | BC546: ='Operating Cash Flow'!BC225 -> 300.1230928 | BD546: ='Operating Cash Flow'!BD225 -> 0 | BE546: ='Operating Cash Flow'!BE225 -> 0 | BF546: ='Operating Cash Flow'!BF225 -> 0 | BG546: ='Operating Cash Flow'!BG225 -> 0 | BH546: ='Operating Cash Flow'!BH225 -> 0 | BI546: ='Operating Cash Flow'!BI225 -> 0 | BJ546: ='Operating Cash Flow'!BJ225 -> 0 | BK546: ='Operating Cash Flow'!BK225 -> 0 | BL546: ='Operating Cash Flow'!BL225 -> 0 | BM546: ='Operating Cash Flow'!BM225 -> 0 | BN546: ='Operating Cash Flow'!BN225 -> 0 | BO546: ='Operating Cash Flow'!BO225 -> 0 | BP546: ='Operating Cash Flow'!BP225 -> 0 | BQ546: ='Operating Cash Flow'!BQ225 -> 0 | BR546: ='Operating Cash Flow'!BR225 -> 0 | BS546: ='Operating Cash Flow'!BS225 -> 0
D547: Methane Required for Truck Use | G547: M3/Hour | K547: =MAX(N547:BS547) -> 300 | N547: =N67 -> 0 | O547: 0 | P547: 0 | Q547: 0 | R547: 0 | S547: 0 | T547: 0 | U547: 0 | V547: 0 | W547: 0 | X547: 0 | Y547: 0 | Z547: 300 | AA547: 300 | AB547: 300 | AC547: 300 | AD547: 300 | AE547: 300 | AF547: 300 | AG547: 300 | AH547: 300 | AI547: 300 | AJ547: 300 | AK547: 300 | AL547: 300 | AM547: 300 | AN547: 300 | AO547: 300 | AP547: 300 | AQ547: 300 | AR547: 300 | AS547: 300 | AT547: =AT67 -> 300 | AU547: 300 | AV547: 300 | AW547: 300 | AX547: 300 | AY547: 300 | AZ547: 300 | BA547: 300 | BB547: 300 | BC547: 300 | BD547: 0 | BE547: 0 | BF547: 0 | BG547: 0 | BH547: 0 | BI547: 0 | BJ547: 0 | BK547: 0 | BL547: 0 | BM547: 0 | BN547: 0 | BO547: 0 | BP547: 0 | BQ547: 0 | BR547: 0 | BS547: 0
D548: Methane Available After Electricity Use | G548: M3/Hour | K548: =MAX(N548:BS548) -> 191.09595 | N548: =N546-N520 -> 0 | O548: 0 | P548: 0 | Q548: 0 | R548: 0 | S548: 0 | T548: 0 | U548: 0 | V548: 0 | W548: 0 | X548: 0 | Y548: 0 | Z548: 191.09595 | AA548: 191.09595 | AB548: 191.09595 | AC548: 191.09595 | AD548: 191.09595 | AE548: 191.09595 | AF548: 191.09595 | AG548: 191.09595 | AH548: 191.09595 | AI548: 191.09595 | AJ548: 191.09595 | AK548: 191.09595 | AL548: 191.09595 | AM548: 191.09595 | AN548: 191.09595 | AO548: 191.09595 | AP548: 191.09595 | AQ548: 191.09595 | AR548: 191.09595 | AS548: 191.09595 | AT548: =AT546-AT520 -> 191.09595 | AU548: 191.09595 | AV548: 191.09595 | AW548: 191.09595 | AX548: 191.09595 | AY548: 191.09595 | AZ548: 191.09595 | BA548: 191.09595 | BB548: 191.09595 | BC548: 191.09595 | BD548: 0 | BE548: 0 | BF548: 0 | BG548: 0 | BH548: 0 | BI548: 0 | BJ548: 0 | BK548: 0 | BL548: 0 | BM548: 0 | BN548: 0 | BO548: 0 | BP548: 0 | BQ548: 0 | BR548: 0 | BS548: 0
D549: Surplus Methane after Electricity Use | G549: M3/Hour | K549: =MIN(N549:BS549) -> 0 | N549: =MAX(N548-N547,0) -> 0 | O549: 0 | P549: 0 | Q549: 0 | R549: 0 | S549: 0 | T549: 0 | U549: 0 | V549: 0 | W549: 0 | X549: 0 | Y549: 0 | Z549: 0 | AA549: 0 | AB549: 0 | AC549: 0 | AD549: 0 | AE549: 0 | AF549: 0 | AG549: 0 | AH549: 0 | AI549: 0 | AJ549: 0 | AK549: 0 | AL549: 0 | AM549: 0 | AN549: 0 | AO549: 0 | AP549: 0 | AQ549: 0 | AR549: 0 | AS549: 0 | AT549: =MAX(AT548-AT547,0) -> 0 | AU549: 0 | AV549: 0 | AW549: 0 | AX549: 0 | AY549: 0 | AZ549: 0 | BA549: 0 | BB549: 0 | BC549: 0 | BD549: 0 | BE549: 0 | BF549: 0 | BG549: 0 | BH549: 0 | BI549: 0 | BJ549: 0 | BK549: 0 | BL549: 0 | BM549: 0 | BN549: 0 | BO549: 0 | BP549: 0 | BQ549: 0 | BR549: 0 | BS549: 0
D550: Deficit Methane After Electricity Use | G550: M3/Hour | K550: =MAX(N550:BS550) -> 108.90405 | N550: =MAX(-N548+N547,0) -> 0 | O550: 0 | P550: 0 | Q550: 0 | R550: 0 | S550: 0 | T550: 0 | U550: 0 | V550: 0 | W550: 0 | X550: 0 | Y550: 0 | Z550: 108.90405 | AA550: 108.90405 | AB550: 108.90405 | AC550: 108.90405 | AD550: 108.90405 | AE550: 108.90405 | AF550: 108.90405 | AG550: 108.90405 | AH550: 108.90405 | AI550: 108.90405 | AJ550: 108.90405 | AK550: 108.90405 | AL550: 108.90405 | AM550: 108.90405 | AN550: 108.90405 | AO550: 108.90405 | AP550: 108.90405 | AQ550: 108.90405 | AR550: 108.90405 | AS550: 108.90405 | AT550: =MAX(-AT548+AT547,0) -> 108.90405 | AU550: 108.90405 | AV550: 108.90405 | AW550: 108.90405 | AX550: 108.90405 | AY550: 108.90405 | AZ550: 108.90405 | BA550: 108.90405 | BB550: 108.90405 | BC550: 108.90405 | BD550: 0 | BE550: 0 | BF550: 0 | BG550: 0 | BH550: 0 | BI550: 0 | BJ550: 0 | BK550: 0 | BL550: 0 | BM550: 0 | BN550: 0 | BO550: 0 | BP550: 0 | BQ550: 0 | BR550: 0 | BS550: 0
D552: Percent of Electricity Purchased if Self-Generate | G552: % | K552: =MAX(N552:BS552) -> 0.9988709896 | N552: =IF(N520,N550/N520)*1 -> 0 | O552: 0 | P552: 0 | Q552: 0 | R552: 0 | S552: 0 | T552: 0 | U552: 0 | V552: 0 | W552: 0 | X552: 0 | Y552: 0 | Z552: 0.9988709896 | AA552: 0.9988709896 | AB552: 0.9988709896 | AC552: 0.9988709896 | AD552: 0.9988709896 | AE552: 0.9988709896 | AF552: 0.9988709896 | AG552: 0.9988709896 | AH552: 0.9988709896 | AI552: 0.9988709896 | AJ552: 0.9988709896 | AK552: 0.9988709896 | AL552: 0.9988709896 | AM552: 0.9988709896 | AN552: 0.9988709896 | AO552: 0.9988709896 | AP552: 0.9988709896 | AQ552: 0.9988709896 | AR552: 0.9988709896 | AS552: 0.9988709896 | AT552: =IF(AT520,AT550/AT520)*1 -> 0.9988709896 | AU552: 0.9988709896 | AV552: 0.9988709896 | AW552: 0.9988709896 | AX552: 0.9988709896 | AY552: 0.9988709896 | AZ552: 0.9988709896 | BA552: 0.9988709896 | BB552: 0.9988709896 | BC552: 0.9988709896 | BD552: 0 | BE552: 0 | BF552: 0 | BG552: 0 | BH552: 0 | BI552: 0 | BJ552: 0 | BK552: 0 | BL552: 0 | BM552: 0 | BN552: 0 | BO552: 0 | BP552: 0 | BQ552: 0 | BR552: 0 | BS552: 0
D553: Amount of kWh Purchased if Self-Generate | G553: kWh | K553: =SUM(N553:BS553) -> 60903235.08 | N553: =N552*N156 -> 0 | O553: 0 | P553: 0 | Q553: 0 | R553: 0 | S553: 0 | T553: 0 | U553: 0 | V553: 0 | W553: 0 | X553: 0 | Y553: 0 | Z553: 2030107.836 | AA553: 2030107.836 | AB553: 2030107.836 | AC553: 2030107.836 | AD553: 2030107.836 | AE553: 2030107.836 | AF553: 2030107.836 | AG553: 2030107.836 | AH553: 2030107.836 | AI553: 2030107.836 | AJ553: 2030107.836 | AK553: 2030107.836 | AL553: 2030107.836 | AM553: 2030107.836 | AN553: 2030107.836 | AO553: 2030107.836 | AP553: 2030107.836 | AQ553: 2030107.836 | AR553: 2030107.836 | AS553: 2030107.836 | AT553: =AT552*AT156 -> 2030107.836 | AU553: 2030107.836 | AV553: 2030107.836 | AW553: 2030107.836 | AX553: 2030107.836 | AY553: 2030107.836 | AZ553: 2030107.836 | BA553: 2030107.836 | BB553: 2030107.836 | BC553: 2030107.836 | BD553: 0 | BE553: 0 | BF553: 0 | BG553: 0 | BH553: 0 | BI553: 0 | BJ553: 0 | BK553: 0 | BL553: 0 | BM553: 0 | BN553: 0 | BO553: 0 | BP553: 0 | BQ553: 0 | BR553: 0 | BS553: 0

Sheet Operating Cash Flow
B1: Timeline | H1: Driver 1 | I1: Driver Units | J1: Driver 2 | K1: Sum/Max
C2: Period | N2: 1 | O2: 2 | P2: 3 | Q2: 4 | R2: 5 | S2: 6 | T2: 7 | U2: 8 | V2: 9 | W2: 10 | X2: 11 | Y2: 12 | Z2: 13 | AA2: 14 | AB2: 15 | AC2: 16 | AD2: 17 | AE2: 18 | AF2: 19 | AG2: 20 | AH2: 21 | AI2: 22 | AJ2: 23 | AK2: 24 | AL2: 25 | AM2: 26 | AN2: 27 | AO2: 28 | AP2: 29 | AQ2: 30 | AR2: 31 | AS2: 32 | AT2: 33 | AU2: 34 | AV2: 35 | AW2: 36 | AX2: 37 | AY2: 38 | AZ2: 39 | BA2: 40 | BB2: 41 | BC2: 42 | BD2: 43 | BE2: 44 | BF2: 45 | BG2: 46 | BH2: 47 | BI2: 48 | BJ2: 49 | BK2: 50 | BL2: 51 | BM2: 52 | BN2: 53 | BO2: 54 | BP2: 55 | BQ2: 56 | BR2: 57 | BS2: 58
C3: Construction | G3: Flag | H3: =Inputs!$F$4 -> 12 | N3: =N2<=$H$3 -> TRUE | O3: TRUE | P3: TRUE | Q3: TRUE | R3: TRUE | S3: TRUE | T3: TRUE | U3: TRUE | V3: TRUE | W3: TRUE | X3: TRUE | Y3: TRUE | Z3: FALSE | AA3: FALSE | AB3: FALSE | AC3: FALSE | AD3: FALSE | AE3: FALSE | AF3: FALSE | AG3: FALSE | AH3: FALSE | AI3: FALSE | AJ3: FALSE | AK3: FALSE | AL3: FALSE | AM3: FALSE | AN3: FALSE | AO3: FALSE | AP3: FALSE | AQ3: FALSE | AR3: FALSE | AS3: FALSE | AT3: FALSE | AU3: FALSE | AV3: FALSE | AW3: FALSE | AX3: FALSE | AY3: FALSE | AZ3: FALSE | BA3: FALSE | BB3: FALSE | BC3: FALSE | BD3: FALSE | BE3: FALSE | BF3: FALSE | BG3: FALSE | BH3: FALSE | BI3: FALSE | BJ3: FALSE | BK3: FALSE | BL3: FALSE | BM3: FALSE | BN3: FALSE | BO3: FALSE | BP3: FALSE | BQ3: FALSE | BR3: FALSE | BS3: FALSE
C4: Periods per Year | G4: Months | H4: =Inputs!$F$12 -> 1 | J4: =Inputs!$F$11 -> 12 | N4: =IF(N$3,$H4,$J4) -> 1 | O4: 1 | P4: 1 | Q4: 1 | R4: 1 | S4: 1 | T4: 1 | U4: 1 | V4: 1 | W4: 1 | X4: 1 | Y4: 1 | Z4: 12 | AA4: 12 | AB4: 12 | AC4: 12 | AD4: 12 | AE4: 12 | AF4: 12 | AG4: 12 | AH4: 12 | AI4: 12 | AJ4: 12 | AK4: 12 | AL4: 12 | AM4: 12 | AN4: 12 | AO4: 12 | AP4: 12 | AQ4: 12 | AR4: 12 | AS4: 12 | AT4: 12 | AU4: 12 | AV4: 12 | AW4: 12 | AX4: 12 | AY4: 12 | AZ4: 12 | BA4: 12 | BB4: 12 | BC4: 12 | BD4: 12 | BE4: 12 | BF4: 12 | BG4: 12 | BH4: 12 | BI4: 12 | BJ4: 12 | BK4: 12 | BL4: 12 | BM4: 12 | BN4: 12 | BO4: 12 | BP4: 12 | BQ4: 12 | BR4: 12 | BS4: 12
C5: Start of Period | G5: Date | N5: =M6+1 -> 2020-01-01 | O5: 2020-02-01 | P5: 2020-03-01 | Q5: 2020-04-01 | R5: 2020-05-01 | S5: 2020-06-01 | T5: 2020-07-01 | U5: 2020-08-01 | V5: 2020-09-01 | W5: 2020-10-01 | X5: 2020-11-01 | Y5: 2020-12-01 | Z5: 2021-01-01 | AA5: 2022-01-01 | AB5: 2023-01-01 | AC5: 2024-01-01 | AD5: 2025-01-01 | AE5: 2026-01-01 | AF5: 2027-01-01 | AG5: 2028-01-01 | AH5: 2029-01-01 | AI5: 2030-01-01 | AJ5: 2031-01-01 | AK5: 2032-01-01 | AL5: 2033-01-01 | AM5: 2034-01-01 | AN5: 2035-01-01 | AO5: 2036-01-01 | AP5: 2037-01-01 | AQ5: 2038-01-01 | AR5: 2039-01-01 | AS5: 2040-01-01 | AT5: 2041-01-01 | AU5: 2042-01-01 | AV5: 2043-01-01 | AW5: 2044-01-01 | AX5: 2045-01-01 | AY5: 2046-01-01 | AZ5: 2047-01-01 | BA5: 2048-01-01 | BB5: 2049-01-01 | BC5: 2050-01-01 | BD5: 2051-01-01 | BE5: 2052-01-01 | BF5: 2053-01-01 | BG5: 2054-01-01 | BH5: 2055-01-01 | BI5: 2056-01-01 | BJ5: 2057-01-01 | BK5: 2058-01-01 | BL5: 2059-01-01 | BM5: 2060-01-01 | BN5: 2061-01-01 | BO5: 2062-01-01 | BP5: 2063-01-01 | BQ5: 2064-01-01 | BR5: 2065-01-01 | BS5: 2066-01-01
C6: End of Period | G6: Date | M6: =Inputs!$F$3-1 -> 2019-12-31 | N6: =EDATE(N5,N4)-1 -> 2020-01-31 | O6: 2020-02-29 | P6: 2020-03-31 | Q6: 2020-04-30 | R6: 2020-05-31 | S6: 2020-06-30 | T6: 2020-07-31 | U6: 2020-08-31 | V6: 2020-09-30 | W6: 2020-10-31 | X6: 2020-11-30 | Y6: 2020-12-31 | Z6: 2021-12-31 | AA6: 2022-12-31 | AB6: 2023-12-31 | AC6: 2024-12-31 | AD6: 2025-12-31 | AE6: 2026-12-31 | AF6: 2027-12-31 | AG6: 2028-12-31 | AH6: 2029-12-31 | AI6: 2030-12-31 | AJ6: 2031-12-31 | AK6: 2032-12-31 | AL6: 2033-12-31 | AM6: 2034-12-31 | AN6: 2035-12-31 | AO6: 2036-12-31 | AP6: 2037-12-31 | AQ6: 2038-12-31 | AR6: 2039-12-31 | AS6: 2040-12-31 | AT6: 2041-12-31 | AU6: 2042-12-31 | AV6: 2043-12-31 | AW6: 2044-12-31 | AX6: 2045-12-31 | AY6: 2046-12-31 | AZ6: 2047-12-31 | BA6: 2048-12-31 | BB6: 2049-12-31 | BC6: 2050-12-31 | BD6: 2051-12-31 | BE6: 2052-12-31 | BF6: 2053-12-31 | BG6: 2054-12-31 | BH6: 2055-12-31 | BI6: 2056-12-31 | BJ6: 2057-12-31 | BK6: 2058-12-31 | BL6: 2059-12-31 | BM6: 2060-12-31 | BN6: 2061-12-31 | BO6: 2062-12-31 | BP6: 2063-12-31 | BQ6: 2064-12-31 | BR6: 2065-12-31 | BS6: 2066-12-31
C7: BOT Period | G7: Flag | H7: =Inputs!$F$5 -> 2021-01-01 | J7: =Inputs!$F$7 -> 2031-01-01 | N7: =AND(N$5>=$H7,N$5<$J7)*1 -> 0 | O7: =AND(O5>=$H$7,O5<$J$7)*1 -> 0 | P7: 0 | Q7: 0 | R7: 0 | S7: 0 | T7: 0 | U7: 0 | V7: 0 | W7: 0 | X7: 0 | Y7: 0 | Z7: 1 | AA7: 1 | AB7: 1 | AC7: 1 | AD7: 1 | AE7: 1 | AF7: 1 | AG7: 1 | AH7: 1 | AI7: 1 | AJ7: 0 | AK7: 0 | AL7: 0 | AM7: 0 | AN7: 0 | AO7: 0 | AP7: 0 | AQ7: 0 | AR7: 0 | AS7: 0 | AT7: 0 | AU7: 0 | AV7: 0 | AW7: 0 | AX7: 0 | AY7: 0 | AZ7: 0 | BA7: 0 | BB7: 0 | BC7: 0 | BD7: 0 | BE7: 0 | BF7: 0 | BG7: 0 | BH7: 0 | BI7: 0 | BJ7: 0 | BK7: 0 | BL7: 0 | BM7: 0 | BN7: 0 | BO7: 0 | BP7: 0 | BQ7: 0 | BR7: 0 | BS7: 0
C8: Evaluation Period | G8: Flag | H8: =Inputs!$F$5 -> 2021-01-01 | J8: =Inputs!$F$9 -> 2051-01-01 | N8: =AND(N$5>=$H8,N$5<$J8)*1 -> 0 | O8: =AND(O$5>=$H8,O$5<$J8)*1 -> 0 | P8: 0 | Q8: 0 | R8: 0 | S8: 0 | T8: 0 | U8: 0 | V8: 0 | W8: 0 | X8: 0 | Y8: 0 | Z8: 1 | AA8: 1 | AB8: 1 | AC8: 1 | AD8: 1 | AE8: 1 | AF8: 1 | AG8: 1 | AH8: 1 | AI8: 1 | AJ8: 1 | AK8: 1 | AL8: 1 | AM8: 1 | AN8: 1 | AO8: 1 | AP8: 1 | AQ8: 1 | AR8: 1 | AS8: 1 | AT8: 1 | AU8: 1 | AV8: 1 | AW8: 1 | AX8: 1 | AY8: 1 | AZ8: 1 | BA8: 1 | BB8: 1 | BC8: 1 | BD8: 0 | BE8: 0 | BF8: 0 | BG8: 0 | BH8: 0 | BI8: 0 | BJ8: 0 | BK8: 0 | BL8: 0 | BM8: 0 | BN8: 0 | BO8: 0 | BP8: 0 | BQ8: 0 | BR8: 0 | BS8: 0
C9: Post BOT Period | G9: Flag | N9: =AND(N8,NOT(N7))*1 -> 0 | O9: 0 | P9: 0 | Q9: 0 | R9: 0 | S9: 0 | T9: 0 | U9: 0 | V9: 0 | W9: 0 | X9: 0 | Y9: 0 | Z9: 0 | AA9: 0 | AB9: 0 | AC9: 0 | AD9: 0 | AE9: 0 | AF9: 0 | AG9: 0 | AH9: 0 | AI9: 0 | AJ9: 1 | AK9: 1 | AL9: 1 | AM9: 1 | AN9: 1 | AO9: 1 | AP9: 1 | AQ9: 1 | AR9: 1 | AS9: 1 | AT9: 1 | AU9: 1 | AV9: 1 | AW9: 1 | AX9: 1 | AY9: 1 | AZ9: 1 | BA9: 1 | BB9: 1 | BC9: 1 | BD9: 0 | BE9: 0 | BF9: 0 | BG9: 0 | BH9: 0 | BI9: 0 | BJ9: 0 | BK9: 0 | BL9: 0 | BM9: 0 | BN9: 0 | BO9: 0 | BP9: 0 | BQ9: 0 | BR9: 0 | BS9: 0
B11: Operating Expenses Other Than Electricity
D12: Inflation Index | G12: Index | H12: =Inputs!F151 -> 0 | M12: 1 | N12: =M12*(1+$H$12*'Operating Model'!N8) -> 1 | O12: =N12*(1+$H$12*'Operating Model'!O8) -> 1 | P12: =O12*(1+$H$12*'Operating Model'!P8) -> 1 | Q12: =P12*(1+$H$12*'Operating Model'!Q8) -> 1 | R12: =Q12*(1+$H$12*'Operating Model'!R8) -> 1 | S12: =R12*(1+$H$12*'Operating Model'!S8) -> 1 | T12: =S12*(1+$H$12*'Operating Model'!T8) -> 1 | U12: =T12*(1+$H$12*'Operating Model'!U8) -> 1 | V12: =U12*(1+$H$12*'Operating Model'!V8) -> 1 | W12: =V12*(1+$H$12*'Operating Model'!W8) -> 1 | X12: =W12*(1+$H$12*'Operating Model'!X8) -> 1 | Y12: =X12*(1+$H$12*'Operating Model'!Y8) -> 1 | Z12: =Y12*(1+$H$12*'Operating Model'!Z8) -> 1 | AA12: =Z12*(1+$H$12*'Operating Model'!AA8) -> 1 | AB12: =AA12*(1+$H$12*'Operating Model'!AB8) -> 1 | AC12: =AB12*(1+$H$12*'Operating Model'!AC8) -> 1 | AD12: =AC12*(1+$H$12*'Operating Model'!AD8) -> 1 | AE12: =AD12*(1+$H$12*'Operating Model'!AE8) -> 1 | AF12: =AE12*(1+$H$12*'Operating Model'!AF8) -> 1 | AG12: =AF12*(1+$H$12*'Operating Model'!AG8) -> 1 | AH12: =AG12*(1+$H$12*'Operating Model'!AH8) -> 1 | AI12: =AH12*(1+$H$12*'Operating Model'!AI8) -> 1 | AJ12: =AI12*(1+$H$12*'Operating Model'!AJ8) -> 1 | AK12: =AJ12*(1+$H$12*'Operating Model'!AK8) -> 1 | AL12: =AK12*(1+$H$12*'Operating Model'!AL8) -> 1 | AM12: =AL12*(1+$H$12*'Operating Model'!AM8) -> 1 | AN12: =AM12*(1+$H$12*'Operating Model'!AN8) -> 1 | AO12: =AN12*(1+$H$12*'Operating Model'!AO8) -> 1 | AP12: =AO12*(1+$H$12*'Operating Model'!AP8) -> 1 | AQ12: =AP12*(1+$H$12*'Operating Model'!AQ8) -> 1 | AR12: =AQ12*(1+$H$12*'Operating Model'!AR8) -> 1 | AS12: =AR12*(1+$H$12*'Operating Model'!AS8) -> 1 | AT12: =AS12*(1+$H$12*'Operating Model'!AT8) -> 1 | AU12: =AT12*(1+$H$12*'Operating Model'!AU8) -> 1 | AV12: =AU12*(1+$H$12*'Operating Model'!AV8) -> 1 | AW12: =AV12*(1+$H$12*'Operating Model'!AW8) -> 1 | AX12: =AW12*(1+$H$12*'Operating Model'!AX8) -> 1 | AY12: =AX12*(1+$H$12*'Operating Model'!AY8) -> 1 | AZ12: =AY12*(1+$H$12*'Operating Model'!AZ8) -> 1 | BA12: =AZ12*(1+$H$12*'Operating Model'!BA8) -> 1 | BB12: =BA12*(1+$H$12*'Operating Model'!BB8) -> 1 | BC12: =BB12*(1+$H$12*'Operating Model'!BC8) -> 1 | BD12: =BC12*(1+$H$12*'Operating Model'!BD8) -> 1 | BE12: =BD12*(1+$H$12*'Operating Model'!BE8) -> 1 | BF12: =BE12*(1+$H$12*'Operating Model'!BF8) -> 1 | BG12: =BF12*(1+$H$12*'Operating Model'!BG8) -> 1 | BH12: =BG12*(1+$H$12*'Operating Model'!BH8) -> 1 | BI12: =BH12*(1+$H$12*'Operating Model'!BI8) -> 1 | BJ12: =BI12*(1+$H$12*'Operating Model'!BJ8) -> 1 | BK12: =BJ12*(1+$H$12*'Operating Model'!BK8) -> 1 | BL12: =BK12*(1+$H$12*'Operating Model'!BL8) -> 1 | BM12: =BL12*(1+$H$12*'Operating Model'!BM8) -> 1 | BN12: =BM12*(1+$H$12*'Operating Model'!BN8) -> 1 | BO12: =BN12*(1+$H$12*'Operating Model'!BO8) -> 1 | BP12: =BO12*(1+$H$12*'Operating Model'!BP8) -> 1 | BQ12: =BP12*(1+$H$12*'Operating Model'!BQ8) -> 1 | BR12: =BQ12*(1+$H$12*'Operating Model'!BR8) -> 1 | BS12: =BR12*(1+$H$12*'Operating Model'!BS8) -> 1
D14: Lagoon Maintenance | G14: USD | H14: =Inputs!F156 -> 18298.8 | K14: =MAX(N14:BS14) -> 18298.8 | N14: =$H$14*N12*'Operating Model'!N8 -> 0 | O14: =$H$14*O12*'Operating Model'!O8 -> 0 | P14: =$H$14*P12*'Operating Model'!P8 -> 0 | Q14: =$H$14*Q12*'Operating Model'!Q8 -> 0 | R14: =$H$14*R12*'Operating Model'!R8 -> 0 | S14: =$H$14*S12*'Operating Model'!S8 -> 0 | T14: =$H$14*T12*'Operating Model'!T8 -> 0 | U14: =$H$14*U12*'Operating Model'!U8 -> 0 | V14: =$H$14*V12*'Operating Model'!V8 -> 0 | W14: =$H$14*W12*'Operating Model'!W8 -> 0 | X14: =$H$14*X12*'Operating Model'!X8 -> 0 | Y14: =$H$14*Y12*'Operating Model'!Y8 -> 0 | Z14: =$H$14*Z12*'Operating Model'!Z8 -> 18298.8 | AA14: =$H$14*AA12*'Operating Model'!AA8 -> 18298.8 | AB14: =$H$14*AB12*'Operating Model'!AB8 -> 18298.8 | AC14: =$H$14*AC12*'Operating Model'!AC8 -> 18298.8 | AD14: =$H$14*AD12*'Operating Model'!AD8 -> 18298.8 | AE14: =$H$14*AE12*'Operating Model'!AE8 -> 18298.8 | AF14: =$H$14*AF12*'Operating Model'!AF8 -> 18298.8 | AG14: =$H$14*AG12*'Operating Model'!AG8 -> 18298.8 | AH14: =$H$14*AH12*'Operating Model'!AH8 -> 18298.8 | AI14: =$H$14*AI12*'Operating Model'!AI8 -> 18298.8 | AJ14: =$H$14*AJ12*'Operating Model'!AJ8 -> 18298.8 | AK14: =$H$14*AK12*'Operating Model'!AK8 -> 18298.8 | AL14: =$H$14*AL12*'Operating Model'!AL8 -> 18298.8 | AM14: =$H$14*AM12*'Operating Model'!AM8 -> 18298.8 | AN14: =$H$14*AN12*'Operating Model'!AN8 -> 18298.8 | AO14: =$H$14*AO12*'Operating Model'!AO8 -> 18298.8 | AP14: =$H$14*AP12*'Operating Model'!AP8 -> 18298.8 | AQ14: =$H$14*AQ12*'Operating Model'!AQ8 -> 18298.8 | AR14: =$H$14*AR12*'Operating Model'!AR8 -> 18298.8 | AS14: =$H$14*AS12*'Operating Model'!AS8 -> 18298.8 | AT14: =$H$14*AT12*'Operating Model'!AT8 -> 18298.8 | AU14: =$H$14*AU12*'Operating Model'!AU8 -> 18298.8 | AV14: =$H$14*AV12*'Operating Model'!AV8 -> 18298.8 | AW14: =$H$14*AW12*'Operating Model'!AW8 -> 18298.8 | AX14: =$H$14*AX12*'Operating Model'!AX8 -> 18298.8 | AY14: =$H$14*AY12*'Operating Model'!AY8 -> 18298.8 | AZ14: =$H$14*AZ12*'Operating Model'!AZ8 -> 18298.8 | BA14: =$H$14*BA12*'Operating Model'!BA8 -> 18298.8 | BB14: =$H$14*BB12*'Operating Model'!BB8 -> 18298.8 | BC14: =$H$14*BC12*'Operating Model'!BC8 -> 18298.8 | BD14: =$H$14*BD12*'Operating Model'!BD8 -> 0 | BE14: =$H$14*BE12*'Operating Model'!BE8 -> 0 | BF14: =$H$14*BF12*'Operating Model'!BF8 -> 0 | BG14: =$H$14*BG12*'Operating Model'!BG8 -> 0 | BH14: =$H$14*BH12*'Operating Model'!BH8 -> 0 | BI14: =$H$14*BI12*'Operating Model'!BI8 -> 0 | BJ14: =$H$14*BJ12*'Operating Model'!BJ8 -> 0 | BK14: =$H$14*BK12*'Operating Model'!BK8 -> 0 | BL14: =$H$14*BL12*'Operating Model'!BL8 -> 0 | BM14: =$H$14*BM12*'Operating Model'!BM8 -> 0 | BN14: =$H$14*BN12*'Operating Model'!BN8 -> 0 | BO14: =$H$14*BO12*'Operating Model'!BO8 -> 0 | BP14: =$H$14*BP12*'Operating Model'!BP8 -> 0 | BQ14: =$H$14*BQ12*'Operating Model'!BQ8 -> 0 | BR14: =$H$14*BR12*'Operating Model'!BR8 -> 0 | BS14: =$H$14*BS12*'Operating Model'!BS8 -> 0
D15: Upgrader Cost | G15: USD | H15: =Inputs!F160 -> 65910 | K15: =MAX(N15:BS15) -> 65910 | N15: =$H$15*N12*'Operating Model'!N8 -> 0 | O15: =$H$15*O12*'Operating Model'!O8 -> 0 | P15: =$H$15*P12*'Operating Model'!P8 -> 0 | Q15: =$H$15*Q12*'Operating Model'!Q8 -> 0 | R15: =$H$15*R12*'Operating Model'!R8 -> 0 | S15: =$H$15*S12*'Operating Model'!S8 -> 0 | T15: =$H$15*T12*'Operating Model'!T8 -> 0 | U15: =$H$15*U12*'Operating Model'!U8 -> 0 | V15: =$H$15*V12*'Operating Model'!V8 -> 0 | W15: =$H$15*W12*'Operating Model'!W8 -> 0 | X15: =$H$15*X12*'Operating Model'!X8 -> 0 | Y15: =$H$15*Y12*'Operating Model'!Y8 -> 0 | Z15: =$H$15*Z12*'Operating Model'!Z8 -> 65910 | AA15: =$H$15*AA12*'Operating Model'!AA8 -> 65910 | AB15: =$H$15*AB12*'Operating Model'!AB8 -> 65910 | AC15: =$H$15*AC12*'Operating Model'!AC8 -> 65910 | AD15: =$H$15*AD12*'Operating Model'!AD8 -> 65910 | AE15: =$H$15*AE12*'Operating Model'!AE8 -> 65910 | AF15: =$H$15*AF12*'Operating Model'!AF8 -> 65910 | AG15: =$H$15*AG12*'Operating Model'!AG8 -> 65910 | AH15: =$H$15*AH12*'Operating Model'!AH8 -> 65910 | AI15: =$H$15*AI12*'Operating Model'!AI8 -> 65910 | AJ15: =$H$15*AJ12*'Operating Model'!AJ8 -> 65910 | AK15: =$H$15*AK12*'Operating Model'!AK8 -> 65910 | AL15: =$H$15*AL12*'Operating Model'!AL8 -> 65910 | AM15: =$H$15*AM12*'Operating Model'!AM8 -> 65910 | AN15: =$H$15*AN12*'Operating Model'!AN8 -> 65910 | AO15: =$H$15*AO12*'Operating Model'!AO8 -> 65910 | AP15: =$H$15*AP12*'Operating Model'!AP8 -> 65910 | AQ15: =$H$15*AQ12*'Operating Model'!AQ8 -> 65910 | AR15: =$H$15*AR12*'Operating Model'!AR8 -> 65910 | AS15: =$H$15*AS12*'Operating Model'!AS8 -> 65910 | AT15: =$H$15*AT12*'Operating Model'!AT8 -> 65910 | AU15: =$H$15*AU12*'Operating Model'!AU8 -> 65910 | AV15: =$H$15*AV12*'Operating Model'!AV8 -> 65910 | AW15: =$H$15*AW12*'Operating Model'!AW8 -> 65910 | AX15: =$H$15*AX12*'Operating Model'!AX8 -> 65910 | AY15: =$H$15*AY12*'Operating Model'!AY8 -> 65910 | AZ15: =$H$15*AZ12*'Operating Model'!AZ8 -> 65910 | BA15: =$H$15*BA12*'Operating Model'!BA8 -> 65910 | BB15: =$H$15*BB12*'Operating Model'!BB8 -> 65910 | BC15: =$H$15*BC12*'Operating Model'!BC8 -> 65910 | BD15: =$H$15*BD12*'Operating Model'!BD8 -> 0 | BE15: =$H$15*BE12*'Operating Model'!BE8 -> 0 | BF15: =$H$15*BF12*'Operating Model'!BF8 -> 0 | BG15: =$H$15*BG12*'Operating Model'!BG8 -> 0 | BH15: =$H$15*BH12*'Operating Model'!BH8 -> 0 | BI15: =$H$15*BI12*'Operating Model'!BI8 -> 0 | BJ15: =$H$15*BJ12*'Operating Model'!BJ8 -> 0 | BK15: =$H$15*BK12*'Operating Model'!BK8 -> 0 | BL15: =$H$15*BL12*'Operating Model'!BL8 -> 0 | BM15: =$H$15*BM12*'Operating Model'!BM8 -> 0 | BN15: =$H$15*BN12*'Operating Model'!BN8 -> 0 | BO15: =$H$15*BO12*'Operating Model'!BO8 -> 0 | BP15: =$H$15*BP12*'Operating Model'!BP8 -> 0 | BQ15: =$H$15*BQ12*'Operating Model'!BQ8 -> 0 | BR15: =$H$15*BR12*'Operating Model'!BR8 -> 0 | BS15: =$H$15*BS12*'Operating Model'!BS8 -> 0
D16: Overhead | G16: USD | H16: =Inputs!F173 -> 35000 | K16: =MAX(N16:BS16) -> 35000 | N16: =$H$16*N12*'Operating Model'!N8 -> 0 | O16: =$H$16*O12*'Operating Model'!O8 -> 0 | P16: =$H$16*P12*'Operating Model'!P8 -> 0 | Q16: =$H$16*Q12*'Operating Model'!Q8 -> 0 | R16: =$H$16*R12*'Operating Model'!R8 -> 0 | S16: =$H$16*S12*'Operating Model'!S8 -> 0 | T16: =$H$16*T12*'Operating Model'!T8 -> 0 | U16: =$H$16*U12*'Operating Model'!U8 -> 0 | V16: =$H$16*V12*'Operating Model'!V8 -> 0 | W16: =$H$16*W12*'Operating Model'!W8 -> 0 | X16: =$H$16*X12*'Operating Model'!X8 -> 0 | Y16: =$H$16*Y12*'Operating Model'!Y8 -> 0 | Z16: =$H$16*Z12*'Operating Model'!Z8 -> 35000 | AA16: =$H$16*AA12*'Operating Model'!AA8 -> 35000 | AB16: =$H$16*AB12*'Operating Model'!AB8 -> 35000 | AC16: =$H$16*AC12*'Operating Model'!AC8 -> 35000 | AD16: =$H$16*AD12*'Operating Model'!AD8 -> 35000 | AE16: =$H$16*AE12*'Operating Model'!AE8 -> 35000 | AF16: =$H$16*AF12*'Operating Model'!AF8 -> 35000 | AG16: =$H$16*AG12*'Operating Model'!AG8 -> 35000 | AH16: =$H$16*AH12*'Operating Model'!AH8 -> 35000 | AI16: =$H$16*AI12*'Operating Model'!AI8 -> 35000 | AJ16: =$H$16*AJ12*'Operating Model'!AJ8 -> 35000 | AK16: =$H$16*AK12*'Operating Model'!AK8 -> 35000 | AL16: =$H$16*AL12*'Operating Model'!AL8 -> 35000 | AM16: =$H$16*AM12*'Operating Model'!AM8 -> 35000 | AN16: =$H$16*AN12*'Operating Model'!AN8 -> 35000 | AO16: =$H$16*AO12*'Operating Model'!AO8 -> 35000 | AP16: =$H$16*AP12*'Operating Model'!AP8 -> 35000 | AQ16: =$H$16*AQ12*'Operating Model'!AQ8 -> 35000 | AR16: =$H$16*AR12*'Operating Model'!AR8 -> 35000 | AS16: =$H$16*AS12*'Operating Model'!AS8 -> 35000 | AT16: =$H$16*AT12*'Operating Model'!AT8 -> 35000 | AU16: =$H$16*AU12*'Operating Model'!AU8 -> 35000 | AV16: =$H$16*AV12*'Operating Model'!AV8 -> 35000 | AW16: =$H$16*AW12*'Operating Model'!AW8 -> 35000 | AX16: =$H$16*AX12*'Operating Model'!AX8 -> 35000 | AY16: =$H$16*AY12*'Operating Model'!AY8 -> 35000 | AZ16: =$H$16*AZ12*'Operating Model'!AZ8 -> 35000 | BA16: =$H$16*BA12*'Operating Model'!BA8 -> 35000 | BB16: =$H$16*BB12*'Operating Model'!BB8 -> 35000 | BC16: =$H$16*BC12*'Operating Model'!BC8 -> 35000 | BD16: =$H$16*BD12*'Operating Model'!BD8 -> 0 | BE16: =$H$16*BE12*'Operating Model'!BE8 -> 0 | BF16: =$H$16*BF12*'Operating Model'!BF8 -> 0 | BG16: =$H$16*BG12*'Operating Model'!BG8 -> 0 | BH16: =$H$16*BH12*'Operating Model'!BH8 -> 0 | BI16: =$H$16*BI12*'Operating Model'!BI8 -> 0 | BJ16: =$H$16*BJ12*'Operating Model'!BJ8 -> 0 | BK16: =$H$16*BK12*'Operating Model'!BK8 -> 0 | BL16: =$H$16*BL12*'Operating Model'!BL8 -> 0 | BM16: =$H$16*BM12*'Operating Model'!BM8 -> 0 | BN16: =$H$16*BN12*'Operating Model'!BN8 -> 0 | BO16: =$H$16*BO12*'Operating Model'!BO8 -> 0 | BP16: =$H$16*BP12*'Operating Model'!BP8 -> 0 | BQ16: =$H$16*BQ12*'Operating Model'!BQ8 -> 0 | BR16: =$H$16*BR12*'Operating Model'!BR8 -> 0 | BS16: =$H$16*BS12*'Operating Model'!BS8 -> 0
D17: Sub-total | G17: USD | K17: =SUM(K14:K16) -> 119208.8 | N17: =SUM(N14:N16) -> 0 | O17: 0 | P17: 0 | Q17: 0 | R17: 0 | S17: 0 | T17: 0 | U17: 0 | V17: 0 | W17: 0 | X17: 0 | Y17: 0 | Z17: 119208.8 | AA17: 119208.8 | AB17: 119208.8 | AC17: 119208.8 | AD17: 119208.8 | AE17: 119208.8 | AF17: 119208.8 | AG17: 119208.8 | AH17: 119208.8 | AI17: 119208.8 | AJ17: 119208.8 | AK17: 119208.8 | AL17: 119208.8 | AM17: 119208.8 | AN17: 119208.8 | AO17: 119208.8 | AP17: 119208.8 | AQ17: 119208.8 | AR17: 119208.8 | AS17: 119208.8 | AT17: =SUM(AT14:AT16) -> 119208.8 | AU17: 119208.8 | AV17: 119208.8 | AW17: 119208.8 | AX17: 119208.8 | AY17: 119208.8 | AZ17: 119208.8 | BA17: 119208.8 | BB17: 119208.8 | BC17: 119208.8 | BD17: 0 | BE17: 0 | BF17: 0 | BG17: 0 | BH17: 0 | BI17: 0 | BJ17: 0 | BK17: 0 | BL17: 0 | BM17: 0 | BN17: 0 | BO17: 0 | BP17: 0 | BQ17: 0 | BR17: 0 | BS17: 0
D19: Minutes per Day per Truck of Pumping | G19: Minutes | K19: =MAX(N19:BS19) -> 0
D20: Total Days of Pumping | G20: Days | H20: =Inputs!F96 -> 288 | K20: =MAX(N20:BS20) -> 0
D21: Total Hours of Upgrader | G21: Hours | H21: =Inputs!F92 -> 6912 | K21: =MAX(N21:BS21) -> 6912 | N21: =$H$21*'Operating Model'!N8 -> 0 | O21: =$H$21*'Operating Model'!O8 -> 0 | P21: =$H$21*'Operating Model'!P8 -> 0 | Q21: =$H$21*'Operating Model'!Q8 -> 0 | R21: =$H$21*'Operating Model'!R8 -> 0 | S21: =$H$21*'Operating Model'!S8 -> 0 | T21: =$H$21*'Operating Model'!T8 -> 0 | U21: =$H$21*'Operating Model'!U8 -> 0 | V21: =$H$21*'Operating Model'!V8 -> 0 | W21: =$H$21*'Operating Model'!W8 -> 0 | X21: =$H$21*'Operating Model'!X8 -> 0 | Y21: =$H$21*'Operating Model'!Y8 -> 0 | Z21: =$H$21*'Operating Model'!Z8 -> 6912 | AA21: =$H$21*'Operating Model'!AA8 -> 6912 | AB21: =$H$21*'Operating Model'!AB8 -> 6912 | AC21: =$H$21*'Operating Model'!AC8 -> 6912 | AD21: =$H$21*'Operating Model'!AD8 -> 6912 | AE21: =$H$21*'Operating Model'!AE8 -> 6912 | AF21: =$H$21*'Operating Model'!AF8 -> 6912 | AG21: =$H$21*'Operating Model'!AG8 -> 6912 | AH21: =$H$21*'Operating Model'!AH8 -> 6912 | AI21: =$H$21*'Operating Model'!AI8 -> 6912 | AJ21: =$H$21*'Operating Model'!AJ8 -> 6912 | AK21: =$H$21*'Operating Model'!AK8 -> 6912 | AL21: =$H$21*'Operating Model'!AL8 -> 6912 | AM21: =$H$21*'Operating Model'!AM8 -> 6912 | AN21: =$H$21*'Operating Model'!AN8 -> 6912 | AO21: =$H$21*'Operating Model'!AO8 -> 6912 | AP21: =$H$21*'Operating Model'!AP8 -> 6912 | AQ21: =$H$21*'Operating Model'!AQ8 -> 6912 | AR21: =$H$21*'Operating Model'!AR8 -> 6912 | AS21: =$H$21*'Operating Model'!AS8 -> 6912 | AT21: =$H$21*'Operating Model'!AT8 -> 6912 | AU21: =$H$21*'Operating Model'!AU8 -> 6912 | AV21: =$H$21*'Operating Model'!AV8 -> 6912 | AW21: =$H$21*'Operating Model'!AW8 -> 6912 | AX21: =$H$21*'Operating Model'!AX8 -> 6912 | AY21: =$H$21*'Operating Model'!AY8 -> 6912 | AZ21: =$H$21*'Operating Model'!AZ8 -> 6912 | BA21: =$H$21*'Operating Model'!BA8 -> 6912 | BB21: =$H$21*'Operating Model'!BB8 -> 6912 | BC21: =$H$21*'Operating Model'!BC8 -> 6912 | BD21: =$H$21*'Operating Model'!BD8 -> 0 | BE21: =$H$21*'Operating Model'!BE8 -> 0 | BF21: =$H$21*'Operating Model'!BF8 -> 0 | BG21: =$H$21*'Operating Model'!BG8 -> 0 | BH21: =$H$21*'Operating Model'!BH8 -> 0 | BI21: =$H$21*'Operating Model'!BI8 -> 0 | BJ21: =$H$21*'Operating Model'!BJ8 -> 0 | BK21: =$H$21*'Operating Model'!BK8 -> 0 | BL21: =$H$21*'Operating Model'!BL8 -> 0 | BM21: =$H$21*'Operating Model'!BM8 -> 0 | BN21: =$H$21*'Operating Model'!BN8 -> 0 | BO21: =$H$21*'Operating Model'!BO8 -> 0 | BP21: =$H$21*'Operating Model'!BP8 -> 0 | BQ21: =$H$21*'Operating Model'!BQ8 -> 0 | BR21: =$H$21*'Operating Model'!BR8 -> 0 | BS21: =$H$21*'Operating Model'!BS8 -> 0
D22: Cost per Hour | G22: Cost/Hour | H22: =Inputs!F164 -> 5 | K22: =MAX(N22:BS22) -> 5 | N22: =$H$22*N12 -> 5 | O22: 5 | P22: 5 | Q22: 5 | R22: 5 | S22: 5 | T22: 5 | U22: 5 | V22: 5 | W22: 5 | X22: 5 | Y22: 5 | Z22: 5 | AA22: 5 | AB22: 5 | AC22: 5 | AD22: 5 | AE22: 5 | AF22: 5 | AG22: 5 | AH22: 5 | AI22: 5 | AJ22: 5 | AK22: 5 | AL22: 5 | AM22: 5 | AN22: 5 | AO22: 5 | AP22: 5 | AQ22: 5 | AR22: 5 | AS22: 5 | AT22: =$H$22*AT12 -> 5 | AU22: 5 | AV22: 5 | AW22: 5 | AX22: 5 | AY22: 5 | AZ22: 5 | BA22: 5 | BB22: 5 | BC22: 5 | BD22: 5 | BE22: 5 | BF22: 5 | BG22: 5 | BH22: 5 | BI22: 5 | BJ22: 5 | BK22: 5 | BL22: 5 | BM22: 5 | BN22: 5 | BO22: 5 | BP22: 5 | BQ22: 5 | BR22: 5 | BS22: 5
D23: Total Pumping Cost | G23: USD | H23: =Z23 -> 34560 | K23: =MAX(N23:BS23) -> 34560 | N23: =N22*N21 -> 0 | O23: 0 | P23: 0 | Q23: 0 | R23: 0 | S23: 0 | T23: 0 | U23: 0 | V23: 0 | W23: 0 | X23: 0 | Y23: 0 | Z23: 34560 | AA23: 34560 | AB23: 34560 | AC23: 34560 | AD23: 34560 | AE23: 34560 | AF23: 34560 | AG23: 34560 | AH23: 34560 | AI23: 34560 | AJ23: 34560 | AK23: 34560 | AL23: 34560 | AM23: 34560 | AN23: 34560 | AO23: 34560 | AP23: 34560 | AQ23: 34560 | AR23: 34560 | AS23: 34560 | AT23: =AT22*AT21 -> 34560 | AU23: 34560 | AV23: 34560 | AW23: 34560 | AX23: 34560 | AY23: 34560 | AZ23: 34560 | BA23: 34560 | BB23: 34560 | BC23: 34560 | BD23: 0 | BE23: 0 | BF23: 0 | BG23: 0 | BH23: 0 | BI23: 0 | BJ23: 0 | BK23: 0 | BL23: 0 | BM23: 0 | BN23: 0 | BO23: 0 | BP23: 0 | BQ23: 0 | BR23: 0 | BS23: 0
D25: Maintenance Paid by Investor
E26: km Travelled per Year | G26: km/Year | K26: =MAX(N26:BS26) -> 4320000 | N26: ='Operating Model'!N20 -> 0 | O26: ='Operating Model'!O20 -> 0 | P26: ='Operating Model'!P20 -> 0 | Q26: ='Operating Model'!Q20 -> 0 | R26: ='Operating Model'!R20 -> 0 | S26: ='Operating Model'!S20 -> 0 | T26: ='Operating Model'!T20 -> 0 | U26: ='Operating Model'!U20 -> 0 | V26: ='Operating Model'!V20 -> 0 | W26: ='Operating Model'!W20 -> 0 | X26: ='Operating Model'!X20 -> 0 | Y26: ='Operating Model'!Y20 -> 0 | Z26: ='Operating Model'!Z20 -> 4320000 | AA26: ='Operating Model'!AA20 -> 4320000 | AB26: ='Operating Model'!AB20 -> 4320000 | AC26: ='Operating Model'!AC20 -> 4320000 | AD26: ='Operating Model'!AD20 -> 4320000 | AE26: ='Operating Model'!AE20 -> 4320000 | AF26: ='Operating Model'!AF20 -> 4320000 | AG26: ='Operating Model'!AG20 -> 4320000 | AH26: ='Operating Model'!AH20 -> 4320000 | AI26: ='Operating Model'!AI20 -> 4320000 | AJ26: ='Operating Model'!AJ20 -> 4320000 | AK26: ='Operating Model'!AK20 -> 4320000 | AL26: ='Operating Model'!AL20 -> 4320000 | AM26: ='Operating Model'!AM20 -> 4320000 | AN26: ='Operating Model'!AN20 -> 4320000 | AO26: ='Operating Model'!AO20 -> 4320000 | AP26: ='Operating Model'!AP20 -> 4320000 | AQ26: ='Operating Model'!AQ20 -> 4320000 | AR26: ='Operating Model'!AR20 -> 4320000 | AS26: ='Operating Model'!AS20 -> 4320000 | AT26: ='Operating Model'!AT20 -> 4320000 | AU26: ='Operating Model'!AU20 -> 4320000 | AV26: ='Operating Model'!AV20 -> 4320000 | AW26: ='Operating Model'!AW20 -> 4320000 | AX26: ='Operating Model'!AX20 -> 4320000 | AY26: ='Operating Model'!AY20 -> 4320000 | AZ26: ='Operating Model'!AZ20 -> 4320000 | BA26: ='Operating Model'!BA20 -> 4320000 | BB26: ='Operating Model'!BB20 -> 4320000 | BC26: ='Operating Model'!BC20 -> 4320000 | BD26: ='Operating Model'!BD20 -> 0 | BE26: ='Operating Model'!BE20 -> 0 | BF26: ='Operating Model'!BF20 -> 0 | BG26: ='Operating Model'!BG20 -> 0 | BH26: ='Operating Model'!BH20 -> 0 | BI26: ='Operating Model'!BI20 -> 0 | BJ26: ='Operating Model'!BJ20 -> 0 | BK26: ='Operating Model'!BK20 -> 0 | BL26: ='Operating Model'!BL20 -> 0 | BM26: ='Operating Model'!BM20 -> 0 | BN26: ='Operating Model'!BN20 -> 0 | BO26: ='Operating Model'!BO20 -> 0 | BP26: ='Operating Model'!BP20 -> 0 | BQ26: ='Operating Model'!BQ20 -> 0 | BR26: ='Operating Model'!BR20 -> 0 | BS26: ='Operating Model'!BS20 -> 0
E27: Cost of Maintenacne | G27: USD/km | H27: =Inputs!F167 -> 0.0057 | I27: =Inputs!F168 -> TRUE | K27: =MAX(N27:BS27) -> 24624 | N27: =N26*$H$27*$I$27*N12 -> 0 | O27: 0 | P27: 0 | Q27: 0 | R27: 0 | S27: 0 | T27: 0 | U27: 0 | V27: 0 | W27: 0 | X27: 0 | Y27: 0 | Z27: 24624 | AA27: 24624 | AB27: 24624 | AC27: 24624 | AD27: 24624 | AE27: 24624 | AF27: 24624 | AG27: 24624 | AH27: 24624 | AI27: 24624 | AJ27: 24624 | AK27: 24624 | AL27: 24624 | AM27: 24624 | AN27: 24624 | AO27: 24624 | AP27: 24624 | AQ27: 24624 | AR27: 24624 | AS27: 24624 | AT27: =AT26*$H$27*$I$27*AT12 -> 24624 | AU27: 24624 | AV27: 24624 | AW27: 24624 | AX27: 24624 | AY27: 24624 | AZ27: 24624 | BA27: 24624 | BB27: 24624 | BC27: 24624 | BD27: 0 | BE27: 0 | BF27: 0 | BG27: 0 | BH27: 0 | BI27: 0 | BJ27: 0 | BK27: 0 | BL27: 0 | BM27: 0 | BN27: 0 | BO27: 0 | BP27: 0 | BQ27: 0 | BR27: 0 | BS27: 0
E28: Total Operating and Maintenance Expense | H28: =H23+H16+H15+H14 -> 153768.8 | K28: =MAX(N28:BS28) -> 178392.8 | N28: =N27+N23+N17 -> 0 | O28: 0 | P28: 0 | Q28: 0 | R28: 0 | S28: 0 | T28: 0 | U28: 0 | V28: 0 | W28: 0 | X28: 0 | Y28: 0 | Z28: 178392.8 | AA28: 178392.8 | AB28: 178392.8 | AC28: 178392.8 | AD28: 178392.8 | AE28: 178392.8 | AF28: 178392.8 | AG28: 178392.8 | AH28: 178392.8 | AI28: 178392.8 | AJ28: 178392.8 | AK28: 178392.8 | AL28: 178392.8 | AM28: 178392.8 | AN28: 178392.8 | AO28: 178392.8 | AP28: 178392.8 | AQ28: 178392.8 | AR28: 178392.8 | AS28: 178392.8 | AT28: =AT27+AT23+AT17 -> 178392.8 | AU28: 178392.8 | AV28: 178392.8 | AW28: 178392.8 | AX28: 178392.8 | AY28: 178392.8 | AZ28: 178392.8 | BA28: 178392.8 | BB28: 178392.8 | BC28: 178392.8 | BD28: 0 | BE28: 0 | BF28: 0 | BG28: 0 | BH28: 0 | BI28: 0 | BJ28: 0 | BK28: 0 | BL28: 0 | BM28: 0 | BN28: 0 | BO28: 0 | BP28: 0 | BQ28: 0 | BR28: 0 | BS28: 0
B30: Electricity Costs (Purchased or Own Generation)
D32: Electricity for Lagoon | G32: kWh/Year | K32: =MAX(N32:BS32) -> 289379.4928 | N32: ='Operating Model'!N132 -> 0 | O32: ='Operating Model'!O132 -> 0 | P32: ='Operating Model'!P132 -> 0 | Q32: ='Operating Model'!Q132 -> 0 | R32: ='Operating Model'!R132 -> 0 | S32: ='Operating Model'!S132 -> 0 | T32: ='Operating Model'!T132 -> 0 | U32: ='Operating Model'!U132 -> 0 | V32: ='Operating Model'!V132 -> 0 | W32: ='Operating Model'!W132 -> 0 | X32: ='Operating Model'!X132 -> 0 | Y32: ='Operating Model'!Y132 -> 0 | Z32: ='Operating Model'!Z132 -> 289379.4928 | AA32: ='Operating Model'!AA132 -> 289379.4928 | AB32: ='Operating Model'!AB132 -> 289379.4928 | AC32: ='Operating Model'!AC132 -> 289379.4928 | AD32: ='Operating Model'!AD132 -> 289379.4928 | AE32: ='Operating Model'!AE132 -> 289379.4928 | AF32: ='Operating Model'!AF132 -> 289379.4928 | AG32: ='Operating Model'!AG132 -> 289379.4928 | AH32: ='Operating Model'!AH132 -> 289379.4928 | AI32: ='Operating Model'!AI132 -> 289379.4928 | AJ32: ='Operating Model'!AJ132 -> 289379.4928 | AK32: ='Operating Model'!AK132 -> 289379.4928 | AL32: ='Operating Model'!AL132 -> 289379.4928 | AM32: ='Operating Model'!AM132 -> 289379.4928 | AN32: ='Operating Model'!AN132 -> 289379.4928 | AO32: ='Operating Model'!AO132 -> 289379.4928 | AP32: ='Operating Model'!AP132 -> 289379.4928 | AQ32: ='Operating Model'!AQ132 -> 289379.4928 | AR32: ='Operating Model'!AR132 -> 289379.4928 | AS32: ='Operating Model'!AS132 -> 289379.4928 | AT32: ='Operating Model'!AT132 -> 289379.4928 | AU32: ='Operating Model'!AU132 -> 289379.4928 | AV32: ='Operating Model'!AV132 -> 289379.4928 | AW32: ='Operating Model'!AW132 -> 289379.4928 | AX32: ='Operating Model'!AX132 -> 289379.4928 | AY32: ='Operating Model'!AY132 -> 289379.4928 | AZ32: ='Operating Model'!AZ132 -> 289379.4928 | BA32: ='Operating Model'!BA132 -> 289379.4928 | BB32: ='Operating Model'!BB132 -> 289379.4928 | BC32: ='Operating Model'!BC132 -> 289379.4928 | BD32: ='Operating Model'!BD132 -> 0 | BE32: ='Operating Model'!BE132 -> 0 | BF32: ='Operating Model'!BF132 -> 0 | BG32: ='Operating Model'!BG132 -> 0 | BH32: ='Operating Model'!BH132 -> 0 | BI32: ='Operating Model'!BI132 -> 0 | BJ32: ='Operating Model'!BJ132 -> 0 | BK32: ='Operating Model'!BK132 -> 0 | BL32: ='Operating Model'!BL132 -> 0 | BM32: ='Operating Model'!BM132 -> 0 | BN32: ='Operating Model'!BN132 -> 0 | BO32: ='Operating Model'!BO132 -> 0 | BP32: ='Operating Model'!BP132 -> 0 | BQ32: ='Operating Model'!BQ132 -> 0 | BR32: ='Operating Model'!BR132 -> 0 | BS32: ='Operating Model'!BS132 -> 0
D33: Electricity for Upgrader | G33: kWh/Year | K33: =MAX(N33:BS33) -> 1120942.947 | N33: ='Operating Model'!N143 -> 0 | O33: ='Operating Model'!O143 -> 0 | P33: ='Operating Model'!P143 -> 0 | Q33: ='Operating Model'!Q143 -> 0 | R33: ='Operating Model'!R143 -> 0 | S33: ='Operating Model'!S143 -> 0 | T33: ='Operating Model'!T143 -> 0 | U33: ='Operating Model'!U143 -> 0 | V33: ='Operating Model'!V143 -> 0 | W33: ='Operating Model'!W143 -> 0 | X33: ='Operating Model'!X143 -> 0 | Y33: ='Operating Model'!Y143 -> 0 | Z33: ='Operating Model'!Z143 -> 1120942.947 | AA33: ='Operating Model'!AA143 -> 1120942.947 | AB33: ='Operating Model'!AB143 -> 1120942.947 | AC33: ='Operating Model'!AC143 -> 1120942.947 | AD33: ='Operating Model'!AD143 -> 1120942.947 | AE33: ='Operating Model'!AE143 -> 1120942.947 | AF33: ='Operating Model'!AF143 -> 1120942.947 | AG33: ='Operating Model'!AG143 -> 1120942.947 | AH33: ='Operating Model'!AH143 -> 1120942.947 | AI33: ='Operating Model'!AI143 -> 1120942.947 | AJ33: ='Operating Model'!AJ143 -> 1120942.947 | AK33: ='Operating Model'!AK143 -> 1120942.947 | AL33: ='Operating Model'!AL143 -> 1120942.947 | AM33: ='Operating Model'!AM143 -> 1120942.947 | AN33: ='Operating Model'!AN143 -> 1120942.947 | AO33: ='Operating Model'!AO143 -> 1120942.947 | AP33: ='Operating Model'!AP143 -> 1120942.947 | AQ33: ='Operating Model'!AQ143 -> 1120942.947 | AR33: ='Operating Model'!AR143 -> 1120942.947 | AS33: ='Operating Model'!AS143 -> 1120942.947 | AT33: ='Operating Model'!AT143 -> 1120942.947 | AU33: ='Operating Model'!AU143 -> 1120942.947 | AV33: ='Operating Model'!AV143 -> 1120942.947 | AW33: ='Operating Model'!AW143 -> 1120942.947 | AX33: ='Operating Model'!AX143 -> 1120942.947 | AY33: ='Operating Model'!AY143 -> 1120942.947 | AZ33: ='Operating Model'!AZ143 -> 1120942.947 | BA33: ='Operating Model'!BA143 -> 1120942.947 | BB33: ='Operating Model'!BB143 -> 1120942.947 | BC33: ='Operating Model'!BC143 -> 1120942.947 | BD33: ='Operating Model'!BD143 -> 0 | BE33: ='Operating Model'!BE143 -> 0 | BF33: ='Operating Model'!BF143 -> 0 | BG33: ='Operating Model'!BG143 -> 0 | BH33: ='Operating Model'!BH143 -> 0 | BI33: ='Operating Model'!BI143 -> 0 | BJ33: ='Operating Model'!BJ143 -> 0 | BK33: ='Operating Model'!BK143 -> 0 | BL33: ='Operating Model'!BL143 -> 0 | BM33: ='Operating Model'!BM143 -> 0 | BN33: ='Operating Model'!BN143 -> 0 | BO33: ='Operating Model'!BO143 -> 0 | BP33: ='Operating Model'!BP143 -> 0 | BQ33: ='Operating Model'!BQ143 -> 0 | BR33: ='Operating Model'!BR143 -> 0 | BS33: ='Operating Model'!BS143 -> 0
D34: Electricity for Filling Station | G34: kWh/Year | K34: =MAX(N34:BS34) -> 622080 | N34: ='Operating Model'!N151 -> 0 | O34: ='Operating Model'!O151 -> 0 | P34: ='Operating Model'!P151 -> 0 | Q34: ='Operating Model'!Q151 -> 0 | R34: ='Operating Model'!R151 -> 0 | S34: ='Operating Model'!S151 -> 0 | T34: ='Operating Model'!T151 -> 0 | U34: ='Operating Model'!U151 -> 0 | V34: ='Operating Model'!V151 -> 0 | W34: ='Operating Model'!W151 -> 0 | X34: ='Operating Model'!X151 -> 0 | Y34: ='Operating Model'!Y151 -> 0 | Z34: ='Operating Model'!Z151 -> 622080 | AA34: ='Operating Model'!AA151 -> 622080 | AB34: ='Operating Model'!AB151 -> 622080 | AC34: ='Operating Model'!AC151 -> 622080 | AD34: ='Operating Model'!AD151 -> 622080 | AE34: ='Operating Model'!AE151 -> 622080 | AF34: ='Operating Model'!AF151 -> 622080 | AG34: ='Operating Model'!AG151 -> 622080 | AH34: ='Operating Model'!AH151 -> 622080 | AI34: ='Operating Model'!AI151 -> 622080 | AJ34: ='Operating Model'!AJ151 -> 622080 | AK34: ='Operating Model'!AK151 -> 622080 | AL34: ='Operating Model'!AL151 -> 622080 | AM34: ='Operating Model'!AM151 -> 622080 | AN34: ='Operating Model'!AN151 -> 622080 | AO34: ='Operating Model'!AO151 -> 622080 | AP34: ='Operating Model'!AP151 -> 622080 | AQ34: ='Operating Model'!AQ151 -> 622080 | AR34: ='Operating Model'!AR151 -> 622080 | AS34: ='Operating Model'!AS151 -> 622080 | AT34: ='Operating Model'!AT151 -> 622080 | AU34: ='Operating Model'!AU151 -> 622080 | AV34: ='Operating Model'!AV151 -> 622080 | AW34: ='Operating Model'!AW151 -> 622080 | AX34: ='Operating Model'!AX151 -> 622080 | AY34: ='Operating Model'!AY151 -> 622080 | AZ34: ='Operating Model'!AZ151 -> 622080 | BA34: ='Operating Model'!BA151 -> 622080 | BB34: ='Operating Model'!BB151 -> 622080 | BC34: ='Operating Model'!BC151 -> 622080 | BD34: ='Operating Model'!BD151 -> 0 | BE34: ='Operating Model'!BE151 -> 0 | BF34: ='Operating Model'!BF151 -> 0 | BG34: ='Operating Model'!BG151 -> 0 | BH34: ='Operating Model'!BH151 -> 0 | BI34: ='Operating Model'!BI151 -> 0 | BJ34: ='Operating Model'!BJ151 -> 0 | BK34: ='Operating Model'!BK151 -> 0 | BL34: ='Operating Model'!BL151 -> 0 | BM34: ='Operating Model'!BM151 -> 0 | BN34: ='Operating Model'!BN151 -> 0 | BO34: ='Operating Model'!BO151 -> 0 | BP34: ='Operating Model'!BP151 -> 0 | BQ34: ='Operating Model'!BQ151 -> 0 | BR34: ='Operating Model'!BR151 -> 0 | BS34: ='Operating Model'!BS151 -> 0
D35: Total Electricity Required | G35: kWh/Year | K35: =MAX(N35:BS35) -> 2032402.44 | N35: =SUM(N32:N34) -> 0 | O35: 0 | P35: 0 | Q35: 0 | R35: 0 | S35: 0 | T35: 0 | U35: 0 | V35: 0 | W35: 0 | X35: 0 | Y35: 0 | Z35: 2032402.44 | AA35: 2032402.44 | AB35: 2032402.44 | AC35: 2032402.44 | AD35: 2032402.44 | AE35: 2032402.44 | AF35: 2032402.44 | AG35: 2032402.44 | AH35: 2032402.44 | AI35: 2032402.44 | AJ35: 2032402.44 | AK35: 2032402.44 | AL35: 2032402.44 | AM35: 2032402.44 | AN35: 2032402.44 | AO35: 2032402.44 | AP35: 2032402.44 | AQ35: 2032402.44 | AR35: 2032402.44 | AS35: 2032402.44 | AT35: =SUM(AT32:AT34) -> 2032402.44 | AU35: 2032402.44 | AV35: 2032402.44 | AW35: 2032402.44 | AX35: 2032402.44 | AY35: 2032402.44 | AZ35: 2032402.44 | BA35: 2032402.44 | BB35: 2032402.44 | BC35: 2032402.44 | BD35: 0 | BE35: 0 | BF35: 0 | BG35: 0 | BH35: 0 | BI35: 0 | BJ35: 0 | BK35: 0 | BL35: 0 | BM35: 0 | BN35: 0 | BO35: 0 | BP35: 0 | BQ35: 0 | BR35: 0 | BS35: 0
D37: Self Generation Flag (True is Self Option) | G37: Flag | H37: =Inputs!F176 -> TRUE | N37: =$H$37 -> TRUE | O37: TRUE | P37: TRUE | Q37: TRUE | R37: TRUE | S37: TRUE | T37: TRUE | U37: TRUE | V37: TRUE | W37: TRUE | X37: TRUE | Y37: TRUE | Z37: TRUE | AA37: TRUE | AB37: TRUE | AC37: TRUE | AD37: TRUE | AE37: TRUE | AF37: TRUE | AG37: TRUE | AH37: TRUE | AI37: TRUE | AJ37: TRUE | AK37: TRUE | AL37: TRUE | AM37: TRUE | AN37: TRUE | AO37: TRUE | AP37: TRUE | AQ37: TRUE | AR37: TRUE | AS37: TRUE | AT37: =$H$37 -> TRUE | AU37: TRUE | AV37: TRUE | AW37: TRUE | AX37: TRUE | AY37: TRUE | AZ37: TRUE | BA37: TRUE | BB37: TRUE | BC37: TRUE | BD37: TRUE | BE37: TRUE | BF37: TRUE | BG37: TRUE | BH37: TRUE | BI37: TRUE | BJ37: TRUE | BK37: TRUE | BL37: TRUE | BM37: TRUE | BN37: TRUE | BO37: TRUE | BP37: TRUE | BQ37: TRUE | BR37: TRUE | BS37: TRUE
D38: Percent Purchased if Self Generate | G38: Percent | K38: =MAX(N38:BS38) -> 0.9988709896 | N38: ='Operating Model'!N552 -> 0 | O38: ='Operating Model'!O552 -> 0 | P38: ='Operating Model'!P552 -> 0 | Q38: ='Operating Model'!Q552 -> 0 | R38: ='Operating Model'!R552 -> 0 | S38: ='Operating Model'!S552 -> 0 | T38: ='Operating Model'!T552 -> 0 | U38: ='Operating Model'!U552 -> 0 | V38: ='Operating Model'!V552 -> 0 | W38: ='Operating Model'!W552 -> 0 | X38: ='Operating Model'!X552 -> 0 | Y38: ='Operating Model'!Y552 -> 0 | Z38: ='Operating Model'!Z552 -> 0.9988709896 | AA38: ='Operating Model'!AA552 -> 0.9988709896 | AB38: ='Operating Model'!AB552 -> 0.9988709896 | AC38: ='Operating Model'!AC552 -> 0.9988709896 | AD38: ='Operating Model'!AD552 -> 0.9988709896 | AE38: ='Operating Model'!AE552 -> 0.9988709896 | AF38: ='Operating Model'!AF552 -> 0.9988709896 | AG38: ='Operating Model'!AG552 -> 0.9988709896 | AH38: ='Operating Model'!AH552 -> 0.9988709896 | AI38: ='Operating Model'!AI552 -> 0.9988709896 | AJ38: ='Operating Model'!AJ552 -> 0.9988709896 | AK38: ='Operating Model'!AK552 -> 0.9988709896 | AL38: ='Operating Model'!AL552 -> 0.9988709896 | AM38: ='Operating Model'!AM552 -> 0.9988709896 | AN38: ='Operating Model'!AN552 -> 0.9988709896 | AO38: ='Operating Model'!AO552 -> 0.9988709896 | AP38: ='Operating Model'!AP552 -> 0.9988709896 | AQ38: ='Operating Model'!AQ552 -> 0.9988709896 | AR38: ='Operating Model'!AR552 -> 0.9988709896 | AS38: ='Operating Model'!AS552 -> 0.9988709896 | AT38: ='Operating Model'!AT552 -> 0.9988709896 | AU38: ='Operating Model'!AU552 -> 0.9988709896 | AV38: ='Operating Model'!AV552 -> 0.9988709896 | AW38: ='Operating Model'!AW552 -> 0.9988709896 | AX38: ='Operating Model'!AX552 -> 0.9988709896 | AY38: ='Operating Model'!AY552 -> 0.9988709896 | AZ38: ='Operating Model'!AZ552 -> 0.9988709896 | BA38: ='Operating Model'!BA552 -> 0.9988709896 | BB38: ='Operating Model'!BB552 -> 0.9988709896 | BC38: ='Operating Model'!BC552 -> 0.9988709896 | BD38: ='Operating Model'!BD552 -> 0 | BE38: ='Operating Model'!BE552 -> 0 | BF38: ='Operating Model'!BF552 -> 0 | BG38: ='Operating Model'!BG552 -> 0 | BH38: ='Operating Model'!BH552 -> 0 | BI38: ='Operating Model'!BI552 -> 0 | BJ38: ='Operating Model'!BJ552 -> 0 | BK38: ='Operating Model'!BK552 -> 0 | BL38: ='Operating Model'!BL552 -> 0 | BM38: ='Operating Model'!BM552 -> 0 | BN38: ='Operating Model'!BN552 -> 0 | BO38: ='Operating Model'!BO552 -> 0 | BP38: ='Operating Model'!BP552 -> 0 | BQ38: ='Operating Model'!BQ552 -> 0 | BR38: ='Operating Model'!BR552 -> 0 | BS38: ='Operating Model'!BS552 -> 0
D39: Total Electricity Requied if Self Generate | G39: kWh/Year | K39: =MAX(N39:BS39) -> 2030107.836 | N39: =N38*N35*N37 -> 0 | O39: 0 | P39: 0 | Q39: 0 | R39: 0 | S39: 0 | T39: 0 | U39: 0 | V39: 0 | W39: 0 | X39: 0 | Y39: 0 | Z39: 2030107.836 | AA39: 2030107.836 | AB39: 2030107.836 | AC39: 2030107.836 | AD39: 2030107.836 | AE39: 2030107.836 | AF39: 2030107.836 | AG39: 2030107.836 | AH39: 2030107.836 | AI39: 2030107.836 | AJ39: 2030107.836 | AK39: 2030107.836 | AL39: 2030107.836 | AM39: 2030107.836 | AN39: 2030107.836 | AO39: 2030107.836 | AP39: 2030107.836 | AQ39: 2030107.836 | AR39: 2030107.836 | AS39: 2030107.836 | AT39: =AT38*AT35*AT37 -> 2030107.836 | AU39: 2030107.836 | AV39: 2030107.836 | AW39: 2030107.836 | AX39: 2030107.836 | AY39: 2030107.836 | AZ39: 2030107.836 | BA39: 2030107.836 | BB39: 2030107.836 | BC39: 2030107.836 | BD39: 0 | BE39: 0 | BF39: 0 | BG39: 0 | BH39: 0 | BI39: 0 | BJ39: 0 | BK39: 0 | BL39: 0 | BM39: 0 | BN39: 0 | BO39: 0 | BP39: 0 | BQ39: 0 | BR39: 0 | BS39: 0
D41: Total Electricity Purchased without Self Generation | G41: kWh/Year | K41: =MAX(N41:BS41) -> 0 | N41: =N35*NOT(N37) -> 0 | O41: 0 | P41: 0 | Q41: 0 | R41: 0 | S41: 0 | T41: 0 | U41: 0 | V41: 0 | W41: 0 | X41: 0 | Y41: 0 | Z41: 0 | AA41: 0 | AB41: 0 | AC41: 0 | AD41: 0 | AE41: 0 | AF41: 0 | AG41: 0 | AH41: 0 | AI41: 0 | AJ41: 0 | AK41: 0 | AL41: 0 | AM41: 0 | AN41: 0 | AO41: 0 | AP41: 0 | AQ41: 0 | AR41: 0 | AS41: 0 | AT41: =AT35*NOT(AT37) -> 0 | AU41: 0 | AV41: 0 | AW41: 0 | AX41: 0 | AY41: 0 | AZ41: 0 | BA41: 0 | BB41: 0 | BC41: 0 | BD41: 0 | BE41: 0 | BF41: 0 | BG41: 0 | BH41: 0 | BI41: 0 | BJ41: 0 | BK41: 0 | BL41: 0 | BM41: 0 | BN41: 0 | BO41: 0 | BP41: 0 | BQ41: 0 | BR41: 0 | BS41: 0
D42: Total Electricity Purchased | G42: kWh/Year | K42: =MAX(N42:BS42) -> 2030107.836 | N42: =N39+N41 -> 0 | O42: 0 | P42: 0 | Q42: 0 | R42: 0 | S42: 0 | T42: 0 | U42: 0 | V42: 0 | W42: 0 | X42: 0 | Y42: 0 | Z42: 2030107.836 | AA42: 2030107.836 | AB42: 2030107.836 | AC42: 2030107.836 | AD42: 2030107.836 | AE42: 2030107.836 | AF42: 2030107.836 | AG42: 2030107.836 | AH42: 2030107.836 | AI42: 2030107.836 | AJ42: 2030107.836 | AK42: 2030107.836 | AL42: 2030107.836 | AM42: 2030107.836 | AN42: 2030107.836 | AO42: 2030107.836 | AP42: 2030107.836 | AQ42: 2030107.836 | AR42: 2030107.836 | AS42: 2030107.836 | AT42: =AT39+AT41 -> 2030107.836 | AU42: 2030107.836 | AV42: 2030107.836 | AW42: 2030107.836 | AX42: 2030107.836 | AY42: 2030107.836 | AZ42: 2030107.836 | BA42: 2030107.836 | BB42: 2030107.836 | BC42: 2030107.836 | BD42: 0 | BE42: 0 | BF42: 0 | BG42: 0 | BH42: 0 | BI42: 0 | BJ42: 0 | BK42: 0 | BL42: 0 | BM42: 0 | BN42: 0 | BO42: 0 | BP42: 0 | BQ42: 0 | BR42: 0 | BS42: 0
D43: Total Electricity Produced | G43: kWh/Year | K43: =MAX(N43:BS43) -> 2294.603593 | N43: =N35-N42 -> 0 | O43: 0 | P43: 0 | Q43: 0 | R43: 0 | S43: 0 | T43: 0 | U43: 0 | V43: 0 | W43: 0 | X43: 0 | Y43: 0 | Z43: 2294.603593 | AA43: 2294.603593 | AB43: 2294.603593 | AC43: 2294.603593 | AD43: 2294.603593 | AE43: 2294.603593 | AF43: 2294.603593 | AG43: 2294.603593 | AH43: 2294.603593 | AI43: 2294.603593 | AJ43: 2294.603593 | AK43: 2294.603593 | AL43: 2294.603593 | AM43: 2294.603593 | AN43: 2294.603593 | AO43: 2294.603593 | AP43: 2294.603593 | AQ43: 2294.603593 | AR43: 2294.603593 | AS43: 2294.603593 | AT43: =AT35-AT42 -> 2294.603593 | AU43: 2294.603593 | AV43: 2294.603593 | AW43: 2294.603593 | AX43: 2294.603593 | AY43: 2294.603593 | AZ43: 2294.603593 | BA43: 2294.603593 | BB43: 2294.603593 | BC43: 2294.603593 | BD43: 0 | BE43: 0 | BF43: 0 | BG43: 0 | BH43: 0 | BI43: 0 | BJ43: 0 | BK43: 0 | BL43: 0 | BM43: 0 | BN43: 0 | BO43: 0 | BP43: 0 | BQ43: 0 | BR43: 0 | BS43: 0
D45: Inflation Index for Electricity | G45: Index | H45: =Inputs!F194 -> 0 | M45: 1 | N45: =M45*(1+$H$45*'Operating Model'!N8) -> 1 | O45: =N45*(1+$H$45*'Operating Model'!O8) -> 1 | P45: =O45*(1+$H$45*'Operating Model'!P8) -> 1 | Q45: =P45*(1+$H$45*'Operating Model'!Q8) -> 1 | R45: =Q45*(1+$H$45*'Operating Model'!R8) -> 1 | S45: =R45*(1+$H$45*'Operating Model'!S8) -> 1 | T45: =S45*(1+$H$45*'Operating Model'!T8) -> 1 | U45: =T45*(1+$H$45*'Operating Model'!U8) -> 1 | V45: =U45*(1+$H$45*'Operating Model'!V8) -> 1 | W45: =V45*(1+$H$45*'Operating Model'!W8) -> 1 | X45: =W45*(1+$H$45*'Operating Model'!X8) -> 1 | Y45: =X45*(1+$H$45*'Operating Model'!Y8) -> 1 | Z45: =Y45*(1+$H$45*'Operating Model'!Z8) -> 1 | AA45: =Z45*(1+$H$45*'Operating Model'!AA8) -> 1 | AB45: =AA45*(1+$H$45*'Operating Model'!AB8) -> 1 | AC45: =AB45*(1+$H$45*'Operating Model'!AC8) -> 1 | AD45: =AC45*(1+$H$45*'Operating Model'!AD8) -> 1 | AE45: =AD45*(1+$H$45*'Operating Model'!AE8) -> 1 | AF45: =AE45*(1+$H$45*'Operating Model'!AF8) -> 1 | AG45: =AF45*(1+$H$45*'Operating Model'!AG8) -> 1 | AH45: =AG45*(1+$H$45*'Operating Model'!AH8) -> 1 | AI45: =AH45*(1+$H$45*'Operating Model'!AI8) -> 1 | AJ45: =AI45*(1+$H$45*'Operating Model'!AJ8) -> 1 | AK45: =AJ45*(1+$H$45*'Operating Model'!AK8) -> 1 | AL45: =AK45*(1+$H$45*'Operating Model'!AL8) -> 1 | AM45: =AL45*(1+$H$45*'Operating Model'!AM8) -> 1 | AN45: =AM45*(1+$H$45*'Operating Model'!AN8) -> 1 | AO45: =AN45*(1+$H$45*'Operating Model'!AO8) -> 1 | AP45: =AO45*(1+$H$45*'Operating Model'!AP8) -> 1 | AQ45: =AP45*(1+$H$45*'Operating Model'!AQ8) -> 1 | AR45: =AQ45*(1+$H$45*'Operating Model'!AR8) -> 1 | AS45: =AR45*(1+$H$45*'Operating Model'!AS8) -> 1 | AT45: =AS45*(1+$H$45*'Operating Model'!AT8) -> 1 | AU45: =AT45*(1+$H$45*'Operating Model'!AU8) -> 1 | AV45: =AU45*(1+$H$45*'Operating Model'!AV8) -> 1 | AW45: =AV45*(1+$H$45*'Operating Model'!AW8) -> 1 | AX45: =AW45*(1+$H$45*'Operating Model'!AX8) -> 1 | AY45: =AX45*(1+$H$45*'Operating Model'!AY8) -> 1 | AZ45: =AY45*(1+$H$45*'Operating Model'!AZ8) -> 1 | BA45: =AZ45*(1+$H$45*'Operating Model'!BA8) -> 1 | BB45: =BA45*(1+$H$45*'Operating Model'!BB8) -> 1 | BC45: =BB45*(1+$H$45*'Operating Model'!BC8) -> 1 | BD45: =BC45*(1+$H$45*'Operating Model'!BD8) -> 1 | BE45: =BD45*(1+$H$45*'Operating Model'!BE8) -> 1 | BF45: =BE45*(1+$H$45*'Operating Model'!BF8) -> 1 | BG45: =BF45*(1+$H$45*'Operating Model'!BG8) -> 1 | BH45: =BG45*(1+$H$45*'Operating Model'!BH8) -> 1 | BI45: =BH45*(1+$H$45*'Operating Model'!BI8) -> 1 | BJ45: =BI45*(1+$H$45*'Operating Model'!BJ8) -> 1 | BK45: =BJ45*(1+$H$45*'Operating Model'!BK8) -> 1 | BL45: =BK45*(1+$H$45*'Operating Model'!BL8) -> 1 | BM45: =BL45*(1+$H$45*'Operating Model'!BM8) -> 1 | BN45: =BM45*(1+$H$45*'Operating Model'!BN8) -> 1 | BO45: =BN45*(1+$H$45*'Operating Model'!BO8) -> 1 | BP45: =BO45*(1+$H$45*'Operating Model'!BP8) -> 1 | BQ45: =BP45*(1+$H$45*'Operating Model'!BQ8) -> 1 | BR45: =BQ45*(1+$H$45*'Operating Model'!BR8) -> 1 | BS45: =BR45*(1+$H$45*'Operating Model'!BS8) -> 1
D46: Fuel Cost | G46: USD/kWh | H46: =Inputs!F195 -> 0.07 | K46: =MAX(N46:BS46) -> 0.07 | N46: =$H$46*N45 -> 0.07 | O46: 0.07 | P46: 0.07 | Q46: 0.07 | R46: 0.07 | S46: 0.07 | T46: 0.07 | U46: 0.07 | V46: 0.07 | W46: 0.07 | X46: 0.07 | Y46: 0.07 | Z46: 0.07 | AA46: 0.07 | AB46: 0.07 | AC46: 0.07 | AD46: 0.07 | AE46: 0.07 | AF46: 0.07 | AG46: 0.07 | AH46: 0.07 | AI46: 0.07 | AJ46: 0.07 | AK46: 0.07 | AL46: 0.07 | AM46: 0.07 | AN46: 0.07 | AO46: 0.07 | AP46: 0.07 | AQ46: 0.07 | AR46: 0.07 | AS46: 0.07 | AT46: =$H$46*AT45 -> 0.07 | AU46: 0.07 | AV46: 0.07 | AW46: 0.07 | AX46: 0.07 | AY46: 0.07 | AZ46: 0.07 | BA46: 0.07 | BB46: 0.07 | BC46: 0.07 | BD46: 0.07 | BE46: 0.07 | BF46: 0.07 | BG46: 0.07 | BH46: 0.07 | BI46: 0.07 | BJ46: 0.07 | BK46: 0.07 | BL46: 0.07 | BM46: 0.07 | BN46: 0.07 | BO46: 0.07 | BP46: 0.07 | BQ46: 0.07 | BR46: 0.07 | BS46: 0.07
D47: Total Cost of Electricity Purchases | G47: USD | K47: =MAX(N47:BS47) -> 142107.5485 | N47: =N46*N42 -> 0 | O47: 0 | P47: 0 | Q47: 0 | R47: 0 | S47: 0 | T47: 0 | U47: 0 | V47: 0 | W47: 0 | X47: 0 | Y47: 0 | Z47: 142107.5485 | AA47: 142107.5485 | AB47: 142107.5485 | AC47: 142107.5485 | AD47: 142107.5485 | AE47: 142107.5485 | AF47: 142107.5485 | AG47: 142107.5485 | AH47: 142107.5485 | AI47: 142107.5485 | AJ47: 142107.5485 | AK47: 142107.5485 | AL47: 142107.5485 | AM47: 142107.5485 | AN47: 142107.5485 | AO47: 142107.5485 | AP47: 142107.5485 | AQ47: 142107.5485 | AR47: 142107.5485 | AS47: 142107.5485 | AT47: =AT46*AT42 -> 142107.5485 | AU47: 142107.5485 | AV47: 142107.5485 | AW47: 142107.5485 | AX47: 142107.5485 | AY47: 142107.5485 | AZ47: 142107.5485 | BA47: 142107.5485 | BB47: 142107.5485 | BC47: 142107.5485 | BD47: 0 | BE47: 0 | BF47: 0 | BG47: 0 | BH47: 0 | BI47: 0 | BJ47: 0 | BK47: 0 | BL47: 0 | BM47: 0 | BN47: 0 | BO47: 0 | BP47: 0 | BQ47: 0 | BR47: 0 | BS47: 0
D49: Electricity Maintenance Cost | G49: USD/kWh | H49: =Inputs!F205 -> 0.01 | J49: =Inputs!F176 -> TRUE | N49: =$H$49*$J$49*N45 -> 0.01 | O49: 0.01 | P49: 0.01 | Q49: 0.01 | R49: 0.01 | S49: 0.01 | T49: 0.01 | U49: 0.01 | V49: 0.01 | W49: 0.01 | X49: 0.01 | Y49: 0.01 | Z49: 0.01 | AA49: 0.01 | AB49: 0.01 | AC49: 0.01 | AD49: 0.01 | AE49: 0.01 | AF49: 0.01 | AG49: 0.01 | AH49: 0.01 | AI49: 0.01 | AJ49: 0.01 | AK49: 0.01 | AL49: 0.01 | AM49: 0.01 | AN49: 0.01 | AO49: 0.01 | AP49: 0.01 | AQ49: 0.01 | AR49: 0.01 | AS49: 0.01 | AT49: =$H$49*$J$49*AT45 -> 0.01 | AU49: 0.01 | AV49: 0.01 | AW49: 0.01 | AX49: 0.01 | AY49: 0.01 | AZ49: 0.01 | BA49: 0.01 | BB49: 0.01 | BC49: 0.01 | BD49: 0.01 | BE49: 0.01 | BF49: 0.01 | BG49: 0.01 | BH49: 0.01 | BI49: 0.01 | BJ49: 0.01 | BK49: 0.01 | BL49: 0.01 | BM49: 0.01 | BN49: 0.01 | BO49: 0.01 | BP49: 0.01 | BQ49: 0.01 | BR49: 0.01 | BS49: 0.01
D50: Total Maintenance Cost | G50: USD | H50: =Inputs!G203 -> 32930.15949 | K50: =MAX(N50:BS50) -> 32930.15949 | N50: =$H$50*'Operating Model'!N8 -> 0 | O50: =$H$50*'Operating Model'!O8 -> 0 | P50: =$H$50*'Operating Model'!P8 -> 0 | Q50: =$H$50*'Operating Model'!Q8 -> 0 | R50: =$H$50*'Operating Model'!R8 -> 0 | S50: =$H$50*'Operating Model'!S8 -> 0 | T50: =$H$50*'Operating Model'!T8 -> 0 | U50: =$H$50*'Operating Model'!U8 -> 0 | V50: =$H$50*'Operating Model'!V8 -> 0 | W50: =$H$50*'Operating Model'!W8 -> 0 | X50: =$H$50*'Operating Model'!X8 -> 0 | Y50: =$H$50*'Operating Model'!Y8 -> 0 | Z50: =$H$50*'Operating Model'!Z8 -> 32930.15949 | AA50: =$H$50*'Operating Model'!AA8 -> 32930.15949 | AB50: =$H$50*'Operating Model'!AB8 -> 32930.15949 | AC50: =$H$50*'Operating Model'!AC8 -> 32930.15949 | AD50: =$H$50*'Operating Model'!AD8 -> 32930.15949 | AE50: =$H$50*'Operating Model'!AE8 -> 32930.15949 | AF50: =$H$50*'Operating Model'!AF8 -> 32930.15949 | AG50: =$H$50*'Operating Model'!AG8 -> 32930.15949 | AH50: =$H$50*'Operating Model'!AH8 -> 32930.15949 | AI50: =$H$50*'Operating Model'!AI8 -> 32930.15949 | AJ50: =$H$50*'Operating Model'!AJ8 -> 32930.15949 | AK50: =$H$50*'Operating Model'!AK8 -> 32930.15949 | AL50: =$H$50*'Operating Model'!AL8 -> 32930.15949 | AM50: =$H$50*'Operating Model'!AM8 -> 32930.15949 | AN50: =$H$50*'Operating Model'!AN8 -> 32930.15949 | AO50: =$H$50*'Operating Model'!AO8 -> 32930.15949 | AP50: =$H$50*'Operating Model'!AP8 -> 32930.15949 | AQ50: =$H$50*'Operating Model'!AQ8 -> 32930.15949 | AR50: =$H$50*'Operating Model'!AR8 -> 32930.15949 | AS50: =$H$50*'Operating Model'!AS8 -> 32930.15949 | AT50: =$H$50*'Operating Model'!AT8 -> 32930.15949 | AU50: =$H$50*'Operating Model'!AU8 -> 32930.15949 | AV50: =$H$50*'Operating Model'!AV8 -> 32930.15949 | AW50: =$H$50*'Operating Model'!AW8 -> 32930.15949 | AX50: =$H$50*'Operating Model'!AX8 -> 32930.15949 | AY50: =$H$50*'Operating Model'!AY8 -> 32930.15949 | AZ50: =$H$50*'Operating Model'!AZ8 -> 32930.15949 | BA50: =$H$50*'Operating Model'!BA8 -> 32930.15949 | BB50: =$H$50*'Operating Model'!BB8 -> 32930.15949 | BC50: =$H$50*'Operating Model'!BC8 -> 32930.15949 | BD50: =$H$50*'Operating Model'!BD8 -> 0 | BE50: =$H$50*'Operating Model'!BE8 -> 0 | BF50: =$H$50*'Operating Model'!BF8 -> 0 | BG50: =$H$50*'Operating Model'!BG8 -> 0 | BH50: =$H$50*'Operating Model'!BH8 -> 0 | BI50: =$H$50*'Operating Model'!BI8 -> 0 | BJ50: =$H$50*'Operating Model'!BJ8 -> 0 | BK50: =$H$50*'Operating Model'!BK8 -> 0 | BL50: =$H$50*'Operating Model'!BL8 -> 0 | BM50: =$H$50*'Operating Model'!BM8 -> 0 | BN50: =$H$50*'Operating Model'!BN8 -> 0 | BO50: =$H$50*'Operating Model'!BO8 -> 0 | BP50: =$H$50*'Operating Model'!BP8 -> 0 | BQ50: =$H$50*'Operating Model'!BQ8 -> 0 | BR50: =$H$50*'Operating Model'!BR8 -> 0 | BS50: =$H$50*'Operating Model'!BS8 -> 0
D52: Hours Until Major Maintenance | G52: Hours | H52: =Inputs!$F$89 -> 8400 | N52: =M52+'Operating Model'!N8*$H$52 -> 0 | O52: =N52+'Operating Model'!O8*$H$52 -> 0 | P52: =O52+'Operating Model'!P8*$H$52 -> 0 | Q52: =P52+'Operating Model'!Q8*$H$52 -> 0 | R52: =Q52+'Operating Model'!R8*$H$52 -> 0 | S52: =R52+'Operating Model'!S8*$H$52 -> 0 | T52: =S52+'Operating Model'!T8*$H$52 -> 0 | U52: =T52+'Operating Model'!U8*$H$52 -> 0 | V52: =U52+'Operating Model'!V8*$H$52 -> 0 | W52: =V52+'Operating Model'!W8*$H$52 -> 0 | X52: =W52+'Operating Model'!X8*$H$52 -> 0 | Y52: =X52+'Operating Model'!Y8*$H$52 -> 0 | Z52: =Y52+'Operating Model'!Z8*$H$52 -> 8400 | AA52: =Z52+'Operating Model'!AA8*$H$52 -> 16800 | AB52: =AA52+'Operating Model'!AB8*$H$52 -> 25200 | AC52: =AB52+'Operating Model'!AC8*$H$52 -> 33600 | AD52: =AC52+'Operating Model'!AD8*$H$52 -> 42000 | AE52: =AD52+'Operating Model'!AE8*$H$52 -> 50400 | AF52: =AE52+'Operating Model'!AF8*$H$52 -> 58800 | AG52: =AF52+'Operating Model'!AG8*$H$52 -> 67200 | AH52: =AG52+'Operating Model'!AH8*$H$52 -> 75600 | AI52: =AH52+'Operating Model'!AI8*$H$52 -> 84000 | AJ52: =AI52+'Operating Model'!AJ8*$H$52 -> 92400 | AK52: =AJ52+'Operating Model'!AK8*$H$52 -> 100800 | AL52: =AK52+'Operating Model'!AL8*$H$52 -> 109200 | AM52: =AL52+'Operating Model'!AM8*$H$52 -> 117600 | AN52: =AM52+'Operating Model'!AN8*$H$52 -> 126000 | AO52: =AN52+'Operating Model'!AO8*$H$52 -> 134400 | AP52: =AO52+'Operating Model'!AP8*$H$52 -> 142800 | AQ52: =AP52+'Operating Model'!AQ8*$H$52 -> 151200 | AR52: =AQ52+'Operating Model'!AR8*$H$52 -> 159600 | AS52: =AR52+'Operating Model'!AS8*$H$52 -> 168000 | AT52: =AS52+'Operating Model'!AT8*$H$52 -> 176400 | AU52: =AT52+'Operating Model'!AU8*$H$52 -> 184800 | AV52: =AU52+'Operating Model'!AV8*$H$52 -> 193200 | AW52: =AV52+'Operating Model'!AW8*$H$52 -> 201600 | AX52: =AW52+'Operating Model'!AX8*$H$52 -> 210000 | AY52: =AX52+'Operating Model'!AY8*$H$52 -> 218400 | AZ52: =AY52+'Operating Model'!AZ8*$H$52 -> 226800 | BA52: =AZ52+'Operating Model'!BA8*$H$52 -> 235200 | BB52: =BA52+'Operating Model'!BB8*$H$52 -> 243600 | BC52: =BB52+'Operating Model'!BC8*$H$52 -> 252000 | BD52: =BC52+'Operating Model'!BD8*$H$52 -> 252000 | BE52: =BD52+'Operating Model'!BE8*$H$52 -> 252000 | BF52: =BE52+'Operating Model'!BF8*$H$52 -> 252000 | BG52: =BF52+'Operating Model'!BG8*$H$52 -> 252000 | BH52: =BG52+'Operating Model'!BH8*$H$52 -> 252000 | BI52: =BH52+'Operating Model'!BI8*$H$52 -> 252000 | BJ52: =BI52+'Operating Model'!BJ8*$H$52 -> 252000 | BK52: =BJ52+'Operating Model'!BK8*$H$52 -> 252000 | BL52: =BK52+'Operating Model'!BL8*$H$52 -> 252000 | BM52: =BL52+'Operating Model'!BM8*$H$52 -> 252000 | BN52: =BM52+'Operating Model'!BN8*$H$52 -> 252000 | BO52: =BN52+'Operating Model'!BO8*$H$52 -> 252000 | BP52: =BO52+'Operating Model'!BP8*$H$52 -> 252000 | BQ52: =BP52+'Operating Model'!BQ8*$H$52 -> 252000 | BR52: =BQ52+'Operating Model'!BR8*$H$52 -> 252000 | BS52: =BR52+'Operating Model'!BS8*$H$52 -> 252000
D53: Brought Forward Hours | G53: Hours | N53: =M56 -> 0 | O53: 0 | P53: 0 | Q53: 0 | R53: 0 | S53: 0 | T53: 0 | U53: 0 | V53: 0 | W53: 0 | X53: 0 | Y53: 0 | Z53: 0 | AA53: 8400 | AB53: 16800 | AC53: 25200 | AD53: 33600 | AE53: 42000 | AF53: 50400 | AG53: 58800 | AH53: 67200 | AI53: 75600 | AJ53: 84000 | AK53: 92400 | AL53: 100800 | AM53: 109200 | AN53: 117600 | AO53: 126000 | AP53: 134400 | AQ53: 142800 | AR53: 151200 | AS53: 159600 | AT53: =AS56 -> 168000 | AU53: 176400 | AV53: 184800 | AW53: 193200 | AX53: 201600 | AY53: 210000 | AZ53: 218400 | BA53: 226800 | BB53: 235200 | BC53: 243600 | BD53: 252000 | BE53: 252000 | BF53: 252000 | BG53: 252000 | BH53: 252000 | BI53: 252000 | BJ53: 252000 | BK53: 252000 | BL53: 252000 | BM53: 252000 | BN53: 252000 | BO53: 252000 | BP53: 252000 | BQ53: 252000 | BR53: 252000 | BS53: 252000
D54: Add: Hours Operated | G54: Hours | H54: =Inputs!$F$89 -> 8400 | N54: =$H$54*'Operating Model'!N8 -> 0 | O54: =$H$54*'Operating Model'!O8 -> 0 | P54: =$H$54*'Operating Model'!P8 -> 0 | Q54: =$H$54*'Operating Model'!Q8 -> 0 | R54: =$H$54*'Operating Model'!R8 -> 0 | S54: =$H$54*'Operating Model'!S8 -> 0 | T54: =$H$54*'Operating Model'!T8 -> 0 | U54: =$H$54*'Operating Model'!U8 -> 0 | V54: =$H$54*'Operating Model'!V8 -> 0 | W54: =$H$54*'Operating Model'!W8 -> 0 | X54: =$H$54*'Operating Model'!X8 -> 0 | Y54: =$H$54*'Operating Model'!Y8 -> 0 | Z54: =$H$54*'Operating Model'!Z8 -> 8400 | AA54: =$H$54*'Operating Model'!AA8 -> 8400 | AB54: =$H$54*'Operating Model'!AB8 -> 8400 | AC54: =$H$54*'Operating Model'!AC8 -> 8400 | AD54: =$H$54*'Operating Model'!AD8 -> 8400 | AE54: =$H$54*'Operating Model'!AE8 -> 8400 | AF54: =$H$54*'Operating Model'!AF8 -> 8400 | AG54: =$H$54*'Operating Model'!AG8 -> 8400 | AH54: =$H$54*'Operating Model'!AH8 -> 8400 | AI54: =$H$54*'Operating Model'!AI8 -> 8400 | AJ54: =$H$54*'Operating Model'!AJ8 -> 8400 | AK54: =$H$54*'Operating Model'!AK8 -> 8400 | AL54: =$H$54*'Operating Model'!AL8 -> 8400 | AM54: =$H$54*'Operating Model'!AM8 -> 8400 | AN54: =$H$54*'Operating Model'!AN8 -> 8400 | AO54: =$H$54*'Operating Model'!AO8 -> 8400 | AP54: =$H$54*'Operating Model'!AP8 -> 8400 | AQ54: =$H$54*'Operating Model'!AQ8 -> 8400 | AR54: =$H$54*'Operating Model'!AR8 -> 8400 | AS54: =$H$54*'Operating Model'!AS8 -> 8400 | AT54: =$H$54*'Operating Model'!AT8 -> 8400 | AU54: =$H$54*'Operating Model'!AU8 -> 8400 | AV54: =$H$54*'Operating Model'!AV8 -> 8400 | AW54: =$H$54*'Operating Model'!AW8 -> 8400 | AX54: =$H$54*'Operating Model'!AX8 -> 8400 | AY54: =$H$54*'Operating Model'!AY8 -> 8400 | AZ54: =$H$54*'Operating Model'!AZ8 -> 8400 | BA54: =$H$54*'Operating Model'!BA8 -> 8400 | BB54: =$H$54*'Operating Model'!BB8 -> 8400 | BC54: =$H$54*'Operating Model'!BC8 -> 8400 | BD54: =$H$54*'Operating Model'!BD8 -> 0 | BE54: =$H$54*'Operating Model'!BE8 -> 0 | BF54: =$H$54*'Operating Model'!BF8 -> 0 | BG54: =$H$54*'Operating Model'!BG8 -> 0 | BH54: =$H$54*'Operating Model'!BH8 -> 0 | BI54: =$H$54*'Operating Model'!BI8 -> 0 | BJ54: =$H$54*'Operating Model'!BJ8 -> 0 | BK54: =$H$54*'Operating Model'!BK8 -> 0 | BL54: =$H$54*'Operating Model'!BL8 -> 0 | BM54: =$H$54*'Operating Model'!BM8 -> 0 | BN54: =$H$54*'Operating Model'!BN8 -> 0 | BO54: =$H$54*'Operating Model'!BO8 -> 0 | BP54: =$H$54*'Operating Model'!BP8 -> 0 | BQ54: =$H$54*'Operating Model'!BQ8 -> 0 | BR54: =$H$54*'Operating Model'!BR8 -> 0 | BS54: =$H$54*'Operating Model'!BS8 -> 0
D55: Less: Reset | G55: Hours | H55: =Inputs!F208 -> 60000
D56: Carried Forward | G56: Hours | N56: =N53+N54-N55 -> 0 | O56: 0 | P56: 0 | Q56: 0 | R56: 0 | S56: 0 | T56: 0 | U56: 0 | V56: 0 | W56: 0 | X56: 0 | Y56: 0 | Z56: 8400 | AA56: 16800 | AB56: 25200 | AC56: 33600 | AD56: 42000 | AE56: 50400 | AF56: 58800 | AG56: 67200 | AH56: 75600 | AI56: 84000 | AJ56: 92400 | AK56: 100800 | AL56: 109200 | AM56: 117600 | AN56: 126000 | AO56: 134400 | AP56: 142800 | AQ56: 151200 | AR56: 159600 | AS56: 168000 | AT56: =AT53+AT54-AT55 -> 176400 | AU56: 184800 | AV56: 193200 | AW56: 201600 | AX56: 210000 | AY56: 218400 | AZ56: 226800 | BA56: 235200 | BB56: 243600 | BC56: 252000 | BD56: 252000 | BE56: 252000 | BF56: 252000 | BG56: 252000 | BH56: 252000 | BI56: 252000 | BJ56: 252000 | BK56: 252000 | BL56: 252000 | BM56: 252000 | BN56: 252000 | BO56: 252000 | BP56: 252000 | BQ56: 252000 | BR56: 252000 | BS56: 252000
D57: Flag for Maintenance Period | G57: Flag
D59: Major Maintenance Cost
E61: Total Electricity Cost | G61: USD | K61: =SUM(N61:BS61) -> 5251131.24 | N61: =N47+N50 -> 0 | O61: 0 | P61: 0 | Q61: 0 | R61: 0 | S61: 0 | T61: 0 | U61: 0 | V61: 0 | W61: 0 | X61: 0 | Y61: 0 | Z61: 175037.708 | AA61: 175037.708 | AB61: 175037.708 | AC61: 175037.708 | AD61: 175037.708 | AE61: 175037.708 | AF61: 175037.708 | AG61: 175037.708 | AH61: 175037.708 | AI61: 175037.708 | AJ61: 175037.708 | AK61: 175037.708 | AL61: 175037.708 | AM61: 175037.708 | AN61: 175037.708 | AO61: 175037.708 | AP61: 175037.708 | AQ61: 175037.708 | AR61: 175037.708 | AS61: 175037.708 | AT61: =AT47+AT50 -> 175037.708 | AU61: 175037.708 | AV61: 175037.708 | AW61: 175037.708 | AX61: 175037.708 | AY61: 175037.708 | AZ61: 175037.708 | BA61: 175037.708 | BB61: 175037.708 | BC61: 175037.708 | BD61: 0 | BE61: 0 | BF61: 0 | BG61: 0 | BH61: 0 | BI61: 0 | BJ61: 0 | BK61: 0 | BL61: 0 | BM61: 0 | BN61: 0 | BO61: 0 | BP61: 0 | BQ61: 0 | BR61: 0 | BS61: 0
B63: Capital Expenditure
C65: Lagoon Capital Expenditure
D66: =Inputs!D254 -> Civil Works | G66: USD | H66: =Inputs!I254 -> 200000 | K66: =1/'Operating Model'!$H$3 -> 0.08333333333 | N66: =$H66*$K66*'Operating Model'!N$3 -> 16666.66667 | O66: =$H66*$K66*'Operating Model'!O$3 -> 16666.66667 | P66: =$H66*$K66*'Operating Model'!P$3 -> 16666.66667 | Q66: =$H66*$K66*'Operating Model'!Q$3 -> 16666.66667 | R66: =$H66*$K66*'Operating Model'!R$3 -> 16666.66667 | S66: =$H66*$K66*'Operating Model'!S$3 -> 16666.66667 | T66: =$H66*$K66*'Operating Model'!T$3 -> 16666.66667 | U66: =$H66*$K66*'Operating Model'!U$3 -> 16666.66667 | V66: =$H66*$K66*'Operating Model'!V$3 -> 16666.66667 | W66: =$H66*$K66*'Operating Model'!W$3 -> 16666.66667 | X66: =$H66*$K66*'Operating Model'!X$3 -> 16666.66667 | Y66: =$H66*$K66*'Operating Model'!Y$3 -> 16666.66667 | Z66: =$H66*$K66*'Operating Model'!Z$3 -> 0 | AA66: =$H66*$K66*'Operating Model'!AA$3 -> 0 | AB66: =$H66*$K66*'Operating Model'!AB$3 -> 0 | AC66: =$H66*$K66*'Operating Model'!AC$3 -> 0 | AD66: =$H66*$K66*'Operating Model'!AD$3 -> 0 | AE66: =$H66*$K66*'Operating Model'!AE$3 -> 0 | AF66: =$H66*$K66*'Operating Model'!AF$3 -> 0 | AG66: =$H66*$K66*'Operating Model'!AG$3 -> 0 | AH66: =$H66*$K66*'Operating Model'!AH$3 -> 0 | AI66: =$H66*$K66*'Operating Model'!AI$3 -> 0 | AJ66: =$H66*$K66*'Operating Model'!AJ$3 -> 0 | AK66: =$H66*$K66*'Operating Model'!AK$3 -> 0 | AL66: =$H66*$K66*'Operating Model'!AL$3 -> 0 | AM66: =$H66*$K66*'Operating Model'!AM$3 -> 0 | AN66: =$H66*$K66*'Operating Model'!AN$3 -> 0 | AO66: =$H66*$K66*'Operating Model'!AO$3 -> 0 | AP66: =$H66*$K66*'Operating Model'!AP$3 -> 0 | AQ66: =$H66*$K66*'Operating Model'!AQ$3 -> 0 | AR66: =$H66*$K66*'Operating Model'!AR$3 -> 0 | AS66: =$H66*$K66*'Operating Model'!AS$3 -> 0 | AT66: =$H66*$K66*'Operating Model'!AT$3 -> 0 | AU66: =$H66*$K66*'Operating Model'!AU$3 -> 0 | AV66: =$H66*$K66*'Operating Model'!AV$3 -> 0 | AW66: =$H66*$K66*'Operating Model'!AW$3 -> 0 | AX66: =$H66*$K66*'Operating Model'!AX$3 -> 0 | AY66: =$H66*$K66*'Operating Model'!AY$3 -> 0 | AZ66: =$H66*$K66*'Operating Model'!AZ$3 -> 0 | BA66: =$H66*$K66*'Operating Model'!BA$3 -> 0 | BB66: =$H66*$K66*'Operating Model'!BB$3 -> 0 | BC66: =$H66*$K66*'Operating Model'!BC$3 -> 0 | BD66: =$H66*$K66*'Operating Model'!BD$3 -> 0 | BE66: =$H66*$K66*'Operating Model'!BE$3 -> 0 | BF66: =$H66*$K66*'Operating Model'!BF$3 -> 0 | BG66: =$H66*$K66*'Operating Model'!BG$3 -> 0 | BH66: =$H66*$K66*'Operating Model'!BH$3 -> 0 | BI66: =$H66*$K66*'Operating Model'!BI$3 -> 0 | BJ66: =$H66*$K66*'Operating Model'!BJ$3 -> 0 | BK66: =$H66*$K66*'Operating Model'!BK$3 -> 0 | BL66: =$H66*$K66*'Operating Model'!BL$3 -> 0 | BM66: =$H66*$K66*'Operating Model'!BM$3 -> 0 | BN66: =$H66*$K66*'Operating Model'!BN$3 -> 0 | BO66: =$H66*$K66*'Operating Model'!BO$3 -> 0 | BP66: =$H66*$K66*'Operating Model'!BP$3 -> 0 | BQ66: =$H66*$K66*'Operating Model'!BQ$3 -> 0 | BR66: =$H66*$K66*'Operating Model'!BR$3 -> 0 | BS66: =$H66*$K66*'Operating Model'!BS$3 -> 0
D67: =Inputs!D255 -> Gasometrical Cover | G67: USD | H67: =Inputs!I255 -> 200000 | K67: =1/'Operating Model'!$H$3 -> 0.08333333333 | N67: =$H67*$K67*'Operating Model'!N$3 -> 16666.66667 | O67: =$H67*$K67*'Operating Model'!O$3 -> 16666.66667 | P67: =$H67*$K67*'Operating Model'!P$3 -> 16666.66667 | Q67: =$H67*$K67*'Operating Model'!Q$3 -> 16666.66667 | R67: =$H67*$K67*'Operating Model'!R$3 -> 16666.66667 | S67: =$H67*$K67*'Operating Model'!S$3 -> 16666.66667 | T67: =$H67*$K67*'Operating Model'!T$3 -> 16666.66667 | U67: =$H67*$K67*'Operating Model'!U$3 -> 16666.66667 | V67: =$H67*$K67*'Operating Model'!V$3 -> 16666.66667 | W67: =$H67*$K67*'Operating Model'!W$3 -> 16666.66667 | X67: =$H67*$K67*'Operating Model'!X$3 -> 16666.66667 | Y67: =$H67*$K67*'Operating Model'!Y$3 -> 16666.66667 | Z67: =$H67*$K67*'Operating Model'!Z$3 -> 0 | AA67: =$H67*$K67*'Operating Model'!AA$3 -> 0 | AB67: =$H67*$K67*'Operating Model'!AB$3 -> 0 | AC67: =$H67*$K67*'Operating Model'!AC$3 -> 0 | AD67: =$H67*$K67*'Operating Model'!AD$3 -> 0 | AE67: =$H67*$K67*'Operating Model'!AE$3 -> 0 | AF67: =$H67*$K67*'Operating Model'!AF$3 -> 0 | AG67: =$H67*$K67*'Operating Model'!AG$3 -> 0 | AH67: =$H67*$K67*'Operating Model'!AH$3 -> 0 | AI67: =$H67*$K67*'Operating Model'!AI$3 -> 0 | AJ67: =$H67*$K67*'Operating Model'!AJ$3 -> 0 | AK67: =$H67*$K67*'Operating Model'!AK$3 -> 0 | AL67: =$H67*$K67*'Operating Model'!AL$3 -> 0 | AM67: =$H67*$K67*'Operating Model'!AM$3 -> 0 | AN67: =$H67*$K67*'Operating Model'!AN$3 -> 0 | AO67: =$H67*$K67*'Operating Model'!AO$3 -> 0 | AP67: =$H67*$K67*'Operating Model'!AP$3 -> 0 | AQ67: =$H67*$K67*'Operating Model'!AQ$3 -> 0 | AR67: =$H67*$K67*'Operating Model'!AR$3 -> 0 | AS67: =$H67*$K67*'Operating Model'!AS$3 -> 0 | AT67: =$H67*$K67*'Operating Model'!AT$3 -> 0 | AU67: =$H67*$K67*'Operating Model'!AU$3 -> 0 | AV67: =$H67*$K67*'Operating Model'!AV$3 -> 0 | AW67: =$H67*$K67*'Operating Model'!AW$3 -> 0 | AX67: =$H67*$K67*'Operating Model'!AX$3 -> 0 | AY67: =$H67*$K67*'Operating Model'!AY$3 -> 0 | AZ67: =$H67*$K67*'Operating Model'!AZ$3 -> 0 | BA67: =$H67*$K67*'Operating Model'!BA$3 -> 0 | BB67: =$H67*$K67*'Operating Model'!BB$3 -> 0 | BC67: =$H67*$K67*'Operating Model'!BC$3 -> 0 | BD67: =$H67*$K67*'Operating Model'!BD$3 -> 0 | BE67: =$H67*$K67*'Operating Model'!BE$3 -> 0 | BF67: =$H67*$K67*'Operating Model'!BF$3 -> 0 | BG67: =$H67*$K67*'Operating Model'!BG$3 -> 0 | BH67: =$H67*$K67*'Operating Model'!BH$3 -> 0 | BI67: =$H67*$K67*'Operating Model'!BI$3 -> 0 | BJ67: =$H67*$K67*'Operating Model'!BJ$3 -> 0 | BK67: =$H67*$K67*'Operating Model'!BK$3 -> 0 | BL67: =$H67*$K67*'Operating Model'!BL$3 -> 0 | BM67: =$H67*$K67*'Operating Model'!BM$3 -> 0 | BN67: =$H67*$K67*'Operating Model'!BN$3 -> 0 | BO67: =$H67*$K67*'Operating Model'!BO$3 -> 0 | BP67: =$H67*$K67*'Operating Model'!BP$3 -> 0 | BQ67: =$H67*$K67*'Operating Model'!BQ$3 -> 0 | BR67: =$H67*$K67*'Operating Model'!BR$3 -> 0 | BS67: =$H67*$K67*'Operating Model'!BS$3 -> 0
D68: =Inputs!D256 -> Liner | G68: USD | H68: =Inputs!I256 -> 200000 | K68: =1/'Operating Model'!$H$3 -> 0.08333333333 | N68: =$H68*$K68*'Operating Model'!N$3 -> 16666.66667 | O68: =$H68*$K68*'Operating Model'!O$3 -> 16666.66667 | P68: =$H68*$K68*'Operating Model'!P$3 -> 16666.66667 | Q68: =$H68*$K68*'Operating Model'!Q$3 -> 16666.66667 | R68: =$H68*$K68*'Operating Model'!R$3 -> 16666.66667 | S68: =$H68*$K68*'Operating Model'!S$3 -> 16666.66667 | T68: =$H68*$K68*'Operating Model'!T$3 -> 16666.66667 | U68: =$H68*$K68*'Operating Model'!U$3 -> 16666.66667 | V68: =$H68*$K68*'Operating Model'!V$3 -> 16666.66667 | W68: =$H68*$K68*'Operating Model'!W$3 -> 16666.66667 | X68: =$H68*$K68*'Operating Model'!X$3 -> 16666.66667 | Y68: =$H68*$K68*'Operating Model'!Y$3 -> 16666.66667 | Z68: =$H68*$K68*'Operating Model'!Z$3 -> 0 | AA68: =$H68*$K68*'Operating Model'!AA$3 -> 0 | AB68: =$H68*$K68*'Operating Model'!AB$3 -> 0 | AC68: =$H68*$K68*'Operating Model'!AC$3 -> 0 | AD68: =$H68*$K68*'Operating Model'!AD$3 -> 0 | AE68: =$H68*$K68*'Operating Model'!AE$3 -> 0 | AF68: =$H68*$K68*'Operating Model'!AF$3 -> 0 | AG68: =$H68*$K68*'Operating Model'!AG$3 -> 0 | AH68: =$H68*$K68*'Operating Model'!AH$3 -> 0 | AI68: =$H68*$K68*'Operating Model'!AI$3 -> 0 | AJ68: =$H68*$K68*'Operating Model'!AJ$3 -> 0 | AK68: =$H68*$K68*'Operating Model'!AK$3 -> 0 | AL68: =$H68*$K68*'Operating Model'!AL$3 -> 0 | AM68: =$H68*$K68*'Operating Model'!AM$3 -> 0 | AN68: =$H68*$K68*'Operating Model'!AN$3 -> 0 | AO68: =$H68*$K68*'Operating Model'!AO$3 -> 0 | AP68: =$H68*$K68*'Operating Model'!AP$3 -> 0 | AQ68: =$H68*$K68*'Operating Model'!AQ$3 -> 0 | AR68: =$H68*$K68*'Operating Model'!AR$3 -> 0 | AS68: =$H68*$K68*'Operating Model'!AS$3 -> 0 | AT68: =$H68*$K68*'Operating Model'!AT$3 -> 0 | AU68: =$H68*$K68*'Operating Model'!AU$3 -> 0 | AV68: =$H68*$K68*'Operating Model'!AV$3 -> 0 | AW68: =$H68*$K68*'Operating Model'!AW$3 -> 0 | AX68: =$H68*$K68*'Operating Model'!AX$3 -> 0 | AY68: =$H68*$K68*'Operating Model'!AY$3 -> 0 | AZ68: =$H68*$K68*'Operating Model'!AZ$3 -> 0 | BA68: =$H68*$K68*'Operating Model'!BA$3 -> 0 | BB68: =$H68*$K68*'Operating Model'!BB$3 -> 0 | BC68: =$H68*$K68*'Operating Model'!BC$3 -> 0 | BD68: =$H68*$K68*'Operating Model'!BD$3 -> 0 | BE68: =$H68*$K68*'Operating Model'!BE$3 -> 0 | BF68: =$H68*$K68*'Operating Model'!BF$3 -> 0 | BG68: =$H68*$K68*'Operating Model'!BG$3 -> 0 | BH68: =$H68*$K68*'Operating Model'!BH$3 -> 0 | BI68: =$H68*$K68*'Operating Model'!BI$3 -> 0 | BJ68: =$H68*$K68*'Operating Model'!BJ$3 -> 0 | BK68: =$H68*$K68*'Operating Model'!BK$3 -> 0 | BL68: =$H68*$K68*'Operating Model'!BL$3 -> 0 | BM68: =$H68*$K68*'Operating Model'!BM$3 -> 0 | BN68: =$H68*$K68*'Operating Model'!BN$3 -> 0 | BO68: =$H68*$K68*'Operating Model'!BO$3 -> 0 | BP68: =$H68*$K68*'Operating Model'!BP$3 -> 0 | BQ68: =$H68*$K68*'Operating Model'!BQ$3 -> 0 | BR68: =$H68*$K68*'Operating Model'!BR$3 -> 0 | BS68: =$H68*$K68*'Operating Model'!BS$3 -> 0
D69: =Inputs!D257 -> Piping and Technology | G69: USD | H69: =Inputs!I257 -> 900000 | J69: 20 | K69: =1/'Operating Model'!$H$3 -> 0.08333333333 | N69: =$H69*$K69*'Operating Model'!N$3 -> 75000 | O69: =$H69*$K69*'Operating Model'!O$3 -> 75000 | P69: =$H69*$K69*'Operating Model'!P$3 -> 75000 | Q69: =$H69*$K69*'Operating Model'!Q$3 -> 75000 | R69: =$H69*$K69*'Operating Model'!R$3 -> 75000 | S69: =$H69*$K69*'Operating Model'!S$3 -> 75000 | T69: =$H69*$K69*'Operating Model'!T$3 -> 75000 | U69: =$H69*$K69*'Operating Model'!U$3 -> 75000 | V69: =$H69*$K69*'Operating Model'!V$3 -> 75000 | W69: =$H69*$K69*'Operating Model'!W$3 -> 75000 | X69: =$H69*$K69*'Operating Model'!X$3 -> 75000 | Y69: =$H69*$K69*'Operating Model'!Y$3 -> 75000 | Z69: =$H69*$K69*'Operating Model'!Z$3 -> 0 | AA69: =$H69*$K69*'Operating Model'!AA$3 -> 0 | AB69: =$H69*$K69*'Operating Model'!AB$3 -> 0 | AC69: =$H69*$K69*'Operating Model'!AC$3 -> 0 | AD69: =$H69*$K69*'Operating Model'!AD$3 -> 0 | AE69: =$H69*$K69*'Operating Model'!AE$3 -> 0 | AF69: =$H69*$K69*'Operating Model'!AF$3 -> 0 | AG69: =$H69*$K69*'Operating Model'!AG$3 -> 0 | AH69: =$H69*$K69*'Operating Model'!AH$3 -> 0 | AI69: =$H69*$K69*'Operating Model'!AI$3 -> 0 | AJ69: =$H69*$K69*'Operating Model'!AJ$3 -> 0 | AK69: =$H69*$K69*'Operating Model'!AK$3 -> 0 | AL69: =$H69*$K69*'Operating Model'!AL$3 -> 0 | AM69: =$H69*$K69*'Operating Model'!AM$3 -> 0 | AN69: =$H69*$K69*'Operating Model'!AN$3 -> 0 | AO69: =$H69*$K69*'Operating Model'!AO$3 -> 0 | AP69: =$H69*$K69*'Operating Model'!AP$3 -> 0 | AQ69: =$H69*$K69*'Operating Model'!AQ$3 -> 0 | AR69: =$H69*$K69*'Operating Model'!AR$3 -> 0 | AS69: =$H69*$K69*'Operating Model'!AS$3 -> 0 | AT69: =$H69*$K69*'Operating Model'!AT$3 -> 0 | AU69: =$H69*$K69*'Operating Model'!AU$3 -> 0 | AV69: =$H69*$K69*'Operating Model'!AV$3 -> 0 | AW69: =$H69*$K69*'Operating Model'!AW$3 -> 0 | AX69: =$H69*$K69*'Operating Model'!AX$3 -> 0 | AY69: =$H69*$K69*'Operating Model'!AY$3 -> 0 | AZ69: =$H69*$K69*'Operating Model'!AZ$3 -> 0 | BA69: =$H69*$K69*'Operating Model'!BA$3 -> 0 | BB69: =$H69*$K69*'Operating Model'!BB$3 -> 0 | BC69: =$H69*$K69*'Operating Model'!BC$3 -> 0 | BD69: =$H69*$K69*'Operating Model'!BD$3 -> 0 | BE69: =$H69*$K69*'Operating Model'!BE$3 -> 0 | BF69: =$H69*$K69*'Operating Model'!BF$3 -> 0 | BG69: =$H69*$K69*'Operating Model'!BG$3 -> 0 | BH69: =$H69*$K69*'Operating Model'!BH$3 -> 0 | BI69: =$H69*$K69*'Operating Model'!BI$3 -> 0 | BJ69: =$H69*$K69*'Operating Model'!BJ$3 -> 0 | BK69: =$H69*$K69*'Operating Model'!BK$3 -> 0 | BL69: =$H69*$K69*'Operating Model'!BL$3 -> 0 | BM69: =$H69*$K69*'Operating Model'!BM$3 -> 0 | BN69: =$H69*$K69*'Operating Model'!BN$3 -> 0 | BO69: =$H69*$K69*'Operating Model'!BO$3 -> 0 | BP69: =$H69*$K69*'Operating Model'!BP$3 -> 0 | BQ69: =$H69*$K69*'Operating Model'!BQ$3 -> 0 | BR69: =$H69*$K69*'Operating Model'!BR$3 -> 0 | BS69: =$H69*$K69*'Operating Model'!BS$3 -> 0
E70: Total | G70: USD | H70: =SUM(H66:H69) -> 1500000 | N70: =SUM(N66:N69) -> 125000 | O70: 125000 | P70: 125000 | Q70: 125000 | R70: 125000 | S70: 125000 | T70: 125000 | U70: 125000 | V70: 125000 | W70: 125000 | X70: 125000 | Y70: 125000 | Z70: 0 | AA70: 0 | AB70: 0 | AC70: 0 | AD70: 0 | AE70: 0 | AF70: 0 | AG70: 0 | AH70: 0 | AI70: 0 | AJ70: 0 | AK70: 0 | AL70: 0 | AM70: 0 | AN70: 0 | AO70: 0 | AP70: 0 | AQ70: 0 | AR70: 0 | AS70: 0 | AT70: =SUM(AT66:AT69) -> 0 | AU70: 0 | AV70: 0 | AW70: 0 | AX70: 0 | AY70: 0 | AZ70: 0 | BA70: 0 | BB70: 0 | BC70: 0 | BD70: 0 | BE70: 0 | BF70: 0 | BG70: 0 | BH70: 0 | BI70: 0 | BJ70: 0 | BK70: 0 | BL70: 0 | BM70: 0 | BN70: 0 | BO70: 0 | BP70: 0 | BQ70: 0 | BR70: 0 | BS70: 0
C72: Upgrader Unit
D73: =Inputs!D254 -> Civil Works | G73: USD | H73: =Inputs!I268 -> 300000 | J73: 20 | K73: =1/'Operating Model'!$H$3 -> 0.08333333333 | N73: =$H73*$K73*'Operating Model'!N$3 -> 25000 | O73: =$H73*$K73*'Operating Model'!O$3 -> 25000 | P73: =$H73*$K73*'Operating Model'!P$3 -> 25000 | Q73: =$H73*$K73*'Operating Model'!Q$3 -> 25000 | R73: =$H73*$K73*'Operating Model'!R$3 -> 25000 | S73: =$H73*$K73*'Operating Model'!S$3 -> 25000 | T73: =$H73*$K73*'Operating Model'!T$3 -> 25000 | U73: =$H73*$K73*'Operating Model'!U$3 -> 25000 | V73: =$H73*$K73*'Operating Model'!V$3 -> 25000 | W73: =$H73*$K73*'Operating Model'!W$3 -> 25000 | X73: =$H73*$K73*'Operating Model'!X$3 -> 25000 | Y73: =$H73*$K73*'Operating Model'!Y$3 -> 25000 | Z73: =$H73*$K73*'Operating Model'!Z$3 -> 0 | AA73: =$H73*$K73*'Operating Model'!AA$3 -> 0 | AB73: =$H73*$K73*'Operating Model'!AB$3 -> 0 | AC73: =$H73*$K73*'Operating Model'!AC$3 -> 0 | AD73: =$H73*$K73*'Operating Model'!AD$3 -> 0 | AE73: =$H73*$K73*'Operating Model'!AE$3 -> 0 | AF73: =$H73*$K73*'Operating Model'!AF$3 -> 0 | AG73: =$H73*$K73*'Operating Model'!AG$3 -> 0 | AH73: =$H73*$K73*'Operating Model'!AH$3 -> 0 | AI73: =$H73*$K73*'Operating Model'!AI$3 -> 0 | AJ73: =$H73*$K73*'Operating Model'!AJ$3 -> 0 | AK73: =$H73*$K73*'Operating Model'!AK$3 -> 0 | AL73: =$H73*$K73*'Operating Model'!AL$3 -> 0 | AM73: =$H73*$K73*'Operating Model'!AM$3 -> 0 | AN73: =$H73*$K73*'Operating Model'!AN$3 -> 0 | AO73: =$H73*$K73*'Operating Model'!AO$3 -> 0 | AP73: =$H73*$K73*'Operating Model'!AP$3 -> 0 | AQ73: =$H73*$K73*'Operating Model'!AQ$3 -> 0 | AR73: =$H73*$K73*'Operating Model'!AR$3 -> 0 | AS73: =$H73*$K73*'Operating Model'!AS$3 -> 0 | AT73: =$H73*$K73*'Operating Model'!AT$3 -> 0 | AU73: =$H73*$K73*'Operating Model'!AU$3 -> 0 | AV73: =$H73*$K73*'Operating Model'!AV$3 -> 0 | AW73: =$H73*$K73*'Operating Model'!AW$3 -> 0 | AX73: =$H73*$K73*'Operating Model'!AX$3 -> 0 | AY73: =$H73*$K73*'Operating Model'!AY$3 -> 0 | AZ73: =$H73*$K73*'Operating Model'!AZ$3 -> 0 | BA73: =$H73*$K73*'Operating Model'!BA$3 -> 0 | BB73: =$H73*$K73*'Operating Model'!BB$3 -> 0 | BC73: =$H73*$K73*'Operating Model'!BC$3 -> 0 | BD73: =$H73*$K73*'Operating Model'!BD$3 -> 0 | BE73: =$H73*$K73*'Operating Model'!BE$3 -> 0 | BF73: =$H73*$K73*'Operating Model'!BF$3 -> 0 | BG73: =$H73*$K73*'Operating Model'!BG$3 -> 0 | BH73: =$H73*$K73*'Operating Model'!BH$3 -> 0 | BI73: =$H73*$K73*'Operating Model'!BI$3 -> 0 | BJ73: =$H73*$K73*'Operating Model'!BJ$3 -> 0 | BK73: =$H73*$K73*'Operating Model'!BK$3 -> 0 | BL73: =$H73*$K73*'Operating Model'!BL$3 -> 0 | BM73: =$H73*$K73*'Operating Model'!BM$3 -> 0 | BN73: =$H73*$K73*'Operating Model'!BN$3 -> 0 | BO73: =$H73*$K73*'Operating Model'!BO$3 -> 0 | BP73: =$H73*$K73*'Operating Model'!BP$3 -> 0 | BQ73: =$H73*$K73*'Operating Model'!BQ$3 -> 0 | BR73: =$H73*$K73*'Operating Model'!BR$3 -> 0 | BS73: =$H73*$K73*'Operating Model'!BS$3 -> 0
D74: Gasometrical Cover | G74: USD | H74: =Inputs!I269 -> 300000 | J74: 30 | K74: =1/'Operating Model'!$H$3 -> 0.08333333333 | N74: =$H74*$K74*'Operating Model'!N$3 -> 25000 | O74: =$H74*$K74*'Operating Model'!O$3 -> 25000 | P74: =$H74*$K74*'Operating Model'!P$3 -> 25000 | Q74: =$H74*$K74*'Operating Model'!Q$3 -> 25000 | R74: =$H74*$K74*'Operating Model'!R$3 -> 25000 | S74: =$H74*$K74*'Operating Model'!S$3 -> 25000 | T74: =$H74*$K74*'Operating Model'!T$3 -> 25000 | U74: =$H74*$K74*'Operating Model'!U$3 -> 25000 | V74: =$H74*$K74*'Operating Model'!V$3 -> 25000 | W74: =$H74*$K74*'Operating Model'!W$3 -> 25000 | X74: =$H74*$K74*'Operating Model'!X$3 -> 25000 | Y74: =$H74*$K74*'Operating Model'!Y$3 -> 25000 | Z74: =$H74*$K74*'Operating Model'!Z$3 -> 0 | AA74: =$H74*$K74*'Operating Model'!AA$3 -> 0 | AB74: =$H74*$K74*'Operating Model'!AB$3 -> 0 | AC74: =$H74*$K74*'Operating Model'!AC$3 -> 0 | AD74: =$H74*$K74*'Operating Model'!AD$3 -> 0 | AE74: =$H74*$K74*'Operating Model'!AE$3 -> 0 | AF74: =$H74*$K74*'Operating Model'!AF$3 -> 0 | AG74: =$H74*$K74*'Operating Model'!AG$3 -> 0 | AH74: =$H74*$K74*'Operating Model'!AH$3 -> 0 | AI74: =$H74*$K74*'Operating Model'!AI$3 -> 0 | AJ74: =$H74*$K74*'Operating Model'!AJ$3 -> 0 | AK74: =$H74*$K74*'Operating Model'!AK$3 -> 0 | AL74: =$H74*$K74*'Operating Model'!AL$3 -> 0 | AM74: =$H74*$K74*'Operating Model'!AM$3 -> 0 | AN74: =$H74*$K74*'Operating Model'!AN$3 -> 0 | AO74: =$H74*$K74*'Operating Model'!AO$3 -> 0 | AP74: =$H74*$K74*'Operating Model'!AP$3 -> 0 | AQ74: =$H74*$K74*'Operating Model'!AQ$3 -> 0 | AR74: =$H74*$K74*'Operating Model'!AR$3 -> 0 | AS74: =$H74*$K74*'Operating Model'!AS$3 -> 0 | AT74: =$H74*$K74*'Operating Model'!AT$3 -> 0 | AU74: =$H74*$K74*'Operating Model'!AU$3 -> 0 | AV74: =$H74*$K74*'Operating Model'!AV$3 -> 0 | AW74: =$H74*$K74*'Operating Model'!AW$3 -> 0 | AX74: =$H74*$K74*'Operating Model'!AX$3 -> 0 | AY74: =$H74*$K74*'Operating Model'!AY$3 -> 0 | AZ74: =$H74*$K74*'Operating Model'!AZ$3 -> 0 | BA74: =$H74*$K74*'Operating Model'!BA$3 -> 0 | BB74: =$H74*$K74*'Operating Model'!BB$3 -> 0 | BC74: =$H74*$K74*'Operating Model'!BC$3 -> 0 | BD74: =$H74*$K74*'Operating Model'!BD$3 -> 0 | BE74: =$H74*$K74*'Operating Model'!BE$3 -> 0 | BF74: =$H74*$K74*'Operating Model'!BF$3 -> 0 | BG74: =$H74*$K74*'Operating Model'!BG$3 -> 0 | BH74: =$H74*$K74*'Operating Model'!BH$3 -> 0 | BI74: =$H74*$K74*'Operating Model'!BI$3 -> 0 | BJ74: =$H74*$K74*'Operating Model'!BJ$3 -> 0 | BK74: =$H74*$K74*'Operating Model'!BK$3 -> 0 | BL74: =$H74*$K74*'Operating Model'!BL$3 -> 0 | BM74: =$H74*$K74*'Operating Model'!BM$3 -> 0 | BN74: =$H74*$K74*'Operating Model'!BN$3 -> 0 | BO74: =$H74*$K74*'Operating Model'!BO$3 -> 0 | BP74: =$H74*$K74*'Operating Model'!BP$3 -> 0 | BQ74: =$H74*$K74*'Operating Model'!BQ$3 -> 0 | BR74: =$H74*$K74*'Operating Model'!BR$3 -> 0 | BS74: =$H74*$K74*'Operating Model'!BS$3 -> 0
D75: Liner | G75: USD | H75: =Inputs!I270 -> 200000 | K75: =1/'Operating Model'!$H$3 -> 0.08333333333 | N75: =$H75*$K75*'Operating Model'!N$3 -> 16666.66667 | O75: =$H75*$K75*'Operating Model'!O$3 -> 16666.66667 | P75: =$H75*$K75*'Operating Model'!P$3 -> 16666.66667 | Q75: =$H75*$K75*'Operating Model'!Q$3 -> 16666.66667 | R75: =$H75*$K75*'Operating Model'!R$3 -> 16666.66667 | S75: =$H75*$K75*'Operating Model'!S$3 -> 16666.66667 | T75: =$H75*$K75*'Operating Model'!T$3 -> 16666.66667 | U75: =$H75*$K75*'Operating Model'!U$3 -> 16666.66667 | V75: =$H75*$K75*'Operating Model'!V$3 -> 16666.66667 | W75: =$H75*$K75*'Operating Model'!W$3 -> 16666.66667 | X75: =$H75*$K75*'Operating Model'!X$3 -> 16666.66667 | Y75: =$H75*$K75*'Operating Model'!Y$3 -> 16666.66667 | Z75: =$H75*$K75*'Operating Model'!Z$3 -> 0 | AA75: =$H75*$K75*'Operating Model'!AA$3 -> 0 | AB75: =$H75*$K75*'Operating Model'!AB$3 -> 0 | AC75: =$H75*$K75*'Operating Model'!AC$3 -> 0 | AD75: =$H75*$K75*'Operating Model'!AD$3 -> 0 | AE75: =$H75*$K75*'Operating Model'!AE$3 -> 0 | AF75: =$H75*$K75*'Operating Model'!AF$3 -> 0 | AG75: =$H75*$K75*'Operating Model'!AG$3 -> 0 | AH75: =$H75*$K75*'Operating Model'!AH$3 -> 0 | AI75: =$H75*$K75*'Operating Model'!AI$3 -> 0 | AJ75: =$H75*$K75*'Operating Model'!AJ$3 -> 0 | AK75: =$H75*$K75*'Operating Model'!AK$3 -> 0 | AL75: =$H75*$K75*'Operating Model'!AL$3 -> 0 | AM75: =$H75*$K75*'Operating Model'!AM$3 -> 0 | AN75: =$H75*$K75*'Operating Model'!AN$3 -> 0 | AO75: =$H75*$K75*'Operating Model'!AO$3 -> 0 | AP75: =$H75*$K75*'Operating Model'!AP$3 -> 0 | AQ75: =$H75*$K75*'Operating Model'!AQ$3 -> 0 | AR75: =$H75*$K75*'Operating Model'!AR$3 -> 0 | AS75: =$H75*$K75*'Operating Model'!AS$3 -> 0 | AT75: =$H75*$K75*'Operating Model'!AT$3 -> 0 | AU75: =$H75*$K75*'Operating Model'!AU$3 -> 0 | AV75: =$H75*$K75*'Operating Model'!AV$3 -> 0 | AW75: =$H75*$K75*'Operating Model'!AW$3 -> 0 | AX75: =$H75*$K75*'Operating Model'!AX$3 -> 0 | AY75: =$H75*$K75*'Operating Model'!AY$3 -> 0 | AZ75: =$H75*$K75*'Operating Model'!AZ$3 -> 0 | BA75: =$H75*$K75*'Operating Model'!BA$3 -> 0 | BB75: =$H75*$K75*'Operating Model'!BB$3 -> 0 | BC75: =$H75*$K75*'Operating Model'!BC$3 -> 0 | BD75: =$H75*$K75*'Operating Model'!BD$3 -> 0 | BE75: =$H75*$K75*'Operating Model'!BE$3 -> 0 | BF75: =$H75*$K75*'Operating Model'!BF$3 -> 0 | BG75: =$H75*$K75*'Operating Model'!BG$3 -> 0 | BH75: =$H75*$K75*'Operating Model'!BH$3 -> 0 | BI75: =$H75*$K75*'Operating Model'!BI$3 -> 0 | BJ75: =$H75*$K75*'Operating Model'!BJ$3 -> 0 | BK75: =$H75*$K75*'Operating Model'!BK$3 -> 0 | BL75: =$H75*$K75*'Operating Model'!BL$3 -> 0 | BM75: =$H75*$K75*'Operating Model'!BM$3 -> 0 | BN75: =$H75*$K75*'Operating Model'!BN$3 -> 0 | BO75: =$H75*$K75*'Operating Model'!BO$3 -> 0 | BP75: =$H75*$K75*'Operating Model'!BP$3 -> 0 | BQ75: =$H75*$K75*'Operating Model'!BQ$3 -> 0 | BR75: =$H75*$K75*'Operating Model'!BR$3 -> 0 | BS75: =$H75*$K75*'Operating Model'!BS$3 -> 0
D76: Piping and Technology | G76: USD | H76: =Inputs!I271 -> 1000000 | J76: 20 | K76: =1/'Operating Model'!$H$3 -> 0.08333333333 | N76: =$H76*$K76*'Operating Model'!N$3 -> 83333.33333 | O76: =$H76*$K76*'Operating Model'!O$3 -> 83333.33333 | P76: =$H76*$K76*'Operating Model'!P$3 -> 83333.33333 | Q76: =$H76*$K76*'Operating Model'!Q$3 -> 83333.33333 | R76: =$H76*$K76*'Operating Model'!R$3 -> 83333.33333 | S76: =$H76*$K76*'Operating Model'!S$3 -> 83333.33333 | T76: =$H76*$K76*'Operating Model'!T$3 -> 83333.33333 | U76: =$H76*$K76*'Operating Model'!U$3 -> 83333.33333 | V76: =$H76*$K76*'Operating Model'!V$3 -> 83333.33333 | W76: =$H76*$K76*'Operating Model'!W$3 -> 83333.33333 | X76: =$H76*$K76*'Operating Model'!X$3 -> 83333.33333 | Y76: =$H76*$K76*'Operating Model'!Y$3 -> 83333.33333 | Z76: =$H76*$K76*'Operating Model'!Z$3 -> 0 | AA76: =$H76*$K76*'Operating Model'!AA$3 -> 0 | AB76: =$H76*$K76*'Operating Model'!AB$3 -> 0 | AC76: =$H76*$K76*'Operating Model'!AC$3 -> 0 | AD76: =$H76*$K76*'Operating Model'!AD$3 -> 0 | AE76: =$H76*$K76*'Operating Model'!AE$3 -> 0 | AF76: =$H76*$K76*'Operating Model'!AF$3 -> 0 | AG76: =$H76*$K76*'Operating Model'!AG$3 -> 0 | AH76: =$H76*$K76*'Operating Model'!AH$3 -> 0 | AI76: =$H76*$K76*'Operating Model'!AI$3 -> 0 | AJ76: =$H76*$K76*'Operating Model'!AJ$3 -> 0 | AK76: =$H76*$K76*'Operating Model'!AK$3 -> 0 | AL76: =$H76*$K76*'Operating Model'!AL$3 -> 0 | AM76: =$H76*$K76*'Operating Model'!AM$3 -> 0 | AN76: =$H76*$K76*'Operating Model'!AN$3 -> 0 | AO76: =$H76*$K76*'Operating Model'!AO$3 -> 0 | AP76: =$H76*$K76*'Operating Model'!AP$3 -> 0 | AQ76: =$H76*$K76*'Operating Model'!AQ$3 -> 0 | AR76: =$H76*$K76*'Operating Model'!AR$3 -> 0 | AS76: =$H76*$K76*'Operating Model'!AS$3 -> 0 | AT76: =$H76*$K76*'Operating Model'!AT$3 -> 0 | AU76: =$H76*$K76*'Operating Model'!AU$3 -> 0 | AV76: =$H76*$K76*'Operating Model'!AV$3 -> 0 | AW76: =$H76*$K76*'Operating Model'!AW$3 -> 0 | AX76: =$H76*$K76*'Operating Model'!AX$3 -> 0 | AY76: =$H76*$K76*'Operating Model'!AY$3 -> 0 | AZ76: =$H76*$K76*'Operating Model'!AZ$3 -> 0 | BA76: =$H76*$K76*'Operating Model'!BA$3 -> 0 | BB76: =$H76*$K76*'Operating Model'!BB$3 -> 0 | BC76: =$H76*$K76*'Operating Model'!BC$3 -> 0 | BD76: =$H76*$K76*'Operating Model'!BD$3 -> 0 | BE76: =$H76*$K76*'Operating Model'!BE$3 -> 0 | BF76: =$H76*$K76*'Operating Model'!BF$3 -> 0 | BG76: =$H76*$K76*'Operating Model'!BG$3 -> 0 | BH76: =$H76*$K76*'Operating Model'!BH$3 -> 0 | BI76: =$H76*$K76*'Operating Model'!BI$3 -> 0 | BJ76: =$H76*$K76*'Operating Model'!BJ$3 -> 0 | BK76: =$H76*$K76*'Operating Model'!BK$3 -> 0 | BL76: =$H76*$K76*'Operating Model'!BL$3 -> 0 | BM76: =$H76*$K76*'Operating Model'!BM$3 -> 0 | BN76: =$H76*$K76*'Operating Model'!BN$3 -> 0 | BO76: =$H76*$K76*'Operating Model'!BO$3 -> 0 | BP76: =$H76*$K76*'Operating Model'!BP$3 -> 0 | BQ76: =$H76*$K76*'Operating Model'!BQ$3 -> 0 | BR76: =$H76*$K76*'Operating Model'!BR$3 -> 0 | BS76: =$H76*$K76*'Operating Model'!BS$3 -> 0
E77: Total | G77: USD | H77: =SUM(H73:H76) -> 1800000 | N77: =SUM(N73:N76) -> 150000 | O77: 150000 | P77: 150000 | Q77: 150000 | R77: 150000 | S77: 150000 | T77: 150000 | U77: 150000 | V77: 150000 | W77: 150000 | X77: 150000 | Y77: 150000 | Z77: 0 | AA77: 0 | AB77: 0 | AC77: 0 | AD77: 0 | AE77: 0 | AF77: 0 | AG77: 0 | AH77: 0 | AI77: 0 | AJ77: 0 | AK77: 0 | AL77: 0 | AM77: 0 | AN77: 0 | AO77: 0 | AP77: 0 | AQ77: 0 | AR77: 0 | AS77: 0 | AT77: =SUM(AT73:AT76) -> 0 | AU77: 0 | AV77: 0 | AW77: 0 | AX77: 0 | AY77: 0 | AZ77: 0 | BA77: 0 | BB77: 0 | BC77: 0 | BD77: 0 | BE77: 0 | BF77: 0 | BG77: 0 | BH77: 0 | BI77: 0 | BJ77: 0 | BK77: 0 | BL77: 0 | BM77: 0 | BN77: 0 | BO77: 0 | BP77: 0 | BQ77: 0 | BR77: 0 | BS77: 0
C79: CNG Station
D80: Compressor | G80: USD | H80: =Inputs!H280 -> 150000 | J80: 15 | K80: =1/'Operating Model'!$H$3 -> 0.08333333333 | N80: =$H80*$K80*'Operating Model'!N$3 -> 12500 | O80: =$H80*$K80*'Operating Model'!O$3 -> 12500 | P80: =$H80*$K80*'Operating Model'!P$3 -> 12500 | Q80: =$H80*$K80*'Operating Model'!Q$3 -> 12500 | R80: =$H80*$K80*'Operating Model'!R$3 -> 12500 | S80: =$H80*$K80*'Operating Model'!S$3 -> 12500 | T80: =$H80*$K80*'Operating Model'!T$3 -> 12500 | U80: =$H80*$K80*'Operating Model'!U$3 -> 12500 | V80: =$H80*$K80*'Operating Model'!V$3 -> 12500 | W80: =$H80*$K80*'Operating Model'!W$3 -> 12500 | X80: =$H80*$K80*'Operating Model'!X$3 -> 12500 | Y80: =$H80*$K80*'Operating Model'!Y$3 -> 12500 | Z80: =$H80*$K80*'Operating Model'!Z$3 -> 0 | AA80: =$H80*$K80*'Operating Model'!AA$3 -> 0 | AB80: =$H80*$K80*'Operating Model'!AB$3 -> 0 | AC80: =$H80*$K80*'Operating Model'!AC$3 -> 0 | AD80: =$H80*$K80*'Operating Model'!AD$3 -> 0 | AE80: =$H80*$K80*'Operating Model'!AE$3 -> 0 | AF80: =$H80*$K80*'Operating Model'!AF$3 -> 0 | AG80: =$H80*$K80*'Operating Model'!AG$3 -> 0 | AH80: =$H80*$K80*'Operating Model'!AH$3 -> 0 | AI80: =$H80*$K80*'Operating Model'!AI$3 -> 0 | AJ80: =$H80*$K80*'Operating Model'!AJ$3 -> 0 | AK80: =$H80*$K80*'Operating Model'!AK$3 -> 0 | AL80: =$H80*$K80*'Operating Model'!AL$3 -> 0 | AM80: =$H80*$K80*'Operating Model'!AM$3 -> 0 | AN80: =$H80*$K80*'Operating Model'!AN$3 -> 0 | AO80: =$H80*$K80*'Operating Model'!AO$3 -> 0 | AP80: =$H80*$K80*'Operating Model'!AP$3 -> 0 | AQ80: =$H80*$K80*'Operating Model'!AQ$3 -> 0 | AR80: =$H80*$K80*'Operating Model'!AR$3 -> 0 | AS80: =$H80*$K80*'Operating Model'!AS$3 -> 0 | AT80: =$H80*$K80*'Operating Model'!AT$3 -> 0 | AU80: =$H80*$K80*'Operating Model'!AU$3 -> 0 | AV80: =$H80*$K80*'Operating Model'!AV$3 -> 0 | AW80: =$H80*$K80*'Operating Model'!AW$3 -> 0 | AX80: =$H80*$K80*'Operating Model'!AX$3 -> 0 | AY80: =$H80*$K80*'Operating Model'!AY$3 -> 0 | AZ80: =$H80*$K80*'Operating Model'!AZ$3 -> 0 | BA80: =$H80*$K80*'Operating Model'!BA$3 -> 0 | BB80: =$H80*$K80*'Operating Model'!BB$3 -> 0 | BC80: =$H80*$K80*'Operating Model'!BC$3 -> 0 | BD80: =$H80*$K80*'Operating Model'!BD$3 -> 0 | BE80: =$H80*$K80*'Operating Model'!BE$3 -> 0 | BF80: =$H80*$K80*'Operating Model'!BF$3 -> 0 | BG80: =$H80*$K80*'Operating Model'!BG$3 -> 0 | BH80: =$H80*$K80*'Operating Model'!BH$3 -> 0 | BI80: =$H80*$K80*'Operating Model'!BI$3 -> 0 | BJ80: =$H80*$K80*'Operating Model'!BJ$3 -> 0 | BK80: =$H80*$K80*'Operating Model'!BK$3 -> 0 | BL80: =$H80*$K80*'Operating Model'!BL$3 -> 0 | BM80: =$H80*$K80*'Operating Model'!BM$3 -> 0 | BN80: =$H80*$K80*'Operating Model'!BN$3 -> 0 | BO80: =$H80*$K80*'Operating Model'!BO$3 -> 0 | BP80: =$H80*$K80*'Operating Model'!BP$3 -> 0 | BQ80: =$H80*$K80*'Operating Model'!BQ$3 -> 0 | BR80: =$H80*$K80*'Operating Model'!BR$3 -> 0 | BS80: =$H80*$K80*'Operating Model'!BS$3 -> 0
D81: Storage Skid | G81: USD | H81: =Inputs!H281 -> 150000 | J81: 20 | K81: =1/'Operating Model'!$H$3 -> 0.08333333333 | N81: =$H81*$K81*'Operating Model'!N$3 -> 12500 | O81: =$H81*$K81*'Operating Model'!O$3 -> 12500 | P81: =$H81*$K81*'Operating Model'!P$3 -> 12500 | Q81: =$H81*$K81*'Operating Model'!Q$3 -> 12500 | R81: =$H81*$K81*'Operating Model'!R$3 -> 12500 | S81: =$H81*$K81*'Operating Model'!S$3 -> 12500 | T81: =$H81*$K81*'Operating Model'!T$3 -> 12500 | U81: =$H81*$K81*'Operating Model'!U$3 -> 12500 | V81: =$H81*$K81*'Operating Model'!V$3 -> 12500 | W81: =$H81*$K81*'Operating Model'!W$3 -> 12500 | X81: =$H81*$K81*'Operating Model'!X$3 -> 12500 | Y81: =$H81*$K81*'Operating Model'!Y$3 -> 12500 | Z81: =$H81*$K81*'Operating Model'!Z$3 -> 0 | AA81: =$H81*$K81*'Operating Model'!AA$3 -> 0 | AB81: =$H81*$K81*'Operating Model'!AB$3 -> 0 | AC81: =$H81*$K81*'Operating Model'!AC$3 -> 0 | AD81: =$H81*$K81*'Operating Model'!AD$3 -> 0 | AE81: =$H81*$K81*'Operating Model'!AE$3 -> 0 | AF81: =$H81*$K81*'Operating Model'!AF$3 -> 0 | AG81: =$H81*$K81*'Operating Model'!AG$3 -> 0 | AH81: =$H81*$K81*'Operating Model'!AH$3 -> 0 | AI81: =$H81*$K81*'Operating Model'!AI$3 -> 0 | AJ81: =$H81*$K81*'Operating Model'!AJ$3 -> 0 | AK81: =$H81*$K81*'Operating Model'!AK$3 -> 0 | AL81: =$H81*$K81*'Operating Model'!AL$3 -> 0 | AM81: =$H81*$K81*'Operating Model'!AM$3 -> 0 | AN81: =$H81*$K81*'Operating Model'!AN$3 -> 0 | AO81: =$H81*$K81*'Operating Model'!AO$3 -> 0 | AP81: =$H81*$K81*'Operating Model'!AP$3 -> 0 | AQ81: =$H81*$K81*'Operating Model'!AQ$3 -> 0 | AR81: =$H81*$K81*'Operating Model'!AR$3 -> 0 | AS81: =$H81*$K81*'Operating Model'!AS$3 -> 0 | AT81: =$H81*$K81*'Operating Model'!AT$3 -> 0 | AU81: =$H81*$K81*'Operating Model'!AU$3 -> 0 | AV81: =$H81*$K81*'Operating Model'!AV$3 -> 0 | AW81: =$H81*$K81*'Operating Model'!AW$3 -> 0 | AX81: =$H81*$K81*'Operating Model'!AX$3 -> 0 | AY81: =$H81*$K81*'Operating Model'!AY$3 -> 0 | AZ81: =$H81*$K81*'Operating Model'!AZ$3 -> 0 | BA81: =$H81*$K81*'Operating Model'!BA$3 -> 0 | BB81: =$H81*$K81*'Operating Model'!BB$3 -> 0 | BC81: =$H81*$K81*'Operating Model'!BC$3 -> 0 | BD81: =$H81*$K81*'Operating Model'!BD$3 -> 0 | BE81: =$H81*$K81*'Operating Model'!BE$3 -> 0 | BF81: =$H81*$K81*'Operating Model'!BF$3 -> 0 | BG81: =$H81*$K81*'Operating Model'!BG$3 -> 0 | BH81: =$H81*$K81*'Operating Model'!BH$3 -> 0 | BI81: =$H81*$K81*'Operating Model'!BI$3 -> 0 | BJ81: =$H81*$K81*'Operating Model'!BJ$3 -> 0 | BK81: =$H81*$K81*'Operating Model'!BK$3 -> 0 | BL81: =$H81*$K81*'Operating Model'!BL$3 -> 0 | BM81: =$H81*$K81*'Operating Model'!BM$3 -> 0 | BN81: =$H81*$K81*'Operating Model'!BN$3 -> 0 | BO81: =$H81*$K81*'Operating Model'!BO$3 -> 0 | BP81: =$H81*$K81*'Operating Model'!BP$3 -> 0 | BQ81: =$H81*$K81*'Operating Model'!BQ$3 -> 0 | BR81: =$H81*$K81*'Operating Model'!BR$3 -> 0 | BS81: =$H81*$K81*'Operating Model'!BS$3 -> 0
D82: Filing Station | G82: USD | H82: =Inputs!H282 -> 250000 | J82: 15 | K82: =1/'Operating Model'!$H$3 -> 0.08333333333 | N82: =$H82*$K82*'Operating Model'!N$3 -> 20833.33333 | O82: =$H82*$K82*'Operating Model'!O$3 -> 20833.33333 | P82: =$H82*$K82*'Operating Model'!P$3 -> 20833.33333 | Q82: =$H82*$K82*'Operating Model'!Q$3 -> 20833.33333 | R82: =$H82*$K82*'Operating Model'!R$3 -> 20833.33333 | S82: =$H82*$K82*'Operating Model'!S$3 -> 20833.33333 | T82: =$H82*$K82*'Operating Model'!T$3 -> 20833.33333 | U82: =$H82*$K82*'Operating Model'!U$3 -> 20833.33333 | V82: =$H82*$K82*'Operating Model'!V$3 -> 20833.33333 | W82: =$H82*$K82*'Operating Model'!W$3 -> 20833.33333 | X82: =$H82*$K82*'Operating Model'!X$3 -> 20833.33333 | Y82: =$H82*$K82*'Operating Model'!Y$3 -> 20833.33333 | Z82: =$H82*$K82*'Operating Model'!Z$3 -> 0 | AA82: =$H82*$K82*'Operating Model'!AA$3 -> 0 | AB82: =$H82*$K82*'Operating Model'!AB$3 -> 0 | AC82: =$H82*$K82*'Operating Model'!AC$3 -> 0 | AD82: =$H82*$K82*'Operating Model'!AD$3 -> 0 | AE82: =$H82*$K82*'Operating Model'!AE$3 -> 0 | AF82: =$H82*$K82*'Operating Model'!AF$3 -> 0 | AG82: =$H82*$K82*'Operating Model'!AG$3 -> 0 | AH82: =$H82*$K82*'Operating Model'!AH$3 -> 0 | AI82: =$H82*$K82*'Operating Model'!AI$3 -> 0 | AJ82: =$H82*$K82*'Operating Model'!AJ$3 -> 0 | AK82: =$H82*$K82*'Operating Model'!AK$3 -> 0 | AL82: =$H82*$K82*'Operating Model'!AL$3 -> 0 | AM82: =$H82*$K82*'Operating Model'!AM$3 -> 0 | AN82: =$H82*$K82*'Operating Model'!AN$3 -> 0 | AO82: =$H82*$K82*'Operating Model'!AO$3 -> 0 | AP82: =$H82*$K82*'Operating Model'!AP$3 -> 0 | AQ82: =$H82*$K82*'Operating Model'!AQ$3 -> 0 | AR82: =$H82*$K82*'Operating Model'!AR$3 -> 0 | AS82: =$H82*$K82*'Operating Model'!AS$3 -> 0 | AT82: =$H82*$K82*'Operating Model'!AT$3 -> 0 | AU82: =$H82*$K82*'Operating Model'!AU$3 -> 0 | AV82: =$H82*$K82*'Operating Model'!AV$3 -> 0 | AW82: =$H82*$K82*'Operating Model'!AW$3 -> 0 | AX82: =$H82*$K82*'Operating Model'!AX$3 -> 0 | AY82: =$H82*$K82*'Operating Model'!AY$3 -> 0 | AZ82: =$H82*$K82*'Operating Model'!AZ$3 -> 0 | BA82: =$H82*$K82*'Operating Model'!BA$3 -> 0 | BB82: =$H82*$K82*'Operating Model'!BB$3 -> 0 | BC82: =$H82*$K82*'Operating Model'!BC$3 -> 0 | BD82: =$H82*$K82*'Operating Model'!BD$3 -> 0 | BE82: =$H82*$K82*'Operating Model'!BE$3 -> 0 | BF82: =$H82*$K82*'Operating Model'!BF$3 -> 0 | BG82: =$H82*$K82*'Operating Model'!BG$3 -> 0 | BH82: =$H82*$K82*'Operating Model'!BH$3 -> 0 | BI82: =$H82*$K82*'Operating Model'!BI$3 -> 0 | BJ82: =$H82*$K82*'Operating Model'!BJ$3 -> 0 | BK82: =$H82*$K82*'Operating Model'!BK$3 -> 0 | BL82: =$H82*$K82*'Operating Model'!BL$3 -> 0 | BM82: =$H82*$K82*'Operating Model'!BM$3 -> 0 | BN82: =$H82*$K82*'Operating Model'!BN$3 -> 0 | BO82: =$H82*$K82*'Operating Model'!BO$3 -> 0 | BP82: =$H82*$K82*'Operating Model'!BP$3 -> 0 | BQ82: =$H82*$K82*'Operating Model'!BQ$3 -> 0 | BR82: =$H82*$K82*'Operating Model'!BR$3 -> 0 | BS82: =$H82*$K82*'Operating Model'!BS$3 -> 0
E83: Total | G83: USD | H83: =SUM(H80:H82) -> 550000 | N83: =SUM(N80:N82) -> 45833.33333 | O83: 45833.33333 | P83: 45833.33333 | Q83: 45833.33333 | R83: 45833.33333 | S83: 45833.33333 | T83: 45833.33333 | U83: 45833.33333 | V83: 45833.33333 | W83: 45833.33333 | X83: 45833.33333 | Y83: 45833.33333 | Z83: 0 | AA83: 0 | AB83: 0 | AC83: 0 | AD83: 0 | AE83: 0 | AF83: 0 | AG83: 0 | AH83: 0 | AI83: 0 | AJ83: 0 | AK83: 0 | AL83: 0 | AM83: 0 | AN83: 0 | AO83: 0 | AP83: 0 | AQ83: 0 | AR83: 0 | AS83: 0 | AT83: =SUM(AT80:AT82) -> 0 | AU83: 0 | AV83: 0 | AW83: 0 | AX83: 0 | AY83: 0 | AZ83: 0 | BA83: 0 | BB83: 0 | BC83: 0 | BD83: 0 | BE83: 0 | BF83: 0 | BG83: 0 | BH83: 0 | BI83: 0 | BJ83: 0 | BK83: 0 | BL83: 0 | BM83: 0 | BN83: 0 | BO83: 0 | BP83: 0 | BQ83: 0 | BR83: 0 | BS83: 0
D85: Truck Conversion | G85: USD | H85: =Inputs!F283 -> 550000 | K85: =K81 -> 0.08333333333 | N85: =$H85*$K85*'Operating Model'!N$3 -> 45833.33333 | O85: =$H85*$K85*'Operating Model'!O$3 -> 45833.33333 | P85: =$H85*$K85*'Operating Model'!P$3 -> 45833.33333 | Q85: =$H85*$K85*'Operating Model'!Q$3 -> 45833.33333 | R85: =$H85*$K85*'Operating Model'!R$3 -> 45833.33333 | S85: =$H85*$K85*'Operating Model'!S$3 -> 45833.33333 | T85: =$H85*$K85*'Operating Model'!T$3 -> 45833.33333 | U85: =$H85*$K85*'Operating Model'!U$3 -> 45833.33333 | V85: =$H85*$K85*'Operating Model'!V$3 -> 45833.33333 | W85: =$H85*$K85*'Operating Model'!W$3 -> 45833.33333 | X85: =$H85*$K85*'Operating Model'!X$3 -> 45833.33333 | Y85: =$H85*$K85*'Operating Model'!Y$3 -> 45833.33333 | Z85: =$H85*$K85*'Operating Model'!Z$3 -> 0 | AA85: =$H85*$K85*'Operating Model'!AA$3 -> 0 | AB85: =$H85*$K85*'Operating Model'!AB$3 -> 0 | AC85: =$H85*$K85*'Operating Model'!AC$3 -> 0 | AD85: =$H85*$K85*'Operating Model'!AD$3 -> 0 | AE85: =$H85*$K85*'Operating Model'!AE$3 -> 0 | AF85: =$H85*$K85*'Operating Model'!AF$3 -> 0 | AG85: =$H85*$K85*'Operating Model'!AG$3 -> 0 | AH85: =$H85*$K85*'Operating Model'!AH$3 -> 0 | AI85: =$H85*$K85*'Operating Model'!AI$3 -> 0 | AJ85: =$H85*$K85*'Operating Model'!AJ$3 -> 0 | AK85: =$H85*$K85*'Operating Model'!AK$3 -> 0 | AL85: =$H85*$K85*'Operating Model'!AL$3 -> 0 | AM85: =$H85*$K85*'Operating Model'!AM$3 -> 0 | AN85: =$H85*$K85*'Operating Model'!AN$3 -> 0 | AO85: =$H85*$K85*'Operating Model'!AO$3 -> 0 | AP85: =$H85*$K85*'Operating Model'!AP$3 -> 0 | AQ85: =$H85*$K85*'Operating Model'!AQ$3 -> 0 | AR85: =$H85*$K85*'Operating Model'!AR$3 -> 0 | AS85: =$H85*$K85*'Operating Model'!AS$3 -> 0 | AT85: =$H85*$K85*'Operating Model'!AT$3 -> 0 | AU85: =$H85*$K85*'Operating Model'!AU$3 -> 0 | AV85: =$H85*$K85*'Operating Model'!AV$3 -> 0 | AW85: =$H85*$K85*'Operating Model'!AW$3 -> 0 | AX85: =$H85*$K85*'Operating Model'!AX$3 -> 0 | AY85: =$H85*$K85*'Operating Model'!AY$3 -> 0 | AZ85: =$H85*$K85*'Operating Model'!AZ$3 -> 0 | BA85: =$H85*$K85*'Operating Model'!BA$3 -> 0 | BB85: =$H85*$K85*'Operating Model'!BB$3 -> 0 | BC85: =$H85*$K85*'Operating Model'!BC$3 -> 0 | BD85: =$H85*$K85*'Operating Model'!BD$3 -> 0 | BE85: =$H85*$K85*'Operating Model'!BE$3 -> 0 | BF85: =$H85*$K85*'Operating Model'!BF$3 -> 0 | BG85: =$H85*$K85*'Operating Model'!BG$3 -> 0 | BH85: =$H85*$K85*'Operating Model'!BH$3 -> 0 | BI85: =$H85*$K85*'Operating Model'!BI$3 -> 0 | BJ85: =$H85*$K85*'Operating Model'!BJ$3 -> 0 | BK85: =$H85*$K85*'Operating Model'!BK$3 -> 0 | BL85: =$H85*$K85*'Operating Model'!BL$3 -> 0 | BM85: =$H85*$K85*'Operating Model'!BM$3 -> 0 | BN85: =$H85*$K85*'Operating Model'!BN$3 -> 0 | BO85: =$H85*$K85*'Operating Model'!BO$3 -> 0 | BP85: =$H85*$K85*'Operating Model'!BP$3 -> 0 | BQ85: =$H85*$K85*'Operating Model'!BQ$3 -> 0 | BR85: =$H85*$K85*'Operating Model'!BR$3 -> 0 | BS85: =$H85*$K85*'Operating Model'!BS$3 -> 0
D87: Electricity Plant | H87: =Inputs!F295 -> 550000 | J87: =Inputs!F176 -> TRUE | K87: =K85 -> 0.08333333333 | N87: =$H$87*$J$87*$K$87*'Operating Model'!N3 -> 45833.33333 | O87: =$H$87*$J$87*$K$87*'Operating Model'!O3 -> 45833.33333 | P87: =$H$87*$J$87*$K$87*'Operating Model'!P3 -> 45833.33333 | Q87: =$H$87*$J$87*$K$87*'Operating Model'!Q3 -> 45833.33333 | R87: =$H$87*$J$87*$K$87*'Operating Model'!R3 -> 45833.33333 | S87: =$H$87*$J$87*$K$87*'Operating Model'!S3 -> 45833.33333 | T87: =$H$87*$J$87*$K$87*'Operating Model'!T3 -> 45833.33333 | U87: =$H$87*$J$87*$K$87*'Operating Model'!U3 -> 45833.33333 | V87: =$H$87*$J$87*$K$87*'Operating Model'!V3 -> 45833.33333 | W87: =$H$87*$J$87*$K$87*'Operating Model'!W3 -> 45833.33333 | X87: =$H$87*$J$87*$K$87*'Operating Model'!X3 -> 45833.33333 | Y87: =$H$87*$J$87*$K$87*'Operating Model'!Y3 -> 45833.33333 | Z87: =$H$87*$J$87*$K$87*'Operating Model'!Z3 -> 0 | AA87: =$H$87*$J$87*$K$87*'Operating Model'!AA3 -> 0 | AB87: =$H$87*$J$87*$K$87*'Operating Model'!AB3 -> 0 | AC87: =$H$87*$J$87*$K$87*'Operating Model'!AC3 -> 0 | AD87: =$H$87*$J$87*$K$87*'Operating Model'!AD3 -> 0 | AE87: =$H$87*$J$87*$K$87*'Operating Model'!AE3 -> 0 | AF87: =$H$87*$J$87*$K$87*'Operating Model'!AF3 -> 0 | AG87: =$H$87*$J$87*$K$87*'Operating Model'!AG3 -> 0 | AH87: =$H$87*$J$87*$K$87*'Operating Model'!AH3 -> 0 | AI87: =$H$87*$J$87*$K$87*'Operating Model'!AI3 -> 0 | AJ87: =$H$87*$J$87*$K$87*'Operating Model'!AJ3 -> 0 | AK87: =$H$87*$J$87*$K$87*'Operating Model'!AK3 -> 0 | AL87: =$H$87*$J$87*$K$87*'Operating Model'!AL3 -> 0 | AM87: =$H$87*$J$87*$K$87*'Operating Model'!AM3 -> 0 | AN87: =$H$87*$J$87*$K$87*'Operating Model'!AN3 -> 0 | AO87: =$H$87*$J$87*$K$87*'Operating Model'!AO3 -> 0 | AP87: =$H$87*$J$87*$K$87*'Operating Model'!AP3 -> 0 | AQ87: =$H$87*$J$87*$K$87*'Operating Model'!AQ3 -> 0 | AR87: =$H$87*$J$87*$K$87*'Operating Model'!AR3 -> 0 | AS87: =$H$87*$J$87*$K$87*'Operating Model'!AS3 -> 0 | AT87: =$H$87*$J$87*$K$87*'Operating Model'!AT3 -> 0 | AU87: =$H$87*$J$87*$K$87*'Operating Model'!AU3 -> 0 | AV87: =$H$87*$J$87*$K$87*'Operating Model'!AV3 -> 0 | AW87: =$H$87*$J$87*$K$87*'Operating Model'!AW3 -> 0 | AX87: =$H$87*$J$87*$K$87*'Operating Model'!AX3 -> 0 | AY87: =$H$87*$J$87*$K$87*'Operating Model'!AY3 -> 0 | AZ87: =$H$87*$J$87*$K$87*'Operating Model'!AZ3 -> 0 | BA87: =$H$87*$J$87*$K$87*'Operating Model'!BA3 -> 0 | BB87: =$H$87*$J$87*$K$87*'Operating Model'!BB3 -> 0 | BC87: =$H$87*$J$87*$K$87*'Operating Model'!BC3 -> 0 | BD87: =$H$87*$J$87*$K$87*'Operating Model'!BD3 -> 0 | BE87: =$H$87*$J$87*$K$87*'Operating Model'!BE3 -> 0 | BF87: =$H$87*$J$87*$K$87*'Operating Model'!BF3 -> 0 | BG87: =$H$87*$J$87*$K$87*'Operating Model'!BG3 -> 0 | BH87: =$H$87*$J$87*$K$87*'Operating Model'!BH3 -> 0 | BI87: =$H$87*$J$87*$K$87*'Operating Model'!BI3 -> 0 | BJ87: =$H$87*$J$87*$K$87*'Operating Model'!BJ3 -> 0 | BK87: =$H$87*$J$87*$K$87*'Operating Model'!BK3 -> 0 | BL87: =$H$87*$J$87*$K$87*'Operating Model'!BL3 -> 0 | BM87: =$H$87*$J$87*$K$87*'Operating Model'!BM3 -> 0 | BN87: =$H$87*$J$87*$K$87*'Operating Model'!BN3 -> 0 | BO87: =$H$87*$J$87*$K$87*'Operating Model'!BO3 -> 0 | BP87: =$H$87*$J$87*$K$87*'Operating Model'!BP3 -> 0 | BQ87: =$H$87*$J$87*$K$87*'Operating Model'!BQ3 -> 0 | BR87: =$H$87*$J$87*$K$87*'Operating Model'!BR3 -> 0 | BS87: =$H$87*$J$87*$K$87*'Operating Model'!BS3 -> 0
E89: Grand Total | H89: =H70+H77+H83+H85+H87 -> 4950000 | K89: =SUM(N89:BS89) -> 4950000 | N89: =N83+N70+N77+N85+N87 -> 412500 | O89: 412500 | P89: 412500 | Q89: 412500 | R89: 412500 | S89: 412500 | T89: 412500 | U89: 412500 | V89: 412500 | W89: 412500 | X89: 412500 | Y89: 412500 | Z89: 0 | AA89: 0 | AB89: 0 | AC89: 0 | AD89: 0 | AE89: 0 | AF89: 0 | AG89: 0 | AH89: 0 | AI89: 0 | AJ89: 0 | AK89: 0 | AL89: 0 | AM89: 0 | AN89: 0 | AO89: 0 | AP89: 0 | AQ89: 0 | AR89: 0 | AS89: 0 | AT89: =AT83+AT70+AT77+AT85+AT87 -> 0 | AU89: 0 | AV89: 0 | AW89: 0 | AX89: 0 | AY89: 0 | AZ89: 0 | BA89: 0 | BB89: 0 | BC89: 0 | BD89: 0 | BE89: 0 | BF89: 0 | BG89: 0 | BH89: 0 | BI89: 0 | BJ89: 0 | BK89: 0 | BL89: 0 | BM89: 0 | BN89: 0 | BO89: 0 | BP89: 0 | BQ89: 0 | BR89: 0 | BS89: 0
B91: Major Capital Expenditures after Operation
D93: Operating Year | G93: Year | N93: =M93+'Operating Model'!N8 -> 0 | O93: =N93+'Operating Model'!O8 -> 0 | P93: =O93+'Operating Model'!P8 -> 0 | Q93: =P93+'Operating Model'!Q8 -> 0 | R93: =Q93+'Operating Model'!R8 -> 0 | S93: =R93+'Operating Model'!S8 -> 0 | T93: =S93+'Operating Model'!T8 -> 0 | U93: =T93+'Operating Model'!U8 -> 0 | V93: =U93+'Operating Model'!V8 -> 0 | W93: =V93+'Operating Model'!W8 -> 0 | X93: =W93+'Operating Model'!X8 -> 0 | Y93: =X93+'Operating Model'!Y8 -> 0 | Z93: =Y93+'Operating Model'!Z8 -> 1 | AA93: =Z93+'Operating Model'!AA8 -> 2 | AB93: =AA93+'Operating Model'!AB8 -> 3 | AC93: =AB93+'Operating Model'!AC8 -> 4 | AD93: =AC93+'Operating Model'!AD8 -> 5 | AE93: =AD93+'Operating Model'!AE8 -> 6 | AF93: =AE93+'Operating Model'!AF8 -> 7 | AG93: =AF93+'Operating Model'!AG8 -> 8 | AH93: =AG93+'Operating Model'!AH8 -> 9 | AI93: =AH93+'Operating Model'!AI8 -> 10 | AJ93: =AI93+'Operating Model'!AJ8 -> 11 | AK93: =AJ93+'Operating Model'!AK8 -> 12 | AL93: =AK93+'Operating Model'!AL8 -> 13 | AM93: =AL93+'Operating Model'!AM8 -> 14 | AN93: =AM93+'Operating Model'!AN8 -> 15 | AO93: =AN93+'Operating Model'!AO8 -> 16 | AP93: =AO93+'Operating Model'!AP8 -> 17 | AQ93: =AP93+'Operating Model'!AQ8 -> 18 | AR93: =AQ93+'Operating Model'!AR8 -> 19 | AS93: =AR93+'Operating Model'!AS8 -> 20 | AT93: =AS93+'Operating Model'!AT8 -> 21 | AU93: =AT93+'Operating Model'!AU8 -> 22 | AV93: =AU93+'Operating Model'!AV8 -> 23 | AW93: =AV93+'Operating Model'!AW8 -> 24 | AX93: =AW93+'Operating Model'!AX8 -> 25 | AY93: =AX93+'Operating Model'!AY8 -> 26 | AZ93: =AY93+'Operating Model'!AZ8 -> 27 | BA93: =AZ93+'Operating Model'!BA8 -> 28 | BB93: =BA93+'Operating Model'!BB8 -> 29 | BC93: =BB93+'Operating Model'!BC8 -> 30 | BD93: =BC93+'Operating Model'!BD8 -> 30 | BE93: =BD93+'Operating Model'!BE8 -> 30 | BF93: =BE93+'Operating Model'!BF8 -> 30 | BG93: =BF93+'Operating Model'!BG8 -> 30 | BH93: =BG93+'Operating Model'!BH8 -> 30 | BI93: =BH93+'Operating Model'!BI8 -> 30 | BJ93: =BI93+'Operating Model'!BJ8 -> 30 | BK93: =BJ93+'Operating Model'!BK8 -> 30 | BL93: =BK93+'Operating Model'!BL8 -> 30 | BM93: =BL93+'Operating Model'!BM8 -> 30 | BN93: =BM93+'Operating Model'!BN8 -> 30 | BO93: =BN93+'Operating Model'!BO8 -> 30 | BP93: =BO93+'Operating Model'!BP8 -> 30 | BQ93: =BP93+'Operating Model'!BQ8 -> 30 | BR93: =BQ93+'Operating Model'!BR8 -> 30 | BS93: =BR93+'Operating Model'!BS8 -> 30
D94: =Inputs!D310 -> Gasometrical Cover | G94: Flag | H94: =Inputs!E305 -> 20 | N94: =($H$94=N93)*1 -> 0 | O94: 0 | P94: 0 | Q94: 0 | R94: 0 | S94: 0 | T94: 0 | U94: 0 | V94: 0 | W94: 0 | X94: 0 | Y94: 0 | Z94: 0 | AA94: 0 | AB94: 0 | AC94: 0 | AD94: 0 | AE94: 0 | AF94: 0 | AG94: 0 | AH94: 0 | AI94: 0 | AJ94: 0 | AK94: 0 | AL94: 0 | AM94: 0 | AN94: 0 | AO94: 0 | AP94: 0 | AQ94: 0 | AR94: 0 | AS94: 1 | AT94: =($H$94=AT93)*1 -> 0 | AU94: 0 | AV94: 0 | AW94: 0 | AX94: 0 | AY94: 0 | AZ94: 0 | BA94: 0 | BB94: 0 | BC94: 0 | BD94: 0 | BE94: 0 | BF94: 0 | BG94: 0 | BH94: 0 | BI94: 0 | BJ94: 0 | BK94: 0 | BL94: 0 | BM94: 0 | BN94: 0 | BO94: 0 | BP94: 0 | BQ94: 0 | BR94: 0 | BS94: 0
D95: =D94 -> Gasometrical Cover | G95: Replacement Cost | H95: =Inputs!F310 -> 200000 | K95: =SUM(N95:BS95) -> 200000 | N95: =N94*$H$95 -> 0 | O95: 0 | P95: 0 | Q95: 0 | R95: 0 | S95: 0 | T95: 0 | U95: 0 | V95: 0 | W95: 0 | X95: 0 | Y95: 0 | Z95: 0 | AA95: 0 | AB95: 0 | AC95: 0 | AD95: 0 | AE95: 0 | AF95: 0 | AG95: 0 | AH95: 0 | AI95: 0 | AJ95: 0 | AK95: 0 | AL95: 0 | AM95: 0 | AN95: 0 | AO95: 0 | AP95: 0 | AQ95: 0 | AR95: 0 | AS95: 200000 | AT95: =AT94*$H$95 -> 0 | AU95: 0 | AV95: 0 | AW95: 0 | AX95: 0 | AY95: 0 | AZ95: 0 | BA95: 0 | BB95: 0 | BC95: 0 | BD95: 0 | BE95: 0 | BF95: 0 | BG95: 0 | BH95: 0 | BI95: 0 | BJ95: 0 | BK95: 0 | BL95: 0 | BM95: 0 | BN95: 0 | BO95: 0 | BP95: 0 | BQ95: 0 | BR95: 0 | BS95: 0
D97: =Inputs!D306 -> Compressor | G97: Flag | H97: =Inputs!E305 -> 20 | N97: =($H$97=N93)*1 -> 0 | O97: 0 | P97: 0 | Q97: 0 | R97: 0 | S97: 0 | T97: 0 | U97: 0 | V97: 0 | W97: 0 | X97: 0 | Y97: 0 | Z97: 0 | AA97: 0 | AB97: 0 | AC97: 0 | AD97: 0 | AE97: 0 | AF97: 0 | AG97: 0 | AH97: 0 | AI97: 0 | AJ97: 0 | AK97: 0 | AL97: 0 | AM97: 0 | AN97: 0 | AO97: 0 | AP97: 0 | AQ97: 0 | AR97: 0 | AS97: 1 | AT97: =($H$97=AT93)*1 -> 0 | AU97: 0 | AV97: 0 | AW97: 0 | AX97: 0 | AY97: 0 | AZ97: 0 | BA97: 0 | BB97: 0 | BC97: 0 | BD97: 0 | BE97: 0 | BF97: 0 | BG97: 0 | BH97: 0 | BI97: 0 | BJ97: 0 | BK97: 0 | BL97: 0 | BM97: 0 | BN97: 0 | BO97: 0 | BP97: 0 | BQ97: 0 | BR97: 0 | BS97: 0
D98: =Inputs!D306 -> Compressor | G98: Replacement Cost | H98: =Inputs!F312 -> 300000 | K98: =SUM(N98:BS98) -> 300000 | N98: =N97*$H$98 -> 0 | O98: 0 | P98: 0 | Q98: 0 | R98: 0 | S98: 0 | T98: 0 | U98: 0 | V98: 0 | W98: 0 | X98: 0 | Y98: 0 | Z98: 0 | AA98: 0 | AB98: 0 | AC98: 0 | AD98: 0 | AE98: 0 | AF98: 0 | AG98: 0 | AH98: 0 | AI98: 0 | AJ98: 0 | AK98: 0 | AL98: 0 | AM98: 0 | AN98: 0 | AO98: 0 | AP98: 0 | AQ98: 0 | AR98: 0 | AS98: 300000 | AT98: =AT97*$H$98 -> 0 | AU98: 0 | AV98: 0 | AW98: 0 | AX98: 0 | AY98: 0 | AZ98: 0 | BA98: 0 | BB98: 0 | BC98: 0 | BD98: 0 | BE98: 0 | BF98: 0 | BG98: 0 | BH98: 0 | BI98: 0 | BJ98: 0 | BK98: 0 | BL98: 0 | BM98: 0 | BN98: 0 | BO98: 0 | BP98: 0 | BQ98: 0 | BR98: 0 | BS98: 0
D100: =Inputs!$D$307 -> Membranes | G100: Flag | H100: =Inputs!E307 -> 15 | N100: =($H$100=N93)*1 -> 0 | O100: 0 | P100: 0 | Q100: 0 | R100: 0 | S100: 0 | T100: 0 | U100: 0 | V100: 0 | W100: 0 | X100: 0 | Y100: 0 | Z100: 0 | AA100: 0 | AB100: 0 | AC100: 0 | AD100: 0 | AE100: 0 | AF100: 0 | AG100: 0 | AH100: 0 | AI100: 0 | AJ100: 0 | AK100: 0 | AL100: 0 | AM100: 0 | AN100: 1 | AO100: 0 | AP100: 0 | AQ100: 0 | AR100: 0 | AS100: 0 | AT100: =($H$100=AT93)*1 -> 0 | AU100: 0 | AV100: 0 | AW100: 0 | AX100: 0 | AY100: 0 | AZ100: 0 | BA100: 0 | BB100: 0 | BC100: 0 | BD100: 0 | BE100: 0 | BF100: 0 | BG100: 0 | BH100: 0 | BI100: 0 | BJ100: 0 | BK100: 0 | BL100: 0 | BM100: 0 | BN100: 0 | BO100: 0 | BP100: 0 | BQ100: 0 | BR100: 0 | BS100: 0
D101: =Inputs!$D$307 -> Membranes | G101: Replacement Cost | H101: =Inputs!F313 -> 300000 | K101: =SUM(N101:BS101) -> 300000 | N101: =N100*$H$101 -> 0 | O101: 0 | P101: 0 | Q101: 0 | R101: 0 | S101: 0 | T101: 0 | U101: 0 | V101: 0 | W101: 0 | X101: 0 | Y101: 0 | Z101: 0 | AA101: 0 | AB101: 0 | AC101: 0 | AD101: 0 | AE101: 0 | AF101: 0 | AG101: 0 | AH101: 0 | AI101: 0 | AJ101: 0 | AK101: 0 | AL101: 0 | AM101: 0 | AN101: 300000 | AO101: 0 | AP101: 0 | AQ101: 0 | AR101: 0 | AS101: 0 | AT101: =AT100*$H$101 -> 0 | AU101: 0 | AV101: 0 | AW101: 0 | AX101: 0 | AY101: 0 | AZ101: 0 | BA101: 0 | BB101: 0 | BC101: 0 | BD101: 0 | BE101: 0 | BF101: 0 | BG101: 0 | BH101: 0 | BI101: 0 | BJ101: 0 | BK101: 0 | BL101: 0 | BM101: 0 | BN101: 0 | BO101: 0 | BP101: 0 | BQ101: 0 | BR101: 0 | BS101: 0
D103: CNG Pumping Station | G103: Flag | H103: =Inputs!E308 -> 15 | N103: =(N93=$H$103)*1 -> 0 | O103: 0 | P103: 0 | Q103: 0 | R103: 0 | S103: 0 | T103: 0 | U103: 0 | V103: 0 | W103: 0 | X103: 0 | Y103: 0 | Z103: 0 | AA103: 0 | AB103: 0 | AC103: 0 | AD103: 0 | AE103: 0 | AF103: 0 | AG103: 0 | AH103: 0 | AI103: 0 | AJ103: 0 | AK103: 0 | AL103: 0 | AM103: 0 | AN103: 1 | AO103: 0 | AP103: 0 | AQ103: 0 | AR103: 0 | AS103: 0 | AT103: =(AT93=$H$103)*1 -> 0 | AU103: 0 | AV103: 0 | AW103: 0 | AX103: 0 | AY103: 0 | AZ103: 0 | BA103: 0 | BB103: 0 | BC103: 0 | BD103: 0 | BE103: 0 | BF103: 0 | BG103: 0 | BH103: 0 | BI103: 0 | BJ103: 0 | BK103: 0 | BL103: 0 | BM103: 0 | BN103: 0 | BO103: 0 | BP103: 0 | BQ103: 0 | BR103: 0 | BS103: 0
D104: Less: Replacement Cost for CNG Pumping Station | G104: Replacement Cost | H104: =Inputs!F314 -> 250000 | K104: =SUM(N104:BS104) -> 250000 | N104: =N103*$H$104 -> 0 | O104: 0 | P104: 0 | Q104: 0 | R104: 0 | S104: 0 | T104: 0 | U104: 0 | V104: 0 | W104: 0 | X104: 0 | Y104: 0 | Z104: 0 | AA104: 0 | AB104: 0 | AC104: 0 | AD104: 0 | AE104: 0 | AF104: 0 | AG104: 0 | AH104: 0 | AI104: 0 | AJ104: 0 | AK104: 0 | AL104: 0 | AM104: 0 | AN104: 250000 | AO104: 0 | AP104: 0 | AQ104: 0 | AR104: 0 | AS104: 0 | AT104: =AT103*$H$104 -> 0 | AU104: 0 | AV104: 0 | AW104: 0 | AX104: 0 | AY104: 0 | AZ104: 0 | BA104: 0 | BB104: 0 | BC104: 0 | BD104: 0 | BE104: 0 | BF104: 0 | BG104: 0 | BH104: 0 | BI104: 0 | BJ104: 0 | BK104: 0 | BL104: 0 | BM104: 0 | BN104: 0 | BO104: 0 | BP104: 0 | BQ104: 0 | BR104: 0 | BS104: 0
B106: Revenues from Investor Perspective
D108: Unadjusted Annual Demand | G108: km/Year | K108: =MAX(N108:BS108) -> 4320000 | N108: ='Operating Model'!N20 -> 0 | O108: ='Operating Model'!O20 -> 0 | P108: ='Operating Model'!P20 -> 0 | Q108: ='Operating Model'!Q20 -> 0 | R108: ='Operating Model'!R20 -> 0 | S108: ='Operating Model'!S20 -> 0 | T108: ='Operating Model'!T20 -> 0 | U108: ='Operating Model'!U20 -> 0 | V108: ='Operating Model'!V20 -> 0 | W108: ='Operating Model'!W20 -> 0 | X108: ='Operating Model'!X20 -> 0 | Y108: ='Operating Model'!Y20 -> 0 | Z108: ='Operating Model'!Z20 -> 4320000 | AA108: ='Operating Model'!AA20 -> 4320000 | AB108: ='Operating Model'!AB20 -> 4320000 | AC108: ='Operating Model'!AC20 -> 4320000 | AD108: ='Operating Model'!AD20 -> 4320000 | AE108: ='Operating Model'!AE20 -> 4320000 | AF108: ='Operating Model'!AF20 -> 4320000 | AG108: ='Operating Model'!AG20 -> 4320000 | AH108: ='Operating Model'!AH20 -> 4320000 | AI108: ='Operating Model'!AI20 -> 4320000 | AJ108: ='Operating Model'!AJ20 -> 4320000 | AK108: ='Operating Model'!AK20 -> 4320000 | AL108: ='Operating Model'!AL20 -> 4320000 | AM108: ='Operating Model'!AM20 -> 4320000 | AN108: ='Operating Model'!AN20 -> 4320000 | AO108: ='Operating Model'!AO20 -> 4320000 | AP108: ='Operating Model'!AP20 -> 4320000 | AQ108: ='Operating Model'!AQ20 -> 4320000 | AR108: ='Operating Model'!AR20 -> 4320000 | AS108: ='Operating Model'!AS20 -> 4320000 | AT108: ='Operating Model'!AT20 -> 4320000 | AU108: ='Operating Model'!AU20 -> 4320000 | AV108: ='Operating Model'!AV20 -> 4320000 | AW108: ='Operating Model'!AW20 -> 4320000 | AX108: ='Operating Model'!AX20 -> 4320000 | AY108: ='Operating Model'!AY20 -> 4320000 | AZ108: ='Operating Model'!AZ20 -> 4320000 | BA108: ='Operating Model'!BA20 -> 4320000 | BB108: ='Operating Model'!BB20 -> 4320000 | BC108: ='Operating Model'!BC20 -> 4320000 | BD108: ='Operating Model'!BD20 -> 0 | BE108: ='Operating Model'!BE20 -> 0 | BF108: ='Operating Model'!BF20 -> 0 | BG108: ='Operating Model'!BG20 -> 0 | BH108: ='Operating Model'!BH20 -> 0 | BI108: ='Operating Model'!BI20 -> 0 | BJ108: ='Operating Model'!BJ20 -> 0 | BK108: ='Operating Model'!BK20 -> 0 | BL108: ='Operating Model'!BL20 -> 0 | BM108: ='Operating Model'!BM20 -> 0 | BN108: ='Operating Model'!BN20 -> 0 | BO108: ='Operating Model'!BO20 -> 0 | BP108: ='Operating Model'!BP20 -> 0 | BQ108: ='Operating Model'!BQ20 -> 0 | BR108: ='Operating Model'!BR20 -> 0 | BS108: ='Operating Model'!BS20 -> 0
D109: Demand Adjusted for Upgrader Capacity | G109: km/Year | K109: =MAX(N109:BS109) -> 4320000 | N109: =N222 -> 0 | O109: 0 | P109: 0 | Q109: 0 | R109: 0 | S109: 0 | T109: 0 | U109: 0 | V109: 0 | W109: 0 | X109: 0 | Y109: 0 | Z109: 4320000 | AA109: 4320000 | AB109: 4320000 | AC109: 4320000 | AD109: 4320000 | AE109: 4320000 | AF109: 4320000 | AG109: 4320000 | AH109: 4320000 | AI109: 4320000 | AJ109: 4320000 | AK109: 4320000 | AL109: 4320000 | AM109: 4320000 | AN109: 4320000 | AO109: 4320000 | AP109: 4320000 | AQ109: 4320000 | AR109: 4320000 | AS109: 4320000 | AT109: =AT222 -> 4320000 | AU109: 4320000 | AV109: 4320000 | AW109: 4320000 | AX109: 4320000 | AY109: 4320000 | AZ109: 4320000 | BA109: 4320000 | BB109: 4320000 | BC109: 4320000 | BD109: 0 | BE109: 0 | BF109: 0 | BG109: 0 | BH109: 0 | BI109: 0 | BJ109: 0 | BK109: 0 | BL109: 0 | BM109: 0 | BN109: 0 | BO109: 0 | BP109: 0 | BQ109: 0 | BR109: 0 | BS109: 0
H110: L/km
D111: Total CNG Sold in Equivalent km | G111: km | H111: ='Operating Model'!H26 -> 2.083333333 | K111: =MAX(N111:BS111) -> 4320000 | N111: =MIN(N109,N108) -> 0 | O111: 0 | P111: 0 | Q111: 0 | R111: 0 | S111: 0 | T111: 0 | U111: 0 | V111: 0 | W111: 0 | X111: 0 | Y111: 0 | Z111: 4320000 | AA111: 4320000 | AB111: 4320000 | AC111: 4320000 | AD111: 4320000 | AE111: 4320000 | AF111: 4320000 | AG111: 4320000 | AH111: 4320000 | AI111: 4320000 | AJ111: 4320000 | AK111: 4320000 | AL111: 4320000 | AM111: 4320000 | AN111: 4320000 | AO111: 4320000 | AP111: 4320000 | AQ111: 4320000 | AR111: 4320000 | AS111: 4320000 | AT111: =MIN(AT109,AT108) -> 4320000 | AU111: 4320000 | AV111: 4320000 | AW111: 4320000 | AX111: 4320000 | AY111: 4320000 | AZ111: 4320000 | BA111: 4320000 | BB111: 4320000 | BC111: 4320000 | BD111: 0 | BE111: 0 | BF111: 0 | BG111: 0 | BH111: 0 | BI111: 0 | BJ111: 0 | BK111: 0 | BL111: 0 | BM111: 0 | BN111: 0 | BO111: 0 | BP111: 0 | BQ111: 0 | BR111: 0 | BS111: 0
D112: Liters Required | G112: L/Year | H112: =Inputs!F229 -> 40 | K112: =MAX(N112:BS112) -> 172800000 | N112: =$H$112*N111 -> 0 | O112: 0 | P112: 0 | Q112: 0 | R112: 0 | S112: 0 | T112: 0 | U112: 0 | V112: 0 | W112: 0 | X112: 0 | Y112: 0 | Z112: 172800000 | AA112: 172800000 | AB112: 172800000 | AC112: 172800000 | AD112: 172800000 | AE112: 172800000 | AF112: 172800000 | AG112: 172800000 | AH112: 172800000 | AI112: 172800000 | AJ112: 172800000 | AK112: 172800000 | AL112: 172800000 | AM112: 172800000 | AN112: 172800000 | AO112: 172800000 | AP112: 172800000 | AQ112: 172800000 | AR112: 172800000 | AS112: 172800000 | AT112: =$H$112*AT111 -> 172800000 | AU112: 172800000 | AV112: 172800000 | AW112: 172800000 | AX112: 172800000 | AY112: 172800000 | AZ112: 172800000 | BA112: 172800000 | BB112: 172800000 | BC112: 172800000 | BD112: 0 | BE112: 0 | BF112: 0 | BG112: 0 | BH112: 0 | BI112: 0 | BJ112: 0 | BK112: 0 | BL112: 0 | BM112: 0 | BN112: 0 | BO112: 0 | BP112: 0 | BQ112: 0 | BR112: 0 | BS112: 0
D114: Real Diesel Price | G114: USD/L | H114: =Inputs!F223 -> 0.564 | N114: =$H$114 -> 0.564 | O114: 0.564 | P114: 0.564 | Q114: 0.564 | R114: 0.564 | S114: 0.564 | T114: 0.564 | U114: 0.564 | V114: 0.564 | W114: 0.564 | X114: 0.564 | Y114: 0.564 | Z114: 0.564 | AA114: 0.564 | AB114: 0.564 | AC114: 0.564 | AD114: 0.564 | AE114: 0.564 | AF114: 0.564 | AG114: 0.564 | AH114: 0.564 | AI114: 0.564 | AJ114: 0.564 | AK114: 0.564 | AL114: 0.564 | AM114: 0.564 | AN114: 0.564 | AO114: 0.564 | AP114: 0.564 | AQ114: 0.564 | AR114: 0.564 | AS114: 0.564 | AT114: =$H$114 -> 0.564 | AU114: 0.564 | AV114: 0.564 | AW114: 0.564 | AX114: 0.564 | AY114: 0.564 | AZ114: 0.564 | BA114: 0.564 | BB114: 0.564 | BC114: 0.564 | BD114: 0.564 | BE114: 0.564 | BF114: 0.564 | BG114: 0.564 | BH114: 0.564 | BI114: 0.564 | BJ114: 0.564 | BK114: 0.564 | BL114: 0.564 | BM114: 0.564 | BN114: 0.564 | BO114: 0.564 | BP114: 0.564 | BQ114: 0.564 | BR114: 0.564 | BS114: 0.564
D115: Inflation Flag | G115: Flag | N115: ='Operating Model'!M8 -> 0 | O115: ='Operating Model'!N8 -> 0 | P115: ='Operating Model'!O8 -> 0 | Q115: ='Operating Model'!P8 -> 0 | R115: ='Operating Model'!Q8 -> 0 | S115: ='Operating Model'!R8 -> 0 | T115: ='Operating Model'!S8 -> 0 | U115: ='Operating Model'!T8 -> 0 | V115: ='Operating Model'!U8 -> 0 | W115: ='Operating Model'!V8 -> 0 | X115: ='Operating Model'!W8 -> 0 | Y115: ='Operating Model'!X8 -> 0 | Z115: ='Operating Model'!Y8 -> 0 | AA115: ='Operating Model'!Z8 -> 1 | AB115: ='Operating Model'!AA8 -> 1 | AC115: ='Operating Model'!AB8 -> 1 | AD115: ='Operating Model'!AC8 -> 1 | AE115: ='Operating Model'!AD8 -> 1 | AF115: ='Operating Model'!AE8 -> 1 | AG115: ='Operating Model'!AF8 -> 1 | AH115: ='Operating Model'!AG8 -> 1 | AI115: ='Operating Model'!AH8 -> 1 | AJ115: ='Operating Model'!AI8 -> 1 | AK115: ='Operating Model'!AJ8 -> 1 | AL115: ='Operating Model'!AK8 -> 1 | AM115: ='Operating Model'!AL8 -> 1 | AN115: ='Operating Model'!AM8 -> 1 | AO115: ='Operating Model'!AN8 -> 1 | AP115: ='Operating Model'!AO8 -> 1 | AQ115: ='Operating Model'!AP8 -> 1 | AR115: ='Operating Model'!AQ8 -> 1 | AS115: ='Operating Model'!AR8 -> 1 | AT115: ='Operating Model'!AS8 -> 1 | AU115: ='Operating Model'!AT8 -> 1 | AV115: ='Operating Model'!AU8 -> 1 | AW115: ='Operating Model'!AV8 -> 1 | AX115: ='Operating Model'!AW8 -> 1 | AY115: ='Operating Model'!AX8 -> 1 | AZ115: ='Operating Model'!AY8 -> 1 | BA115: ='Operating Model'!AZ8 -> 1 | BB115: ='Operating Model'!BA8 -> 1 | BC115: ='Operating Model'!BB8 -> 1 | BD115: ='Operating Model'!BC8 -> 1 | BE115: ='Operating Model'!BD8 -> 0 | BF115: ='Operating Model'!BE8 -> 0 | BG115: ='Operating Model'!BF8 -> 0 | BH115: ='Operating Model'!BG8 -> 0 | BI115: ='Operating Model'!BH8 -> 0 | BJ115: ='Operating Model'!BI8 -> 0 | BK115: ='Operating Model'!BJ8 -> 0 | BL115: ='Operating Model'!BK8 -> 0 | BM115: ='Operating Model'!BL8 -> 0 | BN115: ='Operating Model'!BM8 -> 0 | BO115: ='Operating Model'!BN8 -> 0 | BP115: ='Operating Model'!BO8 -> 0 | BQ115: ='Operating Model'!BP8 -> 0 | BR115: ='Operating Model'!BQ8 -> 0 | BS115: ='Operating Model'!BR8 -> 0
D116: Inflation Index | G116: Index | H116: =Inputs!F227 -> 0 | M116: 1 | N116: =M116*(1+$H$116*N115) -> 1 | O116: 1 | P116: 1 | Q116: 1 | R116: 1 | S116: 1 | T116: 1 | U116: 1 | V116: 1 | W116: 1 | X116: 1 | Y116: 1 | Z116: 1 | AA116: 1 | AB116: 1 | AC116: 1 | AD116: 1 | AE116: 1 | AF116: 1 | AG116: 1 | AH116: 1 | AI116: 1 | AJ116: 1 | AK116: 1 | AL116: 1 | AM116: 1 | AN116: 1 | AO116: 1 | AP116: 1 | AQ116: 1 | AR116: 1 | AS116: 1 | AT116: =AS116*(1+$H$116*AT115) -> 1 | AU116: 1 | AV116: 1 | AW116: 1 | AX116: 1 | AY116: 1 | AZ116: 1 | BA116: 1 | BB116: 1 | BC116: 1 | BD116: 1 | BE116: 1 | BF116: 1 | BG116: 1 | BH116: 1 | BI116: 1 | BJ116: 1 | BK116: 1 | BL116: 1 | BM116: 1 | BN116: 1 | BO116: 1 | BP116: 1 | BQ116: 1 | BR116: 1 | BS116: 1
D117: Nominal Diesel Price | G117: USD/L | N117: =N114*N116 -> 0.564 | O117: 0.564 | P117: 0.564 | Q117: 0.564 | R117: 0.564 | S117: 0.564 | T117: 0.564 | U117: 0.564 | V117: 0.564 | W117: 0.564 | X117: 0.564 | Y117: 0.564 | Z117: 0.564 | AA117: 0.564 | AB117: 0.564 | AC117: 0.564 | AD117: 0.564 | AE117: 0.564 | AF117: 0.564 | AG117: 0.564 | AH117: 0.564 | AI117: 0.564 | AJ117: 0.564 | AK117: 0.564 | AL117: 0.564 | AM117: 0.564 | AN117: 0.564 | AO117: 0.564 | AP117: 0.564 | AQ117: 0.564 | AR117: 0.564 | AS117: 0.564 | AT117: =AT114*AT116 -> 0.564 | AU117: 0.564 | AV117: 0.564 | AW117: 0.564 | AX117: 0.564 | AY117: 0.564 | AZ117: 0.564 | BA117: 0.564 | BB117: 0.564 | BC117: 0.564 | BD117: 0.564 | BE117: 0.564 | BF117: 0.564 | BG117: 0.564 | BH117: 0.564 | BI117: 0.564 | BJ117: 0.564 | BK117: 0.564 | BL117: 0.564 | BM117: 0.564 | BN117: 0.564 | BO117: 0.564 | BP117: 0.564 | BQ117: 0.564 | BR117: 0.564 | BS117: 0.564
D118: Discount to Diesel Price | G118: % | H118: =Inputs!F226 -> 0 | N118: =$H$118 -> 0 | O118: 0 | P118: 0 | Q118: 0 | R118: 0 | S118: 0 | T118: 0 | U118: 0 | V118: 0 | W118: 0 | X118: 0 | Y118: 0 | Z118: 0 | AA118: 0 | AB118: 0 | AC118: 0 | AD118: 0 | AE118: 0 | AF118: 0 | AG118: 0 | AH118: 0 | AI118: 0 | AJ118: 0 | AK118: 0 | AL118: 0 | AM118: 0 | AN118: 0 | AO118: 0 | AP118: 0 | AQ118: 0 | AR118: 0 | AS118: 0 | AT118: =$H$118 -> 0 | AU118: 0 | AV118: 0 | AW118: 0 | AX118: 0 | AY118: 0 | AZ118: 0 | BA118: 0 | BB118: 0 | BC118: 0 | BD118: 0 | BE118: 0 | BF118: 0 | BG118: 0 | BH118: 0 | BI118: 0 | BJ118: 0 | BK118: 0 | BL118: 0 | BM118: 0 | BN118: 0 | BO118: 0 | BP118: 0 | BQ118: 0 | BR118: 0 | BS118: 0
D119: Final Sale Price | G119: USD/L | N119: =N117*(1-N118) -> 0.564 | O119: 0.564 | P119: 0.564 | Q119: 0.564 | R119: 0.564 | S119: 0.564 | T119: 0.564 | U119: 0.564 | V119: 0.564 | W119: 0.564 | X119: 0.564 | Y119: 0.564 | Z119: 0.564 | AA119: 0.564 | AB119: 0.564 | AC119: 0.564 | AD119: 0.564 | AE119: 0.564 | AF119: 0.564 | AG119: 0.564 | AH119: 0.564 | AI119: 0.564 | AJ119: 0.564 | AK119: 0.564 | AL119: 0.564 | AM119: 0.564 | AN119: 0.564 | AO119: 0.564 | AP119: 0.564 | AQ119: 0.564 | AR119: 0.564 | AS119: 0.564 | AT119: =AT117*(1-AT118) -> 0.564 | AU119: 0.564 | AV119: 0.564 | AW119: 0.564 | AX119: 0.564 | AY119: 0.564 | AZ119: 0.564 | BA119: 0.564 | BB119: 0.564 | BC119: 0.564 | BD119: 0.564 | BE119: 0.564 | BF119: 0.564 | BG119: 0.564 | BH119: 0.564 | BI119: 0.564 | BJ119: 0.564 | BK119: 0.564 | BL119: 0.564 | BM119: 0.564 | BN119: 0.564 | BO119: 0.564 | BP119: 0.564 | BQ119: 0.564 | BR119: 0.564 | BS119: 0.564
E120: Total Revenues | G120: USD | K120: =SUM(N120:BS120) -> 9745920 | N120: =N119*N112/100*'Operating Model'!N7 -> 0 | O120: =O119*O112/100*'Operating Model'!O7 -> 0 | P120: =P119*P112/100*'Operating Model'!P7 -> 0 | Q120: =Q119*Q112/100*'Operating Model'!Q7 -> 0 | R120: =R119*R112/100*'Operating Model'!R7 -> 0 | S120: =S119*S112/100*'Operating Model'!S7 -> 0 | T120: =T119*T112/100*'Operating Model'!T7 -> 0 | U120: =U119*U112/100*'Operating Model'!U7 -> 0 | V120: =V119*V112/100*'Operating Model'!V7 -> 0 | W120: =W119*W112/100*'Operating Model'!W7 -> 0 | X120: =X119*X112/100*'Operating Model'!X7 -> 0 | Y120: =Y119*Y112/100*'Operating Model'!Y7 -> 0 | Z120: =Z119*Z112/100*'Operating Model'!Z7 -> 974592 | AA120: =AA119*AA112/100*'Operating Model'!AA7 -> 974592 | AB120: =AB119*AB112/100*'Operating Model'!AB7 -> 974592 | AC120: =AC119*AC112/100*'Operating Model'!AC7 -> 974592 | AD120: =AD119*AD112/100*'Operating Model'!AD7 -> 974592 | AE120: =AE119*AE112/100*'Operating Model'!AE7 -> 974592 | AF120: =AF119*AF112/100*'Operating Model'!AF7 -> 974592 | AG120: =AG119*AG112/100*'Operating Model'!AG7 -> 974592 | AH120: =AH119*AH112/100*'Operating Model'!AH7 -> 974592 | AI120: =AI119*AI112/100*'Operating Model'!AI7 -> 974592 | AJ120: =AJ119*AJ112/100*'Operating Model'!AJ7 -> 0 | AK120: =AK119*AK112/100*'Operating Model'!AK7 -> 0 | AL120: =AL119*AL112/100*'Operating Model'!AL7 -> 0 | AM120: =AM119*AM112/100*'Operating Model'!AM7 -> 0 | AN120: =AN119*AN112/100*'Operating Model'!AN7 -> 0 | AO120: =AO119*AO112/100*'Operating Model'!AO7 -> 0 | AP120: =AP119*AP112/100*'Operating Model'!AP7 -> 0 | AQ120: =AQ119*AQ112/100*'Operating Model'!AQ7 -> 0 | AR120: =AR119*AR112/100*'Operating Model'!AR7 -> 0 | AS120: =AS119*AS112/100*'Operating Model'!AS7 -> 0 | AT120: =AT119*AT112/100*'Operating Model'!AT7 -> 0 | AU120: =AU119*AU112/100*'Operating Model'!AU7 -> 0 | AV120: =AV119*AV112/100*'Operating Model'!AV7 -> 0 | AW120: =AW119*AW112/100*'Operating Model'!AW7 -> 0 | AX120: =AX119*AX112/100*'Operating Model'!AX7 -> 0 | AY120: =AY119*AY112/100*'Operating Model'!AY7 -> 0 | AZ120: =AZ119*AZ112/100*'Operating Model'!AZ7 -> 0 | BA120: =BA119*BA112/100*'Operating Model'!BA7 -> 0 | BB120: =BB119*BB112/100*'Operating Model'!BB7 -> 0 | BC120: =BC119*BC112/100*'Operating Model'!BC7 -> 0 | BD120: =BD119*BD112/100*'Operating Model'!BD7 -> 0 | BE120: =BE119*BE112/100*'Operating Model'!BE7 -> 0 | BF120: =BF119*BF112/100*'Operating Model'!BF7 -> 0 | BG120: =BG119*BG112/100*'Operating Model'!BG7 -> 0 | BH120: =BH119*BH112/100*'Operating Model'!BH7 -> 0 | BI120: =BI119*BI112/100*'Operating Model'!BI7 -> 0 | BJ120: =BJ119*BJ112/100*'Operating Model'!BJ7 -> 0 | BK120: =BK119*BK112/100*'Operating Model'!BK7 -> 0 | BL120: =BL119*BL112/100*'Operating Model'!BL7 -> 0 | BM120: =BM119*BM112/100*'Operating Model'!BM7 -> 0 | BN120: =BN119*BN112/100*'Operating Model'!BN7 -> 0 | BO120: =BO119*BO112/100*'Operating Model'!BO7 -> 0 | BP120: =BP119*BP112/100*'Operating Model'!BP7 -> 0 | BQ120: =BQ119*BQ112/100*'Operating Model'!BQ7 -> 0 | BR120: =BR119*BR112/100*'Operating Model'!BR7 -> 0 | BS120: =BS119*BS112/100*'Operating Model'!BS7 -> 0
D122: Cost of Maintaining the Truck | G122: USD
D123: Maintenance Contract over BOT Period | G123: USD | K123: =SUM(N123:BS123) -> 1783928 | N123: =N28*'Operating Model'!N7 -> 0 | O123: =O28*'Operating Model'!O7 -> 0 | P123: =P28*'Operating Model'!P7 -> 0 | Q123: =Q28*'Operating Model'!Q7 -> 0 | R123: =R28*'Operating Model'!R7 -> 0 | S123: =S28*'Operating Model'!S7 -> 0 | T123: =T28*'Operating Model'!T7 -> 0 | U123: =U28*'Operating Model'!U7 -> 0 | V123: =V28*'Operating Model'!V7 -> 0 | W123: =W28*'Operating Model'!W7 -> 0 | X123: =X28*'Operating Model'!X7 -> 0 | Y123: =Y28*'Operating Model'!Y7 -> 0 | Z123: =Z28*'Operating Model'!Z7 -> 178392.8 | AA123: =AA28*'Operating Model'!AA7 -> 178392.8 | AB123: =AB28*'Operating Model'!AB7 -> 178392.8 | AC123: =AC28*'Operating Model'!AC7 -> 178392.8 | AD123: =AD28*'Operating Model'!AD7 -> 178392.8 | AE123: =AE28*'Operating Model'!AE7 -> 178392.8 | AF123: =AF28*'Operating Model'!AF7 -> 178392.8 | AG123: =AG28*'Operating Model'!AG7 -> 178392.8 | AH123: =AH28*'Operating Model'!AH7 -> 178392.8 | AI123: =AI28*'Operating Model'!AI7 -> 178392.8 | AJ123: =AJ28*'Operating Model'!AJ7 -> 0 | AK123: =AK28*'Operating Model'!AK7 -> 0 | AL123: =AL28*'Operating Model'!AL7 -> 0 | AM123: =AM28*'Operating Model'!AM7 -> 0 | AN123: =AN28*'Operating Model'!AN7 -> 0 | AO123: =AO28*'Operating Model'!AO7 -> 0 | AP123: =AP28*'Operating Model'!AP7 -> 0 | AQ123: =AQ28*'Operating Model'!AQ7 -> 0 | AR123: =AR28*'Operating Model'!AR7 -> 0 | AS123: =AS28*'Operating Model'!AS7 -> 0 | AT123: =AT28*'Operating Model'!AT7 -> 0 | AU123: =AU28*'Operating Model'!AU7 -> 0 | AV123: =AV28*'Operating Model'!AV7 -> 0 | AW123: =AW28*'Operating Model'!AW7 -> 0 | AX123: =AX28*'Operating Model'!AX7 -> 0 | AY123: =AY28*'Operating Model'!AY7 -> 0 | AZ123: =AZ28*'Operating Model'!AZ7 -> 0 | BA123: =BA28*'Operating Model'!BA7 -> 0 | BB123: =BB28*'Operating Model'!BB7 -> 0 | BC123: =BC28*'Operating Model'!BC7 -> 0 | BD123: =BD28*'Operating Model'!BD7 -> 0 | BE123: =BE28*'Operating Model'!BE7 -> 0 | BF123: =BF28*'Operating Model'!BF7 -> 0 | BG123: =BG28*'Operating Model'!BG7 -> 0 | BH123: =BH28*'Operating Model'!BH7 -> 0 | BI123: =BI28*'Operating Model'!BI7 -> 0 | BJ123: =BJ28*'Operating Model'!BJ7 -> 0 | BK123: =BK28*'Operating Model'!BK7 -> 0 | BL123: =BL28*'Operating Model'!BL7 -> 0 | BM123: =BM28*'Operating Model'!BM7 -> 0 | BN123: =BN28*'Operating Model'!BN7 -> 0 | BO123: =BO28*'Operating Model'!BO7 -> 0 | BP123: =BP28*'Operating Model'!BP7 -> 0 | BQ123: =BQ28*'Operating Model'!BQ7 -> 0 | BR123: =BR28*'Operating Model'!BR7 -> 0 | BS123: =BS28*'Operating Model'!BS7 -> 0
D124: Electricity Cost over BOT Period | G124: USD | K124: =SUM(N124:BS124) -> 1750377.08 | N124: =N61*'Operating Model'!N7 -> 0 | O124: =O61*'Operating Model'!O7 -> 0 | P124: =P61*'Operating Model'!P7 -> 0 | Q124: =Q61*'Operating Model'!Q7 -> 0 | R124: =R61*'Operating Model'!R7 -> 0 | S124: =S61*'Operating Model'!S7 -> 0 | T124: =T61*'Operating Model'!T7 -> 0 | U124: =U61*'Operating Model'!U7 -> 0 | V124: =V61*'Operating Model'!V7 -> 0 | W124: =W61*'Operating Model'!W7 -> 0 | X124: =X61*'Operating Model'!X7 -> 0 | Y124: =Y61*'Operating Model'!Y7 -> 0 | Z124: =Z61*'Operating Model'!Z7 -> 175037.708 | AA124: =AA61*'Operating Model'!AA7 -> 175037.708 | AB124: =AB61*'Operating Model'!AB7 -> 175037.708 | AC124: =AC61*'Operating Model'!AC7 -> 175037.708 | AD124: =AD61*'Operating Model'!AD7 -> 175037.708 | AE124: =AE61*'Operating Model'!AE7 -> 175037.708 | AF124: =AF61*'Operating Model'!AF7 -> 175037.708 | AG124: =AG61*'Operating Model'!AG7 -> 175037.708 | AH124: =AH61*'Operating Model'!AH7 -> 175037.708 | AI124: =AI61*'Operating Model'!AI7 -> 175037.708 | AJ124: =AJ61*'Operating Model'!AJ7 -> 0 | AK124: =AK61*'Operating Model'!AK7 -> 0 | AL124: =AL61*'Operating Model'!AL7 -> 0 | AM124: =AM61*'Operating Model'!AM7 -> 0 | AN124: =AN61*'Operating Model'!AN7 -> 0 | AO124: =AO61*'Operating Model'!AO7 -> 0 | AP124: =AP61*'Operating Model'!AP7 -> 0 | AQ124: =AQ61*'Operating Model'!AQ7 -> 0 | AR124: =AR61*'Operating Model'!AR7 -> 0 | AS124: =AS61*'Operating Model'!AS7 -> 0 | AT124: =AT61*'Operating Model'!AT7 -> 0 | AU124: =AU61*'Operating Model'!AU7 -> 0 | AV124: =AV61*'Operating Model'!AV7 -> 0 | AW124: =AW61*'Operating Model'!AW7 -> 0 | AX124: =AX61*'Operating Model'!AX7 -> 0 | AY124: =AY61*'Operating Model'!AY7 -> 0 | AZ124: =AZ61*'Operating Model'!AZ7 -> 0 | BA124: =BA61*'Operating Model'!BA7 -> 0 | BB124: =BB61*'Operating Model'!BB7 -> 0 | BC124: =BC61*'Operating Model'!BC7 -> 0 | BD124: =BD61*'Operating Model'!BD7 -> 0 | BE124: =BE61*'Operating Model'!BE7 -> 0 | BF124: =BF61*'Operating Model'!BF7 -> 0 | BG124: =BG61*'Operating Model'!BG7 -> 0 | BH124: =BH61*'Operating Model'!BH7 -> 0 | BI124: =BI61*'Operating Model'!BI7 -> 0 | BJ124: =BJ61*'Operating Model'!BJ7 -> 0 | BK124: =BK61*'Operating Model'!BK7 -> 0 | BL124: =BL61*'Operating Model'!BL7 -> 0 | BM124: =BM61*'Operating Model'!BM7 -> 0 | BN124: =BN61*'Operating Model'!BN7 -> 0 | BO124: =BO61*'Operating Model'!BO7 -> 0 | BP124: =BP61*'Operating Model'!BP7 -> 0 | BQ124: =BQ61*'Operating Model'!BQ7 -> 0 | BR124: =BR61*'Operating Model'!BR7 -> 0 | BS124: =BS61*'Operating Model'!BS7 -> 0
E125: EBITDA | K125: =SUM(N125:BS125) -> 6211614.92 | N125: =N120-N123-N124 -> 0 | O125: 0 | P125: 0 | Q125: 0 | R125: 0 | S125: 0 | T125: 0 | U125: 0 | V125: 0 | W125: 0 | X125: 0 | Y125: 0 | Z125: 621161.492 | AA125: 621161.492 | AB125: 621161.492 | AC125: 621161.492 | AD125: 621161.492 | AE125: 621161.492 | AF125: 621161.492 | AG125: 621161.492 | AH125: 621161.492 | AI125: 621161.492 | AJ125: 0 | AK125: 0 | AL125: 0 | AM125: 0 | AN125: 0 | AO125: 0 | AP125: 0 | AQ125: 0 | AR125: 0 | AS125: 0 | AT125: =AT120-AT123-AT124 -> 0 | AU125: 0 | AV125: 0 | AW125: 0 | AX125: 0 | AY125: 0 | AZ125: 0 | BA125: 0 | BB125: 0 | BC125: 0 | BD125: 0 | BE125: 0 | BF125: 0 | BG125: 0 | BH125: 0 | BI125: 0 | BJ125: 0 | BK125: 0 | BL125: 0 | BM125: 0 | BN125: 0 | BO125: 0 | BP125: 0 | BQ125: 0 | BR125: 0 | BS125: 0
D127: Pre-tax Cash Flow | K127: =SUM(N127:BS127) -> 1261614.92 | N127: =N125-N89 -> -412500 | O127: -412500 | P127: -412500 | Q127: -412500 | R127: -412500 | S127: -412500 | T127: -412500 | U127: -412500 | V127: -412500 | W127: -412500 | X127: -412500 | Y127: -412500 | Z127: 621161.492 | AA127: 621161.492 | AB127: 621161.492 | AC127: 621161.492 | AD127: 621161.492 | AE127: 621161.492 | AF127: 621161.492 | AG127: 621161.492 | AH127: 621161.492 | AI127: 621161.492 | AJ127: 0 | AK127: 0 | AL127: 0 | AM127: 0 | AN127: 0 | AO127: 0 | AP127: 0 | AQ127: 0 | AR127: 0 | AS127: 0 | AT127: =AT125-AT89 -> 0 | AU127: 0 | AV127: 0 | AW127: 0 | AX127: 0 | AY127: 0 | AZ127: 0 | BA127: 0 | BB127: 0 | BC127: 0 | BD127: 0 | BE127: 0 | BF127: 0 | BG127: 0 | BH127: 0 | BI127: 0 | BJ127: 0 | BK127: 0 | BL127: 0 | BM127: 0 | BN127: 0 | BO127: 0 | BP127: 0 | BQ127: 0 | BR127: 0 | BS127: 0
D128: IRR | H128: =XIRR(N127:BS127,'Operating Model'!N6:BS6) -> 0.039893803
D130: Annual Demand in Litres | G130: Litres/Year | K130: =SUM(N130:BS130) -> 5184000000 | N130: =N112 -> 0 | O130: 0 | P130: 0 | Q130: 0 | R130: 0 | S130: 0 | T130: 0 | U130: 0 | V130: 0 | W130: 0 | X130: 0 | Y130: 0 | Z130: 172800000 | AA130: 172800000 | AB130: 172800000 | AC130: 172800000 | AD130: 172800000 | AE130: 172800000 | AF130: 172800000 | AG130: 172800000 | AH130: 172800000 | AI130: 172800000 | AJ130: 172800000 | AK130: 172800000 | AL130: 172800000 | AM130: 172800000 | AN130: 172800000 | AO130: 172800000 | AP130: 172800000 | AQ130: 172800000 | AR130: 172800000 | AS130: 172800000 | AT130: =AT112 -> 172800000 | AU130: 172800000 | AV130: 172800000 | AW130: 172800000 | AX130: 172800000 | AY130: 172800000 | AZ130: 172800000 | BA130: 172800000 | BB130: 172800000 | BC130: 172800000 | BD130: 0 | BE130: 0 | BF130: 0 | BG130: 0 | BH130: 0 | BI130: 0 | BJ130: 0 | BK130: 0 | BL130: 0 | BM130: 0 | BN130: 0 | BO130: 0 | BP130: 0 | BQ130: 0 | BR130: 0 | BS130: 0
D131: Annual Demand for Biomethane in Litres | G131: Litres/Year | H131: =Inputs!F233 -> 1.2 | K131: =SUM(N131:BS131) -> 6220800000 | N131: =N130*$H$131 -> 0 | O131: 0 | P131: 0 | Q131: 0 | R131: 0 | S131: 0 | T131: 0 | U131: 0 | V131: 0 | W131: 0 | X131: 0 | Y131: 0 | Z131: 207360000 | AA131: 207360000 | AB131: 207360000 | AC131: 207360000 | AD131: 207360000 | AE131: 207360000 | AF131: 207360000 | AG131: 207360000 | AH131: 207360000 | AI131: 207360000 | AJ131: 207360000 | AK131: 207360000 | AL131: 207360000 | AM131: 207360000 | AN131: 207360000 | AO131: 207360000 | AP131: 207360000 | AQ131: 207360000 | AR131: 207360000 | AS131: 207360000 | AT131: =AT130*$H$131 -> 207360000 | AU131: 207360000 | AV131: 207360000 | AW131: 207360000 | AX131: 207360000 | AY131: 207360000 | AZ131: 207360000 | BA131: 207360000 | BB131: 207360000 | BC131: 207360000 | BD131: 0 | BE131: 0 | BF131: 0 | BG131: 0 | BH131: 0 | BI131: 0 | BJ131: 0 | BK131: 0 | BL131: 0 | BM131: 0 | BN131: 0 | BO131: 0 | BP131: 0 | BQ131: 0 | BR131: 0 | BS131: 0
D132: Annual Demand for Biomethane in kg | G132: kg/Year | H132: =Inputs!F234 -> 0.75 | K132: =SUM(N132:BS132) -> 4665600000 | N132: =$H$132*N131 -> 0 | O132: 0 | P132: 0 | Q132: 0 | R132: 0 | S132: 0 | T132: 0 | U132: 0 | V132: 0 | W132: 0 | X132: 0 | Y132: 0 | Z132: 155520000 | AA132: 155520000 | AB132: 155520000 | AC132: 155520000 | AD132: 155520000 | AE132: 155520000 | AF132: 155520000 | AG132: 155520000 | AH132: 155520000 | AI132: 155520000 | AJ132: 155520000 | AK132: 155520000 | AL132: 155520000 | AM132: 155520000 | AN132: 155520000 | AO132: 155520000 | AP132: 155520000 | AQ132: 155520000 | AR132: 155520000 | AS132: 155520000 | AT132: =$H$132*AT131 -> 155520000 | AU132: 155520000 | AV132: 155520000 | AW132: 155520000 | AX132: 155520000 | AY132: 155520000 | AZ132: 155520000 | BA132: 155520000 | BB132: 155520000 | BC132: 155520000 | BD132: 0 | BE132: 0 | BF132: 0 | BG132: 0 | BH132: 0 | BI132: 0 | BJ132: 0 | BK132: 0 | BL132: 0 | BM132: 0 | BN132: 0 | BO132: 0 | BP132: 0 | BQ132: 0 | BR132: 0 | BS132: 0
D133: Annual Demand for Biomethane in MMBTU | G133: MMBTU/Year | H133: =Inputs!F239 -> 30.14445676 | K133: =SUM(N133:BS133) -> 206366299.8 | N133: =N131/$H$133 -> 0 | O133: 0 | P133: 0 | Q133: 0 | R133: 0 | S133: 0 | T133: 0 | U133: 0 | V133: 0 | W133: 0 | X133: 0 | Y133: 0 | Z133: 6878876.659 | AA133: 6878876.659 | AB133: 6878876.659 | AC133: 6878876.659 | AD133: 6878876.659 | AE133: 6878876.659 | AF133: 6878876.659 | AG133: 6878876.659 | AH133: 6878876.659 | AI133: 6878876.659 | AJ133: 6878876.659 | AK133: 6878876.659 | AL133: 6878876.659 | AM133: 6878876.659 | AN133: 6878876.659 | AO133: 6878876.659 | AP133: 6878876.659 | AQ133: 6878876.659 | AR133: 6878876.659 | AS133: 6878876.659 | AT133: =AT131/$H$133 -> 6878876.659 | AU133: 6878876.659 | AV133: 6878876.659 | AW133: 6878876.659 | AX133: 6878876.659 | AY133: 6878876.659 | AZ133: 6878876.659 | BA133: 6878876.659 | BB133: 6878876.659 | BC133: 6878876.659 | BD133: 0 | BE133: 0 | BF133: 0 | BG133: 0 | BH133: 0 | BI133: 0 | BJ133: 0 | BK133: 0 | BL133: 0 | BM133: 0 | BN133: 0 | BO133: 0 | BP133: 0 | BQ133: 0 | BR133: 0 | BS133: 0
D135: Unit Cost of Diesel in Litre | K135: =MAX(N135:BS135) -> 0.564 | N135: =IF(N130,N120/N130*100) -> FALSE | O135: FALSE | P135: FALSE | Q135: FALSE | R135: FALSE | S135: FALSE | T135: FALSE | U135: FALSE | V135: FALSE | W135: FALSE | X135: FALSE | Y135: FALSE | Z135: 0.564 | AA135: 0.564 | AB135: 0.564 | AC135: 0.564 | AD135: 0.564 | AE135: 0.564 | AF135: 0.564 | AG135: 0.564 | AH135: 0.564 | AI135: 0.564 | AJ135: 0 | AK135: 0 | AL135: 0 | AM135: 0 | AN135: 0 | AO135: 0 | AP135: 0 | AQ135: 0 | AR135: 0 | AS135: 0 | AT135: =IF(AT130,AT120/AT130*100) -> 0 | AU135: 0 | AV135: 0 | AW135: 0 | AX135: 0 | AY135: 0 | AZ135: 0 | BA135: 0 | BB135: 0 | BC135: 0 | BD135: FALSE | BE135: FALSE | BF135: FALSE | BG135: FALSE | BH135: FALSE | BI135: FALSE | BJ135: FALSE | BK135: FALSE | BL135: FALSE | BM135: FALSE | BN135: FALSE | BO135: FALSE | BP135: FALSE | BQ135: FALSE | BR135: FALSE | BS135: FALSE
D136: Unit Cost of BioMethane in Litre | K136: =MAX(N136:BS136) -> 0.47 | N136: =IF(N131,N120/N131*100) -> FALSE | O136: FALSE | P136: FALSE | Q136: FALSE | R136: FALSE | S136: FALSE | T136: FALSE | U136: FALSE | V136: FALSE | W136: FALSE | X136: FALSE | Y136: FALSE | Z136: 0.47 | AA136: 0.47 | AB136: 0.47 | AC136: 0.47 | AD136: 0.47 | AE136: 0.47 | AF136: 0.47 | AG136: 0.47 | AH136: 0.47 | AI136: 0.47 | AJ136: 0 | AK136: 0 | AL136: 0 | AM136: 0 | AN136: 0 | AO136: 0 | AP136: 0 | AQ136: 0 | AR136: 0 | AS136: 0 | AT136: =IF(AT131,AT120/AT131*100) -> 0 | AU136: 0 | AV136: 0 | AW136: 0 | AX136: 0 | AY136: 0 | AZ136: 0 | BA136: 0 | BB136: 0 | BC136: 0 | BD136: FALSE | BE136: FALSE | BF136: FALSE | BG136: FALSE | BH136: FALSE | BI136: FALSE | BJ136: FALSE | BK136: FALSE | BL136: FALSE | BM136: FALSE | BN136: FALSE | BO136: FALSE | BP136: FALSE | BQ136: FALSE | BR136: FALSE | BS136: FALSE
D137: Unit Cost of Biomethane in kg | K137: =MAX(N137:BS137) -> 0.6266666667 | N137: =IF(N132,N120/N132*100) -> FALSE | O137: FALSE | P137: FALSE | Q137: FALSE | R137: FALSE | S137: FALSE | T137: FALSE | U137: FALSE | V137: FALSE | W137: FALSE | X137: FALSE | Y137: FALSE | Z137: 0.6266666667 | AA137: 0.6266666667 | AB137: 0.6266666667 | AC137: 0.6266666667 | AD137: 0.6266666667 | AE137: 0.6266666667 | AF137: 0.6266666667 | AG137: 0.6266666667 | AH137: 0.6266666667 | AI137: 0.6266666667 | AJ137: 0 | AK137: 0 | AL137: 0 | AM137: 0 | AN137: 0 | AO137: 0 | AP137: 0 | AQ137: 0 | AR137: 0 | AS137: 0 | AT137: =IF(AT132,AT120/AT132*100) -> 0 | AU137: 0 | AV137: 0 | AW137: 0 | AX137: 0 | AY137: 0 | AZ137: 0 | BA137: 0 | BB137: 0 | BC137: 0 | BD137: FALSE | BE137: FALSE | BF137: FALSE | BG137: FALSE | BH137: FALSE | BI137: FALSE | BJ137: FALSE | BK137: FALSE | BL137: FALSE | BM137: FALSE | BN137: FALSE | BO137: FALSE | BP137: FALSE | BQ137: FALSE | BR137: FALSE | BS137: FALSE
D138: Unit Cost of Biomethane in MMBTU | K138: =MAX(N138:BS138) -> 14.16789468 | N138: =IF(N133,N120/N133*100) -> FALSE | O138: FALSE | P138: FALSE | Q138: FALSE | R138: FALSE | S138: FALSE | T138: FALSE | U138: FALSE | V138: FALSE | W138: FALSE | X138: FALSE | Y138: FALSE | Z138: 14.16789468 | AA138: 14.16789468 | AB138: 14.16789468 | AC138: 14.16789468 | AD138: 14.16789468 | AE138: 14.16789468 | AF138: 14.16789468 | AG138: 14.16789468 | AH138: 14.16789468 | AI138: 14.16789468 | AJ138: 0 | AK138: 0 | AL138: 0 | AM138: 0 | AN138: 0 | AO138: 0 | AP138: 0 | AQ138: 0 | AR138: 0 | AS138: 0 | AT138: =IF(AT133,AT120/AT133*100) -> 0 | AU138: 0 | AV138: 0 | AW138: 0 | AX138: 0 | AY138: 0 | AZ138: 0 | BA138: 0 | BB138: 0 | BC138: 0 | BD138: FALSE | BE138: FALSE | BF138: FALSE | BG138: FALSE | BH138: FALSE | BI138: FALSE | BJ138: FALSE | BK138: FALSE | BL138: FALSE | BM138: FALSE | BN138: FALSE | BO138: FALSE | BP138: FALSE | BQ138: FALSE | BR138: FALSE | BS138: FALSE
B140: Savings to Mill
C142: Fuel Cost Savings over BOT Period
D143: Market Price of Diesel For Comparison | G143: USD/Litre | H143: =Inputs!F224 -> 0.6 | N143: =$H$143 -> 0.6 | O143: 0.6 | P143: 0.6 | Q143: 0.6 | R143: 0.6 | S143: 0.6 | T143: 0.6 | U143: 0.6 | V143: 0.6 | W143: 0.6 | X143: 0.6 | Y143: 0.6 | Z143: 0.6 | AA143: 0.6 | AB143: 0.6 | AC143: 0.6 | AD143: 0.6 | AE143: 0.6 | AF143: 0.6 | AG143: 0.6 | AH143: 0.6 | AI143: 0.6 | AJ143: 0.6 | AK143: 0.6 | AL143: 0.6 | AM143: 0.6 | AN143: 0.6 | AO143: 0.6 | AP143: 0.6 | AQ143: 0.6 | AR143: 0.6 | AS143: 0.6 | AT143: =$H$143 -> 0.6 | AU143: 0.6 | AV143: 0.6 | AW143: 0.6 | AX143: 0.6 | AY143: 0.6 | AZ143: 0.6 | BA143: 0.6 | BB143: 0.6 | BC143: 0.6 | BD143: 0.6 | BE143: 0.6 | BF143: 0.6 | BG143: 0.6 | BH143: 0.6 | BI143: 0.6 | BJ143: 0.6 | BK143: 0.6 | BL143: 0.6 | BM143: 0.6 | BN143: 0.6 | BO143: 0.6 | BP143: 0.6 | BQ143: 0.6 | BR143: 0.6 | BS143: 0.6
D144: Price Used for Charging Mill | G144: USD/Litre | H144: =Inputs!F223 -> 0.564 | N144: =$H$144 -> 0.564 | O144: 0.564 | P144: 0.564 | Q144: 0.564 | R144: 0.564 | S144: 0.564 | T144: 0.564 | U144: 0.564 | V144: 0.564 | W144: 0.564 | X144: 0.564 | Y144: 0.564 | Z144: 0.564 | AA144: 0.564 | AB144: 0.564 | AC144: 0.564 | AD144: 0.564 | AE144: 0.564 | AF144: 0.564 | AG144: 0.564 | AH144: 0.564 | AI144: 0.564 | AJ144: 0.564 | AK144: 0.564 | AL144: 0.564 | AM144: 0.564 | AN144: 0.564 | AO144: 0.564 | AP144: 0.564 | AQ144: 0.564 | AR144: 0.564 | AS144: 0.564 | AT144: =$H$144 -> 0.564 | AU144: 0.564 | AV144: 0.564 | AW144: 0.564 | AX144: 0.564 | AY144: 0.564 | AZ144: 0.564 | BA144: 0.564 | BB144: 0.564 | BC144: 0.564 | BD144: 0.564 | BE144: 0.564 | BF144: 0.564 | BG144: 0.564 | BH144: 0.564 | BI144: 0.564 | BJ144: 0.564 | BK144: 0.564 | BL144: 0.564 | BM144: 0.564 | BN144: 0.564 | BO144: 0.564 | BP144: 0.564 | BQ144: 0.564 | BR144: 0.564 | BS144: 0.564
D145: Difference | G145: USD/Litre | N145: =N143-N144 -> 0.036 | O145: 0.036 | P145: 0.036 | Q145: 0.036 | R145: 0.036 | S145: 0.036 | T145: 0.036 | U145: 0.036 | V145: 0.036 | W145: 0.036 | X145: 0.036 | Y145: 0.036 | Z145: 0.036 | AA145: 0.036 | AB145: 0.036 | AC145: 0.036 | AD145: 0.036 | AE145: 0.036 | AF145: 0.036 | AG145: 0.036 | AH145: 0.036 | AI145: 0.036 | AJ145: 0.036 | AK145: 0.036 | AL145: 0.036 | AM145: 0.036 | AN145: 0.036 | AO145: 0.036 | AP145: 0.036 | AQ145: 0.036 | AR145: 0.036 | AS145: 0.036 | AT145: =AT143-AT144 -> 0.036 | AU145: 0.036 | AV145: 0.036 | AW145: 0.036 | AX145: 0.036 | AY145: 0.036 | AZ145: 0.036 | BA145: 0.036 | BB145: 0.036 | BC145: 0.036 | BD145: 0.036 | BE145: 0.036 | BF145: 0.036 | BG145: 0.036 | BH145: 0.036 | BI145: 0.036 | BJ145: 0.036 | BK145: 0.036 | BL145: 0.036 | BM145: 0.036 | BN145: 0.036 | BO145: 0.036 | BP145: 0.036 | BQ145: 0.036 | BR145: 0.036 | BS145: 0.036
D147: Km Travelled in BOT Period | G147: km | K147: =SUM(N147:BS147) -> 129600000 | N147: =N111 -> 0 | O147: 0 | P147: 0 | Q147: 0 | R147: 0 | S147: 0 | T147: 0 | U147: 0 | V147: 0 | W147: 0 | X147: 0 | Y147: 0 | Z147: 4320000 | AA147: 4320000 | AB147: 4320000 | AC147: 4320000 | AD147: 4320000 | AE147: 4320000 | AF147: 4320000 | AG147: 4320000 | AH147: 4320000 | AI147: 4320000 | AJ147: 4320000 | AK147: 4320000 | AL147: 4320000 | AM147: 4320000 | AN147: 4320000 | AO147: 4320000 | AP147: 4320000 | AQ147: 4320000 | AR147: 4320000 | AS147: 4320000 | AT147: =AT111 -> 4320000 | AU147: 4320000 | AV147: 4320000 | AW147: 4320000 | AX147: 4320000 | AY147: 4320000 | AZ147: 4320000 | BA147: 4320000 | BB147: 4320000 | BC147: 4320000 | BD147: 0 | BE147: 0 | BF147: 0 | BG147: 0 | BH147: 0 | BI147: 0 | BJ147: 0 | BK147: 0 | BL147: 0 | BM147: 0 | BN147: 0 | BO147: 0 | BP147: 0 | BQ147: 0 | BR147: 0 | BS147: 0
D148: Fuel Efficiency | G148: L/km | H148: =Inputs!F229/100 -> 0.4 | N148: =$H$148 -> 0.4 | O148: 0.4 | P148: 0.4 | Q148: 0.4 | R148: 0.4 | S148: 0.4 | T148: 0.4 | U148: 0.4 | V148: 0.4 | W148: 0.4 | X148: 0.4 | Y148: 0.4 | Z148: 0.4 | AA148: 0.4 | AB148: 0.4 | AC148: 0.4 | AD148: 0.4 | AE148: 0.4 | AF148: 0.4 | AG148: 0.4 | AH148: 0.4 | AI148: 0.4 | AJ148: 0.4 | AK148: 0.4 | AL148: 0.4 | AM148: 0.4 | AN148: 0.4 | AO148: 0.4 | AP148: 0.4 | AQ148: 0.4 | AR148: 0.4 | AS148: 0.4 | AT148: =$H$148 -> 0.4 | AU148: 0.4 | AV148: 0.4 | AW148: 0.4 | AX148: 0.4 | AY148: 0.4 | AZ148: 0.4 | BA148: 0.4 | BB148: 0.4 | BC148: 0.4 | BD148: 0.4 | BE148: 0.4 | BF148: 0.4 | BG148: 0.4 | BH148: 0.4 | BI148: 0.4 | BJ148: 0.4 | BK148: 0.4 | BL148: 0.4 | BM148: 0.4 | BN148: 0.4 | BO148: 0.4 | BP148: 0.4 | BQ148: 0.4 | BR148: 0.4 | BS148: 0.4
D149: Litres Used | G149: Litres | N149: =N147*N148 -> 0 | O149: 0 | P149: 0 | Q149: 0 | R149: 0 | S149: 0 | T149: 0 | U149: 0 | V149: 0 | W149: 0 | X149: 0 | Y149: 0 | Z149: 1728000 | AA149: 1728000 | AB149: 1728000 | AC149: 1728000 | AD149: 1728000 | AE149: 1728000 | AF149: 1728000 | AG149: 1728000 | AH149: 1728000 | AI149: 1728000 | AJ149: 1728000 | AK149: 1728000 | AL149: 1728000 | AM149: 1728000 | AN149: 1728000 | AO149: 1728000 | AP149: 1728000 | AQ149: 1728000 | AR149: 1728000 | AS149: 1728000 | AT149: =AT147*AT148 -> 1728000 | AU149: 1728000 | AV149: 1728000 | AW149: 1728000 | AX149: 1728000 | AY149: 1728000 | AZ149: 1728000 | BA149: 1728000 | BB149: 1728000 | BC149: 1728000 | BD149: 0 | BE149: 0 | BF149: 0 | BG149: 0 | BH149: 0 | BI149: 0 | BJ149: 0 | BK149: 0 | BL149: 0 | BM149: 0 | BN149: 0 | BO149: 0 | BP149: 0 | BQ149: 0 | BR149: 0 | BS149: 0
